Workbook

Sheet Cover
A5: 2023 Draft IM Review
A6: Demonstration model:
A7: Financial impacts of indexation of Transpower's RAB
A21: 2023-06-14

Sheet Table of contents
B1: Table of Contents
B3: Sheet name | C3: Link | D3: Description
B4: Description and approach | C4: Description and approach | D4: Explains the purpose of the model, as well as the logic followed
B5: Simplifying assumptions | C5: Simplifying assumptions | D5: Lists the simplifying assumptions we have made for demonstration of the NPV=0 principle
B6: Inputs - forecast | C6: Inputs - forecast | D6: Contains the 'forecast' assumptions we have used to set the initial price path
B7: Inputs - actual | C7: Inputs - actual | D7: Contains the 'actual' assumptions we have used to determine the actual revenue and IRR
B8: Macro | C8: Macro | D8: The macro goal seeks revenue for each of the calculation sheets so that NPV of revenue = NPV of expenditure for each 5 year regulatory period, e.g., goal seeks revenue in 'Transpower current (35 years)'!K57 to set cell K58 to zero
B9: Calculation - Transpower current (35 years) | C9: Transpower current (35 years) | D9: This model demonstrates Transpower's current non-indexed RAB approach, with no inflation wash-ups for 35 years
B10: Calculation - Transpower indexed (Y6-35) | C10: Transpower indexed (Y6-35) | D10: This model demonstrates the draft decision to index Transpower's RAB from the next regulatory period (RCP4). It also washes up the RAB and revenue for differences between forecast and actual inflation, which we could do at the RCP4 reset if we so choose
B11: Output | C11: Output | D11: This sheet contains a summary of the difference in cashflows between current non-indexed RAB treatment and indexing the RAB from RCP4)

Sheet Description and approach
A1: Description
C2: The purpose of this model is to demonstrate the potential high-level financial impacts on Transpower of changing to RAB indexation by comparing the indexation approach to the current non-indexation approach. It is not the financial model used for Transpower’s IPP, which Transpower produces and owns. This model was produced to support the draft decisions in the following paper: Financing and incentivising efficient expenditure during the energy transition topic paper, Part 4 Input Methodologies Review 2023 – Draft decision. Draft decisions related to Transpower RAB indexation are discussed in Chapter 3, topic 3a. It builds on the 10-year model published alongside this model: Demonstration model: Stylised impacts of different RAB indexation approaches Inflation risk allocation and compensation demonstrated in this 10-year model are discussed in Chapter 5, topic 5b of the above topic paper.
A4: General notes
B5: 1 | C5: Financial quantities in this model are expressed in NZD $m
B6: =B5+1 -> 2 | C6: The macro in the 'Macro' sheet goal seeks revenue for each of the calculation sheets so that NPV of revenue = NPV of expenditure for each 5-year regulatory period, e.g., goal seeks revenue in 'Transpower current (35 years)'!K58 to set cell K57 to zero.
B7: =B6+1 -> 3 | C7: A lighter font is used for cells containing a formula linking to another sheet. A red font is applied to input cells. Grey shading is used to draw attention to certain cells e.g. where RAB indexing starts or where formulas differ for the indexed and non-indexed RAB approach.
B8: 4 | C8: Wherever two horizontally adjacent cells contain numerical formulas which differ, an orange vertical border has been placed between the cells to indicate that the cell formulas are different.
B9: 5 | C9: This model should not be used for any other purpose than describe above.
A11: Background
B12: =B9+1 -> 6 | C12: The model is based on a set of notional assumptions that are consistent with our regulatory settings for Transpower, combined with forecast data of opex and capex from Transpower’s 2022 Asset Management Plan (2021-to 2035). It will not agree entirely with Transpower's own models due to some simplifying assumptions (e.g., the timing of cash flows). The model should be used only for demonstration purposes of the high level potential impacts of changing to an indexed RAB.
B13: =B12+1 -> 7 | C13: The asset management plan and related schedules can be found here:
C14: https://tpow-corp-production.s3.ap-southeast-2.amazonaws.com/public/uncontrolled_docs/2022%20Asset%20Management%20Plan.pdf?VersionId=2PcEJ_GyHfe.G4q6Y_IjEGvaBfX09.rg
C15: https://tpow-corp-production.s3.ap-southeast-2.amazonaws.com/public/uncontrolled_docs/Integrated%20Transmission%20Plan%20-%20Schedules%202021.pdf?VersionId=ODgxbFyrDyiDt_HxHUtGlGMblsWyJ.AP
B16: =B13+1 -> 8 | C16: Transpower developed the Asset Management Plan in response to a projected 71% increase in electricity demand by 2050 (refer to graph below - source: Transpower RCP4 consultation).
B18: =B16+1 -> 9 | C18: There is an increasing capex investment profile for 2021 to 2035 (average real capex of around $475 million p.a.). For the period from 2036 to 2055 we have assumed that capex will revert to previous levels ($300 million p.a. real). Real opex continues at similar levels for 2036 to 2055.
B19: =B18+1 -> 10 | C19: Forecast inflation is assumed at a constant 2% (consistent with Transpower's assumptions in RCP3). For actual inflation we assumed 2% in all years, except for 2022 and 2023 where we increased it to 8%.
B20: 11 | C20: The model starts with the RCP3 period from 2021-2025 where Transpower is on the non-indexed method (current approach), then has six 5-year regulatory periods where Transpower is on the indexed method (the draft decision). We compare this model to the control, which is where Transpower remains on the non-indexed method.
B21: 12 | C21: The alternatives proposed in the topic paper (see row 2 above) are not modelled. Alternative A (to delay indexation until RCP5 but introduce revenue and RAB inflation wash-ups from RCP4) will have similar impacts to the draft decision, except that Transpower will carry less inflation risk in RCP4 compared to status quo and the reduction in revenue will be delayed. Alternative B (status quo but with revenue and RAB wash-ups for inflation from RCP4) will be similar to the current modelling, but Transpower will carry less inflation risk from RCP4.
B22: 13 | C22: Transpower’s assumptions for depreciation are used up to 2029/30; thereafter, new capex has a life of 45 years; and the existing RAB at the end of 2030 has a remaining life of 19 years.
B23: 14 | C23: Our method of regulatory accounting ensures revenue provides a return on and of assets as well as meets operating cost and tax commitments. At times, there can be periods when capital expenditure is higher than depreciation, which may require equity injections to maintain the benchmark leverage assumption of 41%.
B24: 15 | C24: The main outputs of interest are revenue and cash surplus, which is cash flows not required to maintain the benchmark leverage. If the cash surplus is positive, equity is returned to investors. If negative, the dividend pay-out ratio is reduced from 70% benchmark assumption and/or there is an equity injection. We make the simple assumption that cash is not retained in a bank balance if not needed for a particular year.
C25: Under the indexed scenario, Transpower’s real revenue initially drops by around $130m (nominal) and then increases by less than under the status quo. The revenue paths cross by around 2050. This crossing point is influenced by the size of the capex profile. A capex profile higher than depreciation pushes out the point at which the cross over in revenue paths occurs.
B26: =B24+1 -> 16 | C26: The model calculates if the NPV=0 principle is met. However, this will not be met where outturn inflation differs from forecast inflation. The reasons for this are that: 1) the non-indexed (current) method has no inflation wash-up mechanisms, and 2) for the indexed method, indexation and wash-ups are only introduced from Y6. The 10-year indexation demonstration model published alongside this model (as referenced in row 2 above) shows that NPV=0 is achieved for both the indexed and non-indexed method, over the useful lives of the assets, if the appropriate inflation wash-up mechanisms are in place.
A27: Findings
B28: =B26+1 -> 17 | C28: Refer to our findings in the IM Review draft decisions paper (as referenced in row 2 above).
A30: Glossary
C31: NPV: Net present value
C32: IRR: Internal rate of return
C33: RAB: Regulatory asset base
C34: AMP: Asset management plan
C35: WACC: Weighted average cost of capital
C36: EBT: Earnings before tax

Sheet Simplifying assumptions
A1: Simplifying assumptions
C2: The model uses the following simplifying assumptions:
B3: 1 | C3: The revenue wash-up occurs in the same year as the higher inflation. In practice, there is a delay until the wash-up occurs and we apply a present value adjustment to ensure suppliers are compensated for the delay.
B4: =B3+1 -> 2 | C4: There is only one deflator, which is CPI. In practice, there are separate deflators used for capital expenditure and operating expenditure.
B5: =B4+1 -> 3 | C5: In the indexed RAB model, which includes the proposed inflation wash-ups, the actual closing RAB at the end of each regulatory period is calculated by re-basing the RAB based on actual CPI. In practice, the closing RAB value will vary somewhat from this, as changes in revaluation and actual depreciation will not perfectly follow CPI due to timing differences.
B6: 4 | C6: Transpower's 2022 Asset Management Plan data is used for 2021-2035. We assumed real opex remains at a consistent level from 2036, and that capex reverts back to historical levels and remains consistent from 2036.
B7: 5 | C7: These assumptions should not affect our findings. They just make it more straightforward to show if NPV=0 is achieved or not.

Sheet Inputs - forecast
A1: Inputs - forecast
E2: 2020-06-30 | F2: 2021-06-30 | G2: 2022-06-30 | H2: 2023-06-30 | I2: 2024-06-30 | J2: 2025-06-30 | K2: 2026-06-30 | L2: 2027-06-30 | M2: 2028-06-30 | N2: 2029-06-30 | O2: 2030-06-30 | P2: 2031-06-30 | Q2: 2032-06-30 | R2: 2033-06-30 | S2: 2034-06-30 | T2: 2035-06-30 | U2: 2036-06-30 | V2: 2037-06-30 | W2: 2038-06-30 | X2: 2039-06-30 | Y2: 2040-06-30 | Z2: 2041-06-30 | AA2: 2042-06-30 | AB2: 2043-06-30 | AC2: 2044-06-30 | AD2: 2045-06-30 | AE2: 2046-06-30 | AF2: 2047-06-30 | AG2: 2048-06-30 | AH2: 2049-06-30 | AI2: 2050-06-30 | AJ2: 2051-06-30 | AK2: 2052-06-30 | AL2: 2053-06-30 | AM2: 2054-06-30 | AN2: 2055-06-30 | AO2: Average
A4: Financials (2022 AMP, converted to 2020 real values) | F4: 2022 AMP | U4: Assumed levels
B5: Opex | F5: 260.0980392 | G5: 260.4901961 | H5: 266.5686275 | I5: 270.8823529 | J5: 269.6078431 | K5: 277.3529412 | L5: 275.2941176 | M5: 276.1764706 | N5: 276.1764706 | O5: 276.1764706 | P5: 276.8627451 | Q5: 276.8627451 | R5: 276.8627451 | S5: 276.8627451 | T5: 276.8627451 | U5: =T5 -> 276.8627451 | V5: =U5 -> 276.8627451 | W5: 276.8627451 | X5: 276.8627451 | Y5: 276.8627451 | Z5: 276.8627451 | AA5: 276.8627451 | AB5: 276.8627451 | AC5: 276.8627451 | AD5: 276.8627451 | AE5: 276.8627451 | AF5: 276.8627451 | AG5: 276.8627451 | AH5: 276.8627451 | AI5: 276.8627451 | AJ5: 276.8627451 | AK5: 276.8627451 | AL5: 276.8627451 | AM5: 276.8627451 | AN5: 276.8627451
B6: Capex | F6: 330.5882353 | G6: 362.3529412 | H6: 398.5294118 | I6: 386.1764706 | J6: 414.2156863 | K6: 432.745098 | L6: 508.5294118 | M6: 462.6470588 | N6: 585.9803922 | O6: 683.627451 | P6: 541.6666667 | Q6: 508.4313725 | R6: 466.4705882 | S6: 509.3137255 | T6: 523.9215686 | U6: 300 | V6: 300 | W6: 300 | X6: 300 | Y6: 300 | Z6: 300 | AA6: 300 | AB6: 300 | AC6: 300 | AD6: 300 | AE6: 300 | AF6: 300 | AG6: 300 | AH6: 300 | AI6: 300 | AJ6: 300 | AK6: 300 | AL6: 300 | AM6: 300 | AN6: 300
B7: Opening RAB | E7: 4834
A9: Financials (nominal)
B10: Opex | F10: =F5*F15 -> 265.3 | G10: =G5*G15 -> 271.014 | H10: 282.88476 | I10: 293.2117704 | J10: 297.668844 | K10: =K5*K15 -> 350.1716429 | L10: 354.5237231 | M10: 362.7732174 | N10: 370.0286818 | O10: 377.4292554 | P10: 385.934477 | Q10: 393.6531665 | R10: 401.5262298 | S10: 409.5567544 | T10: 417.7478895 | U10: 426.1028473 | V10: 434.6249043 | W10: 443.3174023 | X10: 452.1837504 | Y10: 461.2274254 | Z10: 470.4519739 | AA10: 479.8610134 | AB10: 489.4582336 | AC10: 499.2473983 | AD10: 509.2323463 | AE10: 519.4169932 | AF10: 529.8053331 | AG10: 540.4014397 | AH10: 551.2094685 | AI10: 562.2336579 | AJ10: 573.4783311 | AK10: 584.9478977 | AL10: 596.6468556 | AM10: 608.5797928 | AN10: 620.7513886
B11: Capex | F11: =F6*F15 -> 337.2 | G11: =G6*G15 -> 376.992 | H11: 422.9226 | I11: 418.0098312 | J11: 457.3275876 | K11: =K6*K15 -> 546.3618351 | L11: 654.8840996 | M11: 607.7127487 | N11: 785.1123291 | O11: 934.2613411 | P11: 755.0594849 | Q11: 722.9055671 | R11: 676.5091365 | S11: 753.4161966 | T11: 790.5257513 | U11: 461.7120088 | V11: 470.9462489 | W11: 480.3651739 | X11: 489.9724774 | Y11: 499.771927 | Z11: 509.7673655 | AA11: 519.9627128 | AB11: 530.3619671 | AC11: 540.9692064 | AD11: 551.7885905 | AE11: 562.8243623 | AF11: 574.0808496 | AG11: 585.5624666 | AH11: 597.2737159 | AI11: 609.2191902 | AJ11: 621.403574 | AK11: 633.8316455 | AL11: 646.5082784 | AM11: 659.438444 | AN11: 672.6272129
B12: Opening RAB | E12: =E7 -> 4834
A14: Predicted inflation rate | E14: 0.02 | F14: 0.02 | G14: 0.02 | H14: 0.02 | I14: 0.02 | J14: 0.02 | K14: 0.02 | L14: 0.02 | M14: 0.02 | N14: 0.02 | O14: 0.02 | P14: 0.02 | Q14: 0.02 | R14: 0.02 | S14: 0.02 | T14: 0.02 | U14: 0.02 | V14: 0.02 | W14: 0.02 | X14: 0.02 | Y14: 0.02 | Z14: 0.02 | AA14: 0.02 | AB14: 0.02 | AC14: 0.02 | AD14: 0.02 | AE14: 0.02 | AF14: 0.02 | AG14: 0.02 | AH14: 0.02 | AI14: 0.02 | AJ14: 0.02 | AK14: 0.02 | AL14: 0.02 | AM14: 0.02 | AN14: 0.02 | AO14: =(((1+F14)*(1+G14)*(1+H14)*(1+I14)*(1+J14)*(1+K14)*(1+L14)*(1+M14)*(1+N14)*(1+O14)*(1+P14)*(1+Q14)*(1+R14)*(1+S14)*(1+T14)*(1+U14)*(1+V14)*(1+W14)*(1+X14)*(1+Y14)*(1+Z14)*(1+AA14)*(1+AB14)*(1+AC14)*(1+AD14)*(1+AE14)*(1+AF14)*(1+AG14)*(1+AH14)*(1+AI14)*(1+AJ14)*(1+AK14)*(1+AL14)*(1+AM14)*(1+AN14))^(1/35))-1 -> 0.02
A15: Inflation index - rebased at end of each regulatory period | E15: 1 | F15: =E15*(1+F14) -> 1.02 | G15: =F15*(1+G14) -> 1.0404 | H15: =G15*(1+H14) -> 1.061208 | I15: =H15*(1+I14) -> 1.08243216 | J15: =I15*(1+J14) -> 1.104080803 | K15: ='Inputs - actual'!J15*(1+'Inputs - forecast'!K14) -> 1.262548871 | L15: =K15*(1+L14) -> 1.287799849 | M15: =L15*(1+M14) -> 1.313555846 | N15: =M15*(1+N14) -> 1.339826963 | O15: =N15*(1+O14) -> 1.366623502 | P15: ='Inputs - actual'!O15*(1+'Inputs - forecast'!P14) -> 1.393955972 | Q15: =P15*(1+Q14) -> 1.421835091 | R15: =Q15*(1+R14) -> 1.450271793 | S15: =R15*(1+S14) -> 1.479277229 | T15: =S15*(1+T14) -> 1.508862774 | U15: ='Inputs - actual'!T15*(1+'Inputs - forecast'!U14) -> 1.539040029 | V15: =U15*(1+V14) -> 1.56982083 | W15: =V15*(1+W14) -> 1.601217246 | X15: =W15*(1+X14) -> 1.633241591 | Y15: =X15*(1+Y14) -> 1.665906423 | Z15: ='Inputs - actual'!Y15*(1+'Inputs - forecast'!Z14) -> 1.699224552 | AA15: =Z15*(1+AA14) -> 1.733209043 | AB15: =AA15*(1+AB14) -> 1.767873224 | AC15: =AB15*(1+AC14) -> 1.803230688 | AD15: =AC15*(1+AD14) -> 1.839295302 | AE15: ='Inputs - actual'!AD15*(1+'Inputs - forecast'!AE14) -> 1.876081208 | AF15: =AE15*(1+AF14) -> 1.913602832 | AG15: =AF15*(1+AG14) -> 1.951874889 | AH15: =AG15*(1+AH14) -> 1.990912386 | AI15: =AH15*(1+AI14) -> 2.030730634 | AJ15: ='Inputs - actual'!AI15*(1+'Inputs - forecast'!AJ14) -> 2.071345247 | AK15: =AJ15*(1+AK14) -> 2.112772152 | AL15: =AK15*(1+AL14) -> 2.155027595 | AM15: =AL15*(1+AM14) -> 2.198128147 | AN15: =AM15*(1+AN14) -> 2.24209071
A17: WACC
B18: Cost of equity (nominal) | E18: 0.066 | F18: 0.066 | G18: 0.066 | H18: 0.066 | I18: 0.066 | J18: 0.066 | K18: 0.066 | L18: 0.066 | M18: 0.066 | N18: 0.066 | O18: 0.066 | P18: 0.066 | Q18: 0.066 | R18: 0.066 | S18: 0.066 | T18: 0.066 | U18: 0.066 | V18: 0.066 | W18: 0.066 | X18: 0.066 | Y18: 0.066 | Z18: 0.066 | AA18: 0.066 | AB18: 0.066 | AC18: 0.066 | AD18: 0.066 | AE18: 0.066 | AF18: 0.066 | AG18: 0.066 | AH18: 0.066 | AI18: 0.066 | AJ18: 0.066 | AK18: 0.066 | AL18: 0.066 | AM18: 0.066 | AN18: 0.066
B19: Cost of equity (real) | E19: =(1+E18)/(1+E$14)-1 -> 0.04509803922 | F19: 0.04509803922 | G19: 0.04509803922 | H19: 0.04509803922 | I19: 0.04509803922 | J19: 0.04509803922 | K19: 0.04509803922 | L19: 0.04509803922 | M19: 0.04509803922 | N19: 0.04509803922 | O19: 0.04509803922 | P19: 0.04509803922 | Q19: 0.04509803922 | R19: 0.04509803922 | S19: 0.04509803922 | T19: 0.04509803922 | U19: 0.04509803922 | V19: 0.04509803922 | W19: 0.04509803922 | X19: 0.04509803922 | Y19: 0.04509803922 | Z19: 0.04509803922 | AA19: 0.04509803922 | AB19: 0.04509803922 | AC19: 0.04509803922 | AD19: 0.04509803922 | AE19: 0.04509803922 | AF19: 0.04509803922 | AG19: 0.04509803922 | AH19: 0.04509803922 | AI19: 0.04509803922 | AJ19: 0.04509803922 | AK19: 0.04509803922 | AL19: 0.04509803922 | AM19: 0.04509803922 | AN19: 0.04509803922
B21: Cost of debt (nominal) | E21: 0.0401 | F21: 0.0401 | G21: 0.0401 | H21: 0.0401 | I21: 0.0401 | J21: 0.0401 | K21: 0.0401 | L21: 0.0401 | M21: 0.0401 | N21: 0.0401 | O21: 0.0401 | P21: 0.0401 | Q21: 0.0401 | R21: 0.0401 | S21: 0.0401 | T21: 0.0401 | U21: 0.0401 | V21: 0.0401 | W21: 0.0401 | X21: 0.0401 | Y21: 0.0401 | Z21: 0.0401 | AA21: 0.0401 | AB21: 0.0401 | AC21: 0.0401 | AD21: 0.0401 | AE21: 0.0401 | AF21: 0.0401 | AG21: 0.0401 | AH21: 0.0401 | AI21: 0.0401 | AJ21: 0.0401 | AK21: 0.0401 | AL21: 0.0401 | AM21: 0.0401 | AN21: 0.0401
B22: Cost of debt (real) | E22: =(1+E21)/(1+E$14)-1 -> 0.01970588235 | F22: 0.01970588235 | G22: 0.01970588235 | H22: 0.01970588235 | I22: 0.01970588235 | J22: 0.01970588235 | K22: 0.01970588235 | L22: 0.01970588235 | M22: 0.01970588235 | N22: 0.01970588235 | O22: 0.01970588235 | P22: 0.01970588235 | Q22: 0.01970588235 | R22: 0.01970588235 | S22: 0.01970588235 | T22: 0.01970588235 | U22: 0.01970588235 | V22: 0.01970588235 | W22: 0.01970588235 | X22: 0.01970588235 | Y22: 0.01970588235 | Z22: 0.01970588235 | AA22: 0.01970588235 | AB22: 0.01970588235 | AC22: 0.01970588235 | AD22: 0.01970588235 | AE22: 0.01970588235 | AF22: 0.01970588235 | AG22: 0.01970588235 | AH22: 0.01970588235 | AI22: 0.01970588235 | AJ22: 0.01970588235 | AK22: 0.01970588235 | AL22: 0.01970588235 | AM22: 0.01970588235 | AN22: 0.01970588235
B24: Leverage | E24: 0.41 | F24: 0.41 | G24: 0.41 | H24: 0.41 | I24: 0.41 | J24: 0.41 | K24: 0.41 | L24: 0.41 | M24: 0.41 | N24: 0.41 | O24: 0.41 | P24: 0.41 | Q24: 0.41 | R24: 0.41 | S24: 0.41 | T24: 0.41 | U24: 0.41 | V24: 0.41 | W24: 0.41 | X24: 0.41 | Y24: 0.41 | Z24: 0.41 | AA24: 0.41 | AB24: 0.41 | AC24: 0.41 | AD24: 0.41 | AE24: 0.41 | AF24: 0.41 | AG24: 0.41 | AH24: 0.41 | AI24: 0.41 | AJ24: 0.41 | AK24: 0.41 | AL24: 0.41 | AM24: 0.41 | AN24: 0.41
B25: Tax rate | E25: 0.28 | F25: 0.28 | G25: 0.28 | H25: 0.28 | I25: 0.28 | J25: 0.28 | K25: 0.28 | L25: 0.28 | M25: 0.28 | N25: 0.28 | O25: 0.28 | P25: 0.28 | Q25: 0.28 | R25: 0.28 | S25: 0.28 | T25: 0.28 | U25: 0.28 | V25: 0.28 | W25: 0.28 | X25: 0.28 | Y25: 0.28 | Z25: 0.28 | AA25: 0.28 | AB25: 0.28 | AC25: 0.28 | AD25: 0.28 | AE25: 0.28 | AF25: 0.28 | AG25: 0.28 | AH25: 0.28 | AI25: 0.28 | AJ25: 0.28 | AK25: 0.28 | AL25: 0.28 | AM25: 0.28 | AN25: 0.28
B27: Cost of capital (vanilla, nominal) | E27: =E$21*E$24+E$18*(1-E$24) -> 0.055381 | F27: 0.055381 | G27: 0.055381 | H27: =H$21*H$24+H$18*(1-H$24) -> 0.055381 | I27: 0.055381 | J27: 0.055381 | K27: =K$21*K$24+K$18*(1-K$24) -> 0.055381 | L27: 0.055381 | M27: 0.055381 | N27: 0.055381 | O27: 0.055381 | P27: 0.055381 | Q27: 0.055381 | R27: 0.055381 | S27: 0.055381 | T27: =T$21*T$24+T$18*(1-T$24) -> 0.055381 | U27: 0.055381 | V27: 0.055381 | W27: 0.055381 | X27: 0.055381 | Y27: 0.055381 | Z27: 0.055381 | AA27: 0.055381 | AB27: 0.055381 | AC27: 0.055381 | AD27: 0.055381 | AE27: 0.055381 | AF27: 0.055381 | AG27: 0.055381 | AH27: 0.055381 | AI27: 0.055381 | AJ27: 0.055381 | AK27: 0.055381 | AL27: 0.055381 | AM27: 0.055381 | AN27: 0.055381 | AO27: =(((1+F27)*(1+G27)*(1+H27)*(1+I27)*(1+J27)*(1+K27)*(1+L27)*(1+M27)*(1+N27)*(1+O27)*(1+P27)*(1+Q27)*(1+R27)*(1+S27)*(1+T27)*(1+U27)*(1+V27)*(1+W27)*(1+X27)*(1+Y27)*(1+Z27)*(1+AA27)*(1+AB27)*(1+AC27)*(1+AD27)*(1+AE27)*(1+AF27)*(1+AG27)*(1+AH27)*(1+AI27)*(1+AJ27)*(1+AK27)*(1+AL27)*(1+AM27)*(1+AN27))^(1/35))-1 -> 0.055381
B28: Cost of capital (vanilla, real) | E28: =(1+E$27)/(1+E$14)-1 -> 0.0346872549 | F28: 0.0346872549 | G28: 0.0346872549 | H28: 0.0346872549 | I28: 0.0346872549 | J28: 0.0346872549 | K28: 0.0346872549 | L28: 0.0346872549 | M28: 0.0346872549 | N28: 0.0346872549 | O28: 0.0346872549 | P28: 0.0346872549 | Q28: 0.0346872549 | R28: 0.0346872549 | S28: 0.0346872549 | T28: 0.0346872549 | U28: 0.0346872549 | V28: 0.0346872549 | W28: 0.0346872549 | X28: 0.0346872549 | Y28: 0.0346872549 | Z28: 0.0346872549 | AA28: 0.0346872549 | AB28: 0.0346872549 | AC28: 0.0346872549 | AD28: 0.0346872549 | AE28: 0.0346872549 | AF28: 0.0346872549 | AG28: 0.0346872549 | AH28: 0.0346872549 | AI28: 0.0346872549 | AJ28: 0.0346872549 | AK28: 0.0346872549 | AL28: 0.0346872549 | AM28: 0.0346872549 | AN28: 0.0346872549 | AO28: =(((1+F28)*(1+G28)*(1+H28)*(1+I28)*(1+J28)*(1+K28)*(1+L28)*(1+M28)*(1+N28)*(1+O28)*(1+P28)*(1+Q28)*(1+R28)*(1+S28)*(1+T28)*(1+U28)*(1+V28)*(1+W28)*(1+X28)*(1+Y28)*(1+Z28)*(1+AA28)*(1+AB28)*(1+AC28)*(1+AD28)*(1+AE28)*(1+AF28)*(1+AG28)*(1+AH28)*(1+AI28)*(1+AJ28)*(1+AK28)*(1+AL28)*(1+AM28)*(1+AN28))^(1/35))-1 -> 0.0346872549
A30: Compounding factor (nominal)
B31: Compounding factor step 1 | E31: =1+E27 -> 1.055381 | F31: =(1+F27) -> 1.055381 | G31: 1.055381 | H31: 1.055381 | I31: 1.055381 | J31: 1.055381 | K31: 1.055381 | L31: 1.055381 | M31: 1.055381 | N31: 1.055381 | O31: 1.055381 | P31: 1.055381 | Q31: 1.055381 | R31: 1.055381 | S31: 1.055381 | T31: 1.055381 | U31: 1.055381 | V31: 1.055381 | W31: 1.055381 | X31: 1.055381 | Y31: 1.055381 | Z31: 1.055381 | AA31: 1.055381 | AB31: 1.055381 | AC31: 1.055381 | AD31: 1.055381 | AE31: 1.055381 | AF31: 1.055381 | AG31: 1.055381 | AH31: 1.055381 | AI31: 1.055381 | AJ31: 1.055381 | AK31: 1.055381 | AL31: 1.055381 | AM31: 1.055381 | AN31: 1.055381
B32: Compounding factor step 2 | E32: 1 | F32: =E32*F31 -> 1.055381 | G32: 1.113829055 | H32: 1.175514022 | I32: 1.240615164 | J32: 1.309321673 | K32: 1.381833216 | L32: 1.458360521 | M32: 1.539125985 | N32: 1.624364322 | O32: 1.714323242 | P32: 1.809264178 | Q32: 1.909463037 | R32: 2.015211009 | S32: 2.12681541 | T32: 2.244600575 | U32: 2.368908799 | V32: 2.500101337 | W32: 2.638559449 | X32: 2.78468551 | Y32: 2.938904179 | Z32: 3.101663631 | AA32: 3.273436864 | AB32: 3.454723071 | AC32: 3.64604909 | AD32: 3.847970934 | AE32: 4.061075413 | AF32: 4.28598183 | AG32: 4.52334379 | AH32: 4.773851092 | AI32: 5.03823174 | AJ32: 5.317254052 | AK32: 5.611728898 | AL32: 5.922512056 | AM32: 6.250506697 | AN32: =AM32*AN31 -> 6.596666008
A34: Compounding factor (real)
B35: Compounding factor step 1 | E35: =1+E28 -> 1.034687255 | F35: =(1+F28) -> 1.034687255 | G35: 1.034687255 | H35: 1.034687255 | I35: 1.034687255 | J35: 1.034687255 | K35: 1.034687255 | L35: 1.034687255 | M35: 1.034687255 | N35: 1.034687255 | O35: 1.034687255 | P35: 1.034687255 | Q35: 1.034687255 | R35: 1.034687255 | S35: 1.034687255 | T35: 1.034687255 | U35: 1.034687255 | V35: 1.034687255 | W35: 1.034687255 | X35: 1.034687255 | Y35: 1.034687255 | Z35: 1.034687255 | AA35: 1.034687255 | AB35: 1.034687255 | AC35: 1.034687255 | AD35: 1.034687255 | AE35: 1.034687255 | AF35: 1.034687255 | AG35: 1.034687255 | AH35: 1.034687255 | AI35: 1.034687255 | AJ35: 1.034687255 | AK35: 1.034687255 | AL35: 1.034687255 | AM35: 1.034687255 | AN35: 1.034687255
B36: Compounding factor step 2 | E36: 1 | F36: =E36*F35 -> 1.034687255 | G36: =F36*G35 -> 1.070577715 | H36: 1.107713118 | I36: 1.146136645 | J36: 1.185892979 | K36: 1.227028351 | L36: 1.269590596 | M36: 1.313629209 | N36: 1.3591954 | O36: 1.406342157 | P36: 1.455124306 | Q36: 1.505598574 | R36: 1.557823655 | S36: 1.611860281 | T36: 1.66777129 | U36: 1.725621698 | V36: 1.785478777 | W36: 1.847412135 | X36: 1.911493791 | Y36: 1.977798263 | Z36: 2.046402655 | AA36: 2.117386746 | AB36: 2.19083308 | AC36: 2.266827065 | AD36: 2.345457073 | AE36: 2.426814541 | AF36: 2.510994075 | AG36: 2.598093567 | AH36: 2.688214301 | AI36: 2.781461075 | AJ36: 2.877942325 | AK36: 2.977770244 | AL36: 3.081060919 | AM36: 3.187934465 | AN36: 3.29851516

Sheet Inputs - actual
A1: Inputs - actual
E2: ='Inputs - forecast'!E2 -> 2020-06-30 | F2: ='Inputs - forecast'!F2 -> 2021-06-30 | G2: ='Inputs - forecast'!G2 -> 2022-06-30 | H2: ='Inputs - forecast'!H2 -> 2023-06-30 | I2: ='Inputs - forecast'!I2 -> 2024-06-30 | J2: ='Inputs - forecast'!J2 -> 2025-06-30 | K2: ='Inputs - forecast'!K2 -> 2026-06-30 | L2: ='Inputs - forecast'!L2 -> 2027-06-30 | M2: ='Inputs - forecast'!M2 -> 2028-06-30 | N2: ='Inputs - forecast'!N2 -> 2029-06-30 | O2: ='Inputs - forecast'!O2 -> 2030-06-30 | P2: ='Inputs - forecast'!P2 -> 2031-06-30 | Q2: ='Inputs - forecast'!Q2 -> 2032-06-30 | R2: ='Inputs - forecast'!R2 -> 2033-06-30 | S2: ='Inputs - forecast'!S2 -> 2034-06-30 | T2: ='Inputs - forecast'!T2 -> 2035-06-30 | U2: ='Inputs - forecast'!U2 -> 2036-06-30 | V2: ='Inputs - forecast'!V2 -> 2037-06-30 | W2: ='Inputs - forecast'!W2 -> 2038-06-30 | X2: ='Inputs - forecast'!X2 -> 2039-06-30 | Y2: ='Inputs - forecast'!Y2 -> 2040-06-30 | Z2: ='Inputs - forecast'!Z2 -> 2041-06-30 | AA2: ='Inputs - forecast'!AA2 -> 2042-06-30 | AB2: ='Inputs - forecast'!AB2 -> 2043-06-30 | AC2: ='Inputs - forecast'!AC2 -> 2044-06-30 | AD2: ='Inputs - forecast'!AD2 -> 2045-06-30 | AE2: ='Inputs - forecast'!AE2 -> 2046-06-30 | AF2: ='Inputs - forecast'!AF2 -> 2047-06-30 | AG2: ='Inputs - forecast'!AG2 -> 2048-06-30 | AH2: ='Inputs - forecast'!AH2 -> 2049-06-30 | AI2: ='Inputs - forecast'!AI2 -> 2050-06-30 | AJ2: ='Inputs - forecast'!AJ2 -> 2051-06-30 | AK2: ='Inputs - forecast'!AK2 -> 2052-06-30 | AL2: ='Inputs - forecast'!AL2 -> 2053-06-30 | AM2: ='Inputs - forecast'!AM2 -> 2054-06-30 | AN2: ='Inputs - forecast'!AN2 -> 2055-06-30 | AO2: ='Inputs - forecast'!AO2 -> Average
A4: Financials (2022 AMP, converted to 2020 real values) | F4: 2022 AMP | U4: Assumed levels
B5: Opex | F5: ='Inputs - forecast'!F5 -> 260.0980392 | G5: ='Inputs - forecast'!G5 -> 260.4901961 | H5: ='Inputs - forecast'!H5 -> 266.5686275 | I5: ='Inputs - forecast'!I5 -> 270.8823529 | J5: ='Inputs - forecast'!J5 -> 269.6078431 | K5: ='Inputs - forecast'!K5 -> 277.3529412 | L5: ='Inputs - forecast'!L5 -> 275.2941176 | M5: ='Inputs - forecast'!M5 -> 276.1764706 | N5: ='Inputs - forecast'!N5 -> 276.1764706 | O5: ='Inputs - forecast'!O5 -> 276.1764706 | P5: ='Inputs - forecast'!P5 -> 276.8627451 | Q5: ='Inputs - forecast'!Q5 -> 276.8627451 | R5: ='Inputs - forecast'!R5 -> 276.8627451 | S5: ='Inputs - forecast'!S5 -> 276.8627451 | T5: ='Inputs - forecast'!T5 -> 276.8627451 | U5: ='Inputs - forecast'!U5 -> 276.8627451 | V5: ='Inputs - forecast'!V5 -> 276.8627451 | W5: ='Inputs - forecast'!W5 -> 276.8627451 | X5: ='Inputs - forecast'!X5 -> 276.8627451 | Y5: ='Inputs - forecast'!Y5 -> 276.8627451 | Z5: ='Inputs - forecast'!Z5 -> 276.8627451 | AA5: ='Inputs - forecast'!AA5 -> 276.8627451 | AB5: ='Inputs - forecast'!AB5 -> 276.8627451 | AC5: ='Inputs - forecast'!AC5 -> 276.8627451 | AD5: ='Inputs - forecast'!AD5 -> 276.8627451 | AE5: ='Inputs - forecast'!AE5 -> 276.8627451 | AF5: ='Inputs - forecast'!AF5 -> 276.8627451 | AG5: ='Inputs - forecast'!AG5 -> 276.8627451 | AH5: ='Inputs - forecast'!AH5 -> 276.8627451 | AI5: ='Inputs - forecast'!AI5 -> 276.8627451 | AJ5: ='Inputs - forecast'!AJ5 -> 276.8627451 | AK5: ='Inputs - forecast'!AK5 -> 276.8627451 | AL5: ='Inputs - forecast'!AL5 -> 276.8627451 | AM5: ='Inputs - forecast'!AM5 -> 276.8627451 | AN5: ='Inputs - forecast'!AN5 -> 276.8627451
B6: Capex | F6: ='Inputs - forecast'!F6 -> 330.5882353 | G6: ='Inputs - forecast'!G6 -> 362.3529412 | H6: ='Inputs - forecast'!H6 -> 398.5294118 | I6: ='Inputs - forecast'!I6 -> 386.1764706 | J6: ='Inputs - forecast'!J6 -> 414.2156863 | K6: ='Inputs - forecast'!K6 -> 432.745098 | L6: ='Inputs - forecast'!L6 -> 508.5294118 | M6: ='Inputs - forecast'!M6 -> 462.6470588 | N6: ='Inputs - forecast'!N6 -> 585.9803922 | O6: ='Inputs - forecast'!O6 -> 683.627451 | P6: ='Inputs - forecast'!P6 -> 541.6666667 | Q6: ='Inputs - forecast'!Q6 -> 508.4313725 | R6: ='Inputs - forecast'!R6 -> 466.4705882 | S6: ='Inputs - forecast'!S6 -> 509.3137255 | T6: ='Inputs - forecast'!T6 -> 523.9215686 | U6: ='Inputs - forecast'!U6 -> 300 | V6: ='Inputs - forecast'!V6 -> 300 | W6: ='Inputs - forecast'!W6 -> 300 | X6: ='Inputs - forecast'!X6 -> 300 | Y6: ='Inputs - forecast'!Y6 -> 300 | Z6: ='Inputs - forecast'!Z6 -> 300 | AA6: ='Inputs - forecast'!AA6 -> 300 | AB6: ='Inputs - forecast'!AB6 -> 300 | AC6: ='Inputs - forecast'!AC6 -> 300 | AD6: ='Inputs - forecast'!AD6 -> 300 | AE6: ='Inputs - forecast'!AE6 -> 300 | AF6: ='Inputs - forecast'!AF6 -> 300 | AG6: ='Inputs - forecast'!AG6 -> 300 | AH6: ='Inputs - forecast'!AH6 -> 300 | AI6: ='Inputs - forecast'!AI6 -> 300 | AJ6: ='Inputs - forecast'!AJ6 -> 300 | AK6: ='Inputs - forecast'!AK6 -> 300 | AL6: ='Inputs - forecast'!AL6 -> 300 | AM6: ='Inputs - forecast'!AM6 -> 300 | AN6: ='Inputs - forecast'!AN6 -> 300
B7: Opening RAB | E7: ='Inputs - forecast'!E7 -> 4834
A9: Financials (nominal)
B10: Opex | F10: =F5*F$15 -> 265.3 | G10: 286.956 | H10: =H5*H$15 -> 317.14416 | I10: 328.7218464 | J10: 333.718704 | K10: 350.1716429 | L10: 354.5237231 | M10: 362.7732174 | N10: 370.0286818 | O10: 377.4292554 | P10: 385.934477 | Q10: =Q5*Q$15 -> 393.6531665 | R10: 401.5262298 | S10: 409.5567544 | T10: 417.7478895 | U10: 426.1028473 | V10: 434.6249043 | W10: 443.3174023 | X10: 452.1837504 | Y10: 461.2274254 | Z10: 470.4519739 | AA10: 479.8610134 | AB10: 489.4582336 | AC10: 499.2473983 | AD10: 509.2323463 | AE10: 519.4169932 | AF10: 529.8053331 | AG10: 540.4014397 | AH10: 551.2094685 | AI10: 562.2336579 | AJ10: 573.4783311 | AK10: 584.9478977 | AL10: 596.6468556 | AM10: 608.5797928 | AN10: 620.7513886
B11: Capex | F11: =F6*F15 -> 337.2 | G11: 399.168 | H11: =H6*H15 -> 474.1416 | I11: 468.6338592 | J11: 512.7132816 | K11: 546.3618351 | L11: 654.8840996 | M11: 607.7127487 | N11: 785.1123291 | O11: 934.2613411 | P11: 755.0594849 | Q11: =Q6*Q15 -> 722.9055671 | R11: 676.5091365 | S11: 753.4161966 | T11: 790.5257513 | U11: 461.7120088 | V11: 470.9462489 | W11: 480.3651739 | X11: 489.9724774 | Y11: 499.771927 | Z11: 509.7673655 | AA11: 519.9627128 | AB11: 530.3619671 | AC11: 540.9692064 | AD11: 551.7885905 | AE11: 562.8243623 | AF11: 574.0808496 | AG11: 585.5624666 | AH11: 597.2737159 | AI11: 609.2191902 | AJ11: 621.403574 | AK11: 633.8316455 | AL11: 646.5082784 | AM11: 659.438444 | AN11: 672.6272129
B12: Opening RAB | E12: =E7*E15 -> 4834
A14: Predicted inflation rate | E14: 0.02 | F14: 0.02 | G14: 0.08 | H14: 0.08 | I14: 0.02 | J14: 0.02 | K14: 0.02 | L14: 0.02 | M14: 0.02 | N14: 0.02 | O14: 0.02 | P14: 0.02 | Q14: 0.02 | R14: 0.02 | S14: 0.02 | T14: 0.02 | U14: 0.02 | V14: 0.02 | W14: 0.02 | X14: 0.02 | Y14: 0.02 | Z14: 0.02 | AA14: 0.02 | AB14: 0.02 | AC14: 0.02 | AD14: 0.02 | AE14: 0.02 | AF14: 0.02 | AG14: 0.02 | AH14: 0.02 | AI14: 0.02 | AJ14: 0.02 | AK14: 0.02 | AL14: 0.02 | AM14: 0.02 | AN14: 0.02 | AO14: =(((1+F14)*(1+G14)*(1+H14)*(1+I14)*(1+J14)*(1+K14)*(1+L14)*(1+M14)*(1+N14)*(1+O14)*(1+P14)*(1+Q14)*(1+R14)*(1+S14)*(1+T14)*(1+U14)*(1+V14)*(1+W14)*(1+X14)*(1+Y14)*(1+Z14)*(1+AA14)*(1+AB14)*(1+AC14)*(1+AD14)*(1+AE14)*(1+AF14)*(1+AG14)*(1+AH14)*(1+AI14)*(1+AJ14)*(1+AK14)*(1+AL14)*(1+AM14)*(1+AN14))^(1/35))-1 -> 0.0233369656
A15: Inflation index | E15: 1 | F15: =E15*(1+F14) -> 1.02 | G15: 1.1016 | H15: 1.189728 | I15: 1.21352256 | J15: 1.237793011 | K15: 1.262548871 | L15: 1.287799849 | M15: 1.313555846 | N15: 1.339826963 | O15: 1.366623502 | P15: 1.393955972 | Q15: =P15*(1+Q14) -> 1.421835091 | R15: 1.450271793 | S15: 1.479277229 | T15: 1.508862774 | U15: 1.539040029 | V15: 1.56982083 | W15: 1.601217246 | X15: 1.633241591 | Y15: 1.665906423 | Z15: 1.699224552 | AA15: 1.733209043 | AB15: 1.767873224 | AC15: 1.803230688 | AD15: 1.839295302 | AE15: 1.876081208 | AF15: 1.913602832 | AG15: 1.951874889 | AH15: 1.990912386 | AI15: 2.030730634 | AJ15: 2.071345247 | AK15: 2.112772152 | AL15: 2.155027595 | AM15: 2.198128147 | AN15: 2.24209071
A17: WACC
B18: Cost of equity (nominal) | E18: =(1+'Inputs - forecast'!E18)/(1+'Inputs - forecast'!E14)*(1+'Inputs - actual'!E14)-1 -> 0.066 | F18: =(1+'Inputs - forecast'!F18)/(1+'Inputs - forecast'!F14)*(1+'Inputs - actual'!F14)-1 -> 0.066 | G18: =(1+'Inputs - forecast'!G18)/(1+'Inputs - forecast'!G14)*(1+'Inputs - actual'!G14)-1 -> 0.1287058824 | H18: =(1+'Inputs - forecast'!H18)/(1+'Inputs - forecast'!H14)*(1+'Inputs - actual'!H14)-1 -> 0.1287058824 | I18: =(1+'Inputs - forecast'!I18)/(1+'Inputs - forecast'!I14)*(1+'Inputs - actual'!I14)-1 -> 0.066 | J18: =(1+'Inputs - forecast'!J18)/(1+'Inputs - forecast'!J14)*(1+'Inputs - actual'!J14)-1 -> 0.066 | K18: =(1+'Inputs - forecast'!K18)/(1+'Inputs - forecast'!K14)*(1+'Inputs - actual'!K14)-1 -> 0.066 | L18: =(1+'Inputs - forecast'!L18)/(1+'Inputs - forecast'!L14)*(1+'Inputs - actual'!L14)-1 -> 0.066 | M18: =(1+'Inputs - forecast'!M18)/(1+'Inputs - forecast'!M14)*(1+'Inputs - actual'!M14)-1 -> 0.066 | N18: =(1+'Inputs - forecast'!N18)/(1+'Inputs - forecast'!N14)*(1+'Inputs - actual'!N14)-1 -> 0.066 | O18: =(1+'Inputs - forecast'!O18)/(1+'Inputs - forecast'!O14)*(1+'Inputs - actual'!O14)-1 -> 0.066 | P18: =(1+'Inputs - forecast'!P18)/(1+'Inputs - forecast'!P14)*(1+'Inputs - actual'!P14)-1 -> 0.066 | Q18: =(1+'Inputs - forecast'!Q18)/(1+'Inputs - forecast'!Q14)*(1+'Inputs - actual'!Q14)-1 -> 0.066 | R18: =(1+'Inputs - forecast'!R18)/(1+'Inputs - forecast'!R14)*(1+'Inputs - actual'!R14)-1 -> 0.066 | S18: =(1+'Inputs - forecast'!S18)/(1+'Inputs - forecast'!S14)*(1+'Inputs - actual'!S14)-1 -> 0.066 | T18: =(1+'Inputs - forecast'!T18)/(1+'Inputs - forecast'!T14)*(1+'Inputs - actual'!T14)-1 -> 0.066 | U18: =(1+'Inputs - forecast'!U18)/(1+'Inputs - forecast'!U14)*(1+'Inputs - actual'!U14)-1 -> 0.066 | V18: =(1+'Inputs - forecast'!V18)/(1+'Inputs - forecast'!V14)*(1+'Inputs - actual'!V14)-1 -> 0.066 | W18: =(1+'Inputs - forecast'!W18)/(1+'Inputs - forecast'!W14)*(1+'Inputs - actual'!W14)-1 -> 0.066 | X18: =(1+'Inputs - forecast'!X18)/(1+'Inputs - forecast'!X14)*(1+'Inputs - actual'!X14)-1 -> 0.066 | Y18: =(1+'Inputs - forecast'!Y18)/(1+'Inputs - forecast'!Y14)*(1+'Inputs - actual'!Y14)-1 -> 0.066 | Z18: =(1+'Inputs - forecast'!Z18)/(1+'Inputs - forecast'!Z14)*(1+'Inputs - actual'!Z14)-1 -> 0.066 | AA18: =(1+'Inputs - forecast'!AA18)/(1+'Inputs - forecast'!AA14)*(1+'Inputs - actual'!AA14)-1 -> 0.066 | AB18: =(1+'Inputs - forecast'!AB18)/(1+'Inputs - forecast'!AB14)*(1+'Inputs - actual'!AB14)-1 -> 0.066 | AC18: =(1+'Inputs - forecast'!AC18)/(1+'Inputs - forecast'!AC14)*(1+'Inputs - actual'!AC14)-1 -> 0.066 | AD18: =(1+'Inputs - forecast'!AD18)/(1+'Inputs - forecast'!AD14)*(1+'Inputs - actual'!AD14)-1 -> 0.066 | AE18: =(1+'Inputs - forecast'!AE18)/(1+'Inputs - forecast'!AE14)*(1+'Inputs - actual'!AE14)-1 -> 0.066 | AF18: =(1+'Inputs - forecast'!AF18)/(1+'Inputs - forecast'!AF14)*(1+'Inputs - actual'!AF14)-1 -> 0.066 | AG18: =(1+'Inputs - forecast'!AG18)/(1+'Inputs - forecast'!AG14)*(1+'Inputs - actual'!AG14)-1 -> 0.066 | AH18: =(1+'Inputs - forecast'!AH18)/(1+'Inputs - forecast'!AH14)*(1+'Inputs - actual'!AH14)-1 -> 0.066 | AI18: =(1+'Inputs - forecast'!AI18)/(1+'Inputs - forecast'!AI14)*(1+'Inputs - actual'!AI14)-1 -> 0.066 | AJ18: =(1+'Inputs - forecast'!AJ18)/(1+'Inputs - forecast'!AJ14)*(1+'Inputs - actual'!AJ14)-1 -> 0.066 | AK18: =(1+'Inputs - forecast'!AK18)/(1+'Inputs - forecast'!AK14)*(1+'Inputs - actual'!AK14)-1 -> 0.066 | AL18: =(1+'Inputs - forecast'!AL18)/(1+'Inputs - forecast'!AL14)*(1+'Inputs - actual'!AL14)-1 -> 0.066 | AM18: =(1+'Inputs - forecast'!AM18)/(1+'Inputs - forecast'!AM14)*(1+'Inputs - actual'!AM14)-1 -> 0.066 | AN18: =(1+'Inputs - forecast'!AN18)/(1+'Inputs - forecast'!AN14)*(1+'Inputs - actual'!AN14)-1 -> 0.066
B19: Cost of equity (real) | E19: =(1+E18)/(1+E14)-1 -> 0.04509803922 | F19: 0.04509803922 | G19: 0.04509803922 | H19: 0.04509803922 | I19: 0.04509803922 | J19: 0.04509803922 | K19: 0.04509803922 | L19: 0.04509803922 | M19: 0.04509803922 | N19: 0.04509803922 | O19: 0.04509803922 | P19: 0.04509803922 | Q19: 0.04509803922 | R19: 0.04509803922 | S19: 0.04509803922 | T19: 0.04509803922 | U19: 0.04509803922 | V19: 0.04509803922 | W19: 0.04509803922 | X19: 0.04509803922 | Y19: 0.04509803922 | Z19: 0.04509803922 | AA19: 0.04509803922 | AB19: 0.04509803922 | AC19: 0.04509803922 | AD19: 0.04509803922 | AE19: 0.04509803922 | AF19: 0.04509803922 | AG19: 0.04509803922 | AH19: 0.04509803922 | AI19: 0.04509803922 | AJ19: 0.04509803922 | AK19: 0.04509803922 | AL19: 0.04509803922 | AM19: 0.04509803922 | AN19: 0.04509803922
B21: Cost of debt (nominal) | E21: =(1+'Inputs - forecast'!E21)/(1+'Inputs - forecast'!E14)*(1+'Inputs - actual'!E14)-1 -> 0.0401 | F21: =(1+'Inputs - forecast'!F21)/(1+'Inputs - forecast'!F14)*(1+'Inputs - actual'!F14)-1 -> 0.0401 | G21: =(1+'Inputs - forecast'!G21)/(1+'Inputs - forecast'!G14)*(1+'Inputs - actual'!G14)-1 -> 0.1012823529 | H21: =(1+'Inputs - forecast'!H21)/(1+'Inputs - forecast'!H14)*(1+'Inputs - actual'!H14)-1 -> 0.1012823529 | I21: =(1+'Inputs - forecast'!I21)/(1+'Inputs - forecast'!I14)*(1+'Inputs - actual'!I14)-1 -> 0.0401 | J21: =(1+'Inputs - forecast'!J21)/(1+'Inputs - forecast'!J14)*(1+'Inputs - actual'!J14)-1 -> 0.0401 | K21: =(1+'Inputs - forecast'!K21)/(1+'Inputs - forecast'!K14)*(1+'Inputs - actual'!K14)-1 -> 0.0401 | L21: =(1+'Inputs - forecast'!L21)/(1+'Inputs - forecast'!L14)*(1+'Inputs - actual'!L14)-1 -> 0.0401 | M21: =(1+'Inputs - forecast'!M21)/(1+'Inputs - forecast'!M14)*(1+'Inputs - actual'!M14)-1 -> 0.0401 | N21: =(1+'Inputs - forecast'!N21)/(1+'Inputs - forecast'!N14)*(1+'Inputs - actual'!N14)-1 -> 0.0401 | O21: =(1+'Inputs - forecast'!O21)/(1+'Inputs - forecast'!O14)*(1+'Inputs - actual'!O14)-1 -> 0.0401 | P21: =(1+'Inputs - forecast'!P21)/(1+'Inputs - forecast'!P14)*(1+'Inputs - actual'!P14)-1 -> 0.0401 | Q21: =(1+'Inputs - forecast'!Q21)/(1+'Inputs - forecast'!Q14)*(1+'Inputs - actual'!Q14)-1 -> 0.0401 | R21: =(1+'Inputs - forecast'!R21)/(1+'Inputs - forecast'!R14)*(1+'Inputs - actual'!R14)-1 -> 0.0401 | S21: =(1+'Inputs - forecast'!S21)/(1+'Inputs - forecast'!S14)*(1+'Inputs - actual'!S14)-1 -> 0.0401 | T21: =(1+'Inputs - forecast'!T21)/(1+'Inputs - forecast'!T14)*(1+'Inputs - actual'!T14)-1 -> 0.0401 | U21: =(1+'Inputs - forecast'!U21)/(1+'Inputs - forecast'!U14)*(1+'Inputs - actual'!U14)-1 -> 0.0401 | V21: =(1+'Inputs - forecast'!V21)/(1+'Inputs - forecast'!V14)*(1+'Inputs - actual'!V14)-1 -> 0.0401 | W21: =(1+'Inputs - forecast'!W21)/(1+'Inputs - forecast'!W14)*(1+'Inputs - actual'!W14)-1 -> 0.0401 | X21: =(1+'Inputs - forecast'!X21)/(1+'Inputs - forecast'!X14)*(1+'Inputs - actual'!X14)-1 -> 0.0401 | Y21: =(1+'Inputs - forecast'!Y21)/(1+'Inputs - forecast'!Y14)*(1+'Inputs - actual'!Y14)-1 -> 0.0401 | Z21: =(1+'Inputs - forecast'!Z21)/(1+'Inputs - forecast'!Z14)*(1+'Inputs - actual'!Z14)-1 -> 0.0401 | AA21: =(1+'Inputs - forecast'!AA21)/(1+'Inputs - forecast'!AA14)*(1+'Inputs - actual'!AA14)-1 -> 0.0401 | AB21: =(1+'Inputs - forecast'!AB21)/(1+'Inputs - forecast'!AB14)*(1+'Inputs - actual'!AB14)-1 -> 0.0401 | AC21: =(1+'Inputs - forecast'!AC21)/(1+'Inputs - forecast'!AC14)*(1+'Inputs - actual'!AC14)-1 -> 0.0401 | AD21: =(1+'Inputs - forecast'!AD21)/(1+'Inputs - forecast'!AD14)*(1+'Inputs - actual'!AD14)-1 -> 0.0401 | AE21: =(1+'Inputs - forecast'!AE21)/(1+'Inputs - forecast'!AE14)*(1+'Inputs - actual'!AE14)-1 -> 0.0401 | AF21: =(1+'Inputs - forecast'!AF21)/(1+'Inputs - forecast'!AF14)*(1+'Inputs - actual'!AF14)-1 -> 0.0401 | AG21: =(1+'Inputs - forecast'!AG21)/(1+'Inputs - forecast'!AG14)*(1+'Inputs - actual'!AG14)-1 -> 0.0401 | AH21: =(1+'Inputs - forecast'!AH21)/(1+'Inputs - forecast'!AH14)*(1+'Inputs - actual'!AH14)-1 -> 0.0401 | AI21: =(1+'Inputs - forecast'!AI21)/(1+'Inputs - forecast'!AI14)*(1+'Inputs - actual'!AI14)-1 -> 0.0401 | AJ21: =(1+'Inputs - forecast'!AJ21)/(1+'Inputs - forecast'!AJ14)*(1+'Inputs - actual'!AJ14)-1 -> 0.0401 | AK21: =(1+'Inputs - forecast'!AK21)/(1+'Inputs - forecast'!AK14)*(1+'Inputs - actual'!AK14)-1 -> 0.0401 | AL21: =(1+'Inputs - forecast'!AL21)/(1+'Inputs - forecast'!AL14)*(1+'Inputs - actual'!AL14)-1 -> 0.0401 | AM21: =(1+'Inputs - forecast'!AM21)/(1+'Inputs - forecast'!AM14)*(1+'Inputs - actual'!AM14)-1 -> 0.0401 | AN21: =(1+'Inputs - forecast'!AN21)/(1+'Inputs - forecast'!AN14)*(1+'Inputs - actual'!AN14)-1 -> 0.0401
B22: Cost of debt (real) | E22: =(1+E21)/(1+E14)-1 -> 0.01970588235 | F22: 0.01970588235 | G22: 0.01970588235 | H22: 0.01970588235 | I22: 0.01970588235 | J22: 0.01970588235 | K22: 0.01970588235 | L22: 0.01970588235 | M22: 0.01970588235 | N22: 0.01970588235 | O22: 0.01970588235 | P22: 0.01970588235 | Q22: 0.01970588235 | R22: 0.01970588235 | S22: 0.01970588235 | T22: 0.01970588235 | U22: 0.01970588235 | V22: 0.01970588235 | W22: 0.01970588235 | X22: 0.01970588235 | Y22: 0.01970588235 | Z22: 0.01970588235 | AA22: 0.01970588235 | AB22: 0.01970588235 | AC22: 0.01970588235 | AD22: 0.01970588235 | AE22: 0.01970588235 | AF22: 0.01970588235 | AG22: 0.01970588235 | AH22: 0.01970588235 | AI22: 0.01970588235 | AJ22: 0.01970588235 | AK22: 0.01970588235 | AL22: 0.01970588235 | AM22: 0.01970588235 | AN22: 0.01970588235
B24: Leverage | E24: ='Inputs - forecast'!E24 -> 0.41 | F24: ='Inputs - forecast'!F24 -> 0.41 | G24: ='Inputs - forecast'!G24 -> 0.41 | H24: ='Inputs - forecast'!H24 -> 0.41 | I24: ='Inputs - forecast'!I24 -> 0.41 | J24: ='Inputs - forecast'!J24 -> 0.41 | K24: ='Inputs - forecast'!K24 -> 0.41 | L24: ='Inputs - forecast'!L24 -> 0.41 | M24: ='Inputs - forecast'!M24 -> 0.41 | N24: ='Inputs - forecast'!N24 -> 0.41 | O24: ='Inputs - forecast'!O24 -> 0.41 | P24: ='Inputs - forecast'!P24 -> 0.41 | Q24: ='Inputs - forecast'!Q24 -> 0.41 | R24: ='Inputs - forecast'!R24 -> 0.41 | S24: ='Inputs - forecast'!S24 -> 0.41 | T24: ='Inputs - forecast'!T24 -> 0.41 | U24: ='Inputs - forecast'!U24 -> 0.41 | V24: ='Inputs - forecast'!V24 -> 0.41 | W24: ='Inputs - forecast'!W24 -> 0.41 | X24: ='Inputs - forecast'!X24 -> 0.41 | Y24: ='Inputs - forecast'!Y24 -> 0.41 | Z24: ='Inputs - forecast'!Z24 -> 0.41 | AA24: ='Inputs - forecast'!AA24 -> 0.41 | AB24: ='Inputs - forecast'!AB24 -> 0.41 | AC24: ='Inputs - forecast'!AC24 -> 0.41 | AD24: ='Inputs - forecast'!AD24 -> 0.41 | AE24: ='Inputs - forecast'!AE24 -> 0.41 | AF24: ='Inputs - forecast'!AF24 -> 0.41 | AG24: ='Inputs - forecast'!AG24 -> 0.41 | AH24: ='Inputs - forecast'!AH24 -> 0.41 | AI24: ='Inputs - forecast'!AI24 -> 0.41 | AJ24: ='Inputs - forecast'!AJ24 -> 0.41 | AK24: ='Inputs - forecast'!AK24 -> 0.41 | AL24: ='Inputs - forecast'!AL24 -> 0.41 | AM24: ='Inputs - forecast'!AM24 -> 0.41 | AN24: ='Inputs - forecast'!AN24 -> 0.41
B25: Tax rate | E25: ='Inputs - forecast'!E25 -> 0.28 | F25: ='Inputs - forecast'!F25 -> 0.28 | G25: ='Inputs - forecast'!G25 -> 0.28 | H25: ='Inputs - forecast'!H25 -> 0.28 | I25: ='Inputs - forecast'!I25 -> 0.28 | J25: ='Inputs - forecast'!J25 -> 0.28 | K25: ='Inputs - forecast'!K25 -> 0.28 | L25: ='Inputs - forecast'!L25 -> 0.28 | M25: ='Inputs - forecast'!M25 -> 0.28 | N25: ='Inputs - forecast'!N25 -> 0.28 | O25: ='Inputs - forecast'!O25 -> 0.28 | P25: ='Inputs - forecast'!P25 -> 0.28 | Q25: ='Inputs - forecast'!Q25 -> 0.28 | R25: ='Inputs - forecast'!R25 -> 0.28 | S25: ='Inputs - forecast'!S25 -> 0.28 | T25: ='Inputs - forecast'!T25 -> 0.28 | U25: ='Inputs - forecast'!U25 -> 0.28 | V25: ='Inputs - forecast'!V25 -> 0.28 | W25: ='Inputs - forecast'!W25 -> 0.28 | X25: ='Inputs - forecast'!X25 -> 0.28 | Y25: ='Inputs - forecast'!Y25 -> 0.28 | Z25: ='Inputs - forecast'!Z25 -> 0.28 | AA25: ='Inputs - forecast'!AA25 -> 0.28 | AB25: ='Inputs - forecast'!AB25 -> 0.28 | AC25: ='Inputs - forecast'!AC25 -> 0.28 | AD25: ='Inputs - forecast'!AD25 -> 0.28 | AE25: ='Inputs - forecast'!AE25 -> 0.28 | AF25: ='Inputs - forecast'!AF25 -> 0.28 | AG25: ='Inputs - forecast'!AG25 -> 0.28 | AH25: ='Inputs - forecast'!AH25 -> 0.28 | AI25: ='Inputs - forecast'!AI25 -> 0.28 | AJ25: ='Inputs - forecast'!AJ25 -> 0.28 | AK25: ='Inputs - forecast'!AK25 -> 0.28 | AL25: ='Inputs - forecast'!AL25 -> 0.28 | AM25: ='Inputs - forecast'!AM25 -> 0.28 | AN25: ='Inputs - forecast'!AN25 -> 0.28
B27: Cost of capital (vanilla, nominal) | E27: =E$21*E$24+E$18*(1-E$24) -> 0.055381 | F27: 0.055381 | G27: 0.1174622353 | H27: 0.1174622353 | I27: 0.055381 | J27: 0.055381 | K27: 0.055381 | L27: 0.055381 | M27: 0.055381 | N27: 0.055381 | O27: 0.055381 | P27: 0.055381 | Q27: 0.055381 | R27: 0.055381 | S27: 0.055381 | T27: 0.055381 | U27: 0.055381 | V27: 0.055381 | W27: 0.055381 | X27: 0.055381 | Y27: 0.055381 | Z27: 0.055381 | AA27: 0.055381 | AB27: 0.055381 | AC27: 0.055381 | AD27: 0.055381 | AE27: 0.055381 | AF27: 0.055381 | AG27: 0.055381 | AH27: 0.055381 | AI27: 0.055381 | AJ27: 0.055381 | AK27: 0.055381 | AL27: 0.055381 | AM27: 0.055381 | AN27: 0.055381 | AO27: =(((1+F27)*(1+G27)*(1+H27)*(1+I27)*(1+J27)*(1+K27)*(1+L27)*(1+M27)*(1+N27)*(1+O27)*(1+P27)*(1+Q27)*(1+R27)*(1+S27)*(1+T27)*(1+U27)*(1+V27)*(1+W27)*(1+X27)*(1+Y27)*(1+Z27)*(1+AA27)*(1+AB27)*(1+AC27)*(1+AD27)*(1+AE27)*(1+AF27)*(1+AG27)*(1+AH27)*(1+AI27)*(1+AJ27)*(1+AK27)*(1+AL27)*(1+AM27)*(1+AN27))^(1/35))-1 -> 0.05883371578
B28: Cost of capital (vanilla, real) | E28: =(1+E$27)/(1+E$14)-1 -> 0.0346872549 | F28: 0.0346872549 | G28: 0.0346872549 | H28: 0.0346872549 | I28: 0.0346872549 | J28: 0.0346872549 | K28: 0.0346872549 | L28: 0.0346872549 | M28: 0.0346872549 | N28: 0.0346872549 | O28: 0.0346872549 | P28: 0.0346872549 | Q28: 0.0346872549 | R28: 0.0346872549 | S28: 0.0346872549 | T28: 0.0346872549 | U28: 0.0346872549 | V28: 0.0346872549 | W28: 0.0346872549 | X28: 0.0346872549 | Y28: 0.0346872549 | Z28: 0.0346872549 | AA28: 0.0346872549 | AB28: 0.0346872549 | AC28: 0.0346872549 | AD28: 0.0346872549 | AE28: 0.0346872549 | AF28: 0.0346872549 | AG28: 0.0346872549 | AH28: 0.0346872549 | AI28: 0.0346872549 | AJ28: 0.0346872549 | AK28: 0.0346872549 | AL28: 0.0346872549 | AM28: 0.0346872549 | AN28: 0.0346872549 | AO28: 0.0346872549
A30: Compounding factor (nominal)
B31: Compounding factor step 1 | E31: =1+E27 -> 1.055381 | F31: 1.055381 | G31: 1.117462235 | H31: 1.117462235 | I31: 1.055381 | J31: 1.055381 | K31: 1.055381 | L31: 1.055381 | M31: 1.055381 | N31: 1.055381 | O31: 1.055381 | P31: 1.055381 | Q31: 1.055381 | R31: 1.055381 | S31: 1.055381 | T31: 1.055381 | U31: 1.055381 | V31: 1.055381 | W31: 1.055381 | X31: 1.055381 | Y31: 1.055381 | Z31: 1.055381 | AA31: 1.055381 | AB31: 1.055381 | AC31: 1.055381 | AD31: 1.055381 | AE31: 1.055381 | AF31: 1.055381 | AG31: 1.055381 | AH31: 1.055381 | AI31: 1.055381 | AJ31: 1.055381 | AK31: 1.055381 | AL31: 1.055381 | AM31: 1.055381 | AN31: 1.055381
B32: Compounding factor step 2 | E32: 1 | F32: =E32*F31 -> 1.055381 | G32: =F32*G31 -> 1.179348411 | H32: 1.317877312 | I32: 1.390862675 | J32: 1.467890041 | K32: 1.54918326 | L32: 1.634978578 | M32: 1.725525326 | N32: 1.821086644 | O32: 1.921940244 | P32: 2.028379216 | Q32: 2.140712886 | R32: 2.259267706 | S32: 2.384388211 | T32: 2.516438014 | U32: 2.655800868 | V32: 2.802881776 | W32: 2.958108172 | X32: 3.12193116 | Y32: 3.29482683 | Z32: 3.477297635 | AA32: 3.669873855 | AB32: 3.873115139 | AC32: 4.087612128 | AD32: 4.313988176 | AE32: 4.552901155 | AF32: 4.805045374 | AG32: 5.071153592 | AH32: 5.351999149 | AI32: 5.648398213 | AJ32: 5.961212155 | AK32: 6.291350045 | AL32: 6.639771302 | AM32: 7.007488477 | AN32: 7.395570196
A35: Compounding factor (real)
B36: Compounding factor step 1 | E36: =1+E28 -> 1.034687255 | F36: 1.034687255 | G36: 1.034687255 | H36: 1.034687255 | I36: 1.034687255 | J36: 1.034687255 | K36: 1.034687255 | L36: 1.034687255 | M36: 1.034687255 | N36: 1.034687255 | O36: 1.034687255 | P36: 1.034687255 | Q36: 1.034687255 | R36: 1.034687255 | S36: 1.034687255 | T36: 1.034687255 | U36: 1.034687255 | V36: 1.034687255 | W36: 1.034687255 | X36: 1.034687255 | Y36: 1.034687255 | Z36: 1.034687255 | AA36: 1.034687255 | AB36: 1.034687255 | AC36: 1.034687255 | AD36: 1.034687255 | AE36: 1.034687255 | AF36: 1.034687255 | AG36: 1.034687255 | AH36: 1.034687255 | AI36: 1.034687255 | AJ36: 1.034687255 | AK36: 1.034687255 | AL36: 1.034687255 | AM36: 1.034687255 | AN36: 1.034687255
B37: Compounding factor step 2 | E37: 1 | F37: =E37*F36 -> 1.034687255 | G37: =F37*G36 -> 1.070577715 | H37: 1.107713118 | I37: 1.146136645 | J37: 1.185892979 | K37: 1.227028351 | L37: 1.269590596 | M37: 1.313629209 | N37: 1.3591954 | O37: 1.406342157 | P37: 1.455124306 | Q37: 1.505598574 | R37: 1.557823655 | S37: 1.611860281 | T37: 1.66777129 | U37: 1.725621698 | V37: 1.785478777 | W37: 1.847412135 | X37: 1.911493791 | Y37: 1.977798263 | Z37: 2.046402655 | AA37: 2.117386746 | AB37: 2.19083308 | AC37: 2.266827065 | AD37: 2.345457073 | AE37: 2.426814541 | AF37: 2.510994075 | AG37: 2.598093567 | AH37: 2.688214301 | AI37: 2.781461075 | AJ37: 2.877942325 | AK37: 2.977770244 | AL37: 3.081060919 | AM37: 3.187934465 | AN37: 3.29851516

Sheet Macro
A1: Macro
B2: The macro needs to be run if any changes are made to the inputs. This goal seeks revenue for each of the calculation sheets so that NPV of revenue = NPV of expenditure for each of the 5-years periods. E.g., goal seeks revenue in 'Transpower current (35 years)'!K58 to set cell K57 to zero.

Sheet Transpower current (35 years)
A1: Calculation
A2: This model is similar to the current Transpower treatment with a non-indexed RAB. There is no annual revenue wash-up and the RAB is not washed up for the difference between forecast and actual inflation.
A4: Forecast | D4: Return over forecast period | E4: ='Inputs - forecast'!E2 -> 2020-06-30 | F4: ='Inputs - forecast'!F2 -> 2021-06-30 | G4: ='Inputs - forecast'!G2 -> 2022-06-30 | H4: ='Inputs - forecast'!H2 -> 2023-06-30 | I4: ='Inputs - forecast'!I2 -> 2024-06-30 | J4: ='Inputs - forecast'!J2 -> 2025-06-30 | K4: ='Inputs - forecast'!K2 -> 2026-06-30 | L4: ='Inputs - forecast'!L2 -> 2027-06-30 | M4: ='Inputs - forecast'!M2 -> 2028-06-30 | N4: ='Inputs - forecast'!N2 -> 2029-06-30 | O4: ='Inputs - forecast'!O2 -> 2030-06-30 | P4: ='Inputs - forecast'!P2 -> 2031-06-30 | Q4: ='Inputs - forecast'!Q2 -> 2032-06-30 | R4: ='Inputs - forecast'!R2 -> 2033-06-30 | S4: ='Inputs - forecast'!S2 -> 2034-06-30 | T4: ='Inputs - forecast'!T2 -> 2035-06-30 | U4: ='Inputs - forecast'!U2 -> 2036-06-30 | V4: ='Inputs - forecast'!V2 -> 2037-06-30 | W4: ='Inputs - forecast'!W2 -> 2038-06-30 | X4: ='Inputs - forecast'!X2 -> 2039-06-30 | Y4: ='Inputs - forecast'!Y2 -> 2040-06-30 | Z4: ='Inputs - forecast'!Z2 -> 2041-06-30 | AA4: ='Inputs - forecast'!AA2 -> 2042-06-30 | AB4: ='Inputs - forecast'!AB2 -> 2043-06-30 | AC4: ='Inputs - forecast'!AC2 -> 2044-06-30 | AD4: ='Inputs - forecast'!AD2 -> 2045-06-30 | AE4: ='Inputs - forecast'!AE2 -> 2046-06-30 | AF4: ='Inputs - forecast'!AF2 -> 2047-06-30 | AG4: ='Inputs - forecast'!AG2 -> 2048-06-30 | AH4: ='Inputs - forecast'!AH2 -> 2049-06-30 | AI4: ='Inputs - forecast'!AI2 -> 2050-06-30 | AJ4: ='Inputs - forecast'!AJ2 -> 2051-06-30 | AK4: ='Inputs - forecast'!AK2 -> 2052-06-30 | AL4: ='Inputs - forecast'!AL2 -> 2053-06-30 | AM4: ='Inputs - forecast'!AM2 -> 2054-06-30 | AN4: ='Inputs - forecast'!AN2 -> 2055-06-30
A5: Building blocks
B6: Revenue | F6: =K60 -> 866.9501691 | G6: =F6*(1+'Inputs - forecast'!G14) -> 884.2891725 | H6: =G6*(1+'Inputs - forecast'!H14) -> 901.9749559 | I6: =H6*(1+'Inputs - forecast'!I14) -> 920.014455 | J6: =I6*(1+'Inputs - forecast'!J14) -> 938.4147441 | K6: =P67 -> 1069.618643 | L6: =K6*(1+'Inputs - forecast'!L14) -> 1091.011016 | M6: =L6*(1+'Inputs - forecast'!M14) -> 1112.831237 | N6: =M6*(1+'Inputs - forecast'!N14) -> 1135.087861 | O6: =N6*(1+'Inputs - forecast'!O14) -> 1157.789619 | P6: =U74 -> 1325.309367 | Q6: =P6*(1+'Inputs - forecast'!Q14) -> 1351.815554 | R6: =Q6*(1+'Inputs - forecast'!R14) -> 1378.851865 | S6: =R6*(1+'Inputs - forecast'!S14) -> 1406.428903 | T6: =S6*(1+'Inputs - forecast'!T14) -> 1434.557481 | U6: =Z81 -> 1499.63168 | V6: =U6*(1+'Inputs - forecast'!V14) -> 1529.624314 | W6: =V6*(1+'Inputs - forecast'!W14) -> 1560.2168 | X6: =W6*(1+'Inputs - forecast'!X14) -> 1591.421136 | Y6: =X6*(1+'Inputs - forecast'!Y14) -> 1623.249559 | Z6: =AE88 -> 1601.00984 | AA6: =Z6*(1+'Inputs - forecast'!AA14) -> 1633.030037 | AB6: =AA6*(1+'Inputs - forecast'!AB14) -> 1665.690638 | AC6: =AB6*(1+'Inputs - forecast'!AC14) -> 1699.004451 | AD6: =AC6*(1+'Inputs - forecast'!AD14) -> 1732.98454 | AE6: =AJ95 -> 1710.320836 | AF6: =AE6*(1+'Inputs - forecast'!AF14) -> 1744.527253 | AG6: =AF6*(1+'Inputs - forecast'!AG14) -> 1779.417798 | AH6: =AG6*(1+'Inputs - forecast'!AH14) -> 1815.006154 | AI6: =AH6*(1+'Inputs - forecast'!AI14) -> 1851.306277 | AJ6: =AO102 -> 1828.390324 | AK6: =AJ6*(1+'Inputs - forecast'!AK14) -> 1864.958131 | AL6: =AK6*(1+'Inputs - forecast'!AL14) -> 1902.257293 | AM6: =AL6*(1+'Inputs - forecast'!AM14) -> 1940.302439 | AN6: =AM6*(1+'Inputs - forecast'!AN14) -> 1979.108488
B7: Return on debt | F7: =-F$31*'Inputs - forecast'!F$24*'Inputs - forecast'!F$21 -> -79.475794 | G7: =-G$31*'Inputs - forecast'!G$24*'Inputs - forecast'!G$21 -> -80.90178241 | H7: =-H$31*'Inputs - forecast'!H$24*'Inputs - forecast'!H$21 -> -82.85309516 | I7: =-I$31*'Inputs - forecast'!I$24*'Inputs - forecast'!I$21 -> -85.49110025 | J7: =-J$31*'Inputs - forecast'!J$24*'Inputs - forecast'!J$21 -> -87.9340092 | K7: =-K$31*'Inputs - forecast'!K$24*'Inputs - forecast'!K$21 -> -90.89676579 | L7: =-L$31*'Inputs - forecast'!L$24*'Inputs - forecast'!L$21 -> -95.16982374 | M7: =-M$31*'Inputs - forecast'!M$24*'Inputs - forecast'!M$21 -> -101.0056943 | N7: =-N$31*'Inputs - forecast'!N$24*'Inputs - forecast'!N$21 -> -105.7636439 | O7: =-O$31*'Inputs - forecast'!O$24*'Inputs - forecast'!O$21 -> -113.1916942 | P7: =-P$31*'Inputs - forecast'!P$24*'Inputs - forecast'!P$21 -> -122.6870302 | Q7: =-Q$31*'Inputs - forecast'!Q$24*'Inputs - forecast'!Q$21 -> -128.9602434 | R7: =-R$31*'Inputs - forecast'!R$24*'Inputs - forecast'!R$21 -> -134.4406965 | S7: =-S$31*'Inputs - forecast'!S$24*'Inputs - forecast'!S$21 -> -138.9111795 | T7: =-T$31*'Inputs - forecast'!T$24*'Inputs - forecast'!T$21 -> -144.3708267 | U7: =-U$31*'Inputs - forecast'!U$24*'Inputs - forecast'!U$21 -> -150.151769 | V7: =-V$31*'Inputs - forecast'!V$24*'Inputs - forecast'!V$21 -> -150.3579956 | W7: =-W$31*'Inputs - forecast'!W$24*'Inputs - forecast'!W$21 -> -150.5439795 | X7: =-X$31*'Inputs - forecast'!X$24*'Inputs - forecast'!X$21 -> -150.7093159 | Y7: =-Y$31*'Inputs - forecast'!Y$24*'Inputs - forecast'!Y$21 -> -150.8535917 | Z7: =-Z$31*'Inputs - forecast'!Z$24*'Inputs - forecast'!Z$21 -> -150.9763859 | AA7: =-AA$31*'Inputs - forecast'!AA$24*'Inputs - forecast'!AA$21 -> -151.0772688 | AB7: =-AB$31*'Inputs - forecast'!AB$24*'Inputs - forecast'!AB$21 -> -151.155802 | AC7: =-AC$31*'Inputs - forecast'!AC$24*'Inputs - forecast'!AC$21 -> -151.2115388 | AD7: =-AD$31*'Inputs - forecast'!AD$24*'Inputs - forecast'!AD$21 -> -151.244023 | AE7: =-AE$31*'Inputs - forecast'!AE$24*'Inputs - forecast'!AE$21 -> -151.2527897 | AF7: =-AF$31*'Inputs - forecast'!AF$24*'Inputs - forecast'!AF$21 -> -151.2373645 | AG7: =-AG$31*'Inputs - forecast'!AG$24*'Inputs - forecast'!AG$21 -> -151.1972636 | AH7: =-AH$31*'Inputs - forecast'!AH$24*'Inputs - forecast'!AH$21 -> -151.1319935 | AI7: =-AI$31*'Inputs - forecast'!AI$24*'Inputs - forecast'!AI$21 -> -151.0410508 | AJ7: =-AJ$31*'Inputs - forecast'!AJ$24*'Inputs - forecast'!AJ$21 -> -150.9239219 | AK7: =-AK$31*'Inputs - forecast'!AK$24*'Inputs - forecast'!AK$21 -> -150.7800833 | AL7: =-AL$31*'Inputs - forecast'!AL$24*'Inputs - forecast'!AL$21 -> -150.6090007 | AM7: =-AM$31*'Inputs - forecast'!AM$24*'Inputs - forecast'!AM$21 -> -150.4101292 | AN7: =-AN$31*'Inputs - forecast'!AN$24*'Inputs - forecast'!AN$21 -> -150.1829131
B8: Return on equity | F8: =-F$31*(1-'Inputs - forecast'!F$24)*'Inputs - forecast'!F$18 -> -188.23596 | G8: =-G$31*(1-'Inputs - forecast'!G$24)*'Inputs - forecast'!G$18 -> -191.6133695 | H8: =-H$31*(1-'Inputs - forecast'!H$24)*'Inputs - forecast'!H$18 -> -196.2349933 | I8: =-I$31*(1-'Inputs - forecast'!I$24)*'Inputs - forecast'!I$18 -> -202.4830268 | J8: =-J$31*(1-'Inputs - forecast'!J$24)*'Inputs - forecast'!J$18 -> -208.2689811 | K8: =-K$31*(1-'Inputs - forecast'!K$24)*'Inputs - forecast'!K$18 -> -215.2861784 | L8: =-L$31*(1-'Inputs - forecast'!L$24)*'Inputs - forecast'!L$18 -> -225.406784 | M8: =-M$31*(1-'Inputs - forecast'!M$24)*'Inputs - forecast'!M$18 -> -239.2288629 | N8: =-N$31*(1-'Inputs - forecast'!N$24)*'Inputs - forecast'!N$18 -> -250.4979195 | O8: =-O$31*(1-'Inputs - forecast'!O$24)*'Inputs - forecast'!O$18 -> -268.0910267 | P8: =-P$31*(1-'Inputs - forecast'!P$24)*'Inputs - forecast'!P$18 -> -290.5804366 | Q8: =-Q$31*(1-'Inputs - forecast'!Q$24)*'Inputs - forecast'!Q$18 -> -305.438348 | R8: =-R$31*(1-'Inputs - forecast'!R$24)*'Inputs - forecast'!R$18 -> -318.4186316 | S8: =-S$31*(1-'Inputs - forecast'!S$24)*'Inputs - forecast'!S$18 -> -329.0068323 | T8: =-T$31*(1-'Inputs - forecast'!T$24)*'Inputs - forecast'!T$18 -> -341.9378377 | U8: =-U$31*(1-'Inputs - forecast'!U$24)*'Inputs - forecast'!U$18 -> -355.6298209 | V8: =-V$31*(1-'Inputs - forecast'!V$24)*'Inputs - forecast'!V$18 -> -356.1182622 | W8: =-W$31*(1-'Inputs - forecast'!W$24)*'Inputs - forecast'!W$18 -> -356.5587593 | X8: =-X$31*(1-'Inputs - forecast'!X$24)*'Inputs - forecast'!X$18 -> -356.9503534 | Y8: =-Y$31*(1-'Inputs - forecast'!Y$24)*'Inputs - forecast'!Y$18 -> -357.2920663 | Z8: =-Z$31*(1-'Inputs - forecast'!Z$24)*'Inputs - forecast'!Z$18 -> -357.5829005 | AA8: =-AA$31*(1-'Inputs - forecast'!AA$24)*'Inputs - forecast'!AA$18 -> -357.8218384 | AB8: =-AB$31*(1-'Inputs - forecast'!AB$24)*'Inputs - forecast'!AB$18 -> -358.0078421 | AC8: =-AC$31*(1-'Inputs - forecast'!AC$24)*'Inputs - forecast'!AC$18 -> -358.1398528 | AD8: =-AD$31*(1-'Inputs - forecast'!AD$24)*'Inputs - forecast'!AD$18 -> -358.2167907 | AE8: =-AE$31*(1-'Inputs - forecast'!AE$24)*'Inputs - forecast'!AE$18 -> -358.2375544 | AF8: =-AF$31*(1-'Inputs - forecast'!AF$24)*'Inputs - forecast'!AF$18 -> -358.2010203 | AG8: =-AG$31*(1-'Inputs - forecast'!AG$24)*'Inputs - forecast'!AG$18 -> -358.1060426 | AH8: =-AH$31*(1-'Inputs - forecast'!AH$24)*'Inputs - forecast'!AH$18 -> -357.9514523 | AI8: =-AI$31*(1-'Inputs - forecast'!AI$24)*'Inputs - forecast'!AI$18 -> -357.7360572 | AJ8: =-AJ$31*(1-'Inputs - forecast'!AJ$24)*'Inputs - forecast'!AJ$18 -> -357.4586412 | AK8: =-AK$31*(1-'Inputs - forecast'!AK$24)*'Inputs - forecast'!AK$18 -> -357.1179639 | AL8: =-AL$31*(1-'Inputs - forecast'!AL$24)*'Inputs - forecast'!AL$18 -> -356.71276 | AM8: =-AM$31*(1-'Inputs - forecast'!AM$24)*'Inputs - forecast'!AM$18 -> -356.2417391 | AN8: =-AN$31*(1-'Inputs - forecast'!AN$24)*'Inputs - forecast'!AN$18 -> -355.7035847
B9: Revaluation
B10: Tax | F10: =F50 -> -76.07825508 | G10: =G50 -> -76.73880486 | H10: -76.65485458 | I10: -76.12868197 | J10: -77.19311023 | K10: -95.785468 | L10: -95.58968666 | M10: -92.60579111 | N10: -91.27540775 | O10: -86.92526799 | P10: -124.0924935 | Q10: -123.0984141 | R10: -122.7202064 | S10: -122.2535717 | T10: -121.3885277 | U10: =U50 -> -132.7783768 | V10: -135.8020626 | W10: -138.8930449 | X10: -142.0526697 | Y10: -145.2823098 | Z10: -133.2660469 | AA10: -136.3336002 | AB10: -139.4693274 | AC10: -142.6745919 | AD10: -145.9507846 | AE10: =AE50 -> -133.2487736 | AF10: -136.3500956 | AG10: -139.5202668 | AH10: -142.7606643 | AI10: -146.0726925 | AJ10: -132.6740021 | AK10: -135.7979428 | AL10: -138.991185 | AM10: -142.2551149 | AN10: -145.5911463
B11: Opex | F11: =F19 -> -265.3 | G11: =G19 -> -271.014 | H11: -282.88476 | I11: -293.2117704 | J11: -297.668844 | K11: -350.1716429 | L11: -354.5237231 | M11: -362.7732174 | N11: -370.0286818 | O11: -377.4292554 | P11: -385.934477 | Q11: -393.6531665 | R11: -401.5262298 | S11: -409.5567544 | T11: -417.7478895 | U11: -426.1028473 | V11: -434.6249043 | W11: -443.3174023 | X11: -452.1837504 | Y11: -461.2274254 | Z11: -470.4519739 | AA11: -479.8610134 | AB11: -489.4582336 | AC11: -499.2473983 | AD11: -509.2323463 | AE11: -519.4169932 | AF11: -529.8053331 | AG11: -540.4014397 | AH11: -551.2094685 | AI11: -562.2336579 | AJ11: -573.4783311 | AK11: -584.9478977 | AL11: -596.6468556 | AM11: -608.5797928 | AN11: -620.7513886
B12: Depreciation | F12: =F33 -> -250.4663212 | G12: =G33 -> -258.3062299 | H12: -262.469763 | I12: -269.4234345 | J12: -277.1222115 | K12: -286.4592777 | L12: -299.9257314 | M12: -318.3173567 | N12: -333.3119366 | O12: -356.7212834 | P12: -373.500383 | Q12: -389.5649512 | R12: -404.5984875 | S12: -421.3410697 | T12: -438.9083086 | U12: =U33 -> -449.1685755 | V12: -459.6340477 | W12: -470.3088293 | X12: -481.1971066 | Y12: -492.3031494 | Z12: -503.6313131 | AA12: -515.18604 | AB12: -526.9718615 | AC12: -538.9933994 | AD12: -551.2553681 | AE12: =AE33 -> -563.7625762 | AF12: -576.5199284 | AG12: -589.5324277 | AH12: -602.8051769 | AI12: -616.3433811 | AJ12: -630.1523494 | AK12: -644.2374971 | AL12: -658.6043477 | AM12: -673.2585354 | AN12: -688.2058068
B13: Net revenue | D13: =IRR(F13:AN13,'Inputs - forecast'!AO27) -> 0.055381 | F13: =SUM(F6:F12) -> 7.393838765 | G13: 5.714985891 | H13: 0.8774898697 | I13: -6.723558904 | J13: -9.772411936 | K13: 31.0193107 | L13: 20.39526738 | M13: -1.099685751 | N13: -15.7897281 | O13: =SUM(O6:O12) -> -44.56890905 | P13: =SUM(P6:P12) -> 28.51454662 | Q13: 11.10043103 | R13: -2.85238656 | S13: -14.64050497 | T13: -29.79590946 | U13: =SUM(U6:U12) -> -14.19970928 | V13: -6.912958508 | W13: 0.5947846798 | X13: 8.327940129 | Y13: 16.29101608 | Z13: -14.89878 | AA13: -7.249723657 | AB13: 0.6275712155 | AC13: 8.737669383 | AD13: 17.08522691 | AE13: =SUM(AE6:AE12) -> -15.59785073 | AF13: -7.586488805 | AG13: 0.6603577513 | AH13: 9.147398636 | AI13: 17.87943774 | AJ13: -16.29692145 | AK13: -7.923253953 | AL13: 0.6931442871 | AM13: 9.55712789 | AN13: 18.67364856
B14: Present value | F14: =F13/'Inputs - forecast'!F$32 -> 7.005847902 | G14: =G13/'Inputs - forecast'!G$32 -> 5.130936264 | H14: =H13/'Inputs - forecast'!H$32 -> 0.7464733327 | I14: =I13/'Inputs - forecast'!I$32 -> -5.41953629 | J14: =J13/'Inputs - forecast'!J$32 -> -7.463721208 | K14: =K13/'Inputs - forecast'!K$32 -> 22.44794114 | L14: =L13/'Inputs - forecast'!L$32 -> 13.98506548 | M14: =M13/'Inputs - forecast'!M$32 -> -0.7144871577 | N14: =N13/'Inputs - forecast'!N$32 -> -9.720558308 | O14: =O13/'Inputs - forecast'!O$32 -> -25.99796115 | P14: =P13/'Inputs - forecast'!P$32 -> 15.76030022 | Q14: =Q13/'Inputs - forecast'!Q$32 -> 5.813378326 | R14: =R13/'Inputs - forecast'!R$32 -> -1.415428234 | S14: =S13/'Inputs - forecast'!S$32 -> -6.883768521 | T14: =T13/'Inputs - forecast'!T$32 -> -13.27448179 | U14: =U13/'Inputs - forecast'!U$32 -> -5.994198379 | V14: =V13/'Inputs - forecast'!V$32 -> -2.765071321 | W14: =W13/'Inputs - forecast'!W$32 -> 0.2254202307 | X14: =X13/'Inputs - forecast'!X$32 -> 2.990621418 | Y14: =Y13/'Inputs - forecast'!Y$32 -> 5.543228052 | Z14: =Z13/'Inputs - forecast'!Z$32 -> -4.803480254 | AA14: =AA13/'Inputs - forecast'!AA$32 -> -2.214713146 | AB14: =AB13/'Inputs - forecast'!AB$32 -> 0.1816560119 | AC14: =AC13/'Inputs - forecast'!AC$32 -> 2.396476067 | AD14: =AD13/'Inputs - forecast'!AD$32 -> 4.440061321 | AE14: =AE13/'Inputs - forecast'!AE$32 -> -3.840817798 | AF14: =AF13/'Inputs - forecast'!AF$32 -> -1.770070221 | AG14: =AG13/'Inputs - forecast'!AG$32 -> 0.1459888485 | AH14: =AH13/'Inputs - forecast'!AH$32 -> 1.91614662 | AI14: =AI13/'Inputs - forecast'!AI$32 -> 3.54875255 | AJ14: =AJ13/'Inputs - forecast'!AJ$32 -> -3.064913071 | AK14: =AK13/'Inputs - forecast'!AK$32 -> -1.411909609 | AL14: =AL13/'Inputs - forecast'!AL$32 -> 0.1170355215 | AM14: =AM13/'Inputs - forecast'!AM$32 -> 1.529016503 | AN14: =AN13/'Inputs - forecast'!AN$32 -> 2.830770656
B15: Sum of present values | AN15: =SUM(F14:AN14) -> 4.853895064e-13
A17: Regulatory cashflows
B18: Revenue | F18: =F6 -> 866.9501691 | G18: 884.2891725 | H18: 901.9749559 | I18: 920.014455 | J18: 938.4147441 | K18: 1069.618643 | L18: 1091.011016 | M18: 1112.831237 | N18: 1135.087861 | O18: 1157.789619 | P18: 1325.309367 | Q18: 1351.815554 | R18: 1378.851865 | S18: 1406.428903 | T18: 1434.557481 | U18: 1499.63168 | V18: 1529.624314 | W18: 1560.2168 | X18: 1591.421136 | Y18: 1623.249559 | Z18: 1601.00984 | AA18: 1633.030037 | AB18: 1665.690638 | AC18: 1699.004451 | AD18: 1732.98454 | AE18: 1710.320836 | AF18: 1744.527253 | AG18: 1779.417798 | AH18: 1815.006154 | AI18: 1851.306277 | AJ18: 1828.390324 | AK18: 1864.958131 | AL18: 1902.257293 | AM18: 1940.302439 | AN18: 1979.108488
B19: Opex | F19: =-'Inputs - forecast'!F$10 -> -265.3 | G19: =-'Inputs - forecast'!G$10 -> -271.014 | H19: =-'Inputs - forecast'!H$10 -> -282.88476 | I19: =-'Inputs - forecast'!I$10 -> -293.2117704 | J19: =-'Inputs - forecast'!J$10 -> -297.668844 | K19: =-'Inputs - forecast'!K$10 -> -350.1716429 | L19: =-'Inputs - forecast'!L$10 -> -354.5237231 | M19: =-'Inputs - forecast'!M$10 -> -362.7732174 | N19: =-'Inputs - forecast'!N$10 -> -370.0286818 | O19: =-'Inputs - forecast'!O$10 -> -377.4292554 | P19: =-'Inputs - forecast'!P$10 -> -385.934477 | Q19: =-'Inputs - forecast'!Q$10 -> -393.6531665 | R19: =-'Inputs - forecast'!R$10 -> -401.5262298 | S19: =-'Inputs - forecast'!S$10 -> -409.5567544 | T19: =-'Inputs - forecast'!T$10 -> -417.7478895 | U19: =-'Inputs - forecast'!U$10 -> -426.1028473 | V19: =-'Inputs - forecast'!V$10 -> -434.6249043 | W19: =-'Inputs - forecast'!W$10 -> -443.3174023 | X19: =-'Inputs - forecast'!X$10 -> -452.1837504 | Y19: =-'Inputs - forecast'!Y$10 -> -461.2274254 | Z19: =-'Inputs - forecast'!Z$10 -> -470.4519739 | AA19: =-'Inputs - forecast'!AA$10 -> -479.8610134 | AB19: =-'Inputs - forecast'!AB$10 -> -489.4582336 | AC19: =-'Inputs - forecast'!AC$10 -> -499.2473983 | AD19: =-'Inputs - forecast'!AD$10 -> -509.2323463 | AE19: =-'Inputs - forecast'!AE$10 -> -519.4169932 | AF19: =-'Inputs - forecast'!AF$10 -> -529.8053331 | AG19: =-'Inputs - forecast'!AG$10 -> -540.4014397 | AH19: =-'Inputs - forecast'!AH$10 -> -551.2094685 | AI19: =-'Inputs - forecast'!AI$10 -> -562.2336579 | AJ19: =-'Inputs - forecast'!AJ$10 -> -573.4783311 | AK19: =-'Inputs - forecast'!AK$10 -> -584.9478977 | AL19: =-'Inputs - forecast'!AL$10 -> -596.6468556 | AM19: =-'Inputs - forecast'!AM$10 -> -608.5797928 | AN19: =-'Inputs - forecast'!AN$10 -> -620.7513886
B20: Tax | F20: =F10 -> -76.07825508 | G20: -76.73880486 | H20: -76.65485458 | I20: -76.12868197 | J20: -77.19311023 | K20: -95.785468 | L20: -95.58968666 | M20: -92.60579111 | N20: -91.27540775 | O20: -86.92526799 | P20: -124.0924935 | Q20: -123.0984141 | R20: -122.7202064 | S20: -122.2535717 | T20: -121.3885277 | U20: -132.7783768 | V20: -135.8020626 | W20: -138.8930449 | X20: -142.0526697 | Y20: -145.2823098 | Z20: -133.2660469 | AA20: -136.3336002 | AB20: -139.4693274 | AC20: -142.6745919 | AD20: -145.9507846 | AE20: -133.2487736 | AF20: -136.3500956 | AG20: -139.5202668 | AH20: -142.7606643 | AI20: -146.0726925 | AJ20: -132.6740021 | AK20: -135.7979428 | AL20: -138.991185 | AM20: -142.2551149 | AN20: -145.5911463
B21: Capex | F21: =-'Inputs - forecast'!F$11 -> -337.2 | G21: =-'Inputs - forecast'!G$11 -> -376.992 | H21: =-'Inputs - forecast'!H$11 -> -422.9226 | I21: =-'Inputs - forecast'!I$11 -> -418.0098312 | J21: =-'Inputs - forecast'!J$11 -> -457.3275876 | K21: =-'Inputs - forecast'!K$11 -> -546.3618351 | L21: =-'Inputs - forecast'!L$11 -> -654.8840996 | M21: =-'Inputs - forecast'!M$11 -> -607.7127487 | N21: =-'Inputs - forecast'!N$11 -> -785.1123291 | O21: =-'Inputs - forecast'!O$11 -> -934.2613411 | P21: =-'Inputs - forecast'!P$11 -> -755.0594849 | Q21: =-'Inputs - forecast'!Q$11 -> -722.9055671 | R21: =-'Inputs - forecast'!R$11 -> -676.5091365 | S21: =-'Inputs - forecast'!S$11 -> -753.4161966 | T21: =-'Inputs - forecast'!T$11 -> -790.5257513 | U21: =-'Inputs - forecast'!U$11 -> -461.7120088 | V21: =-'Inputs - forecast'!V$11 -> -470.9462489 | W21: =-'Inputs - forecast'!W$11 -> -480.3651739 | X21: =-'Inputs - forecast'!X$11 -> -489.9724774 | Y21: =-'Inputs - forecast'!Y$11 -> -499.771927 | Z21: =-'Inputs - forecast'!Z$11 -> -509.7673655 | AA21: =-'Inputs - forecast'!AA$11 -> -519.9627128 | AB21: =-'Inputs - forecast'!AB$11 -> -530.3619671 | AC21: =-'Inputs - forecast'!AC$11 -> -540.9692064 | AD21: =-'Inputs - forecast'!AD$11 -> -551.7885905 | AE21: =-'Inputs - forecast'!AE$11 -> -562.8243623 | AF21: =-'Inputs - forecast'!AF$11 -> -574.0808496 | AG21: =-'Inputs - forecast'!AG$11 -> -585.5624666 | AH21: =-'Inputs - forecast'!AH$11 -> -597.2737159 | AI21: =-'Inputs - forecast'!AI$11 -> -609.2191902 | AJ21: =-'Inputs - forecast'!AJ$11 -> -621.403574 | AK21: =-'Inputs - forecast'!AK$11 -> -633.8316455 | AL21: =-'Inputs - forecast'!AL$11 -> -646.5082784 | AM21: =-'Inputs - forecast'!AM$11 -> -659.438444 | AN21: =-'Inputs - forecast'!AN$11 -> -672.6272129
B22: Opening RAB | E22: =-'Inputs - forecast'!E$12 -> -4834
B23: Closing RAB | AN23: =AN34 -> 9119.079463
B24: Sum | E24: =SUM(E18:E23) -> -4834 | F24: =SUM(F18:F23) -> 188.371914 | G24: 159.5443676 | H24: 119.5127413 | I24: 132.6641715 | J24: 106.2252023 | K24: 77.29969744 | L24: -13.98649305 | M24: 49.73947944 | N24: -111.3285572 | O24: -240.8262459 | P24: 60.22291162 | Q24: 112.1584066 | R24: 178.0962926 | S24: 121.2023799 | T24: 104.8953122 | U24: =SUM(U18:U23) -> 479.0384474 | V24: 488.251098 | W24: 497.6411789 | X24: 507.2122386 | Y24: 516.9678966 | Z24: 487.524454 | AA24: 496.8727108 | AB24: 506.4011098 | AC24: 516.113254 | AD24: 526.0128182 | AE24: =SUM(AE18:AE23) -> 494.8307072 | AF24: 504.2909749 | AG24: 513.9336251 | AH24: 523.7623054 | AI24: 533.7807366 | AJ24: 500.8344171 | AK24: 510.3806449 | AL24: 520.1109744 | AM24: 530.0290876 | AN24: 9659.218204
B25: Present value | E25: =E24/'Inputs - forecast'!E$32 -> -4834 | F25: =F24/'Inputs - forecast'!F$32 -> 178.4871189 | G25: =G24/'Inputs - forecast'!G$32 -> 143.2395455 | H25: =H24/'Inputs - forecast'!H$32 -> 101.6684949 | I25: =I24/'Inputs - forecast'!I$32 -> 106.934185 | J25: =J24/'Inputs - forecast'!J$32 -> 81.12995036 | K25: =K24/'Inputs - forecast'!K$32 -> 55.93996189 | L25: =L24/'Inputs - forecast'!L$32 -> -9.590559289 | M25: =M24/'Inputs - forecast'!M$32 -> 32.31670436 | N25: =N24/'Inputs - forecast'!N$32 -> -68.53669199 | O25: =O24/'Inputs - forecast'!O$32 -> -140.4789015 | P25: =P24/'Inputs - forecast'!P$32 -> 33.28585862 | Q25: =Q24/'Inputs - forecast'!Q$32 -> 58.73819204 | R25: =R24/'Inputs - forecast'!R$32 -> 88.37600218 | S25: =S24/'Inputs - forecast'!S$32 -> 56.98772882 | T25: =T24/'Inputs - forecast'!T$32 -> 46.73228432 | U25: =U24/'Inputs - forecast'!U$32 -> 202.2190333 | V25: =V24/'Inputs - forecast'!V$32 -> 195.2925231 | W25: =W24/'Inputs - forecast'!W$32 -> 188.6033605 | X25: =X24/'Inputs - forecast'!X$32 -> 182.1434545 | Y25: =Y24/'Inputs - forecast'!Y$32 -> 175.9049854 | Z25: =Z24/'Inputs - forecast'!Z$32 -> 157.1816006 | AA25: =AA24/'Inputs - forecast'!AA$32 -> 151.7893063 | AB25: =AB24/'Inputs - forecast'!AB$32 -> 146.5822583 | AC25: =AC24/'Inputs - forecast'!AC$32 -> 141.5541155 | AD25: =AD24/'Inputs - forecast'!AD$32 -> 136.6987504 | AE25: =AE24/'Inputs - forecast'!AE$32 -> 121.8472096 | AF25: =AF24/'Inputs - forecast'!AF$32 -> 117.6605489 | AG25: =AG24/'Inputs - forecast'!AG$32 -> 113.6180774 | AH25: =AH24/'Inputs - forecast'!AH$32 -> 109.7148393 | AI25: =AI24/'Inputs - forecast'!AI$32 -> 105.946047 | AJ25: =AJ24/'Inputs - forecast'!AJ$32 -> 94.19042465 | AK25: =AK24/'Inputs - forecast'!AK$32 -> 90.94891327 | AL25: =AL24/'Inputs - forecast'!AL$32 -> 87.8193188 | AM25: =AM24/'Inputs - forecast'!AM$32 -> 84.79777934 | AN25: =AN24/'Inputs - forecast'!AN$32 -> 1464.25758
B26: Sum of present values | AN26: =SUM(E25:AN25) -> 1.045918907e-11
A28: Regulatory Asset Base
B29: Useful lives - existing assets | F29: ='Transpower indexed (Y6-35)'!F29 -> 19.3 | G29: ='Transpower indexed (Y6-35)'!G29 -> 19.05 | H29: ='Transpower indexed (Y6-35)'!H29 -> 19.2 | I29: ='Transpower indexed (Y6-35)'!I29 -> 19.3 | J29: ='Transpower indexed (Y6-35)'!J29 -> 19.3 | K29: ='Transpower indexed (Y6-35)'!K29 -> 19.3 | L29: ='Transpower indexed (Y6-35)'!L29 -> 19.3 | M29: ='Transpower indexed (Y6-35)'!M29 -> 19.3 | N29: ='Transpower indexed (Y6-35)'!N29 -> 19.3 | O29: ='Transpower indexed (Y6-35)'!O29 -> 19.3 | P29: ='Transpower indexed (Y6-35)'!P29 -> 0 | Q29: ='Transpower indexed (Y6-35)'!Q29 -> 0 | R29: ='Transpower indexed (Y6-35)'!R29 -> 0 | S29: ='Transpower indexed (Y6-35)'!S29 -> 0 | T29: ='Transpower indexed (Y6-35)'!T29 -> 0 | U29: ='Transpower indexed (Y6-35)'!U29 -> 0 | V29: ='Transpower indexed (Y6-35)'!V29 -> 0 | W29: ='Transpower indexed (Y6-35)'!W29 -> 0 | X29: ='Transpower indexed (Y6-35)'!X29 -> 0 | Y29: ='Transpower indexed (Y6-35)'!Y29 -> 0 | Z29: ='Transpower indexed (Y6-35)'!Z29 -> 0 | AA29: ='Transpower indexed (Y6-35)'!AA29 -> 0 | AB29: ='Transpower indexed (Y6-35)'!AB29 -> 0 | AC29: ='Transpower indexed (Y6-35)'!AC29 -> 0 | AD29: ='Transpower indexed (Y6-35)'!AD29 -> 0 | AE29: ='Transpower indexed (Y6-35)'!AE29 -> 0 | AF29: ='Transpower indexed (Y6-35)'!AF29 -> 0 | AG29: ='Transpower indexed (Y6-35)'!AG29 -> 0 | AH29: ='Transpower indexed (Y6-35)'!AH29 -> 0 | AI29: ='Transpower indexed (Y6-35)'!AI29 -> 0 | AJ29: ='Transpower indexed (Y6-35)'!AJ29 -> 0 | AK29: ='Transpower indexed (Y6-35)'!AK29 -> 0 | AL29: ='Transpower indexed (Y6-35)'!AL29 -> 0 | AM29: ='Transpower indexed (Y6-35)'!AM29 -> 0 | AN29: ='Transpower indexed (Y6-35)'!AN29 -> 0
B30: Useful lives - new assets | P30: 45 | Q30: 45 | R30: 45 | S30: 45 | T30: 45 | U30: 45 | V30: 45 | W30: 45 | X30: 45 | Y30: 45 | Z30: 45 | AA30: 45 | AB30: 45 | AC30: 45 | AD30: 45 | AE30: 45 | AF30: 45 | AG30: 45 | AH30: 45 | AI30: 45 | AJ30: 45 | AK30: 45 | AL30: 45 | AM30: 45 | AN30: 45
B31: Opening RAB | F31: =E34 -> 4834 | G31: =F34 -> 4920.733679 | H31: 5039.419449 | I31: 5199.872286 | J31: 5348.458683 | K31: =J34 -> 5528.664059 | L31: 5788.566616 | M31: 6143.524984 | N31: 6432.920376 | O31: 6884.720769 | P31: 7462.260827 | Q31: 7843.819928 | R31: 8177.160544 | S31: 8449.071193 | T31: 8781.14632 | U31: =T34 -> 9132.763763 | V31: =U34 -> 9145.307196 | W31: =V34 -> 9156.619397 | X31: =W34 -> 9166.675742 | Y31: =X34 -> 9175.451113 | Z31: =Y34 -> 9182.91989 | AA31: =Z34 -> 9189.055943 | AB31: =AA34 -> 9193.832616 | AC31: =AB34 -> 9197.222721 | AD31: =AC34 -> 9199.198528 | AE31: =AD34 -> 9199.73175 | AF31: =AE34 -> 9198.793537 | AG31: =AF34 -> 9196.354458 | AH31: =AG34 -> 9192.384497 | AI31: =AH34 -> 9186.853036 | AJ31: =AI34 -> 9179.728845 | AK31: =AJ34 -> 9170.980069 | AL31: =AK34 -> 9160.574218 | AM31: =AL34 -> 9148.478149 | AN31: =AM34 -> 9134.658057
B32: Capex | F32: =-F21 -> 337.2 | G32: 376.992 | H32: 422.9226 | I32: 418.0098312 | J32: 457.3275876 | K32: 546.3618351 | L32: 654.8840996 | M32: 607.7127487 | N32: 785.1123291 | O32: 934.2613411 | P32: 755.0594849 | Q32: 722.9055671 | R32: 676.5091365 | S32: 753.4161966 | T32: 790.5257513 | U32: 461.7120088 | V32: 470.9462489 | W32: 480.3651739 | X32: 489.9724774 | Y32: 499.771927 | Z32: 509.7673655 | AA32: 519.9627128 | AB32: 530.3619671 | AC32: 540.9692064 | AD32: 551.7885905 | AE32: 562.8243623 | AF32: 574.0808496 | AG32: 585.5624666 | AH32: 597.2737159 | AI32: 609.2191902 | AJ32: 621.403574 | AK32: 633.8316455 | AL32: 646.5082784 | AM32: 659.438444 | AN32: 672.6272129
B33: Depreciation | F33: =-F31/F29 -> -250.4663212 | G33: -258.3062299 | H33: -262.469763 | I33: -269.4234345 | J33: -277.1222115 | K33: -286.4592777 | L33: -299.9257314 | M33: -318.3173567 | N33: -333.3119366 | O33: -356.7212834 | P33: =O33-(P32/P$30) -> -373.500383 | Q33: -389.5649512 | R33: -404.5984875 | S33: -421.3410697 | T33: -438.9083086 | U33: -449.1685755 | V33: -459.6340477 | W33: -470.3088293 | X33: -481.1971066 | Y33: -492.3031494 | Z33: -503.6313131 | AA33: -515.18604 | AB33: -526.9718615 | AC33: -538.9933994 | AD33: -551.2553681 | AE33: -563.7625762 | AF33: -576.5199284 | AG33: -589.5324277 | AH33: -602.8051769 | AI33: -616.3433811 | AJ33: -630.1523494 | AK33: -644.2374971 | AL33: -658.6043477 | AM33: -673.2585354 | AN33: -688.2058068
B34: Closing RAB | E34: =-E22 -> 4834 | F34: =SUM(F31:F33) -> 4920.733679 | G34: 5039.419449 | H34: 5199.872286 | I34: 5348.458683 | J34: 5528.664059 | K34: 5788.566616 | L34: 6143.524984 | M34: 6432.920376 | N34: 6884.720769 | O34: 7462.260827 | P34: 7843.819928 | Q34: 8177.160544 | R34: 8449.071193 | S34: 8781.14632 | T34: 9132.763763 | U34: =SUM(U31:U33) -> 9145.307196 | V34: 9156.619397 | W34: 9166.675742 | X34: 9175.451113 | Y34: 9182.91989 | Z34: 9189.055943 | AA34: 9193.832616 | AB34: 9197.222721 | AC34: 9199.198528 | AD34: 9199.73175 | AE34: =SUM(AE31:AE33) -> 9198.793537 | AF34: 9196.354458 | AG34: 9192.384497 | AH34: 9186.853036 | AI34: 9179.728845 | AJ34: 9170.980069 | AK34: 9160.574218 | AL34: 9148.478149 | AM34: 9134.658057 | AN34: 9119.079463
B36: Closing RAB to be recovered in future regulatory periods | AN36: =AN34 -> 9119.079463
A38: Tax asset base
B39: Opening balance | F39: =E42 -> 4834 | G39: =F42 -> 4920.733679 | H39: =G42 -> 5039.419449 | I39: 5199.872286 | J39: 5348.458683 | K39: 5528.664059 | L39: 5788.566616 | M39: 6143.524984 | N39: 6432.920376 | O39: 6884.720769 | P39: 7462.260827 | Q39: 7843.819928 | R39: 8177.160544 | S39: 8449.071193 | T39: 8781.14632 | U39: =T42 -> 9132.763763 | V39: =U42 -> 9145.307196 | W39: =V42 -> 9156.619397 | X39: =W42 -> 9166.675742 | Y39: =X42 -> 9175.451113 | Z39: =Y42 -> 9182.91989 | AA39: =Z42 -> 9189.055943 | AB39: =AA42 -> 9193.832616 | AC39: =AB42 -> 9197.222721 | AD39: =AC42 -> 9199.198528 | AE39: =AD42 -> 9199.73175 | AF39: =AE42 -> 9198.793537 | AG39: =AF42 -> 9196.354458 | AH39: =AG42 -> 9192.384497 | AI39: =AH42 -> 9186.853036 | AJ39: =AI42 -> 9179.728845 | AK39: =AJ42 -> 9170.980069 | AL39: =AK42 -> 9160.574218 | AM39: =AL42 -> 9148.478149 | AN39: =AM42 -> 9134.658057
B40: Additional borrowing for capex | F40: =-F21 -> 337.2 | G40: 376.992 | H40: 422.9226 | I40: 418.0098312 | J40: 457.3275876 | K40: 546.3618351 | L40: 654.8840996 | M40: 607.7127487 | N40: 785.1123291 | O40: 934.2613411 | P40: 755.0594849 | Q40: 722.9055671 | R40: 676.5091365 | S40: 753.4161966 | T40: 790.5257513 | U40: 461.7120088 | V40: 470.9462489 | W40: 480.3651739 | X40: 489.9724774 | Y40: 499.771927 | Z40: 509.7673655 | AA40: 519.9627128 | AB40: 530.3619671 | AC40: 540.9692064 | AD40: 551.7885905 | AE40: 562.8243623 | AF40: 574.0808496 | AG40: 585.5624666 | AH40: 597.2737159 | AI40: 609.2191902 | AJ40: 621.403574 | AK40: 633.8316455 | AL40: 646.5082784 | AM40: 659.438444 | AN40: 672.6272129
B41: Depreciation | F41: =-F39/F29 -> -250.4663212 | G41: =-G39/G29 -> -258.3062299 | H41: -262.469763 | I41: -269.4234345 | J41: -277.1222115 | K41: -286.4592777 | L41: -299.9257314 | M41: -318.3173567 | N41: -333.3119366 | O41: -356.7212834 | P41: =O41-(P40/P$30) -> -373.500383 | Q41: -389.5649512 | R41: -404.5984875 | S41: -421.3410697 | T41: -438.9083086 | U41: -449.1685755 | V41: -459.6340477 | W41: -470.3088293 | X41: -481.1971066 | Y41: -492.3031494 | Z41: -503.6313131 | AA41: -515.18604 | AB41: -526.9718615 | AC41: -538.9933994 | AD41: -551.2553681 | AE41: -563.7625762 | AF41: -576.5199284 | AG41: -589.5324277 | AH41: -602.8051769 | AI41: -616.3433811 | AJ41: -630.1523494 | AK41: -644.2374971 | AL41: -658.6043477 | AM41: -673.2585354 | AN41: -688.2058068
B42: Closing balance | E42: =E34 -> 4834 | F42: =SUM(F39:F41) -> 4920.733679 | G42: =SUM(G39:G41) -> 5039.419449 | H42: =SUM(H39:H41) -> 5199.872286 | I42: 5348.458683 | J42: 5528.664059 | K42: 5788.566616 | L42: 6143.524984 | M42: 6432.920376 | N42: 6884.720769 | O42: 7462.260827 | P42: 7843.819928 | Q42: 8177.160544 | R42: 8449.071193 | S42: 8781.14632 | T42: 9132.763763 | U42: =SUM(U39:U41) -> 9145.307196 | V42: 9156.619397 | W42: 9166.675742 | X42: 9175.451113 | Y42: 9182.91989 | Z42: 9189.055943 | AA42: 9193.832616 | AB42: 9197.222721 | AC42: 9199.198528 | AD42: 9199.73175 | AE42: =SUM(AE39:AE41) -> 9198.793537 | AF42: 9196.354458 | AG42: 9192.384497 | AH42: 9186.853036 | AI42: 9179.728845 | AJ42: 9170.980069 | AK42: 9160.574218 | AL42: 9148.478149 | AM42: 9134.658057 | AN42: 9119.079463
A44: Regulatory tax
B45: Revenue | F45: =F6 -> 866.9501691 | G45: 884.2891725 | H45: 901.9749559 | I45: 920.014455 | J45: 938.4147441 | K45: 1069.618643 | L45: 1091.011016 | M45: 1112.831237 | N45: 1135.087861 | O45: 1157.789619 | P45: 1325.309367 | Q45: 1351.815554 | R45: 1378.851865 | S45: 1406.428903 | T45: 1434.557481 | U45: 1499.63168 | V45: 1529.624314 | W45: 1560.2168 | X45: 1591.421136 | Y45: 1623.249559 | Z45: 1601.00984 | AA45: 1633.030037 | AB45: 1665.690638 | AC45: 1699.004451 | AD45: 1732.98454 | AE45: 1710.320836 | AF45: 1744.527253 | AG45: 1779.417798 | AH45: 1815.006154 | AI45: 1851.306277 | AJ45: 1828.390324 | AK45: 1864.958131 | AL45: 1902.257293 | AM45: 1940.302439 | AN45: 1979.108488
B46: Depreciation | F46: =F41 -> -250.4663212 | G46: =G41 -> -258.3062299 | H46: -262.469763 | I46: -269.4234345 | J46: -277.1222115 | K46: -286.4592777 | L46: -299.9257314 | M46: -318.3173567 | N46: -333.3119366 | O46: -356.7212834 | P46: -373.500383 | Q46: -389.5649512 | R46: -404.5984875 | S46: -421.3410697 | T46: -438.9083086 | U46: =U41 -> -449.1685755 | V46: -459.6340477 | W46: -470.3088293 | X46: -481.1971066 | Y46: -492.3031494 | Z46: -503.6313131 | AA46: -515.18604 | AB46: -526.9718615 | AC46: -538.9933994 | AD46: -551.2553681 | AE46: =AE41 -> -563.7625762 | AF46: -576.5199284 | AG46: -589.5324277 | AH46: -602.8051769 | AI46: -616.3433811 | AJ46: -630.1523494 | AK46: -644.2374971 | AL46: -658.6043477 | AM46: -673.2585354 | AN46: -688.2058068
B47: Opex | F47: =F11 -> -265.3 | G47: -271.014 | H47: -282.88476 | I47: -293.2117704 | J47: -297.668844 | K47: -350.1716429 | L47: -354.5237231 | M47: -362.7732174 | N47: -370.0286818 | O47: -377.4292554 | P47: -385.934477 | Q47: -393.6531665 | R47: -401.5262298 | S47: -409.5567544 | T47: -417.7478895 | U47: -426.1028473 | V47: -434.6249043 | W47: -443.3174023 | X47: -452.1837504 | Y47: -461.2274254 | Z47: -470.4519739 | AA47: -479.8610134 | AB47: -489.4582336 | AC47: -499.2473983 | AD47: -509.2323463 | AE47: -519.4169932 | AF47: -529.8053331 | AG47: -540.4014397 | AH47: -551.2094685 | AI47: -562.2336579 | AJ47: -573.4783311 | AK47: -584.9478977 | AL47: -596.6468556 | AM47: -608.5797928 | AN47: -620.7513886
B48: Notional interest | F48: =-'Inputs - forecast'!F$21*'Inputs - forecast'!F24*F31 -> -79.475794 | G48: =-'Inputs - forecast'!G$21*'Inputs - forecast'!G24*G31 -> -80.90178241 | H48: =-'Inputs - forecast'!H$21*'Inputs - forecast'!H24*H31 -> -82.85309516 | I48: =-'Inputs - forecast'!I$21*'Inputs - forecast'!I24*I31 -> -85.49110025 | J48: =-'Inputs - forecast'!J$21*'Inputs - forecast'!J24*J31 -> -87.9340092 | K48: =-'Inputs - forecast'!K$21*'Inputs - forecast'!K24*K31 -> -90.89676579 | L48: =-'Inputs - forecast'!L$21*'Inputs - forecast'!L24*L31 -> -95.16982374 | M48: =-'Inputs - forecast'!M$21*'Inputs - forecast'!M24*M31 -> -101.0056943 | N48: =-'Inputs - forecast'!N$21*'Inputs - forecast'!N24*N31 -> -105.7636439 | O48: =-'Inputs - forecast'!O$21*'Inputs - forecast'!O24*O31 -> -113.1916942 | P48: =-'Inputs - forecast'!P$21*'Inputs - forecast'!P24*P31 -> -122.6870302 | Q48: =-'Inputs - forecast'!Q$21*'Inputs - forecast'!Q24*Q31 -> -128.9602434 | R48: =-'Inputs - forecast'!R$21*'Inputs - forecast'!R24*R31 -> -134.4406965 | S48: =-'Inputs - forecast'!S$21*'Inputs - forecast'!S24*S31 -> -138.9111795 | T48: =-'Inputs - forecast'!T$21*'Inputs - forecast'!T24*T31 -> -144.3708267 | U48: =-'Inputs - forecast'!U$21*'Inputs - forecast'!U24*U31 -> -150.151769 | V48: =-'Inputs - forecast'!V$21*'Inputs - forecast'!V24*V31 -> -150.3579956 | W48: =-'Inputs - forecast'!W$21*'Inputs - forecast'!W24*W31 -> -150.5439795 | X48: =-'Inputs - forecast'!X$21*'Inputs - forecast'!X24*X31 -> -150.7093159 | Y48: =-'Inputs - forecast'!Y$21*'Inputs - forecast'!Y24*Y31 -> -150.8535917 | Z48: =-'Inputs - forecast'!Z$21*'Inputs - forecast'!Z24*Z31 -> -150.9763859 | AA48: =-'Inputs - forecast'!AA$21*'Inputs - forecast'!AA24*AA31 -> -151.0772688 | AB48: =-'Inputs - forecast'!AB$21*'Inputs - forecast'!AB24*AB31 -> -151.155802 | AC48: =-'Inputs - forecast'!AC$21*'Inputs - forecast'!AC24*AC31 -> -151.2115388 | AD48: =-'Inputs - forecast'!AD$21*'Inputs - forecast'!AD24*AD31 -> -151.244023 | AE48: =-'Inputs - forecast'!AE$21*'Inputs - forecast'!AE24*AE31 -> -151.2527897 | AF48: =-'Inputs - forecast'!AF$21*'Inputs - forecast'!AF24*AF31 -> -151.2373645 | AG48: =-'Inputs - forecast'!AG$21*'Inputs - forecast'!AG24*AG31 -> -151.1972636 | AH48: =-'Inputs - forecast'!AH$21*'Inputs - forecast'!AH24*AH31 -> -151.1319935 | AI48: =-'Inputs - forecast'!AI$21*'Inputs - forecast'!AI24*AI31 -> -151.0410508 | AJ48: =-'Inputs - forecast'!AJ$21*'Inputs - forecast'!AJ24*AJ31 -> -150.9239219 | AK48: =-'Inputs - forecast'!AK$21*'Inputs - forecast'!AK24*AK31 -> -150.7800833 | AL48: =-'Inputs - forecast'!AL$21*'Inputs - forecast'!AL24*AL31 -> -150.6090007 | AM48: =-'Inputs - forecast'!AM$21*'Inputs - forecast'!AM24*AM31 -> -150.4101292 | AN48: =-'Inputs - forecast'!AN$21*'Inputs - forecast'!AN24*AN31 -> -150.1829131
B49: EBT | F49: =SUM(F45:F48) -> 271.7080538 | G49: =SUM(G45:G48) -> 274.0671602 | H49: 273.7673378 | I49: 271.8881499 | J49: 275.6896794 | K49: 342.0909571 | L49: 341.3917381 | M49: 330.7349683 | N49: 325.9835991 | O49: 310.4473857 | P49: 443.1874767 | Q49: 439.6371931 | R49: 438.2864514 | S49: 436.619899 | T49: 433.5304559 | U49: =SUM(U45:U48) -> 474.2084884 | V49: 485.0073663 | W49: 496.0465889 | X49: 507.3309632 | Y49: 518.8653923 | Z49: 475.9501674 | AA49: 486.9057149 | AB49: 498.1047406 | AC49: 509.5521141 | AD49: 521.2528022 | AE49: =SUM(AE45:AE48) -> 475.8884773 | AF49: 486.9646271 | AG49: 498.2866671 | AH49: 509.8595152 | AI49: 521.6881874 | AJ49: 473.8357219 | AK49: 484.9926527 | AL49: 496.3970893 | AM49: 508.0539819 | AN49: 519.9683796
B50: Calculated tax | F50: =-F49*'Inputs - forecast'!F25 -> -76.07825508 | G50: =-G49*'Inputs - forecast'!G25 -> -76.73880486 | H50: =-H49*'Inputs - forecast'!H25 -> -76.65485458 | I50: =-I49*'Inputs - forecast'!I25 -> -76.12868197 | J50: =-J49*'Inputs - forecast'!J25 -> -77.19311023 | K50: =-K49*'Inputs - forecast'!K25 -> -95.785468 | L50: =-L49*'Inputs - forecast'!L25 -> -95.58968666 | M50: =-M49*'Inputs - forecast'!M25 -> -92.60579111 | N50: =-N49*'Inputs - forecast'!N25 -> -91.27540775 | O50: =-O49*'Inputs - forecast'!O25 -> -86.92526799 | P50: =-P49*'Inputs - forecast'!P25 -> -124.0924935 | Q50: =-Q49*'Inputs - forecast'!Q25 -> -123.0984141 | R50: =-R49*'Inputs - forecast'!R25 -> -122.7202064 | S50: =-S49*'Inputs - forecast'!S25 -> -122.2535717 | T50: =-T49*'Inputs - forecast'!T25 -> -121.3885277 | U50: =-U49*'Inputs - forecast'!U25 -> -132.7783768 | V50: =-V49*'Inputs - forecast'!V25 -> -135.8020626 | W50: =-W49*'Inputs - forecast'!W25 -> -138.8930449 | X50: =-X49*'Inputs - forecast'!X25 -> -142.0526697 | Y50: =-Y49*'Inputs - forecast'!Y25 -> -145.2823098 | Z50: =-Z49*'Inputs - forecast'!Z25 -> -133.2660469 | AA50: =-AA49*'Inputs - forecast'!AA25 -> -136.3336002 | AB50: =-AB49*'Inputs - forecast'!AB25 -> -139.4693274 | AC50: =-AC49*'Inputs - forecast'!AC25 -> -142.6745919 | AD50: =-AD49*'Inputs - forecast'!AD25 -> -145.9507846 | AE50: =-AE49*'Inputs - forecast'!AE25 -> -133.2487736 | AF50: =-AF49*'Inputs - forecast'!AF25 -> -136.3500956 | AG50: =-AG49*'Inputs - forecast'!AG25 -> -139.5202668 | AH50: =-AH49*'Inputs - forecast'!AH25 -> -142.7606643 | AI50: =-AI49*'Inputs - forecast'!AI25 -> -146.0726925 | AJ50: =-AJ49*'Inputs - forecast'!AJ25 -> -132.6740021 | AK50: =-AK49*'Inputs - forecast'!AK25 -> -135.7979428 | AL50: =-AL49*'Inputs - forecast'!AL25 -> -138.991185 | AM50: =-AM49*'Inputs - forecast'!AM25 -> -142.2551149 | AN50: =-AN49*'Inputs - forecast'!AN25 -> -145.5911463
B51: Deferred tax | F51: =IF(F50>0,F50+E51,0) -> 0 | G51: =IF(G50>0,G50+F51,0) -> 0 | H51: =IF(H50>0,H50+G51,0) -> 0 | I51: =IF(I50>0,I50+H51,0) -> 0 | J51: =IF(J50>0,J50+I51,0) -> 0 | K51: 0 | L51: 0 | M51: 0 | N51: 0 | O51: 0 | P51: 0 | Q51: 0 | R51: 0 | S51: 0 | T51: 0 | U51: =IF(U50>0,U50+T51,0) -> 0 | V51: =IF(V50>0,V50+U51,0) -> 0 | W51: =IF(W50>0,W50+V51,0) -> 0 | X51: =IF(X50>0,X50+W51,0) -> 0 | Y51: =IF(Y50>0,Y50+X51,0) -> 0 | Z51: =IF(Z50>0,Z50+Y51,0) -> 0 | AA51: =IF(AA50>0,AA50+Z51,0) -> 0 | AB51: =IF(AB50>0,AB50+AA51,0) -> 0 | AC51: =IF(AC50>0,AC50+AB51,0) -> 0 | AD51: =IF(AD50>0,AD50+AC51,0) -> 0 | AE51: =IF(AE50>0,AE50+AD51,0) -> 0 | AF51: =IF(AF50>0,AF50+AE51,0) -> 0 | AG51: =IF(AG50>0,AG50+AF51,0) -> 0 | AH51: =IF(AH50>0,AH50+AG51,0) -> 0 | AI51: =IF(AI50>0,AI50+AH51,0) -> 0 | AJ51: =IF(AJ50>0,AJ50+AI51,0) -> 0 | AK51: =IF(AK50>0,AK50+AJ51,0) -> 0 | AL51: =IF(AL50>0,AL50+AK51,0) -> 0 | AM51: =IF(AM50>0,AM50+AL51,0) -> 0 | AN51: =IF(AN50>0,AN50+AM51,0) -> 0
B52: Tax | F52: =IF(F51>0,0,F50+E51) -> -76.07825508 | G52: -76.73880486 | H52: -76.65485458 | I52: -76.12868197 | J52: -77.19311023 | K52: -95.785468 | L52: -95.58968666 | M52: -92.60579111 | N52: -91.27540775 | O52: -86.92526799 | P52: -124.0924935 | Q52: -123.0984141 | R52: -122.7202064 | S52: -122.2535717 | T52: -121.3885277 | U52: =IF(U51>0,0,U50+T51) -> -132.7783768 | V52: =IF(V51>0,0,V50+U51) -> -135.8020626 | W52: =IF(W51>0,0,W50+V51) -> -138.8930449 | X52: =IF(X51>0,0,X50+W51) -> -142.0526697 | Y52: =IF(Y51>0,0,Y50+X51) -> -145.2823098 | Z52: =IF(Z51>0,0,Z50+Y51) -> -133.2660469 | AA52: =IF(AA51>0,0,AA50+Z51) -> -136.3336002 | AB52: =IF(AB51>0,0,AB50+AA51) -> -139.4693274 | AC52: =IF(AC51>0,0,AC50+AB51) -> -142.6745919 | AD52: =IF(AD51>0,0,AD50+AC51) -> -145.9507846 | AE52: =IF(AE51>0,0,AE50+AD51) -> -133.2487736 | AF52: =IF(AF51>0,0,AF50+AE51) -> -136.3500956 | AG52: =IF(AG51>0,0,AG50+AF51) -> -139.5202668 | AH52: =IF(AH51>0,0,AH50+AG51) -> -142.7606643 | AI52: =IF(AI51>0,0,AI50+AH51) -> -146.0726925 | AJ52: =IF(AJ51>0,0,AJ50+AI51) -> -132.6740021 | AK52: =IF(AK51>0,0,AK50+AJ51) -> -135.7979428 | AL52: =IF(AL51>0,0,AL50+AK51) -> -138.991185 | AM52: =IF(AM51>0,0,AM50+AL51) -> -142.2551149 | AN52: =IF(AN51>0,0,AN50+AM51) -> -145.5911463
A54: Goal seek to get PV of revenue = PV of expenditure for each regulatory period:
A55: Reg Period 1
A56: Calculation of revenue | K56: Sum
B57: Present value of revenue | F57: =F6/'Inputs - forecast'!F$32 -> 821.4570559 | G57: =G6/'Inputs - forecast'!G$32 -> 793.9182125 | H57: =H6/'Inputs - forecast'!H$32 -> 767.3025919 | I57: =I6/'Inputs - forecast'!I$32 -> 741.5792436 | J57: =J6/'Inputs - forecast'!J$32 -> 716.7182548 | K57: =SUM(F57:J57) -> 3840.975359
B58: Present value of cost | F58: =SUM(F7:F12)/'Inputs - forecast'!F$32 -> -814.451208 | G58: =SUM(G7:G12)/'Inputs - forecast'!G$32 -> -788.7872762 | H58: =SUM(H7:H12)/'Inputs - forecast'!H$32 -> -766.5561185 | I58: =SUM(I7:I12)/'Inputs - forecast'!I$32 -> -746.9987799 | J58: =SUM(J7:J12)/'Inputs - forecast'!J$32 -> -724.181976 | K58: =SUM(F58:J58) -> -3840.975359
B59: Difference | K59: =SUM(K57:K58) -> 0
B60: Revenue | K60: 866.9501691
A62: Reg Period 2
A63: Calculation of revenue | P63: Sum
B64: Present value of revenue | K64: =K6/'Inputs - forecast'!K$32 -> 774.0577018 | L64: =L6/'Inputs - forecast'!L$32 -> 748.1078926 | M64: =M6/'Inputs - forecast'!M$32 -> 723.0280349 | N64: =N6/'Inputs - forecast'!N$32 -> 698.7889639 | O64: =O6/'Inputs - forecast'!O$32 -> 675.362493 | P64: =SUM(K64:O64) -> 3619.345086
B65: Present value of cost | K65: =SUM(K7:K12)/'Inputs - forecast'!K$32 -> -751.6097606 | L65: =SUM(L7:L12)/'Inputs - forecast'!L$32 -> -734.1228271 | M65: =SUM(M7:M12)/'Inputs - forecast'!M$32 -> -723.742522 | N65: =SUM(N7:N12)/'Inputs - forecast'!N$32 -> -708.5095222 | O65: =SUM(O7:O12)/'Inputs - forecast'!O$32 -> -701.3604541 | P65: =SUM(K65:O65) -> -3619.345086
B66: Difference | P66: =SUM(P64:P65) -> 0
B67: Revenue | P67: 1069.618643
A69: Reg Period 3
A70: Calculation of revenue | U70: Sum
B71: Present value of revenue | P71: =P6/'Inputs - forecast'!P$32 -> 732.5129096 | Q71: =Q6/'Inputs - forecast'!Q$32 -> 707.955864 | R71: =R6/'Inputs - forecast'!R$32 -> 684.2220784 | S71: =S6/'Inputs - forecast'!S$32 -> 661.2839533 | T71: =T6/'Inputs - forecast'!T$32 -> 639.1148149 | U71: =SUM(P71:T71) -> 3425.08962
B72: Present value of cost | P72: =SUM(P7:P12)/'Inputs - forecast'!P$32 -> -716.7526093 | Q72: =SUM(Q7:Q12)/'Inputs - forecast'!Q$32 -> -702.1424857 | R72: =SUM(R7:R12)/'Inputs - forecast'!R$32 -> -685.6375066 | S72: =SUM(S7:S12)/'Inputs - forecast'!S$32 -> -668.1677219 | T72: =SUM(T7:T12)/'Inputs - forecast'!T$32 -> -652.3892966 | U72: =SUM(P72:T72) -> -3425.08962
B73: Difference | U73: =SUM(U71:U72) -> 0
B74: Revenue | U74: 1325.309367
U75: 0
A76: Reg Period 4
A77: Calculation of revenue | Z77: Sum
B78: Present value of revenue | U78: =U6/'Inputs - forecast'!U$32 -> 633.0474524 | V78: =V6/'Inputs - forecast'!V$32 -> 611.8249253 | W78: =W6/'Inputs - forecast'!W$32 -> 591.3138703 | X78: =X6/'Inputs - forecast'!X$32 -> 571.4904359 | Y78: =Y6/'Inputs - forecast'!Y$32 -> 552.3315699 | Z78: =SUM(U78:Y78) -> 2960.008254
B79: Present value of cost | U79: =SUM(U7:U12)/'Inputs - forecast'!U$32 -> -639.0416508 | V79: =SUM(V7:V12)/'Inputs - forecast'!V$32 -> -614.5899966 | W79: =SUM(W7:W12)/'Inputs - forecast'!W$32 -> -591.0884501 | X79: =SUM(X7:X12)/'Inputs - forecast'!X$32 -> -568.4998145 | Y79: =SUM(Y7:Y12)/'Inputs - forecast'!Y$32 -> -546.7883419 | Z79: =SUM(U79:Y79) -> -2960.008254
B80: Difference | Z80: =SUM(Z78:Z79) -> 0
B81: Revenue | Z81: 1499.63168
A83: Reg Period 5
A84: Calculation of revenue | AE84: Sum
B85: Present value of revenue | Z85: =Z6/'Inputs - forecast'!Z$32 -> 516.1777778 | AA85: =AA6/'Inputs - forecast'!AA$32 -> 498.8732347 | AB85: =AB6/'Inputs - forecast'!AB$32 -> 482.1488158 | AC85: =AC6/'Inputs - forecast'!AC$32 -> 465.9850728 | AD85: =AD6/'Inputs - forecast'!AD$32 -> 450.3632094 | AE85: =SUM(Z85:AD85) -> 2413.54811
B86: Present value of cost | Z86: =SUM(Z7:Z12)/'Inputs - forecast'!Z$32 -> -520.981258 | AA86: =SUM(AA7:AA12)/'Inputs - forecast'!AA$32 -> -501.0879478 | AB86: =SUM(AB7:AB12)/'Inputs - forecast'!AB$32 -> -481.9671598 | AC86: =SUM(AC7:AC12)/'Inputs - forecast'!AC$32 -> -463.5885968 | AD86: =SUM(AD7:AD12)/'Inputs - forecast'!AD$32 -> -445.9231481 | AE86: =SUM(Z86:AD86) -> -2413.54811
B87: Difference | AE87: =SUM(AE85:AE86) -> 0
B88: Revenue | AE88: 1601.00984
A90: Reg Period 6
A91: Calculation of revenue | AJ91: Sum
B92: Present value of revenue | AE92: =AE6/'Inputs - forecast'!AE$32 -> 421.1497356 | AF92: =AF6/'Inputs - forecast'!AF$32 -> 407.0309493 | AG92: =AG6/'Inputs - forecast'!AG$32 -> 393.3854867 | AH92: =AH6/'Inputs - forecast'!AH$32 -> 380.1974798 | AI92: =AI6/'Inputs - forecast'!AI$32 -> 367.4515927 | AJ92: =SUM(AE92:AI92) -> 1969.215244
B93: Present value of cost | AE93: =SUM(AE7:AE12)/'Inputs - forecast'!AE$32 -> -424.9905534 | AF93: =SUM(AF7:AF12)/'Inputs - forecast'!AF$32 -> -408.8010195 | AG93: =SUM(AG7:AG12)/'Inputs - forecast'!AG$32 -> -393.2394978 | AH93: =SUM(AH7:AH12)/'Inputs - forecast'!AH$32 -> -378.2813332 | AI93: =SUM(AI7:AI12)/'Inputs - forecast'!AI$32 -> -363.9028402 | AJ93: =SUM(AE93:AI93) -> -1969.215244
B94: Difference | AJ94: =SUM(AJ92:AJ93) -> 0
B95: Revenue | AJ95: 1710.320836
A97: Reg Period 7
A98: Calculation of revenue | AO98: Sum
B99: Present value of revenue | AJ99: =AJ6/'Inputs - forecast'!AJ$32 -> 343.859877 | AK99: =AK6/'Inputs - forecast'!AK$32 -> 332.3321858 | AL99: =AL6/'Inputs - forecast'!AL$32 -> 321.1909533 | AM99: =AM6/'Inputs - forecast'!AM$32 -> 310.4232238 | AN99: =AN6/'Inputs - forecast'!AN$32 -> 300.0164759 | AO99: =SUM(AJ99:AN99) -> 1607.822716
B100: Present value of cost | AJ100: =SUM(AJ7:AJ12)/'Inputs - forecast'!AJ$32 -> -346.9247901 | AK100: =SUM(AK7:AK12)/'Inputs - forecast'!AK$32 -> -333.7440954 | AL100: =SUM(AL7:AL12)/'Inputs - forecast'!AL$32 -> -321.0739178 | AM100: =SUM(AM7:AM12)/'Inputs - forecast'!AM$32 -> -308.8942073 | AN100: =SUM(AN7:AN12)/'Inputs - forecast'!AN$32 -> -297.1857052 | AO100: =SUM(AJ100:AN100) -> -1607.822716
B101: Difference | AO101: =SUM(AO99:AO100) -> 0
B102: Revenue | AO102: 1828.390324
A104: Actual
A105: Actual return (cashflows)
B106: Revenue | F106: =F$6 -> 866.9501691 | G106: =G$6 -> 884.2891725 | H106: 901.9749559 | I106: 920.014455 | J106: 938.4147441 | K106: 1069.618643 | L106: 1091.011016 | M106: 1112.831237 | N106: 1135.087861 | O106: 1157.789619 | P106: 1325.309367 | Q106: 1351.815554 | R106: 1378.851865 | S106: 1406.428903 | T106: 1434.557481 | U106: 1499.63168 | V106: 1529.624314 | W106: 1560.2168 | X106: 1591.421136 | Y106: 1623.249559 | Z106: 1601.00984 | AA106: 1633.030037 | AB106: 1665.690638 | AC106: 1699.004451 | AD106: 1732.98454 | AE106: 1710.320836 | AF106: 1744.527253 | AG106: 1779.417798 | AH106: 1815.006154 | AI106: 1851.306277 | AJ106: 1828.390324 | AK106: 1864.958131 | AL106: 1902.257293 | AM106: 1940.302439 | AN106: 1979.108488 | AP106: No revenue wash-up and no adjustment for the over compensation for inflation on fixed cost of debt.
B107: Opex | F107: =F$11/'Inputs - forecast'!F$15*'Inputs - actual'!F$15 -> -265.3 | G107: =G$11/'Inputs - forecast'!G$15*'Inputs - actual'!G$15 -> -286.956 | H107: =H$11/'Inputs - forecast'!H$15*'Inputs - actual'!H$15 -> -317.14416 | I107: =I$11/'Inputs - forecast'!I$15*'Inputs - actual'!I$15 -> -328.7218464 | J107: =J$11/'Inputs - forecast'!J$15*'Inputs - actual'!J$15 -> -333.718704 | K107: =K$11/'Inputs - forecast'!K$15*'Inputs - actual'!K$15 -> -350.1716429 | L107: =L$11/'Inputs - forecast'!L$15*'Inputs - actual'!L$15 -> -354.5237231 | M107: =M$11/'Inputs - forecast'!M$15*'Inputs - actual'!M$15 -> -362.7732174 | N107: =N$11/'Inputs - forecast'!N$15*'Inputs - actual'!N$15 -> -370.0286818 | O107: =O$11/'Inputs - forecast'!O$15*'Inputs - actual'!O$15 -> -377.4292554 | P107: =P$11/'Inputs - forecast'!P$15*'Inputs - actual'!P$15 -> -385.934477 | Q107: =Q$11/'Inputs - forecast'!Q$15*'Inputs - actual'!Q$15 -> -393.6531665 | R107: =R$11/'Inputs - forecast'!R$15*'Inputs - actual'!R$15 -> -401.5262298 | S107: =S$11/'Inputs - forecast'!S$15*'Inputs - actual'!S$15 -> -409.5567544 | T107: =T$11/'Inputs - forecast'!T$15*'Inputs - actual'!T$15 -> -417.7478895 | U107: =U$11/'Inputs - forecast'!U$15*'Inputs - actual'!U$15 -> -426.1028473 | V107: =V$11/'Inputs - forecast'!V$15*'Inputs - actual'!V$15 -> -434.6249043 | W107: =W$11/'Inputs - forecast'!W$15*'Inputs - actual'!W$15 -> -443.3174023 | X107: =X$11/'Inputs - forecast'!X$15*'Inputs - actual'!X$15 -> -452.1837504 | Y107: =Y$11/'Inputs - forecast'!Y$15*'Inputs - actual'!Y$15 -> -461.2274254 | Z107: =Z$11/'Inputs - forecast'!Z$15*'Inputs - actual'!Z$15 -> -470.4519739 | AA107: =AA$11/'Inputs - forecast'!AA$15*'Inputs - actual'!AA$15 -> -479.8610134 | AB107: =AB$11/'Inputs - forecast'!AB$15*'Inputs - actual'!AB$15 -> -489.4582336 | AC107: =AC$11/'Inputs - forecast'!AC$15*'Inputs - actual'!AC$15 -> -499.2473983 | AD107: =AD$11/'Inputs - forecast'!AD$15*'Inputs - actual'!AD$15 -> -509.2323463 | AE107: =AE$11/'Inputs - forecast'!AE$15*'Inputs - actual'!AE$15 -> -519.4169932 | AF107: =AF$11/'Inputs - forecast'!AF$15*'Inputs - actual'!AF$15 -> -529.8053331 | AG107: =AG$11/'Inputs - forecast'!AG$15*'Inputs - actual'!AG$15 -> -540.4014397 | AH107: =AH$11/'Inputs - forecast'!AH$15*'Inputs - actual'!AH$15 -> -551.2094685 | AI107: =AI$11/'Inputs - forecast'!AI$15*'Inputs - actual'!AI$15 -> -562.2336579 | AJ107: =AJ$11/'Inputs - forecast'!AJ$15*'Inputs - actual'!AJ$15 -> -573.4783311 | AK107: =AK$11/'Inputs - forecast'!AK$15*'Inputs - actual'!AK$15 -> -584.9478977 | AL107: =AL$11/'Inputs - forecast'!AL$15*'Inputs - actual'!AL$15 -> -596.6468556 | AM107: =AM$11/'Inputs - forecast'!AM$15*'Inputs - actual'!AM$15 -> -608.5797928 | AN107: =AN$11/'Inputs - forecast'!AN$15*'Inputs - actual'!AN$15 -> -620.7513886
B108: Capex | F108: =-F133-F129 -> -337.2 | G108: =-G133-G129 -> -275.7325535 | H108: -347.1726691 | I108: -468.6338592 | J108: -512.7132816 | K108: -546.3618351 | L108: -654.8840996 | M108: -607.7127487 | N108: -785.1123291 | O108: -934.2613411 | P108: -755.0594849 | Q108: -722.9055671 | R108: -676.5091365 | S108: -753.4161966 | T108: -790.5257513 | U108: -461.7120088 | V108: -470.9462489 | W108: -480.3651739 | X108: -489.9724774 | Y108: -499.771927 | Z108: -509.7673655 | AA108: -519.9627128 | AB108: -530.3619671 | AC108: -540.9692064 | AD108: -551.7885905 | AE108: -562.8243623 | AF108: -574.0808496 | AG108: -585.5624666 | AH108: -597.2737159 | AI108: -609.2191902 | AJ108: -621.403574 | AK108: -633.8316455 | AL108: -646.5082784 | AM108: -659.438444 | AN108: -672.6272129
B109: Tax | E109: =E155 -> -76.06441703 | F109: =F145 -> -76.07825508 | G109: =G145 -> -72.27504486 | H109: -66.63673581 | I109: -64.80526384 | J109: -64.82259754 | K109: -92.56838221 | L109: -92.53928926 | M109: -89.71344538 | N109: -88.5329245 | O109: -84.32488232 | P109: -121.5245625 | Q109: -120.5629378 | R109: -120.2171848 | S109: -119.7830048 | T109: -118.9504155 | U109: =U145 -> -130.3727193 | V109: -133.4288598 | W109: -136.5522968 | X109: -139.7443763 | Y109: -143.0064711 | Z109: -131.0226629 | AA109: -134.1226709 | AB109: -137.2908528 | AC109: -140.528572 | AD109: -143.8372194 | AE109: =AE145 -> -131.1676631 | AF109: -134.3014398 | AG109: -137.5040657 | AH109: -140.7769178 | AI109: -144.1214008 | AJ109: -130.7551651 | AK109: -133.9115604 | AL109: -137.1372574 | AM109: -140.433642 | AN109: -143.8021281
B110: Opening and closing RAB | E110: =E22 -> -4834 | AN110: =AN36 -> 9119.079463
B111: Nominal IRR | D111: =IRR(E111:AN111,0.05) -> 0.05497430034 | E111: =SUM(E106:E110) -> -4910.064417 | F111: =SUM(F106:F110) -> 188.371914 | G111: =SUM(G106:G110) -> 249.3255741 | H111: 171.021391 | I111: 57.85348559 | J111: 27.16016099 | K111: 80.51678323 | L111: -10.93609564 | M111: 52.63182517 | N111: -108.5860739 | O111: -238.2258602 | P111: 62.7908426 | Q111: 114.6938828 | R111: 180.5993141 | S111: 123.6729467 | T111: 107.3334244 | U111: 481.4441049 | V111: 490.6243008 | W111: 499.981927 | X111: 509.520532 | Y111: 519.2437353 | Z111: 489.767838 | AA111: 499.08364 | AB111: 508.5795844 | AC111: 518.2592739 | AD111: 528.1263834 | AE111: 496.9118177 | AF111: 506.3396307 | AG111: 515.9498262 | AH111: 525.7460518 | AI111: 535.7320283 | AJ111: 502.7532541 | AK111: 512.2670272 | AL111: 521.964902 | AM111: 531.8505605 | AN111: 9661.007222
B113: Real IRR | D113: =IRR(E113:AN113,0.05) -> 0.02969434582 | E113: =E111 -> -4910.064417 | F113: =F111/'Inputs - actual'!F$15 -> 184.6783471 | G113: =G111/'Inputs - actual'!G$15 -> 226.330405 | H113: =H111/'Inputs - actual'!H$15 -> 143.7483114 | I113: =I111/'Inputs - actual'!I$15 -> 47.67400912 | J113: =J111/'Inputs - actual'!J$15 -> 21.94240939 | K113: =K111/'Inputs - actual'!K$15 -> 63.77320122 | L113: =L111/'Inputs - actual'!L$15 -> -8.492077127 | M113: =M111/'Inputs - actual'!M$15 -> 40.0682052 | N113: =N111/'Inputs - actual'!N$15 -> -81.04484904 | O113: =O111/'Inputs - actual'!O$15 -> -174.3171107 | P113: =P111/'Inputs - actual'!P$15 -> 45.04506875 | Q113: =Q111/'Inputs - actual'!Q$15 -> 80.66609379 | R113: =R111/'Inputs - actual'!R$15 -> 124.5279092 | S113: =S111/'Inputs - actual'!S$15 -> 83.60363041 | T113: =T111/'Inputs - actual'!T$15 -> 71.13531217 | U113: =U111/'Inputs - actual'!U$15 -> 312.8210415 | V113: =V111/'Inputs - actual'!V$15 -> 312.5352215 | W113: =W111/'Inputs - actual'!W$15 -> 312.2511503 | X113: =X111/'Inputs - actual'!X$15 -> 311.968869 | Y113: =Y111/'Inputs - actual'!Y$15 -> 311.6884166 | Z113: =Z111/'Inputs - actual'!Z$15 -> 288.2302033 | AA113: =AA111/'Inputs - actual'!AA$15 -> 287.9535173 | AB113: =AB111/'Inputs - actual'!AB$15 -> 287.6787643 | AC113: =AC111/'Inputs - actual'!AC$15 -> 287.4059749 | AD113: =AD111/'Inputs - actual'!AD$15 -> 287.1351777 | AE113: =AE111/'Inputs - actual'!AE$15 -> 264.8669022 | AF113: =AF111/'Inputs - actual'!AF$15 -> 264.6001679 | AG113: =AG111/'Inputs - actual'!AG$15 -> 264.3355008 | AH113: =AH111/'Inputs - actual'!AH$15 -> 264.0729223 | AI113: =AI111/'Inputs - actual'!AI$15 -> 263.8124522 | AJ113: =AJ111/'Inputs - actual'!AJ$15 -> 242.718231 | AK113: =AK111/'Inputs - actual'!AK$15 -> 242.4620311 | AL113: =AL111/'Inputs - actual'!AL$15 -> 242.2079899 | AM113: =AM111/'Inputs - actual'!AM$15 -> 241.9561213 | AN113: =AN111/'Inputs - actual'!AN$15 -> 4308.927904
B114: check to inputs | D114: =D113-'Inputs - forecast'!AO28 -> -0.004992909084
A116: Actual return (building blocks)
B117: Revenue | F117: =F106 -> 866.9501691 | G117: 884.2891725 | H117: 901.9749559 | I117: 920.014455 | J117: 938.4147441 | K117: 1069.618643 | L117: 1091.011016 | M117: 1112.831237 | N117: 1135.087861 | O117: 1157.789619 | P117: 1325.309367 | Q117: 1351.815554 | R117: 1378.851865 | S117: 1406.428903 | T117: 1434.557481 | U117: 1499.63168 | V117: 1529.624314 | W117: 1560.2168 | X117: 1591.421136 | Y117: 1623.249559 | Z117: 1601.00984 | AA117: 1633.030037 | AB117: 1665.690638 | AC117: 1699.004451 | AD117: 1732.98454 | AE117: 1710.320836 | AF117: 1744.527253 | AG117: 1779.417798 | AH117: 1815.006154 | AI117: 1851.306277 | AJ117: 1828.390324 | AK117: 1864.958131 | AL117: 1902.257293 | AM117: 1940.302439 | AN117: 1979.108488
B118: Opex | F118: =F107 -> -265.3 | G118: -286.956 | H118: -317.14416 | I118: -328.7218464 | J118: -333.718704 | K118: -350.1716429 | L118: -354.5237231 | M118: -362.7732174 | N118: -370.0286818 | O118: -377.4292554 | P118: -385.934477 | Q118: -393.6531665 | R118: -401.5262298 | S118: -409.5567544 | T118: -417.7478895 | U118: -426.1028473 | V118: -434.6249043 | W118: -443.3174023 | X118: -452.1837504 | Y118: -461.2274254 | Z118: -470.4519739 | AA118: -479.8610134 | AB118: -489.4582336 | AC118: -499.2473983 | AD118: -509.2323463 | AE118: -519.4169932 | AF118: -529.8053331 | AG118: -540.4014397 | AH118: -551.2094685 | AI118: -562.2336579 | AJ118: -573.4783311 | AK118: -584.9478977 | AL118: -596.6468556 | AM118: -608.5797928 | AN118: -620.7513886
B119: Return on debt | F119: =-F132*'Inputs - forecast'!F21*('Inputs - forecast'!F24) -> -79.475794 | G119: =-G132*'Inputs - forecast'!G21*('Inputs - forecast'!G24) -> -80.90178241 | H119: =-H132*'Inputs - forecast'!H21*('Inputs - forecast'!H24) -> -83.21769078 | I119: =-I132*'Inputs - forecast'!I21*('Inputs - forecast'!I24) -> -86.67879809 | J119: =-J132*'Inputs - forecast'!J21*('Inputs - forecast'!J24) -> -89.89247794 | K119: =-K132*'Inputs - forecast'!K21*('Inputs - forecast'!K24) -> -93.66435566 | L119: =-L132*'Inputs - forecast'!L21*('Inputs - forecast'!L24) -> -97.79401517 | M119: =-M132*'Inputs - forecast'!M21*('Inputs - forecast'!M24) -> -103.4939172 | N119: =-N132*'Inputs - forecast'!N21*('Inputs - forecast'!N24) -> -108.1229434 | O119: =-O132*'Inputs - forecast'!O21*('Inputs - forecast'!O24) -> -115.4287502 | P119: =-P132*'Inputs - forecast'!P21*('Inputs - forecast'!P24) -> -124.8081766 | Q119: =-Q132*'Inputs - forecast'!Q21*('Inputs - forecast'!Q24) -> -130.9654802 | R119: =-R132*'Inputs - forecast'!R21*('Inputs - forecast'!R24) -> -136.3300236 | S119: =-S132*'Inputs - forecast'!S21*('Inputs - forecast'!S24) -> -140.6845969 | T119: =-T132*'Inputs - forecast'!T21*('Inputs - forecast'!T24) -> -146.0283345 | U119: =-U132*'Inputs - forecast'!U21*('Inputs - forecast'!U24) -> -151.6933672 | V119: =-V132*'Inputs - forecast'!V21*('Inputs - forecast'!V24) -> -151.7836841 | W119: =-W132*'Inputs - forecast'!W21*('Inputs - forecast'!W24) -> -151.8537584 | X119: =-X132*'Inputs - forecast'!X21*('Inputs - forecast'!X24) -> -151.9031851 | Y119: =-Y132*'Inputs - forecast'!Y21*('Inputs - forecast'!Y24) -> -151.9315514 | Z119: =-Z132*'Inputs - forecast'!Z21*('Inputs - forecast'!Z24) -> -151.9384359 | AA119: =-AA132*'Inputs - forecast'!AA21*('Inputs - forecast'!AA24) -> -151.9234091 | AB119: =-AB132*'Inputs - forecast'!AB21*('Inputs - forecast'!AB24) -> -151.8860327 | AC119: =-AC132*'Inputs - forecast'!AC21*('Inputs - forecast'!AC24) -> -151.8258598 | AD119: =-AD132*'Inputs - forecast'!AD21*('Inputs - forecast'!AD24) -> -151.7424344 | AE119: =-AE132*'Inputs - forecast'!AE21*('Inputs - forecast'!AE24) -> -151.6352915 | AF119: =-AF132*'Inputs - forecast'!AF21*('Inputs - forecast'!AF24) -> -151.5039567 | AG119: =-AG132*'Inputs - forecast'!AG21*('Inputs - forecast'!AG24) -> -151.3479462 | AH119: =-AH132*'Inputs - forecast'!AH21*('Inputs - forecast'!AH24) -> -151.1667664 | AI119: =-AI132*'Inputs - forecast'!AI21*('Inputs - forecast'!AI24) -> -150.959914 | AJ119: =-AJ132*'Inputs - forecast'!AJ21*('Inputs - forecast'!AJ24) -> -150.7268756 | AK119: =-AK132*'Inputs - forecast'!AK21*('Inputs - forecast'!AK24) -> -150.4671273 | AL119: =-AL132*'Inputs - forecast'!AL21*('Inputs - forecast'!AL24) -> -150.1801351 | AM119: =-AM132*'Inputs - forecast'!AM21*('Inputs - forecast'!AM24) -> -149.8653539 | AN119: =-AN132*'Inputs - forecast'!AN21*('Inputs - forecast'!AN24) -> -149.5222282 | AP119: Fixed cost of debt
B120: Return on equity | F120: =-F132*'Inputs - actual'!F$18*(1-'Inputs - actual'!F$24) -> -188.23596 | G120: =-G132*'Inputs - actual'!G$18*(1-'Inputs - actual'!G$24) -> -373.6631483 | H120: =-H132*'Inputs - actual'!H$18*(1-'Inputs - actual'!H$24) -> -384.3596939 | I120: =-I132*'Inputs - actual'!I$18*(1-'Inputs - actual'!I$24) -> -205.2960524 | J120: =-J132*'Inputs - actual'!J$18*(1-'Inputs - actual'!J$24) -> -212.9075537 | K120: =-K132*'Inputs - actual'!K$18*(1-'Inputs - actual'!K$24) -> -221.8411294 | L120: =-L132*'Inputs - actual'!L$18*(1-'Inputs - actual'!L$24) -> -231.6221003 | M120: =-M132*'Inputs - actual'!M$18*(1-'Inputs - actual'!M$24) -> -245.122142 | N120: =-N132*'Inputs - actual'!N$18*(1-'Inputs - actual'!N$24) -> -256.0858473 | O120: =-O132*'Inputs - actual'!O$18*(1-'Inputs - actual'!O$24) -> -273.3894247 | P120: =-P132*'Inputs - actual'!P$18*(1-'Inputs - actual'!P$24) -> -295.6043061 | Q120: =-Q132*'Inputs - actual'!Q$18*(1-'Inputs - actual'!Q$24) -> -310.1876892 | R120: =-R132*'Inputs - actual'!R$18*(1-'Inputs - actual'!R$24) -> -322.8934444 | S120: =-S132*'Inputs - actual'!S$18*(1-'Inputs - actual'!S$24) -> -333.2071166 | T120: =-T132*'Inputs - actual'!T$18*(1-'Inputs - actual'!T$24) -> -345.8635937 | U120: =-U132*'Inputs - actual'!U$18*(1-'Inputs - actual'!U$24) -> -359.2810485 | V120: =-V132*'Inputs - actual'!V$18*(1-'Inputs - actual'!V$24) -> -359.4949614 | W120: =-W132*'Inputs - actual'!W$18*(1-'Inputs - actual'!W$24) -> -359.6609301 | X120: =-X132*'Inputs - actual'!X$18*(1-'Inputs - actual'!X$24) -> -359.7779958 | Y120: =-Y132*'Inputs - actual'!Y$18*(1-'Inputs - actual'!Y$24) -> -359.8451804 | Z120: =-Z132*'Inputs - actual'!Z$18*(1-'Inputs - actual'!Z$24) -> -359.8614862 | AA120: =-AA132*'Inputs - actual'!AA$18*(1-'Inputs - actual'!AA$24) -> -359.8258957 | AB120: =-AB132*'Inputs - actual'!AB$18*(1-'Inputs - actual'!AB$24) -> -359.7373709 | AC120: =-AC132*'Inputs - actual'!AC$18*(1-'Inputs - actual'!AC$24) -> -359.5948532 | AD120: =-AD132*'Inputs - actual'!AD$18*(1-'Inputs - actual'!AD$24) -> -359.3972628 | AE120: =-AE132*'Inputs - actual'!AE$18*(1-'Inputs - actual'!AE$24) -> -359.1434981 | AF120: =-AF132*'Inputs - actual'!AF$18*(1-'Inputs - actual'!AF$24) -> -358.8324356 | AG120: =-AG132*'Inputs - actual'!AG$18*(1-'Inputs - actual'!AG$24) -> -358.4629295 | AH120: =-AH132*'Inputs - actual'!AH$18*(1-'Inputs - actual'!AH$24) -> -358.0338108 | AI120: =-AI132*'Inputs - actual'!AI$18*(1-'Inputs - actual'!AI$24) -> -357.5438873 | AJ120: =-AJ132*'Inputs - actual'!AJ$18*(1-'Inputs - actual'!AJ$24) -> -356.991943 | AK120: =-AK132*'Inputs - actual'!AK$18*(1-'Inputs - actual'!AK$24) -> -356.3767373 | AL120: =-AL132*'Inputs - actual'!AL$18*(1-'Inputs - actual'!AL$24) -> -355.697005 | AM120: =-AM132*'Inputs - actual'!AM$18*(1-'Inputs - actual'!AM$24) -> -354.9514557 | AN120: =-AN132*'Inputs - actual'!AN$18*(1-'Inputs - actual'!AN$24) -> -354.1387729
B121: Depreciation | F121: =F134 -> -250.4663212 | G121: =G134 -> -258.3062299 | H121: -263.624763 | I121: -273.1664397 | J121: -283.2942853 | K121: -295.1812799 | L121: -308.1958164 | M121: -326.1589399 | N121: -340.7472202 | O121: -363.7713191 | P121: -380.5504187 | Q121: -396.6149869 | R121: -411.6485233 | S121: -428.3911054 | T121: -445.9583443 | U121: =U134 -> -456.2186112 | V121: -466.6840834 | W121: -477.358865 | X121: -488.2471423 | Y121: -499.3531851 | Z121: -510.6813488 | AA121: -522.2360757 | AB121: -534.0218972 | AC121: -546.0434352 | AD121: -558.3054038 | AE121: =AE134 -> -570.8126119 | AF121: -583.5699641 | AG121: -596.5824634 | AH121: -609.8552126 | AI121: -623.3934168 | AJ121: -637.2023851 | AK121: -651.2875328 | AL121: -665.6543834 | AM121: -680.3085711 | AN121: -695.2558425
B122: Tax | E122: =E109 -> -76.06441703 | F122: =F145 -> -76.07825508 | G122: =G145 -> -72.27504486 | H122: -66.63673581 | I122: -64.80526384 | J122: -64.82259754 | K122: -92.56838221 | L122: -92.53928926 | M122: -89.71344538 | N122: -88.5329245 | O122: -84.32488232 | P122: -121.5245625 | Q122: -120.5629378 | R122: -120.2171848 | S122: -119.7830048 | T122: -118.9504155 | U122: =U145 -> -130.3727193 | V122: -133.4288598 | W122: -136.5522968 | X122: -139.7443763 | Y122: -143.0064711 | Z122: -131.0226629 | AA122: -134.1226709 | AB122: -137.2908528 | AC122: -140.528572 | AD122: -143.8372194 | AE122: =AE145 -> -131.1676631 | AF122: -134.3014398 | AG122: -137.5040657 | AH122: -140.7769178 | AI122: -144.1214008 | AJ122: -130.7551651 | AK122: -133.9115604 | AL122: -137.1372574 | AM122: -140.433642 | AN122: -143.8021281
B123: Nominal return | E123: =SUM(E117:E122) -> -76.06441703 | F123: 7.393838765 | G123: -187.8130329 | H123: -213.0080876 | I123: -38.6539454 | J123: -46.22087433 | K123: 16.19185338 | L123: 6.336072105 | M123: -14.43042531 | N123: -28.42975577 | O123: -56.554013 | P123: 16.88742599 | Q123: -0.1687062645 | R123: -13.76354053 | S123: -25.19367561 | T123: -39.99109677 | U123: =SUM(U117:U122) -> -24.03691327 | V123: -16.39217916 | W123: -8.526452644 | X123: -0.4353138659 | Y123: 7.885745419 | Z123: -22.94606734 | AA123: -14.93902766 | AB123: -6.703749464 | AC123: 1.764332032 | AD123: 10.46987289 | AE123: =SUM(AE117:AE122) -> -21.85522142 | AF123: -13.48587617 | AG123: -4.881046283 | AH123: 3.963977931 | AI123: 13.05400036 | AJ123: -20.76437549 | AK123: -12.03272467 | AL123: -3.058343103 | AM123: 6.163623829 | AN123: 15.63812783
B124: Present value | D124: =SUM(E124:AN124) -> -546.0443313 | E124: =E123/'Inputs - actual'!E$32 -> -76.06441703 | F124: =F123/'Inputs - actual'!F$32 -> 7.005847902 | G124: =G123/'Inputs - actual'!G$32 -> -159.2515249 | H124: =H123/'Inputs - actual'!H$32 -> -161.6296795 | I124: =I123/'Inputs - actual'!I$32 -> -27.79134568 | J124: =J123/'Inputs - actual'!J$32 -> -31.48796779 | K124: =K123/'Inputs - actual'!K$32 -> 10.45186441 | L124: =L123/'Inputs - actual'!L$32 -> 3.875324234 | M124: =M123/'Inputs - actual'!M$32 -> -8.362917133 | N124: =N123/'Inputs - actual'!N$32 -> -15.61142401 | O124: =O123/'Inputs - actual'!O$32 -> -29.42547937 | P124: =P123/'Inputs - actual'!P$32 -> 8.325576328 | Q124: =Q123/'Inputs - actual'!Q$32 -> -0.07880845006 | R124: =R123/'Inputs - actual'!R$32 -> -6.092036146 | S124: =S123/'Inputs - actual'!S$32 -> -10.56609637 | T124: =T123/'Inputs - actual'!T$32 -> -15.89194589 | U124: =U123/'Inputs - actual'!U$32 -> -9.050721217 | V124: =V123/'Inputs - actual'!V$32 -> -5.848330565 | W124: =W123/'Inputs - actual'!W$32 -> -2.882400558 | X124: =X123/'Inputs - actual'!X$32 -> -0.1394373686 | Y124: =Y123/'Inputs - actual'!Y$32 -> 2.393371739 | Z124: =Z123/'Inputs - actual'!Z$32 -> -6.598821773 | AA124: =AA123/'Inputs - actual'!AA$32 -> -4.070719664 | AB124: =AB123/'Inputs - actual'!AB$32 -> -1.73084177 | AC124: =AC123/'Inputs - actual'!AC$32 -> 0.4316290237 | AD124: =AD123/'Inputs - actual'!AD$32 -> 2.426959107 | AE124: =AE123/'Inputs - actual'!AE$32 -> -4.800284626 | AF124: =AF123/'Inputs - actual'!AF$32 -> -2.806607455 | AG124: =AG123/'Inputs - actual'!AG$32 -> -0.9625120192 | AH124: =AH123/'Inputs - actual'!AH$32 -> 0.7406536923 | AI124: =AI123/'Inputs - actual'!AI$32 -> 2.311097742 | AJ124: =AJ123/'Inputs - actual'!AJ$32 -> -3.483247191 | AK124: =AK123/'Inputs - actual'!AK$32 -> -1.912582289 | AL124: =AL123/'Inputs - actual'!AL$32 -> -0.4606097053 | AM124: =AM123/'Inputs - actual'!AM$32 -> 0.8795767342 | AN124: =AN123/'Inputs - actual'!AN$32 -> 2.11452632
B126: Real return | E126: =E123/'Inputs - actual'!E$15 -> -76.06441703 | F126: =F123/'Inputs - actual'!F$15 -> 7.248861534 | G126: =G123/'Inputs - actual'!G$15 -> -170.4911337 | H126: =H123/'Inputs - actual'!H$15 -> -179.0393162 | I126: =I123/'Inputs - actual'!I$15 -> -31.85267969 | J126: =J123/'Inputs - actual'!J$15 -> -37.34135992 | K126: =K123/'Inputs - actual'!K$15 -> 12.82473395 | L126: =L123/'Inputs - actual'!L$15 -> 4.920075204 | M126: =M123/'Inputs - actual'!M$15 -> -10.98577222 | N126: =N123/'Inputs - actual'!N$15 -> -21.2189757 | O126: =O123/'Inputs - actual'!O$15 -> -41.38229214 | P126: =P123/'Inputs - actual'!P$15 -> 12.11474848 | Q126: =Q123/'Inputs - actual'!Q$15 -> -0.11865389 | R126: =R123/'Inputs - actual'!R$15 -> -9.490318016 | S126: =S123/'Inputs - actual'!S$15 -> -17.03107106 | T126: =T123/'Inputs - actual'!T$15 -> -26.5041311 | U126: =U123/'Inputs - actual'!U$15 -> -15.61812091 | V126: =V123/'Inputs - actual'!V$15 -> -10.44207011 | W126: =W123/'Inputs - actual'!W$15 -> -5.324981768 | X126: =X123/'Inputs - actual'!X$15 -> -0.2665336642 | Y126: =Y123/'Inputs - actual'!Y$15 -> 4.733606467 | Z126: =Z123/'Inputs - actual'!Z$15 -> -13.5038464 | AA126: =AA123/'Inputs - actual'!AA$15 -> -8.619287863 | AB126: =AB123/'Inputs - actual'!AB$15 -> -3.791985406 | AC126: =AC123/'Inputs - actual'!AC$15 -> 0.9784283531 | AD126: =AD123/'Inputs - actual'!AD$15 -> 5.692328404 | AE126: =AE123/'Inputs - actual'!AE$15 -> -11.64940053 | AF126: =AF123/'Inputs - actual'!AF$15 -> -7.047374692 | AG126: =AG123/'Inputs - actual'!AG$15 -> -2.500696285 | AH126: =AH123/'Inputs - actual'!AH$15 -> 1.991035848 | AI126: =AI123/'Inputs - actual'!AI$15 -> 6.428228412 | AJ126: =AJ123/'Inputs - actual'!AJ$15 -> -10.02458452 | AK126: =AK123/'Inputs - actual'!AK$15 -> -5.69523063 | AL126: =AL123/'Inputs - actual'!AL$15 -> -1.419166562 | AM126: =AM123/'Inputs - actual'!AM$15 -> 2.804032985 | AN126: =AN123/'Inputs - actual'!AN$15 -> 6.974797123
B127: Present value | D127: =SUM(E127:AN127) -> -546.0443313 | E127: =E126/'Inputs - actual'!E$37 -> -76.06441703 | F127: =F126/'Inputs - actual'!F$37 -> 7.005847902 | G127: =G126/'Inputs - actual'!G$37 -> -159.2515249 | H127: =H126/'Inputs - actual'!H$37 -> -161.6296795 | I127: =I126/'Inputs - actual'!I$37 -> -27.79134568 | J127: =J126/'Inputs - actual'!J$37 -> -31.48796779 | K127: =K126/'Inputs - actual'!K$37 -> 10.45186441 | L127: =L126/'Inputs - actual'!L$37 -> 3.875324234 | M127: =M126/'Inputs - actual'!M$37 -> -8.362917133 | N127: =N126/'Inputs - actual'!N$37 -> -15.61142401 | O127: =O126/'Inputs - actual'!O$37 -> -29.42547937 | P127: =P126/'Inputs - actual'!P$37 -> 8.325576328 | Q127: =Q126/'Inputs - actual'!Q$37 -> -0.07880845006 | R127: =R126/'Inputs - actual'!R$37 -> -6.092036146 | S127: =S126/'Inputs - actual'!S$37 -> -10.56609637 | T127: =T126/'Inputs - actual'!T$37 -> -15.89194589 | U127: =U126/'Inputs - actual'!U$37 -> -9.050721217 | V127: =V126/'Inputs - actual'!V$37 -> -5.848330565 | W127: =W126/'Inputs - actual'!W$37 -> -2.882400558 | X127: =X126/'Inputs - actual'!X$37 -> -0.1394373686 | Y127: =Y126/'Inputs - actual'!Y$37 -> 2.393371739 | Z127: =Z126/'Inputs - actual'!Z$37 -> -6.598821773 | AA127: =AA126/'Inputs - actual'!AA$37 -> -4.070719664 | AB127: =AB126/'Inputs - actual'!AB$37 -> -1.73084177 | AC127: =AC126/'Inputs - actual'!AC$37 -> 0.4316290237 | AD127: =AD126/'Inputs - actual'!AD$37 -> 2.426959107 | AE127: =AE126/'Inputs - actual'!AE$37 -> -4.800284626 | AF127: =AF126/'Inputs - actual'!AF$37 -> -2.806607455 | AG127: =AG126/'Inputs - actual'!AG$37 -> -0.9625120192 | AH127: =AH126/'Inputs - actual'!AH$37 -> 0.7406536923 | AI127: =AI126/'Inputs - actual'!AI$37 -> 2.311097742 | AJ127: =AJ126/'Inputs - actual'!AJ$37 -> -3.483247191 | AK127: =AK126/'Inputs - actual'!AK$37 -> -1.912582289 | AL127: =AL126/'Inputs - actual'!AL$37 -> -0.4606097053 | AM127: =AM126/'Inputs - actual'!AM$37 -> 0.8795767342 | AN127: =AN126/'Inputs - actual'!AN$37 -> 2.11452632
A129: Adjustment to wash-up for fixed cost of debt | F129: =-(F132*'Inputs - actual'!F21*'Inputs - actual'!F24+F119) -> -5.684341886e-14 | G129: =-(G132*'Inputs - actual'!G21*'Inputs - actual'!G24+G119) -> -123.4354465 | H129: =-(H132*'Inputs - actual'!H21*'Inputs - actual'!H24+H119) -> -126.9689309 | I129: =-(I132*'Inputs - actual'!I21*'Inputs - actual'!I24+I119) -> -5.684341886e-14 | J129: =-(J132*'Inputs - actual'!J21*'Inputs - actual'!J24+J119) -> -7.105427358e-14 | K129: =-(K132*'Inputs - actual'!K21*'Inputs - actual'!K24+K119) -> -7.105427358e-14 | L129: =-(L132*'Inputs - actual'!L21*'Inputs - actual'!L24+L119) -> -5.684341886e-14 | M129: =-(M132*'Inputs - actual'!M21*'Inputs - actual'!M24+M119) -> -5.684341886e-14 | N129: =-(N132*'Inputs - actual'!N21*'Inputs - actual'!N24+N119) -> -7.105427358e-14 | O129: =-(O132*'Inputs - actual'!O21*'Inputs - actual'!O24+O119) -> -7.105427358e-14 | P129: =-(P132*'Inputs - actual'!P21*'Inputs - actual'!P24+P119) -> -9.947598301e-14 | Q129: =-(Q132*'Inputs - actual'!Q21*'Inputs - actual'!Q24+Q119) -> -8.526512829e-14 | R129: =-(R132*'Inputs - actual'!R21*'Inputs - actual'!R24+R119) -> -1.136868377e-13 | S129: =-(S132*'Inputs - actual'!S21*'Inputs - actual'!S24+S119) -> -1.136868377e-13 | T129: =-(T132*'Inputs - actual'!T21*'Inputs - actual'!T24+T119) -> -8.526512829e-14 | U129: =-(U132*'Inputs - actual'!U21*'Inputs - actual'!U24+U119) -> -1.136868377e-13 | V129: =-(V132*'Inputs - actual'!V21*'Inputs - actual'!V24+V119) -> -8.526512829e-14 | W129: =-(W132*'Inputs - actual'!W21*'Inputs - actual'!W24+W119) -> -1.136868377e-13 | X129: =-(X132*'Inputs - actual'!X21*'Inputs - actual'!X24+X119) -> -8.526512829e-14 | Y129: =-(Y132*'Inputs - actual'!Y21*'Inputs - actual'!Y24+Y119) -> -1.136868377e-13 | Z129: =-(Z132*'Inputs - actual'!Z21*'Inputs - actual'!Z24+Z119) -> -1.136868377e-13 | AA129: =-(AA132*'Inputs - actual'!AA21*'Inputs - actual'!AA24+AA119) -> -1.136868377e-13 | AB129: =-(AB132*'Inputs - actual'!AB21*'Inputs - actual'!AB24+AB119) -> -1.136868377e-13 | AC129: =-(AC132*'Inputs - actual'!AC21*'Inputs - actual'!AC24+AC119) -> -1.136868377e-13 | AD129: =-(AD132*'Inputs - actual'!AD21*'Inputs - actual'!AD24+AD119) -> -8.526512829e-14 | AE129: =-(AE132*'Inputs - actual'!AE21*'Inputs - actual'!AE24+AE119) -> -1.136868377e-13 | AF129: =-(AF132*'Inputs - actual'!AF21*'Inputs - actual'!AF24+AF119) -> -8.526512829e-14 | AG129: =-(AG132*'Inputs - actual'!AG21*'Inputs - actual'!AG24+AG119) -> -1.421085472e-13 | AH129: =-(AH132*'Inputs - actual'!AH21*'Inputs - actual'!AH24+AH119) -> -8.526512829e-14 | AI129: =-(AI132*'Inputs - actual'!AI21*'Inputs - actual'!AI24+AI119) -> -1.136868377e-13 | AJ129: =-(AJ132*'Inputs - actual'!AJ21*'Inputs - actual'!AJ24+AJ119) -> -8.526512829e-14 | AK129: =-(AK132*'Inputs - actual'!AK21*'Inputs - actual'!AK24+AK119) -> -8.526512829e-14 | AL129: =-(AL132*'Inputs - actual'!AL21*'Inputs - actual'!AL24+AL119) -> -1.136868377e-13 | AM129: =-(AM132*'Inputs - actual'!AM21*'Inputs - actual'!AM24+AM119) -> -1.136868377e-13 | AN129: =-(AN132*'Inputs - actual'!AN21*'Inputs - actual'!AN24+AN119) -> -8.526512829e-14
A131: Actual Asset Base
B132: Opening Asset Base | F132: =E34 -> 4834 | G132: =F135 -> 4920.733679 | H132: 5061.595449 | I132: 5272.112286 | J132: 5467.579705 | K132: 5696.998702 | L132: 5948.179257 | M132: 6294.86754 | N132: 6576.421349 | O132: 7020.786458 | P132: 7591.27648 | Q132: 7965.785546 | R132: 8292.076126 | S132: 8556.93674 | T132: 8881.961831 | U132: =T135 -> 9226.529238 | V132: =U135 -> 9232.022635 | W132: =V135 -> 9236.284801 | X132: =W135 -> 9239.29111 | Y132: =X135 -> 9241.016445 | Z132: =Y135 -> 9241.435187 | AA132: =Z135 -> 9240.521203 | AB132: =AA135 -> 9238.247841 | AC132: =AB135 -> 9234.58791 | AD132: =AC135 -> 9229.513682 | AE132: =AD135 -> 9222.996868 | AF132: =AE135 -> 9215.008619 | AG132: =AF135 -> 9205.519504 | AH132: =AG135 -> 9194.499507 | AI132: =AH135 -> 9181.918011 | AJ132: =AI135 -> 9167.743784 | AK132: =AJ135 -> 9151.944973 | AL132: =AK135 -> 9134.489086 | AM132: =AL135 -> 9115.342981 | AN132: =AM135 -> 9094.472854
B133: Capex | F133: =F$32/'Inputs - forecast'!F$15*'Inputs - actual'!F$15 -> 337.2 | G133: =G$32/'Inputs - forecast'!G$15*'Inputs - actual'!G$15 -> 399.168 | H133: =H$32/'Inputs - forecast'!H$15*'Inputs - actual'!H$15 -> 474.1416 | I133: =I$32/'Inputs - forecast'!I$15*'Inputs - actual'!I$15 -> 468.6338592 | J133: =J$32/'Inputs - forecast'!J$15*'Inputs - actual'!J$15 -> 512.7132816 | K133: =K$32/'Inputs - forecast'!K$15*'Inputs - actual'!K$15 -> 546.3618351 | L133: =L$32/'Inputs - forecast'!L$15*'Inputs - actual'!L$15 -> 654.8840996 | M133: =M$32/'Inputs - forecast'!M$15*'Inputs - actual'!M$15 -> 607.7127487 | N133: =N$32/'Inputs - forecast'!N$15*'Inputs - actual'!N$15 -> 785.1123291 | O133: =O$32/'Inputs - forecast'!O$15*'Inputs - actual'!O$15 -> 934.2613411 | P133: =P$32/'Inputs - forecast'!P$15*'Inputs - actual'!P$15 -> 755.0594849 | Q133: =Q$32/'Inputs - forecast'!Q$15*'Inputs - actual'!Q$15 -> 722.9055671 | R133: =R$32/'Inputs - forecast'!R$15*'Inputs - actual'!R$15 -> 676.5091365 | S133: =S$32/'Inputs - forecast'!S$15*'Inputs - actual'!S$15 -> 753.4161966 | T133: =T$32/'Inputs - forecast'!T$15*'Inputs - actual'!T$15 -> 790.5257513 | U133: =U$32/'Inputs - forecast'!U$15*'Inputs - actual'!U$15 -> 461.7120088 | V133: =V$32/'Inputs - forecast'!V$15*'Inputs - actual'!V$15 -> 470.9462489 | W133: =W$32/'Inputs - forecast'!W$15*'Inputs - actual'!W$15 -> 480.3651739 | X133: =X$32/'Inputs - forecast'!X$15*'Inputs - actual'!X$15 -> 489.9724774 | Y133: =Y$32/'Inputs - forecast'!Y$15*'Inputs - actual'!Y$15 -> 499.771927 | Z133: =Z$32/'Inputs - forecast'!Z$15*'Inputs - actual'!Z$15 -> 509.7673655 | AA133: =AA$32/'Inputs - forecast'!AA$15*'Inputs - actual'!AA$15 -> 519.9627128 | AB133: =AB$32/'Inputs - forecast'!AB$15*'Inputs - actual'!AB$15 -> 530.3619671 | AC133: =AC$32/'Inputs - forecast'!AC$15*'Inputs - actual'!AC$15 -> 540.9692064 | AD133: =AD$32/'Inputs - forecast'!AD$15*'Inputs - actual'!AD$15 -> 551.7885905 | AE133: =AE$32/'Inputs - forecast'!AE$15*'Inputs - actual'!AE$15 -> 562.8243623 | AF133: =AF$32/'Inputs - forecast'!AF$15*'Inputs - actual'!AF$15 -> 574.0808496 | AG133: =AG$32/'Inputs - forecast'!AG$15*'Inputs - actual'!AG$15 -> 585.5624666 | AH133: =AH$32/'Inputs - forecast'!AH$15*'Inputs - actual'!AH$15 -> 597.2737159 | AI133: =AI$32/'Inputs - forecast'!AI$15*'Inputs - actual'!AI$15 -> 609.2191902 | AJ133: =AJ$32/'Inputs - forecast'!AJ$15*'Inputs - actual'!AJ$15 -> 621.403574 | AK133: =AK$32/'Inputs - forecast'!AK$15*'Inputs - actual'!AK$15 -> 633.8316455 | AL133: =AL$32/'Inputs - forecast'!AL$15*'Inputs - actual'!AL$15 -> 646.5082784 | AM133: =AM$32/'Inputs - forecast'!AM$15*'Inputs - actual'!AM$15 -> 659.438444 | AN133: =AN$32/'Inputs - forecast'!AN$15*'Inputs - actual'!AN$15 -> 672.6272129
B134: Depreciation | F134: =-F132/F29 -> -250.4663212 | G134: -258.3062299 | H134: -263.624763 | I134: -273.1664397 | J134: -283.2942853 | K134: -295.1812799 | L134: -308.1958164 | M134: -326.1589399 | N134: -340.7472202 | O134: -363.7713191 | P134: =O134-(P133/P$30) -> -380.5504187 | Q134: -396.6149869 | R134: -411.6485233 | S134: -428.3911054 | T134: -445.9583443 | U134: -456.2186112 | V134: -466.6840834 | W134: -477.358865 | X134: -488.2471423 | Y134: -499.3531851 | Z134: -510.6813488 | AA134: -522.2360757 | AB134: -534.0218972 | AC134: -546.0434352 | AD134: -558.3054038 | AE134: -570.8126119 | AF134: -583.5699641 | AG134: -596.5824634 | AH134: -609.8552126 | AI134: -623.3934168 | AJ134: -637.2023851 | AK134: -651.2875328 | AL134: -665.6543834 | AM134: -680.3085711 | AN134: -695.2558425
B135: Closing Asset Base | F135: =SUM(F132:F134) -> 4920.733679 | G135: =SUM(G132:G134) -> 5061.595449 | H135: 5272.112286 | I135: 5467.579705 | J135: 5696.998702 | K135: 5948.179257 | L135: 6294.86754 | M135: 6576.421349 | N135: 7020.786458 | O135: 7591.27648 | P135: 7965.785546 | Q135: 8292.076126 | R135: 8556.93674 | S135: 8881.961831 | T135: 9226.529238 | U135: =SUM(U132:U134) -> 9232.022635 | V135: 9236.284801 | W135: 9239.29111 | X135: 9241.016445 | Y135: 9241.435187 | Z135: 9240.521203 | AA135: 9238.247841 | AB135: 9234.58791 | AC135: 9229.513682 | AD135: 9222.996868 | AE135: =SUM(AE132:AE134) -> 9215.008619 | AF135: 9205.519504 | AG135: 9194.499507 | AH135: 9181.918011 | AI135: 9167.743784 | AJ135: 9151.944973 | AK135: 9134.489086 | AL135: 9115.342981 | AM135: 9094.472854 | AN135: 9071.844224
A137: Profit and loss
B138: Revenue | F138: =F106 -> 866.9501691 | G138: 884.2891725 | H138: 901.9749559 | I138: 920.014455 | J138: 938.4147441 | K138: 1069.618643 | L138: 1091.011016 | M138: 1112.831237 | N138: 1135.087861 | O138: 1157.789619 | P138: 1325.309367 | Q138: 1351.815554 | R138: 1378.851865 | S138: 1406.428903 | T138: 1434.557481 | U138: 1499.63168 | V138: 1529.624314 | W138: 1560.2168 | X138: 1591.421136 | Y138: 1623.249559 | Z138: 1601.00984 | AA138: 1633.030037 | AB138: 1665.690638 | AC138: 1699.004451 | AD138: 1732.98454 | AE138: 1710.320836 | AF138: 1744.527253 | AG138: 1779.417798 | AH138: 1815.006154 | AI138: 1851.306277 | AJ138: 1828.390324 | AK138: 1864.958131 | AL138: 1902.257293 | AM138: 1940.302439 | AN138: 1979.108488
B139: Depreciation | F139: =F134 -> -250.4663212 | G139: =G134 -> -258.3062299 | H139: -263.624763 | I139: -273.1664397 | J139: -283.2942853 | K139: -295.1812799 | L139: -308.1958164 | M139: -326.1589399 | N139: -340.7472202 | O139: -363.7713191 | P139: -380.5504187 | Q139: -396.6149869 | R139: -411.6485233 | S139: -428.3911054 | T139: -445.9583443 | U139: =U134 -> -456.2186112 | V139: -466.6840834 | W139: -477.358865 | X139: -488.2471423 | Y139: -499.3531851 | Z139: -510.6813488 | AA139: -522.2360757 | AB139: -534.0218972 | AC139: -546.0434352 | AD139: -558.3054038 | AE139: =AE134 -> -570.8126119 | AF139: -583.5699641 | AG139: -596.5824634 | AH139: -609.8552126 | AI139: -623.3934168 | AJ139: -637.2023851 | AK139: -651.2875328 | AL139: -665.6543834 | AM139: -680.3085711 | AN139: -695.2558425
B140: Opex | F140: =F118 -> -265.3 | G140: -286.956 | H140: -317.14416 | I140: -328.7218464 | J140: -333.718704 | K140: -350.1716429 | L140: -354.5237231 | M140: -362.7732174 | N140: -370.0286818 | O140: -377.4292554 | P140: -385.934477 | Q140: -393.6531665 | R140: -401.5262298 | S140: -409.5567544 | T140: -417.7478895 | U140: -426.1028473 | V140: -434.6249043 | W140: -443.3174023 | X140: -452.1837504 | Y140: -461.2274254 | Z140: -470.4519739 | AA140: -479.8610134 | AB140: -489.4582336 | AC140: -499.2473983 | AD140: -509.2323463 | AE140: -519.4169932 | AF140: -529.8053331 | AG140: -540.4014397 | AH140: -551.2094685 | AI140: -562.2336579 | AJ140: -573.4783311 | AK140: -584.9478977 | AL140: -596.6468556 | AM140: -608.5797928 | AN140: -620.7513886
B141: Interest | F141: =F119 -> -79.475794 | G141: -80.90178241 | H141: -83.21769078 | I141: -86.67879809 | J141: -89.89247794 | K141: -93.66435566 | L141: -97.79401517 | M141: -103.4939172 | N141: -108.1229434 | O141: -115.4287502 | P141: -124.8081766 | Q141: -130.9654802 | R141: -136.3300236 | S141: -140.6845969 | T141: -146.0283345 | U141: -151.6933672 | V141: -151.7836841 | W141: -151.8537584 | X141: -151.9031851 | Y141: -151.9315514 | Z141: -151.9384359 | AA141: -151.9234091 | AB141: -151.8860327 | AC141: -151.8258598 | AD141: -151.7424344 | AE141: -151.6352915 | AF141: -151.5039567 | AG141: -151.3479462 | AH141: -151.1667664 | AI141: -150.959914 | AJ141: -150.7268756 | AK141: -150.4671273 | AL141: -150.1801351 | AM141: -149.8653539 | AN141: -149.5222282
B142: EBT | F142: =SUM(F138:F141) -> 271.7080538 | G142: =SUM(G138:G141) -> 258.1251602 | H142: 237.9883422 | I142: 231.4473709 | J142: 231.5092769 | K142: 330.601365 | L142: 330.4974616 | M142: 320.4051621 | N142: 316.1890161 | O142: 301.160294 | P142: 434.0162946 | Q142: 430.5819207 | R142: 429.3470887 | S142: 427.7964459 | T142: 424.8229124 | U142: =SUM(U138:U141) -> 465.6168545 | V142: 476.531642 | W142: 487.6867743 | X142: 499.0870583 | Y142: 510.7373969 | Z142: 467.9380817 | AA142: 479.0095389 | AB142: 490.3244742 | AC142: 501.8877573 | AD142: 513.7043551 | AE142: =SUM(AE138:AE141) -> 468.4559398 | AF142: 479.6479992 | AG142: 491.0859489 | AH142: 502.7747066 | AI142: 514.7192885 | AJ142: 466.9827326 | AK142: 478.255573 | AL142: 489.7759193 | AM142: 501.5487215 | AN142: 513.5790288
B143: Calculated tax | F143: =-F142*'Inputs - forecast'!F$25 -> -76.07825508 | G143: =-G142*'Inputs - forecast'!G$25 -> -72.27504486 | H143: =-H142*'Inputs - forecast'!H$25 -> -66.63673581 | I143: =-I142*'Inputs - forecast'!I$25 -> -64.80526384 | J143: =-J142*'Inputs - forecast'!J$25 -> -64.82259754 | K143: =-K142*'Inputs - forecast'!K$25 -> -92.56838221 | L143: =-L142*'Inputs - forecast'!L$25 -> -92.53928926 | M143: =-M142*'Inputs - forecast'!M$25 -> -89.71344538 | N143: =-N142*'Inputs - forecast'!N$25 -> -88.5329245 | O143: =-O142*'Inputs - forecast'!O$25 -> -84.32488232 | P143: =-P142*'Inputs - forecast'!P$25 -> -121.5245625 | Q143: =-Q142*'Inputs - forecast'!Q$25 -> -120.5629378 | R143: =-R142*'Inputs - forecast'!R$25 -> -120.2171848 | S143: =-S142*'Inputs - forecast'!S$25 -> -119.7830048 | T143: =-T142*'Inputs - forecast'!T$25 -> -118.9504155 | U143: =-U142*'Inputs - forecast'!U$25 -> -130.3727193 | V143: =-V142*'Inputs - forecast'!V$25 -> -133.4288598 | W143: =-W142*'Inputs - forecast'!W$25 -> -136.5522968 | X143: =-X142*'Inputs - forecast'!X$25 -> -139.7443763 | Y143: =-Y142*'Inputs - forecast'!Y$25 -> -143.0064711 | Z143: =-Z142*'Inputs - forecast'!Z$25 -> -131.0226629 | AA143: =-AA142*'Inputs - forecast'!AA$25 -> -134.1226709 | AB143: =-AB142*'Inputs - forecast'!AB$25 -> -137.2908528 | AC143: =-AC142*'Inputs - forecast'!AC$25 -> -140.528572 | AD143: =-AD142*'Inputs - forecast'!AD$25 -> -143.8372194 | AE143: =-AE142*'Inputs - forecast'!AE$25 -> -131.1676631 | AF143: =-AF142*'Inputs - forecast'!AF$25 -> -134.3014398 | AG143: =-AG142*'Inputs - forecast'!AG$25 -> -137.5040657 | AH143: =-AH142*'Inputs - forecast'!AH$25 -> -140.7769178 | AI143: =-AI142*'Inputs - forecast'!AI$25 -> -144.1214008 | AJ143: =-AJ142*'Inputs - forecast'!AJ$25 -> -130.7551651 | AK143: =-AK142*'Inputs - forecast'!AK$25 -> -133.9115604 | AL143: =-AL142*'Inputs - forecast'!AL$25 -> -137.1372574 | AM143: =-AM142*'Inputs - forecast'!AM$25 -> -140.433642 | AN143: =-AN142*'Inputs - forecast'!AN$25 -> -143.8021281
B144: Deferred tax | F144: =IF(F143>0,F143+E144,0) -> 0 | G144: =IF(G143>0,G143+F144,0) -> 0 | H144: =IF(H143>0,H143+G144,0) -> 0 | I144: =IF(I143>0,I143+H144,0) -> 0 | J144: =IF(J143>0,J143+I144,0) -> 0 | K144: 0 | L144: 0 | M144: 0 | N144: 0 | O144: 0 | P144: 0 | Q144: 0 | R144: 0 | S144: 0 | T144: 0 | U144: =IF(U143>0,U143+T144,0) -> 0 | V144: =IF(V143>0,V143+U144,0) -> 0 | W144: =IF(W143>0,W143+V144,0) -> 0 | X144: =IF(X143>0,X143+W144,0) -> 0 | Y144: =IF(Y143>0,Y143+X144,0) -> 0 | Z144: =IF(Z143>0,Z143+Y144,0) -> 0 | AA144: =IF(AA143>0,AA143+Z144,0) -> 0 | AB144: =IF(AB143>0,AB143+AA144,0) -> 0 | AC144: =IF(AC143>0,AC143+AB144,0) -> 0 | AD144: =IF(AD143>0,AD143+AC144,0) -> 0 | AE144: =IF(AE143>0,AE143+AD144,0) -> 0 | AF144: =IF(AF143>0,AF143+AE144,0) -> 0 | AG144: =IF(AG143>0,AG143+AF144,0) -> 0 | AH144: =IF(AH143>0,AH143+AG144,0) -> 0 | AI144: =IF(AI143>0,AI143+AH144,0) -> 0 | AJ144: =IF(AJ143>0,AJ143+AI144,0) -> 0 | AK144: =IF(AK143>0,AK143+AJ144,0) -> 0 | AL144: =IF(AL143>0,AL143+AK144,0) -> 0 | AM144: =IF(AM143>0,AM143+AL144,0) -> 0 | AN144: =IF(AN143>0,AN143+AM144,0) -> 0
B145: Tax | E145: =NPV('Inputs - actual'!$E$27,F145:AN145) -> -1612.98927 | F145: =IF(F144>0,0,F143+E144) -> -76.07825508 | G145: -72.27504486 | H145: -66.63673581 | I145: -64.80526384 | J145: -64.82259754 | K145: -92.56838221 | L145: -92.53928926 | M145: -89.71344538 | N145: -88.5329245 | O145: -84.32488232 | P145: -121.5245625 | Q145: -120.5629378 | R145: -120.2171848 | S145: -119.7830048 | T145: -118.9504155 | U145: =IF(U144>0,0,U143+T144) -> -130.3727193 | V145: =IF(V144>0,0,V143+U144) -> -133.4288598 | W145: =IF(W144>0,0,W143+V144) -> -136.5522968 | X145: =IF(X144>0,0,X143+W144) -> -139.7443763 | Y145: =IF(Y144>0,0,Y143+X144) -> -143.0064711 | Z145: =IF(Z144>0,0,Z143+Y144) -> -131.0226629 | AA145: =IF(AA144>0,0,AA143+Z144) -> -134.1226709 | AB145: =IF(AB144>0,0,AB143+AA144) -> -137.2908528 | AC145: =IF(AC144>0,0,AC143+AB144) -> -140.528572 | AD145: =IF(AD144>0,0,AD143+AC144) -> -143.8372194 | AE145: =IF(AE144>0,0,AE143+AD144) -> -131.1676631 | AF145: =IF(AF144>0,0,AF143+AE144) -> -134.3014398 | AG145: =IF(AG144>0,0,AG143+AF144) -> -137.5040657 | AH145: =IF(AH144>0,0,AH143+AG144) -> -140.7769178 | AI145: =IF(AI144>0,0,AI143+AH144) -> -144.1214008 | AJ145: =IF(AJ144>0,0,AJ143+AI144) -> -130.7551651 | AK145: =IF(AK144>0,0,AK143+AJ144) -> -133.9115604 | AL145: =IF(AL144>0,0,AL143+AK144) -> -137.1372574 | AM145: =IF(AM144>0,0,AM143+AL144) -> -140.433642 | AN145: =IF(AN144>0,0,AN143+AM144) -> -143.8021281
B146: Net profit | F146: =F142+F145 -> 195.6297988 | G146: =G142+G145 -> 185.8501153 | H146: 171.3516064 | I146: 166.642107 | J146: 166.6866794 | K146: 238.0329828 | L146: 237.9581724 | M146: 230.6917167 | N146: 227.6560916 | O146: 216.8354117 | P146: 312.4917321 | Q146: 310.0189829 | R146: 309.1299038 | S146: 308.013441 | T146: 305.8724969 | U146: =U142+U145 -> 335.2441353 | V146: 343.1027823 | W146: 351.1344775 | X146: 359.342682 | Y146: 367.7309258 | Z146: 336.9154188 | AA146: 344.886868 | AB146: 353.0336214 | AC146: 361.3591853 | AD146: 369.8671357 | AE146: =AE142+AE145 -> 337.2882766 | AF146: 345.3465594 | AG146: 353.5818832 | AH146: 361.9977888 | AI146: 370.5978877 | AJ146: 336.2275675 | AK146: 344.3440126 | AL146: 352.6386619 | AM146: 361.1150795 | AN146: 369.7769008
B147: Dividends | F147: =-F150*F146 -> -136.9408591 | G147: =-G150*G146 -> -102.2175634 | H147: -68.54064255 | I147: -74.98894816 | J147: -58.34033779 | K147: -95.21319313 | L147: -35.69372586 | M147: -69.20751501 | N147: 0 | O147: 0 | P147: -93.74751964 | Q147: -124.0075932 | R147: -154.5649519 | S147: -123.2053764 | T147: -107.0553739 | U147: -167.6220676 | V147: -171.5513911 | W147: -175.5672388 | X147: -179.671341 | Y147: -183.8654629 | Z147: -202.1492513 | AA147: -206.9321208 | AB147: -211.8201729 | AC147: -216.8155112 | AD147: -221.9202814 | AE147: -219.2373798 | AF147: -224.4752636 | AG147: -229.8282241 | AH147: -235.2985627 | AI147: -240.888627 | AJ147: -235.3592972 | AK147: -241.0408088 | AL147: -246.8470633 | AM147: -252.7805556 | AN147: -258.8438305
B148: Retained earnings | F148: =SUM(F146:F147) -> 58.68893963 | G148: =SUM(G146:G147) -> 83.6325519 | H148: 102.8109638 | I148: 91.65315886 | J148: 108.3463416 | K148: 142.8197897 | L148: 202.2644465 | M148: 161.4842017 | N148: 227.6560916 | O148: 216.8354117 | P148: 218.7442125 | Q148: 186.0113897 | R148: 154.5649519 | S148: 184.8080646 | T148: 198.817123 | U148: 167.6220676 | V148: 171.5513911 | W148: 175.5672388 | X148: 179.671341 | Y148: 183.8654629 | Z148: 134.7661675 | AA148: 137.9547472 | AB148: 141.2134486 | AC148: 144.5436741 | AD148: 147.9468543 | AE148: 118.0508968 | AF148: 120.8712958 | AG148: 123.7536591 | AH148: 126.6992261 | AI148: 129.7092607 | AJ148: 100.8682702 | AK148: 103.3032038 | AL148: 105.7915986 | AM148: 108.3345238 | AN148: 110.9330702
B150: Dividend pay-out ratio (input) | F150: 0.7 | G150: 0.55 | H150: 0.4 | I150: 0.45 | J150: 0.35 | K150: 0.4 | L150: 0.15 | M150: 0.3 | N150: 0 | O150: 0 | P150: 0.3 | Q150: 0.4 | R150: 0.5 | S150: 0.4 | T150: 0.35 | U150: 0.5 | V150: 0.5 | W150: 0.5 | X150: 0.5 | Y150: 0.5 | Z150: 0.6 | AA150: 0.6 | AB150: 0.6 | AC150: 0.6 | AD150: 0.6 | AE150: 0.65 | AF150: 0.65 | AG150: 0.65 | AH150: 0.65 | AI150: 0.65 | AJ150: 0.7 | AK150: 0.7 | AL150: 0.7 | AM150: 0.7 | AN150: 0.7
A152: Tax adjustment | E152: NPV
B153: NPV of tax | E153: =SUM(F153:AN153) -> -1449.938336 | F153: =F143/'Inputs - actual'!F$32 -> -72.08605714 | G153: =G143/'Inputs - actual'!G$32 -> -61.28387859 | H153: =H143/'Inputs - actual'!H$32 -> -50.56368693 | I153: =I143/'Inputs - actual'!I$32 -> -46.59357461 | J153: =J143/'Inputs - actual'!J$32 -> -44.16039058 | K153: =K143/'Inputs - actual'!K$32 -> -59.75302253 | L153: =L143/'Inputs - actual'!L$32 -> -56.59969526 | M153: =M143/'Inputs - actual'!M$32 -> -51.99196095 | N153: =N143/'Inputs - actual'!N$32 -> -48.6154378 | O153: =O143/'Inputs - actual'!O$32 -> -43.87487207 | P153: =P143/'Inputs - actual'!P$32 -> -59.91215129 | Q153: =Q143/'Inputs - actual'!Q$32 -> -56.31906016 | R153: =R143/'Inputs - actual'!R$32 -> -53.21068614 | S153: =S143/'Inputs - actual'!S$32 -> -50.23636851 | T153: =T143/'Inputs - actual'!T$32 -> -47.26936042 | U153: =U143/'Inputs - actual'!U$32 -> -49.08979466 | V153: =V143/'Inputs - actual'!V$32 -> -47.60416972 | W153: =W143/'Inputs - actual'!W$32 -> -46.1620363 | X153: =X143/'Inputs - actual'!X$32 -> -44.76215814 | Y153: =Y143/'Inputs - actual'!Y$32 -> -43.40333454 | Z153: =Z143/'Inputs - actual'!Z$32 -> -37.67945015 | AA153: =AA143/'Inputs - actual'!AA$32 -> -36.54694308 | AB153: =AB143/'Inputs - actual'!AB$32 -> -35.44713954 | AC153: =AC143/'Inputs - actual'!AC$32 -> -34.3791357 | AD153: =AD143/'Inputs - actual'!AD$32 -> -33.34205231 | AE153: =AE143/'Inputs - actual'!AE$32 -> -28.8096883 | AF153: =AF143/'Inputs - actual'!AF$32 -> -27.95008774 | AG153: =AG143/'Inputs - actual'!AG$32 -> -27.11494795 | AH153: =AH143/'Inputs - actual'!AH$32 -> -26.30361365 | AI153: =AI143/'Inputs - actual'!AI$32 -> -25.51544621 | AJ153: =AJ143/'Inputs - actual'!AJ$32 -> -21.93432505 | AK153: =AK143/'Inputs - actual'!AK$32 -> -21.28502777 | AL153: =AL143/'Inputs - actual'!AL$32 -> -20.65391279 | AM153: =AM143/'Inputs - actual'!AM$32 -> -20.04050988 | AN153: =AN143/'Inputs - actual'!AN$32 -> -19.44435983
B154: NPV of forecast tax adjusted for inflation | E154: =SUM(F154:AN154) -> -1526.002753 | F154: =(F$10/'Inputs - forecast'!F$15*'Inputs - actual'!F$15)/'Inputs - actual'!F$32 -> -72.08605714 | G154: =(G$10/'Inputs - forecast'!G$15*'Inputs - actual'!G$15)/'Inputs - actual'!G$32 -> -68.89639348 | H154: =(H$10/'Inputs - forecast'!H$15*'Inputs - actual'!H$15)/'Inputs - actual'!H$32 -> -65.20964714 | I154: =(I$10/'Inputs - forecast'!I$15*'Inputs - actual'!I$15)/'Inputs - actual'!I$32 -> -61.36365584 | J154: =(J$10/'Inputs - forecast'!J$15*'Inputs - actual'!J$15)/'Inputs - actual'!J$32 -> -58.95656648 | K154: =(K$10/'Inputs - forecast'!K$15*'Inputs - actual'!K$15)/'Inputs - actual'!K$32 -> -61.82965599 | L154: =(L$10/'Inputs - forecast'!L$15*'Inputs - actual'!L$15)/'Inputs - actual'!L$32 -> -58.4654062 | M154: =(M$10/'Inputs - forecast'!M$15*'Inputs - actual'!M$15)/'Inputs - actual'!M$32 -> -53.66817264 | N154: =(N$10/'Inputs - forecast'!N$15*'Inputs - actual'!N$15)/'Inputs - actual'!N$32 -> -50.12139759 | O154: =(O$10/'Inputs - forecast'!O$15*'Inputs - actual'!O$15)/'Inputs - actual'!O$32 -> -45.22787234 | P154: =(P$10/'Inputs - forecast'!P$15*'Inputs - actual'!P$15)/'Inputs - actual'!P$32 -> -61.17815272 | Q154: =(Q$10/'Inputs - forecast'!Q$15*'Inputs - actual'!Q$15)/'Inputs - actual'!Q$32 -> -57.5034676 | R154: =(R$10/'Inputs - forecast'!R$15*'Inputs - actual'!R$15)/'Inputs - actual'!R$32 -> -54.3185768 | S154: =(S$10/'Inputs - forecast'!S$15*'Inputs - actual'!S$15)/'Inputs - actual'!S$32 -> -51.2725114 | T154: =(T$10/'Inputs - forecast'!T$15*'Inputs - actual'!T$15)/'Inputs - actual'!T$32 -> -48.23823474 | U154: =(U$10/'Inputs - forecast'!U$15*'Inputs - actual'!U$15)/'Inputs - actual'!U$32 -> -49.9956071 | V154: =(V$10/'Inputs - forecast'!V$15*'Inputs - actual'!V$15)/'Inputs - actual'!V$32 -> -48.45087071 | W154: =(W$10/'Inputs - forecast'!W$15*'Inputs - actual'!W$15)/'Inputs - actual'!W$32 -> -46.95333532 | X154: =(X$10/'Inputs - forecast'!X$15*'Inputs - actual'!X$15)/'Inputs - actual'!X$32 -> -45.50153812 | Y154: =(Y$10/'Inputs - forecast'!Y$15*'Inputs - actual'!Y$15)/'Inputs - actual'!Y$32 -> -44.09406543 | Z154: =(Z$10/'Inputs - forecast'!Z$15*'Inputs - actual'!Z$15)/'Inputs - actual'!Z$32 -> -38.32460171 | AA154: =(AA$10/'Inputs - forecast'!AA$15*'Inputs - actual'!AA$15)/'Inputs - actual'!AA$32 -> -37.14939684 | AB154: =(AB$10/'Inputs - forecast'!AB$15*'Inputs - actual'!AB$15)/'Inputs - actual'!AB$32 -> -36.00960012 | AC154: =(AC$10/'Inputs - forecast'!AC$15*'Inputs - actual'!AC$15)/'Inputs - actual'!AC$32 -> -34.90414146 | AD154: =(AD$10/'Inputs - forecast'!AD$15*'Inputs - actual'!AD$15)/'Inputs - actual'!AD$32 -> -33.83198532 | AE154: =(AE$10/'Inputs - forecast'!AE$15*'Inputs - actual'!AE$15)/'Inputs - actual'!AE$32 -> -29.26678377 | AF154: =(AF$10/'Inputs - forecast'!AF$15*'Inputs - actual'!AF$15)/'Inputs - actual'!AF$32 -> -28.37644288 | AG154: =(AG$10/'Inputs - forecast'!AG$15*'Inputs - actual'!AG$15)/'Inputs - actual'!AG$32 -> -27.51253029 | AH154: =(AH$10/'Inputs - forecast'!AH$15*'Inputs - actual'!AH$15)/'Inputs - actual'!AH$32 -> -26.67426887 | AI154: =(AI$10/'Inputs - forecast'!AI$15*'Inputs - actual'!AI$15)/'Inputs - actual'!AI$32 -> -25.86090551 | AJ154: =(AJ$10/'Inputs - forecast'!AJ$15*'Inputs - actual'!AJ$15)/'Inputs - actual'!AJ$32 -> -22.25621211 | AK154: =(AK$10/'Inputs - forecast'!AK$15*'Inputs - actual'!AK$15)/'Inputs - actual'!AK$32 -> -21.58486522 | AL154: =(AL$10/'Inputs - forecast'!AL$15*'Inputs - actual'!AL$15)/'Inputs - actual'!AL$32 -> -20.93312837 | AM154: =(AM$10/'Inputs - forecast'!AM$15*'Inputs - actual'!AM$15)/'Inputs - actual'!AM$32 -> -20.30044222 | AN154: =(AN$10/'Inputs - forecast'!AN$15*'Inputs - actual'!AN$15)/'Inputs - actual'!AN$32 -> -19.68626386
B155: Difference | E155: =SUM(F155:AN155) -> -76.06441703 | F155: =F154-F153 -> 0 | G155: -7.612514892 | H155: -14.64596021 | I155: =I154-I153 -> -14.77008123 | J155: -14.7961759 | K155: -2.076633457 | L155: -1.865710932 | M155: -1.676211692 | N155: -1.505959786 | O155: -1.353000273 | P155: -1.266001424 | Q155: -1.184407445 | R155: -1.107890656 | S155: -1.036142886 | T155: -0.9688743254 | U155: -0.9058124478 | V155: -0.8467009944 | W155: -0.791299017 | X155: -0.7393799772 | Y155: -0.690730897 | Z155: -0.64515156 | AA155: -0.602453758 | AB155: -0.5624605824 | AC155: -0.5250057567 | AD155: -0.4899330072 | AE155: -0.4570954719 | AF155: -0.4263551421 | AG155: -0.3975823387 | AH155: -0.3706552171 | AI155: -0.3454593027 | AJ155: -0.3218870525 | AK155: -0.2998374431 | AL155: -0.2792155827 | AM155: -0.2599323454 | AN155: -0.2419040276
A157: Cash
B158: Net cash from operating activities | F158: =F138+F140+F145+F141 -> 446.09612 | G158: =G138+G140+G145+G141 -> 444.1563452 | H158: 434.9763693 | I158: 439.8085467 | J158: 449.9809647 | K158: 533.2142627 | L158: 546.1539888 | M158: 556.8506566 | N158: 568.4033117 | O158: 580.6067307 | P158: 693.0421508 | Q158: 706.6339698 | R158: 720.7784271 | S158: 736.4045464 | T158: 751.8308412 | U158: 791.4627464 | V158: 809.7868656 | W158: 828.4933425 | X158: 847.5898242 | Y158: 867.0841109 | Z158: 847.5967676 | AA158: 867.1229437 | AB158: 887.0555187 | AC158: 907.4026204 | AD158: 928.1725395 | AE158: 908.1008885 | AF158: 928.9165235 | AG158: 950.1643466 | AH158: 971.8530013 | AI158: 993.9913045 | AJ158: 973.4299526 | AK158: 995.6315454 | AL158: 1018.293045 | AM158: 1041.423651 | AN158: 1065.032743
B159: Net cash from investing activities | F159: =-F133 -> -337.2 | G159: =-G133 -> -399.168 | H159: -474.1416 | I159: -468.6338592 | J159: -512.7132816 | K159: -546.3618351 | L159: -654.8840996 | M159: -607.7127487 | N159: -785.1123291 | O159: -934.2613411 | P159: -755.0594849 | Q159: -722.9055671 | R159: -676.5091365 | S159: -753.4161966 | T159: -790.5257513 | U159: -461.7120088 | V159: -470.9462489 | W159: -480.3651739 | X159: -489.9724774 | Y159: -499.771927 | Z159: -509.7673655 | AA159: -519.9627128 | AB159: -530.3619671 | AC159: -540.9692064 | AD159: -551.7885905 | AE159: -562.8243623 | AF159: -574.0808496 | AG159: -585.5624666 | AH159: -597.2737159 | AI159: -609.2191902 | AJ159: -621.403574 | AK159: -633.8316455 | AL159: -646.5082784 | AM159: -659.438444 | AN159: -672.6272129
B160: Net cash from financing activities | F160: =F147+F166+F165 -> -101.3800508 | G160: =G147+G166+G165 -> -44.46423768 | H160: 17.77126064 | I160: 5.152693844 | J160: 35.72145071 | K160: 7.770834524 | L160: 106.4484702 | M160: 46.22954658 | N160: 182.1896946 | O160: 233.900909 | P160: 59.80119748 | Q160: 9.771544729 | R160: -45.97210047 | S160: 10.05491099 | T160: 34.21726293 | U160: -165.3697746 | V160: -169.8039032 | W160: -174.3346521 | X160: -178.9639536 | Y160: -183.6937787 | Z160: -202.5239845 | AA160: -207.8641996 | AB160: -213.3207442 | AC160: -218.8959449 | AD160: -224.5921748 | AE160: -222.5125621 | AF160: -228.3658006 | AG160: -234.3464228 | AH160: -240.4569763 | AI160: -246.7000599 | AJ160: -241.8368098 | AK160: -248.1977226 | AL160: -254.6969664 | AM160: -261.3373078 | AN160: -268.1215687
B161: Net cash surplus | F161: =SUM(F158:F160) -> 7.516069163 | G161: =SUM(G158:G160) -> 0.5241075188 | H161: -21.39397003 | I161: -23.67261866 | J161: -27.01086623 | K161: -5.376737905 | L161: -2.281640558 | M161: -4.63254548 | N161: -34.51932269 | O161: -119.7537013 | P161: -2.216136534 | Q161: -6.500052588 | R161: -1.702809918 | S161: -6.956739207 | T161: -4.477647104 | U161: =SUM(U158:U160) -> 164.380963 | V161: 169.0367134 | W161: 173.7935165 | X161: 178.6533933 | Y161: 183.6184052 | Z161: 135.3054177 | AA161: 139.2960313 | AB161: 143.3728074 | AC161: 147.5374691 | AD161: 151.7917741 | AE161: =SUM(AE158:AE160) -> 122.7639641 | AF161: 126.4698734 | AG161: 130.2554572 | AH161: 134.1223091 | AI161: 138.0720544 | AJ161: 110.1895688 | AK161: 113.6021773 | AL161: 117.0878005 | AM161: 120.6478988 | AN161: 124.2839617
A163: Debt
B164: Opening balance | F164: =F132*'Inputs - actual'!F$24 -> 1981.94 | G164: =F167 -> 2017.500808 | H164: =G167 -> 2075.254134 | I164: 2161.566037 | J164: 2241.707679 | K164: 2335.769468 | L164: 2438.753495 | M164: 2580.895691 | N164: 2696.332753 | O164: 2878.522448 | P164: 3112.423357 | Q164: 3265.972074 | R164: 3399.751212 | S164: 3508.344063 | T164: 3641.604351 | U164: =T167 -> 3782.876987 | V164: =U167 -> 3785.12928 | W164: =V167 -> 3786.876768 | X164: =W167 -> 3788.109355 | Y164: =X167 -> 3788.816742 | Z164: =Y167 -> 3788.988427 | AA164: =Z167 -> 3788.613693 | AB164: =AA167 -> 3787.681615 | AC164: =AB167 -> 3786.181043 | AD164: =AC167 -> 3784.100609 | AE164: =AD167 -> 3781.428716 | AF164: =AE167 -> 3778.153534 | AG164: =AF167 -> 3774.262997 | AH164: =AG167 -> 3769.744798 | AI164: =AH167 -> 3764.586384 | AJ164: =AI167 -> 3758.774952 | AK164: =AJ167 -> 3752.297439 | AL164: =AK167 -> 3745.140525 | AM164: =AL167 -> 3737.290622 | AN164: =AM167 -> 3728.73387
B165: New debt financing | F165: ='Inputs - actual'!F$24*F133 -> 138.252 | G165: ='Inputs - actual'!G$24*G133 -> 163.65888 | H165: ='Inputs - actual'!H$24*H133 -> 194.398056 | I165: ='Inputs - actual'!I$24*I133 -> 192.1398823 | J165: ='Inputs - actual'!J$24*J133 -> 210.2124455 | K165: ='Inputs - actual'!K$24*K133 -> 224.0083524 | L165: ='Inputs - actual'!L$24*L133 -> 268.5024808 | M165: ='Inputs - actual'!M$24*M133 -> 249.162227 | N165: ='Inputs - actual'!N$24*N133 -> 321.8960549 | O165: ='Inputs - actual'!O$24*O133 -> 383.0471499 | P165: ='Inputs - actual'!P$24*P133 -> 309.5743888 | Q165: ='Inputs - actual'!Q$24*Q133 -> 296.3912825 | R165: ='Inputs - actual'!R$24*R133 -> 277.368746 | S165: ='Inputs - actual'!S$24*S133 -> 308.9006406 | T165: ='Inputs - actual'!T$24*T133 -> 324.115558 | U165: ='Inputs - actual'!U$24*U133 -> 189.3019236 | V165: ='Inputs - actual'!V$24*V133 -> 193.0879621 | W165: ='Inputs - actual'!W$24*W133 -> 196.9497213 | X165: ='Inputs - actual'!X$24*X133 -> 200.8887157 | Y165: ='Inputs - actual'!Y$24*Y133 -> 204.9064901 | Z165: ='Inputs - actual'!Z$24*Z133 -> 209.0046199 | AA165: ='Inputs - actual'!AA$24*AA133 -> 213.1847122 | AB165: ='Inputs - actual'!AB$24*AB133 -> 217.4484065 | AC165: ='Inputs - actual'!AC$24*AC133 -> 221.7973746 | AD165: ='Inputs - actual'!AD$24*AD133 -> 226.2333221 | AE165: ='Inputs - actual'!AE$24*AE133 -> 230.7579886 | AF165: ='Inputs - actual'!AF$24*AF133 -> 235.3731483 | AG165: ='Inputs - actual'!AG$24*AG133 -> 240.0806113 | AH165: ='Inputs - actual'!AH$24*AH133 -> 244.8822235 | AI165: ='Inputs - actual'!AI$24*AI133 -> 249.779868 | AJ165: ='Inputs - actual'!AJ$24*AJ133 -> 254.7754654 | AK165: ='Inputs - actual'!AK$24*AK133 -> 259.8709747 | AL165: ='Inputs - actual'!AL$24*AL133 -> 265.0683942 | AM165: ='Inputs - actual'!AM$24*AM133 -> 270.369762 | AN165: ='Inputs - actual'!AN$24*AN133 -> 275.7771573
B166: Repayments | F166: =F134*'Inputs - forecast'!F24 -> -102.6911917 | G166: =G134*'Inputs - forecast'!G24 -> -105.9055542 | H166: =H134*'Inputs - forecast'!H24 -> -108.0861528 | I166: =I134*'Inputs - forecast'!I24 -> -111.9982403 | J166: =J134*'Inputs - forecast'!J24 -> -116.150657 | K166: =K134*'Inputs - forecast'!K24 -> -121.0243248 | L166: =L134*'Inputs - forecast'!L24 -> -126.3602847 | M166: =M134*'Inputs - forecast'!M24 -> -133.7251654 | N166: =N134*'Inputs - forecast'!N24 -> -139.7063603 | O166: =O134*'Inputs - forecast'!O24 -> -149.1462408 | P166: =P134*'Inputs - forecast'!P24 -> -156.0256717 | Q166: =Q134*'Inputs - forecast'!Q24 -> -162.6121446 | R166: =R134*'Inputs - forecast'!R24 -> -168.7758945 | S166: =S134*'Inputs - forecast'!S24 -> -175.6403532 | T166: =T134*'Inputs - forecast'!T24 -> -182.8429212 | U166: =U134*'Inputs - forecast'!U24 -> -187.0496306 | V166: =V134*'Inputs - forecast'!V24 -> -191.3404742 | W166: =W134*'Inputs - forecast'!W24 -> -195.7171347 | X166: =X134*'Inputs - forecast'!X24 -> -200.1813283 | Y166: =Y134*'Inputs - forecast'!Y24 -> -204.7348059 | Z166: =Z134*'Inputs - forecast'!Z24 -> -209.379353 | AA166: =AA134*'Inputs - forecast'!AA24 -> -214.1167911 | AB166: =AB134*'Inputs - forecast'!AB24 -> -218.9489779 | AC166: =AC134*'Inputs - forecast'!AC24 -> -223.8778084 | AD166: =AD134*'Inputs - forecast'!AD24 -> -228.9052156 | AE166: =AE134*'Inputs - forecast'!AE24 -> -234.0331709 | AF166: =AF134*'Inputs - forecast'!AF24 -> -239.2636853 | AG166: =AG134*'Inputs - forecast'!AG24 -> -244.59881 | AH166: =AH134*'Inputs - forecast'!AH24 -> -250.0406372 | AI166: =AI134*'Inputs - forecast'!AI24 -> -255.5913009 | AJ166: =AJ134*'Inputs - forecast'!AJ24 -> -261.2529779 | AK166: =AK134*'Inputs - forecast'!AK24 -> -267.0278885 | AL166: =AL134*'Inputs - forecast'!AL24 -> -272.9182972 | AM166: =AM134*'Inputs - forecast'!AM24 -> -278.9265141 | AN166: =AN134*'Inputs - forecast'!AN24 -> -285.0548954
B167: Closing balance | F167: =SUM(F164:F166) -> 2017.500808 | G167: =SUM(G164:G166) -> 2075.254134 | H167: =SUM(H164:H166) -> 2161.566037 | I167: 2241.707679 | J167: 2335.769468 | K167: 2438.753495 | L167: 2580.895691 | M167: 2696.332753 | N167: 2878.522448 | O167: 3112.423357 | P167: 3265.972074 | Q167: 3399.751212 | R167: 3508.344063 | S167: 3641.604351 | T167: 3782.876987 | U167: =SUM(U164:U166) -> 3785.12928 | V167: 3786.876768 | W167: 3788.109355 | X167: 3788.816742 | Y167: 3788.988427 | Z167: 3788.613693 | AA167: 3787.681615 | AB167: 3786.181043 | AC167: 3784.100609 | AD167: 3781.428716 | AE167: =SUM(AE164:AE166) -> 3778.153534 | AF167: 3774.262997 | AG167: 3769.744798 | AH167: 3764.586384 | AI167: 3758.774952 | AJ167: 3752.297439 | AK167: 3745.140525 | AL167: 3737.290622 | AM167: 3728.73387 | AN167: 3719.456132
A169: Equity
B170: Opening balance | F170: =F132*(1-'Inputs - actual'!F$24) -> 2852.06 | G170: =F173 -> 2903.23287 | H170: =G173 -> 2986.341315 | I170: 3110.546249 | J170: 3225.872026 | K170: 3361.229234 | L170: 3509.425762 | M170: 3713.971849 | N170: 3880.088596 | O170: 4142.26401 | P170: 4478.853123 | Q170: 4699.813472 | R170: 4892.324915 | S170: 5048.592676 | T170: 5240.35748 | U170: =T173 -> 5443.65225 | V170: =U173 -> 5446.893355 | W170: =V173 -> 5449.408033 | X170: =W173 -> 5451.181755 | Y170: =X173 -> 5452.199703 | Z170: =Y173 -> 5452.44676 | AA170: =Z173 -> 5451.90751 | AB170: =AA173 -> 5450.566226 | AC170: =AB173 -> 5448.406867 | AD170: =AC173 -> 5445.413072 | AE170: =AD173 -> 5441.568152 | AF170: =AE173 -> 5436.855085 | AG170: =AF173 -> 5431.256508 | AH170: =AG173 -> 5424.754709 | AI170: =AH173 -> 5417.331626 | AJ170: =AI173 -> 5408.968833 | AK170: =AJ173 -> 5399.647534 | AL170: =AK173 -> 5389.348561 | AM170: =AL173 -> 5378.052359 | AN170: =AM173 -> 5365.738984
B171: Retained earnings | F171: =F148 -> 58.68893963 | G171: =G148 -> 83.6325519 | H171: 102.8109638 | I171: 91.65315886 | J171: 108.3463416 | K171: 142.8197897 | L171: 202.2644465 | M171: 161.4842017 | N171: 227.6560916 | O171: 216.8354117 | P171: 218.7442125 | Q171: 186.0113897 | R171: 154.5649519 | S171: 184.8080646 | T171: 198.817123 | U171: =U148 -> 167.6220676 | V171: 171.5513911 | W171: 175.5672388 | X171: 179.671341 | Y171: 183.8654629 | Z171: 134.7661675 | AA171: 137.9547472 | AB171: 141.2134486 | AC171: 144.5436741 | AD171: 147.9468543 | AE171: =AE148 -> 118.0508968 | AF171: 120.8712958 | AG171: 123.7536591 | AH171: 126.6992261 | AI171: 129.7092607 | AJ171: 100.8682702 | AK171: 103.3032038 | AL171: 105.7915986 | AM171: 108.3345238 | AN171: 110.9330702
B172: Distribution of excess cashflows | F172: =-F161 -> -7.516069163 | G172: =-G161 -> -0.5241075188 | H172: 21.39397003 | I172: 23.67261866 | J172: 27.01086623 | K172: 5.376737905 | L172: 2.281640558 | M172: 4.63254548 | N172: 34.51932269 | O172: 119.7537013 | P172: 2.216136534 | Q172: 6.500052588 | R172: 1.702809918 | S172: 6.956739207 | T172: 4.477647104 | U172: =-U161 -> -164.380963 | V172: -169.0367134 | W172: -173.7935165 | X172: -178.6533933 | Y172: -183.6184052 | Z172: -135.3054177 | AA172: -139.2960313 | AB172: -143.3728074 | AC172: -147.5374691 | AD172: -151.7917741 | AE172: =-AE161 -> -122.7639641 | AF172: -126.4698734 | AG172: -130.2554572 | AH172: -134.1223091 | AI172: -138.0720544 | AJ172: -110.1895688 | AK172: -113.6021773 | AL172: -117.0878005 | AM172: -120.6478988 | AN172: -124.2839617
B173: Closing balance | F173: =SUM(F170:F172) -> 2903.23287 | G173: =SUM(G170:G172) -> 2986.341315 | H173: 3110.546249 | I173: 3225.872026 | J173: 3361.229234 | K173: 3509.425762 | L173: 3713.971849 | M173: 3880.088596 | N173: 4142.26401 | O173: 4478.853123 | P173: 4699.813472 | Q173: 4892.324915 | R173: 5048.592676 | S173: 5240.35748 | T173: 5443.65225 | U173: =SUM(U170:U172) -> 5446.893355 | V173: 5449.408033 | W173: 5451.181755 | X173: 5452.199703 | Y173: 5452.44676 | Z173: 5451.90751 | AA173: 5450.566226 | AB173: 5448.406867 | AC173: 5445.413072 | AD173: 5441.568152 | AE173: =SUM(AE170:AE172) -> 5436.855085 | AF173: 5431.256508 | AG173: 5424.754709 | AH173: 5417.331626 | AI173: 5408.968833 | AJ173: 5399.647534 | AK173: 5389.348561 | AL173: 5378.052359 | AM173: 5365.738984 | AN173: 5352.388092
A176: Financial indicators
B177: Funds from operations (FFO) (net profit + depn) | F177: =F146-F139 -> 446.09612 | G177: 444.1563452 | H177: 434.9763693 | I177: 439.8085467 | J177: 449.9809647 | K177: 533.2142627 | L177: 546.1539888 | M177: 556.8506566 | N177: 568.4033117 | O177: 580.6067307 | P177: 693.0421508 | Q177: 706.6339698 | R177: 720.7784271 | S177: 736.4045464 | T177: 751.8308412 | U177: 791.4627464 | V177: 809.7868656 | W177: 828.4933425 | X177: 847.5898242 | Y177: 867.0841109 | Z177: 847.5967676 | AA177: 867.1229437 | AB177: 887.0555187 | AC177: 907.4026204 | AD177: 928.1725395 | AE177: 908.1008885 | AF177: 928.9165235 | AG177: 950.1643466 | AH177: 971.8530013 | AI177: 993.9913045 | AJ177: 973.4299526 | AK177: 995.6315454 | AL177: 1018.293045 | AM177: 1041.423651 | AN177: 1065.032743
B178: Interest coverage ratio ((FFO - interest) / interest) | F178: =-(F177+F141)/F141 -> 4.612980979 | G178: 4.490068722 | H178: 4.226969954 | I178: 4.074003752 | J178: 4.005768836 | K178: 4.692819419 | L178: 4.58473837 | M178: 4.380515798 | N178: 4.257009233 | O178: 4.030001018 | P178: 4.552858552 | Q178: 4.39557423 | R178: 4.28701168 | S178: 4.234436196 | T178: 4.148527127 | U178: 4.21751716 | V178: 4.335137766 | W178: 4.455863267 | X178: 4.579802843 | Y178: 4.707070737 | Z178: 4.578553988 | AA178: 4.707632213 | AB178: 4.840270515 | AC178: 4.976601229 | AD178: 5.116763204 | AE178: 4.988717267 | AF178: 5.131302071 | AG178: 5.278012822 | AH178: 5.429012305 | AI178: 5.584471851 | AJ178: 5.458237451 | AK178: 5.616937289 | AL178: 5.780477624 | AM178: 5.949062096 | AN178: 6.122905779

Sheet Transpower indexed (Y6-35)
A1: Calculation
A2: This model indexes the RAB from 2026. It also washes-up annual revenue from 2026 and washes up the RAB at each reset from 2031 for actual inflation. An adjustment is made to the revenue wash-up for the overcompensation for inflation due to the fixed cost of debt.
A4: Forecast | D4: Return over forecast period | E4: ='Inputs - forecast'!E2 -> 2020-06-30 | F4: ='Inputs - forecast'!F2 -> 2021-06-30 | G4: ='Inputs - forecast'!G2 -> 2022-06-30 | H4: ='Inputs - forecast'!H2 -> 2023-06-30 | I4: ='Inputs - forecast'!I2 -> 2024-06-30 | J4: ='Inputs - forecast'!J2 -> 2025-06-30 | K4: ='Inputs - forecast'!K2 -> 2026-06-30 | L4: ='Inputs - forecast'!L2 -> 2027-06-30 | M4: ='Inputs - forecast'!M2 -> 2028-06-30 | N4: ='Inputs - forecast'!N2 -> 2029-06-30 | O4: ='Inputs - forecast'!O2 -> 2030-06-30 | P4: ='Inputs - forecast'!P2 -> 2031-06-30 | Q4: ='Inputs - forecast'!Q2 -> 2032-06-30 | R4: ='Inputs - forecast'!R2 -> 2033-06-30 | S4: ='Inputs - forecast'!S2 -> 2034-06-30 | T4: ='Inputs - forecast'!T2 -> 2035-06-30 | U4: ='Inputs - forecast'!U2 -> 2036-06-30 | V4: ='Inputs - forecast'!V2 -> 2037-06-30 | W4: ='Inputs - forecast'!W2 -> 2038-06-30 | X4: ='Inputs - forecast'!X2 -> 2039-06-30 | Y4: ='Inputs - forecast'!Y2 -> 2040-06-30 | Z4: ='Inputs - forecast'!Z2 -> 2041-06-30 | AA4: ='Inputs - forecast'!AA2 -> 2042-06-30 | AB4: ='Inputs - forecast'!AB2 -> 2043-06-30 | AC4: ='Inputs - forecast'!AC2 -> 2044-06-30 | AD4: ='Inputs - forecast'!AD2 -> 2045-06-30 | AE4: ='Inputs - forecast'!AE2 -> 2046-06-30 | AF4: ='Inputs - forecast'!AF2 -> 2047-06-30 | AG4: ='Inputs - forecast'!AG2 -> 2048-06-30 | AH4: ='Inputs - forecast'!AH2 -> 2049-06-30 | AI4: ='Inputs - forecast'!AI2 -> 2050-06-30 | AJ4: ='Inputs - forecast'!AJ2 -> 2051-06-30 | AK4: ='Inputs - forecast'!AK2 -> 2052-06-30 | AL4: ='Inputs - forecast'!AL2 -> 2053-06-30 | AM4: ='Inputs - forecast'!AM2 -> 2054-06-30 | AN4: ='Inputs - forecast'!AN2 -> 2055-06-30
A5: Building blocks
B6: Revenue | F6: =K60 -> 866.9501691 | G6: =F6*(1+'Inputs - forecast'!G14) -> 884.2891725 | H6: =G6*(1+'Inputs - forecast'!H14) -> 901.9749559 | I6: =H6*(1+'Inputs - forecast'!I14) -> 920.014455 | J6: =I6*(1+'Inputs - forecast'!J14) -> 938.4147441 | K6: =P67 -> 936.2558456 | L6: =K6*(1+'Inputs - forecast'!L14) -> 954.9809625 | M6: =L6*(1+'Inputs - forecast'!M14) -> 974.0805818 | N6: =M6*(1+'Inputs - forecast'!N14) -> 993.5621934 | O6: =N6*(1+'Inputs - forecast'!O14) -> 1013.433437 | P6: =U74 -> 1180.917248 | Q6: =P6*(1+'Inputs - forecast'!Q14) -> 1204.535593 | R6: =Q6*(1+'Inputs - forecast'!R14) -> 1228.626305 | S6: =R6*(1+'Inputs - forecast'!S14) -> 1253.198831 | T6: =S6*(1+'Inputs - forecast'!T14) -> 1278.262808 | U6: =Z81 -> 1361.088413 | V6: =U6*(1+'Inputs - forecast'!V14) -> 1388.310181 | W6: =V6*(1+'Inputs - forecast'!W14) -> 1416.076385 | X6: =W6*(1+'Inputs - forecast'!X14) -> 1444.397913 | Y6: =X6*(1+'Inputs - forecast'!Y14) -> 1473.285871 | Z6: =AE88 -> 1501.22968 | AA6: =Z6*(1+'Inputs - forecast'!AA14) -> 1531.254273 | AB6: =AA6*(1+'Inputs - forecast'!AB14) -> 1561.879359 | AC6: =AB6*(1+'Inputs - forecast'!AC14) -> 1593.116946 | AD6: =AC6*(1+'Inputs - forecast'!AD14) -> 1624.979285 | AE6: =AJ95 -> 1654.479041 | AF6: =AE6*(1+'Inputs - forecast'!AF14) -> 1687.568622 | AG6: =AF6*(1+'Inputs - forecast'!AG14) -> 1721.319994 | AH6: =AG6*(1+'Inputs - forecast'!AH14) -> 1755.746394 | AI6: =AH6*(1+'Inputs - forecast'!AI14) -> 1790.861322 | AJ6: =AO102 -> 1822.046975 | AK6: =AJ6*(1+'Inputs - forecast'!AK14) -> 1858.487914 | AL6: =AK6*(1+'Inputs - forecast'!AL14) -> 1895.657672 | AM6: =AL6*(1+'Inputs - forecast'!AM14) -> 1933.570826 | AN6: =AM6*(1+'Inputs - forecast'!AN14) -> 1972.242242
B7: Return on debt | F7: =-F$31*'Inputs - forecast'!F$24*'Inputs - forecast'!F$21 -> -79.475794 | G7: =-G$31*'Inputs - forecast'!G$24*'Inputs - forecast'!G$21 -> -80.90178241 | H7: =-H$31*'Inputs - forecast'!H$24*'Inputs - forecast'!H$21 -> -82.85309516 | I7: =-I$31*'Inputs - forecast'!I$24*'Inputs - forecast'!I$21 -> -85.49110025 | J7: =-J$31*'Inputs - forecast'!J$24*'Inputs - forecast'!J$21 -> -87.9340092 | K7: =-K$31*'Inputs - forecast'!K$24*'Inputs - forecast'!K$21 -> -92.7147011 | L7: =-L$31*'Inputs - forecast'!L$24*'Inputs - forecast'!L$21 -> -98.83143682 | M7: =-M$31*'Inputs - forecast'!M$24*'Inputs - forecast'!M$21 -> -106.5671382 | N7: =-N$31*'Inputs - forecast'!N$24*'Inputs - forecast'!N$21 -> -113.2576687 | O7: =-O$31*'Inputs - forecast'!O$24*'Inputs - forecast'!O$21 -> -122.7033761 | P7: =-P$31*'Inputs - forecast'!P$24*'Inputs - forecast'!P$21 -> -134.3399965 | Q7: =-Q$31*'Inputs - forecast'!Q$24*'Inputs - forecast'!Q$21 -> -142.922784 | R7: =-R$31*'Inputs - forecast'!R$24*'Inputs - forecast'!R$21 -> -150.8686118 | S7: =-S$31*'Inputs - forecast'!S$24*'Inputs - forecast'!S$21 -> -157.9431868 | T7: =-T$31*'Inputs - forecast'!T$24*'Inputs - forecast'!T$21 -> -166.1682007 | U7: =-U$31*'Inputs - forecast'!U$24*'Inputs - forecast'!U$21 -> -174.885436 | V7: =-V$31*'Inputs - forecast'!V$24*'Inputs - forecast'!V$21 -> -178.0908059 | W7: =-W$31*'Inputs - forecast'!W$24*'Inputs - forecast'!W$21 -> -181.3396357 | X7: =-X$31*'Inputs - forecast'!X$24*'Inputs - forecast'!X$21 -> -184.6323816 | Y7: =-Y$31*'Inputs - forecast'!Y$24*'Inputs - forecast'!Y$21 -> -187.9695007 | Z7: =-Z$31*'Inputs - forecast'!Z$24*'Inputs - forecast'!Z$21 -> -191.3514508 | AA7: =-AA$31*'Inputs - forecast'!AA$24*'Inputs - forecast'!AA$21 -> -194.7786904 | AB7: =-AB$31*'Inputs - forecast'!AB$24*'Inputs - forecast'!AB$21 -> -198.2516782 | AC7: =-AC$31*'Inputs - forecast'!AC$24*'Inputs - forecast'!AC$21 -> -201.7708733 | AD7: =-AD$31*'Inputs - forecast'!AD$24*'Inputs - forecast'!AD$21 -> -205.3367348 | AE7: =-AE$31*'Inputs - forecast'!AE$24*'Inputs - forecast'!AE$21 -> -208.9497216 | AF7: =-AF$31*'Inputs - forecast'!AF$24*'Inputs - forecast'!AF$21 -> -212.6102924 | AG7: =-AG$31*'Inputs - forecast'!AG$24*'Inputs - forecast'!AG$21 -> -216.3189054 | AH7: =-AH$31*'Inputs - forecast'!AH$24*'Inputs - forecast'!AH$21 -> -220.0760181 | AI7: =-AI$31*'Inputs - forecast'!AI$24*'Inputs - forecast'!AI$21 -> -223.8820869 | AJ7: =-AJ$31*'Inputs - forecast'!AJ$24*'Inputs - forecast'!AJ$21 -> -227.7375673 | AK7: =-AK$31*'Inputs - forecast'!AK$24*'Inputs - forecast'!AK$21 -> -231.6429134 | AL7: =-AL$31*'Inputs - forecast'!AL$24*'Inputs - forecast'!AL$21 -> -235.5985775 | AM7: =-AM$31*'Inputs - forecast'!AM$24*'Inputs - forecast'!AM$21 -> -239.6050102 | AN7: =-AN$31*'Inputs - forecast'!AN$24*'Inputs - forecast'!AN$21 -> -243.66266
B8: Return on equity | F8: =-F$31*(1-'Inputs - forecast'!F$24)*'Inputs - forecast'!F$18 -> -188.23596 | G8: =-G$31*(1-'Inputs - forecast'!G$24)*'Inputs - forecast'!G$18 -> -191.6133695 | H8: =-H$31*(1-'Inputs - forecast'!H$24)*'Inputs - forecast'!H$18 -> -196.2349933 | I8: =-I$31*(1-'Inputs - forecast'!I$24)*'Inputs - forecast'!I$18 -> -202.4830268 | J8: =-J$31*(1-'Inputs - forecast'!J$24)*'Inputs - forecast'!J$18 -> -208.2689811 | K8: =-K$31*(1-'Inputs - forecast'!K$24)*'Inputs - forecast'!K$18 -> -219.591902 | L8: =-L$31*(1-'Inputs - forecast'!L$24)*'Inputs - forecast'!L$18 -> -234.0792014 | M8: =-M$31*(1-'Inputs - forecast'!M$24)*'Inputs - forecast'!M$18 -> -252.4009708 | N8: =-N$31*(1-'Inputs - forecast'!N$24)*'Inputs - forecast'!N$18 -> -268.2472855 | O8: =-O$31*(1-'Inputs - forecast'!O$24)*'Inputs - forecast'!O$18 -> -290.6191512 | P8: =-P$31*(1-'Inputs - forecast'!P$24)*'Inputs - forecast'!P$18 -> -318.1801267 | Q8: =-Q$31*(1-'Inputs - forecast'!Q$24)*'Inputs - forecast'!Q$18 -> -338.5081934 | R8: =-R$31*(1-'Inputs - forecast'!R$24)*'Inputs - forecast'!R$18 -> -357.327641 | S8: =-S$31*(1-'Inputs - forecast'!S$24)*'Inputs - forecast'!S$18 -> -374.0835529 | T8: =-T$31*(1-'Inputs - forecast'!T$24)*'Inputs - forecast'!T$18 -> -393.564244 | U8: =-U$31*(1-'Inputs - forecast'!U$24)*'Inputs - forecast'!U$18 -> -414.2107462 | V8: =-V$31*(1-'Inputs - forecast'!V$24)*'Inputs - forecast'!V$18 -> -421.8025657 | W8: =-W$31*(1-'Inputs - forecast'!W$24)*'Inputs - forecast'!W$18 -> -429.4973185 | X8: =-X$31*(1-'Inputs - forecast'!X$24)*'Inputs - forecast'!X$18 -> -437.2960853 | Y8: =-Y$31*(1-'Inputs - forecast'!Y$24)*'Inputs - forecast'!Y$18 -> -445.1999487 | Z8: =-Z$31*(1-'Inputs - forecast'!Z$24)*'Inputs - forecast'!Z$18 -> -453.209993 | AA8: =-AA$31*(1-'Inputs - forecast'!AA$24)*'Inputs - forecast'!AA$18 -> -461.3273039 | AB8: =-AB$31*(1-'Inputs - forecast'!AB$24)*'Inputs - forecast'!AB$18 -> -469.5529682 | AC8: =-AC$31*(1-'Inputs - forecast'!AC$24)*'Inputs - forecast'!AC$18 -> -477.8880729 | AD8: =-AD$31*(1-'Inputs - forecast'!AD$24)*'Inputs - forecast'!AD$18 -> -486.3337055 | AE8: =-AE$31*(1-'Inputs - forecast'!AE$24)*'Inputs - forecast'!AE$18 -> -494.8909531 | AF8: =-AF$31*(1-'Inputs - forecast'!AF$24)*'Inputs - forecast'!AF$18 -> -503.5609018 | AG8: =-AG$31*(1-'Inputs - forecast'!AG$24)*'Inputs - forecast'!AG$18 -> -512.3446371 | AH8: =-AH$31*(1-'Inputs - forecast'!AH$24)*'Inputs - forecast'!AH$18 -> -521.2432422 | AI8: =-AI$31*(1-'Inputs - forecast'!AI$24)*'Inputs - forecast'!AI$18 -> -530.2577985 | AJ8: =-AJ$31*(1-'Inputs - forecast'!AJ$24)*'Inputs - forecast'!AJ$18 -> -539.3893846 | AK8: =-AK$31*(1-'Inputs - forecast'!AK$24)*'Inputs - forecast'!AK$18 -> -548.6390759 | AL8: =-AL$31*(1-'Inputs - forecast'!AL$24)*'Inputs - forecast'!AL$18 -> -558.0079439 | AM8: =-AM$31*(1-'Inputs - forecast'!AM$24)*'Inputs - forecast'!AM$18 -> -567.4970559 | AN8: =-AN$31*(1-'Inputs - forecast'!AN$24)*'Inputs - forecast'!AN$18 -> -577.107474
B9: Revaluation | F9: 0 | G9: 0 | H9: 0 | I9: 0 | J9: 0 | K9: =('Inputs - forecast'!K27-'Inputs - forecast'!K28)*K31 -> 116.6969401 | L9: =('Inputs - forecast'!L27-'Inputs - forecast'!L28)*L31 -> 124.3958738 | M9: =('Inputs - forecast'!M27-'Inputs - forecast'!M28)*M31 -> 134.1325463 | N9: =('Inputs - forecast'!N27-'Inputs - forecast'!N28)*N31 -> 142.5536967 | O9: =('Inputs - forecast'!O27-'Inputs - forecast'!O28)*O31 -> 154.4426974 | P9: =('Inputs - forecast'!P27-'Inputs - forecast'!P28)*P31 -> 169.0893281 | Q9: =('Inputs - forecast'!Q27-'Inputs - forecast'!Q28)*Q31 -> 179.8922 | R9: =('Inputs - forecast'!R27-'Inputs - forecast'!R28)*R31 -> 189.8933518 | S9: =('Inputs - forecast'!S27-'Inputs - forecast'!S28)*S31 -> 198.7978862 | T9: =('Inputs - forecast'!T27-'Inputs - forecast'!T28)*T31 -> 209.1504403 | U9: =('Inputs - forecast'!U27-'Inputs - forecast'!U28)*U31 -> 220.1225372 | V9: =('Inputs - forecast'!V27-'Inputs - forecast'!V28)*V31 -> 224.1570307 | W9: =('Inputs - forecast'!W27-'Inputs - forecast'!W28)*W31 -> 228.2462257 | X9: =('Inputs - forecast'!X27-'Inputs - forecast'!X28)*X31 -> 232.3906965 | Y9: =('Inputs - forecast'!Y27-'Inputs - forecast'!Y28)*Y31 -> 236.5910184 | Z9: =('Inputs - forecast'!Z27-'Inputs - forecast'!Z28)*Z31 -> 240.8477676 | AA9: =('Inputs - forecast'!AA27-'Inputs - forecast'!AA28)*AA31 -> 245.1615212 | AB9: =('Inputs - forecast'!AB27-'Inputs - forecast'!AB28)*AB31 -> 249.5328565 | AC9: =('Inputs - forecast'!AC27-'Inputs - forecast'!AC28)*AC31 -> 253.9623515 | AD9: =('Inputs - forecast'!AD27-'Inputs - forecast'!AD28)*AD31 -> 258.4505838 | AE9: =('Inputs - forecast'!AE27-'Inputs - forecast'!AE28)*AE31 -> 262.9981313 | AF9: =('Inputs - forecast'!AF27-'Inputs - forecast'!AF28)*AF31 -> 267.6055712 | AG9: =('Inputs - forecast'!AG27-'Inputs - forecast'!AG28)*AG31 -> 272.2734803 | AH9: =('Inputs - forecast'!AH27-'Inputs - forecast'!AH28)*AH31 -> 277.0024342 | AI9: =('Inputs - forecast'!AI27-'Inputs - forecast'!AI28)*AI31 -> 281.7930077 | AJ9: =('Inputs - forecast'!AJ27-'Inputs - forecast'!AJ28)*AJ31 -> 286.6457738 | AK9: =('Inputs - forecast'!AK27-'Inputs - forecast'!AK28)*AK31 -> 291.5613042 | AL9: =('Inputs - forecast'!AL27-'Inputs - forecast'!AL28)*AL31 -> 296.5401683 | AM9: =('Inputs - forecast'!AM27-'Inputs - forecast'!AM28)*AM31 -> 301.5829332 | AN9: =('Inputs - forecast'!AN27-'Inputs - forecast'!AN28)*AN31 -> 306.6901634 | AP9: Inflationary gain as a result of RAB indexing, difference on this row compared to revaluation of RAB in row 29 is due to RAB revaluation happening on opening balance vs. year end timing in building blocks in this model.
B10: Tax | F10: =F50 -> -76.07825508 | G10: -76.73880486 | H10: -76.65485458 | I10: -76.12868197 | J10: -77.19311023 | K10: -57.93486272 | L10: -56.47601994 | M10: -52.19840345 | N10: -49.54989377 | O10: -43.84226629 | P10: -80.39986976 | Q10: -77.95051371 | R10: -76.05723331 | S10: -74.02018974 | T10: -71.52275458 | U10: -87.06083516 | V10: -88.46891853 | W10: -89.91094489 | X10: -91.38770871 | Y10: -92.90002268 | Z10: -94.02258372 | AA10: -95.59998824 | AB10: -97.21532389 | AC10: -98.86947694 | AD10: -100.563354 | AE10: -101.45793 | AF10: -103.217259 | AG10: -105.018822 | AH10: -106.8636045 | AI10: -108.7526149 | AJ10: -109.3900435 | AK10: -111.3446896 | AL10: -113.3462096 | AM10: -115.3956965 | AN10: -117.4942683
B11: Opex | F11: =F19 -> -265.3 | G11: =G19 -> -271.014 | H11: -282.88476 | I11: -293.2117704 | J11: -297.668844 | K11: -350.1716429 | L11: -354.5237231 | M11: -362.7732174 | N11: -370.0286818 | O11: -377.4292554 | P11: -385.934477 | Q11: -393.6531665 | R11: -401.5262298 | S11: -409.5567544 | T11: -417.7478895 | U11: -426.1028473 | V11: -434.6249043 | W11: -443.3174023 | X11: -452.1837504 | Y11: -461.2274254 | Z11: -470.4519739 | AA11: -479.8610134 | AB11: -489.4582336 | AC11: -499.2473983 | AD11: -509.2323463 | AE11: -519.4169932 | AF11: -529.8053331 | AG11: -540.4014397 | AH11: -551.2094685 | AI11: -562.2336579 | AJ11: -573.4783311 | AK11: -584.9478977 | AL11: -596.6468556 | AM11: -608.5797928 | AN11: -620.7513886
B12: Depreciation | F12: =F33 -> -250.4663212 | G12: -258.3062299 | H12: -262.469763 | I12: -269.4234345 | J12: -277.1222115 | K12: -292.1884632 | L12: -311.4652293 | M12: -335.8441322 | N12: -356.9292008 | O12: -386.6971522 | P12: -403.4762519 | Q12: -419.5408201 | R12: -434.5743564 | S12: -451.3169386 | T12: -468.8841775 | U12: -479.1444444 | V12: -489.6099166 | W12: -500.2846982 | X12: -511.1729755 | Y12: -522.2790183 | Z12: -533.607182 | AA12: -545.1619089 | AB12: -556.9477304 | AC12: -568.9692683 | AD12: -581.231237 | AE12: -593.7384451 | AF12: -606.4957973 | AG12: -619.5082965 | AH12: -632.7810458 | AI12: -646.31925 | AJ12: -660.1282183 | AK12: -674.213366 | AL12: -688.5802166 | AM12: -703.2344043 | AN12: -718.1816757
B13: Net revenue | D13: =IRR(F13:AN13,'Inputs - forecast'!AO27) -> 0.055381 | F13: =SUM(F6:F12) -> 7.393838765 | G13: 5.714985891 | H13: 0.8774898697 | I13: -6.723558904 | J13: -9.772411936 | K13: 40.35121377 | L13: 24.00122578 | M13: -1.570734053 | N13: -21.89684045 | O13: -53.41506655 | P13: 27.67585477 | Q13: 11.85231583 | R13: -1.834415265 | S13: -14.92390481 | T13: -30.47401795 | U13: -0.1933589088 | V13: -0.1298990679 | W13: -0.02738912101 | X13: 0.1157075522 | Y13: 0.3009734168 | Z13: -0.5657361314 | AA13: -0.3131104662 | AB13: -0.01371911122 | AC13: 0.334207511 | AD13: 0.7324910545 | AE13: -0.9768706743 | AF13: -0.515390654 | AG13: 0.001373684169 | AH13: 0.5754491209 | AI13: 1.208921395 | AJ13: -1.430796431 | AK13: -0.7387243262 | AL13: 0.01803734982 | AM13: 0.8417993514 | AN13: 1.734938987
B14: Present value | F14: =F13/'Inputs - forecast'!F$32 -> 7.005847902 | G14: =G13/'Inputs - forecast'!G$32 -> 5.130936264 | H14: =H13/'Inputs - forecast'!H$32 -> 0.7464733327 | I14: =I13/'Inputs - forecast'!I$32 -> -5.41953629 | J14: =J13/'Inputs - forecast'!J$32 -> -7.463721208 | K14: =K13/'Inputs - forecast'!K$32 -> 29.20121857 | L14: =L13/'Inputs - forecast'!L$32 -> 16.45767657 | M14: =M13/'Inputs - forecast'!M$32 -> -1.020536374 | N14: =N13/'Inputs - forecast'!N$32 -> -13.48025203 | O14: =O13/'Inputs - forecast'!O$32 -> -31.15810673 | P14: =P13/'Inputs - forecast'!P$32 -> 15.29674611 | Q14: =Q13/'Inputs - forecast'!Q$32 -> 6.207145986 | R14: =R13/'Inputs - forecast'!R$32 -> -0.9102844597 | S14: =S13/'Inputs - forecast'!S$32 -> -7.017019314 | T14: =T13/'Inputs - forecast'!T$32 -> -13.57658832 | U14: =U13/'Inputs - forecast'!U$32 -> -0.08162361882 | V14: =V13/'Inputs - forecast'!V$32 -> -0.05195752108 | W14: =W13/'Inputs - forecast'!W$32 -> -0.01038033121 | X14: =X13/'Inputs - forecast'!X$32 -> 0.04155138948 | Y14: =Y13/'Inputs - forecast'!Y$32 -> 0.1024100816 | Z14: =Z13/'Inputs - forecast'!Z$32 -> -0.1823976416 | AA14: =AA13/'Inputs - forecast'!AA$32 -> -0.09565190324 | AB14: =AB13/'Inputs - forecast'!AB$32 -> -0.003971117492 | AC14: =AC13/'Inputs - forecast'!AC$32 -> 0.09166292136 | AD14: =AD13/'Inputs - forecast'!AD$32 -> 0.190357741 | AE14: =AE13/'Inputs - forecast'!AE$32 -> -0.240544825 | AF14: =AF13/'Inputs - forecast'!AF$32 -> -0.1202503124 | AG14: =AG13/'Inputs - forecast'!AG$32 -> 0.0003036877657 | AH14: =AH13/'Inputs - forecast'!AH$32 -> 0.1205419084 | AI14: =AI13/'Inputs - forecast'!AI$32 -> 0.2399495412 | AJ14: =AJ13/'Inputs - forecast'!AJ$32 -> -0.2690855876 | AK14: =AK13/'Inputs - forecast'!AK$32 -> -0.1316393467 | AL14: =AL13/'Inputs - forecast'!AL$32 -> 0.003045557299 | AM14: =AM13/'Inputs - forecast'!AM$32 -> 0.1346769778 | AN14: =AN13/'Inputs - forecast'!AN$32 -> 0.2630023992
B15: Sum of present values | AN15: =SUM(F14:AN14) -> 7.024936188e-13
A17: Regulatory cashflows
B18: Revenue | F18: =F6 -> 866.9501691 | G18: 884.2891725 | H18: 901.9749559 | I18: 920.014455 | J18: 938.4147441 | K18: 936.2558456 | L18: 954.9809625 | M18: 974.0805818 | N18: 993.5621934 | O18: 1013.433437 | P18: 1180.917248 | Q18: 1204.535593 | R18: 1228.626305 | S18: 1253.198831 | T18: 1278.262808 | U18: 1361.088413 | V18: 1388.310181 | W18: 1416.076385 | X18: 1444.397913 | Y18: 1473.285871 | Z18: 1501.22968 | AA18: 1531.254273 | AB18: 1561.879359 | AC18: 1593.116946 | AD18: 1624.979285 | AE18: 1654.479041 | AF18: 1687.568622 | AG18: 1721.319994 | AH18: 1755.746394 | AI18: 1790.861322 | AJ18: 1822.046975 | AK18: 1858.487914 | AL18: 1895.657672 | AM18: 1933.570826 | AN18: 1972.242242
B19: Opex | F19: =-'Inputs - forecast'!F10 -> -265.3 | G19: =-'Inputs - forecast'!G10 -> -271.014 | H19: =-'Inputs - forecast'!H10 -> -282.88476 | I19: =-'Inputs - forecast'!I10 -> -293.2117704 | J19: =-'Inputs - forecast'!J10 -> -297.668844 | K19: =-'Inputs - forecast'!K10 -> -350.1716429 | L19: =-'Inputs - forecast'!L10 -> -354.5237231 | M19: =-'Inputs - forecast'!M10 -> -362.7732174 | N19: =-'Inputs - forecast'!N10 -> -370.0286818 | O19: =-'Inputs - forecast'!O10 -> -377.4292554 | P19: =-'Inputs - forecast'!P10 -> -385.934477 | Q19: =-'Inputs - forecast'!Q10 -> -393.6531665 | R19: =-'Inputs - forecast'!R10 -> -401.5262298 | S19: =-'Inputs - forecast'!S10 -> -409.5567544 | T19: =-'Inputs - forecast'!T10 -> -417.7478895 | U19: =-'Inputs - forecast'!U10 -> -426.1028473 | V19: =-'Inputs - forecast'!V10 -> -434.6249043 | W19: =-'Inputs - forecast'!W10 -> -443.3174023 | X19: =-'Inputs - forecast'!X10 -> -452.1837504 | Y19: =-'Inputs - forecast'!Y10 -> -461.2274254 | Z19: =-'Inputs - forecast'!Z10 -> -470.4519739 | AA19: =-'Inputs - forecast'!AA10 -> -479.8610134 | AB19: =-'Inputs - forecast'!AB10 -> -489.4582336 | AC19: =-'Inputs - forecast'!AC10 -> -499.2473983 | AD19: =-'Inputs - forecast'!AD10 -> -509.2323463 | AE19: =-'Inputs - forecast'!AE10 -> -519.4169932 | AF19: =-'Inputs - forecast'!AF10 -> -529.8053331 | AG19: =-'Inputs - forecast'!AG10 -> -540.4014397 | AH19: =-'Inputs - forecast'!AH10 -> -551.2094685 | AI19: =-'Inputs - forecast'!AI10 -> -562.2336579 | AJ19: =-'Inputs - forecast'!AJ10 -> -573.4783311 | AK19: =-'Inputs - forecast'!AK10 -> -584.9478977 | AL19: =-'Inputs - forecast'!AL10 -> -596.6468556 | AM19: =-'Inputs - forecast'!AM10 -> -608.5797928 | AN19: =-'Inputs - forecast'!AN10 -> -620.7513886
B20: Tax | F20: =F10 -> -76.07825508 | G20: -76.73880486 | H20: -76.65485458 | I20: -76.12868197 | J20: -77.19311023 | K20: -57.93486272 | L20: -56.47601994 | M20: -52.19840345 | N20: -49.54989377 | O20: -43.84226629 | P20: -80.39986976 | Q20: -77.95051371 | R20: -76.05723331 | S20: -74.02018974 | T20: -71.52275458 | U20: -87.06083516 | V20: -88.46891853 | W20: -89.91094489 | X20: -91.38770871 | Y20: -92.90002268 | Z20: -94.02258372 | AA20: -95.59998824 | AB20: -97.21532389 | AC20: -98.86947694 | AD20: -100.563354 | AE20: -101.45793 | AF20: -103.217259 | AG20: -105.018822 | AH20: -106.8636045 | AI20: -108.7526149 | AJ20: -109.3900435 | AK20: -111.3446896 | AL20: -113.3462096 | AM20: -115.3956965 | AN20: -117.4942683
B21: Capex | F21: =-'Inputs - forecast'!F$11 -> -337.2 | G21: =-'Inputs - forecast'!G$11 -> -376.992 | H21: =-'Inputs - forecast'!H$11 -> -422.9226 | I21: =-'Inputs - forecast'!I$11 -> -418.0098312 | J21: =-'Inputs - forecast'!J$11 -> -457.3275876 | K21: =-'Inputs - forecast'!K$11 -> -546.3618351 | L21: =-'Inputs - forecast'!L$11 -> -654.8840996 | M21: =-'Inputs - forecast'!M$11 -> -607.7127487 | N21: =-'Inputs - forecast'!N$11 -> -785.1123291 | O21: =-'Inputs - forecast'!O$11 -> -934.2613411 | P21: =-'Inputs - forecast'!P$11 -> -755.0594849 | Q21: =-'Inputs - forecast'!Q$11 -> -722.9055671 | R21: =-'Inputs - forecast'!R$11 -> -676.5091365 | S21: =-'Inputs - forecast'!S$11 -> -753.4161966 | T21: =-'Inputs - forecast'!T$11 -> -790.5257513 | U21: =-'Inputs - forecast'!U$11 -> -461.7120088 | V21: =-'Inputs - forecast'!V$11 -> -470.9462489 | W21: =-'Inputs - forecast'!W$11 -> -480.3651739 | X21: =-'Inputs - forecast'!X$11 -> -489.9724774 | Y21: =-'Inputs - forecast'!Y$11 -> -499.771927 | Z21: =-'Inputs - forecast'!Z$11 -> -509.7673655 | AA21: =-'Inputs - forecast'!AA$11 -> -519.9627128 | AB21: =-'Inputs - forecast'!AB$11 -> -530.3619671 | AC21: =-'Inputs - forecast'!AC$11 -> -540.9692064 | AD21: =-'Inputs - forecast'!AD$11 -> -551.7885905 | AE21: =-'Inputs - forecast'!AE$11 -> -562.8243623 | AF21: =-'Inputs - forecast'!AF$11 -> -574.0808496 | AG21: =-'Inputs - forecast'!AG$11 -> -585.5624666 | AH21: =-'Inputs - forecast'!AH$11 -> -597.2737159 | AI21: =-'Inputs - forecast'!AI$11 -> -609.2191902 | AJ21: =-'Inputs - forecast'!AJ$11 -> -621.403574 | AK21: =-'Inputs - forecast'!AK$11 -> -633.8316455 | AL21: =-'Inputs - forecast'!AL$11 -> -646.5082784 | AM21: =-'Inputs - forecast'!AM$11 -> -659.438444 | AN21: =-'Inputs - forecast'!AN$11 -> -672.6272129
B22: Opening RAB | E22: =-'Inputs - forecast'!E$12 -> -4834
B23: Closing RAB | J23: =-J36+J34 -> 0 | O23: =-O36+O34 -> 0 | T23: =-T36+T34 -> 0 | Y23: =-Y36+Y34 -> 0 | AD23: =-AD36+AD34 -> 0 | AI23: =-AI36+AI34 -> 0 | AN23: =AN34 -> 14774.87374
B24: Sum | E24: =SUM(E18:E23) -> -4834 | F24: 188.371914 | G24: 159.5443676 | H24: 119.5127413 | I24: 132.6641715 | J24: 106.2252023 | K24: -18.2124951 | L24: -110.9028801 | M24: -48.60378775 | N24: -211.1287112 | O24: -342.0994255 | P24: -40.4765831 | Q24: 10.02634614 | R24: 74.53370565 | S24: 16.20569063 | T24: -1.533587319 | U24: 386.2127217 | V24: 394.2701095 | W24: 402.4828637 | X24: 410.853976 | Y24: 419.3864957 | Z24: 426.9877565 | AA24: 435.8305588 | AB24: 444.8438341 | AC24: 454.0308642 | AD24: 463.394994 | AE24: 470.7797554 | AF24: 480.4651801 | AG24: 490.3372659 | AH24: 500.3996051 | AI24: 510.6558589 | AJ24: 517.775026 | AK24: 528.3636812 | AL24: 539.1563286 | AM24: 550.1568925 | AN24: 15336.24311
B25: Present value | E25: =E24/'Inputs - forecast'!E$32 -> -4834 | F25: =F24/'Inputs - forecast'!F$32 -> 178.4871189 | G25: =G24/'Inputs - forecast'!G$32 -> 143.2395455 | H25: =H24/'Inputs - forecast'!H$32 -> 101.6684949 | I25: =I24/'Inputs - forecast'!I$32 -> 106.934185 | J25: =J24/'Inputs - forecast'!J$32 -> 81.12995036 | K25: =K24/'Inputs - forecast'!K$32 -> -13.17995174 | L25: =L24/'Inputs - forecast'!L$32 -> -76.04627146 | M25: =M24/'Inputs - forecast'!M$32 -> -31.57882344 | N25: =N24/'Inputs - forecast'!N$32 -> -129.9762057 | O25: =O24/'Inputs - forecast'!O$32 -> -199.5536297 | P25: =P24/'Inputs - forecast'!P$32 -> -22.37184796 | Q25: =Q24/'Inputs - forecast'!Q$32 -> 5.250872075 | R25: =R24/'Inputs - forecast'!R$32 -> 36.98555898 | S25: =S24/'Inputs - forecast'!S$32 -> 7.619697764 | T25: =T24/'Inputs - forecast'!T$32 -> -0.683233951 | U25: =U24/'Inputs - forecast'!U$32 -> 163.0340188 | V25: =V24/'Inputs - forecast'!V$32 -> 157.7016514 | W25: =W24/'Inputs - forecast'!W$32 -> 152.538865 | X25: =X24/'Inputs - forecast'!X$32 -> 147.54053 | Y25: =Y24/'Inputs - forecast'!Y$32 -> 142.7016569 | Z25: =Z24/'Inputs - forecast'!Z$32 -> 137.6641078 | AA25: =AA24/'Inputs - forecast'!AA$32 -> 133.1415808 | AB25: =AB24/'Inputs - forecast'!AB$32 -> 128.7639631 | AC25: =AC24/'Inputs - forecast'!AC$32 -> 124.5268105 | AD25: =AD24/'Inputs - forecast'!AD$32 -> 120.4258041 | AE25: =AE24/'Inputs - forecast'!AE$32 -> 115.9248986 | AF25: =AF24/'Inputs - forecast'!AF$32 -> 112.1015439 | AG25: =AG24/'Inputs - forecast'!AG$32 -> 108.4015031 | AH25: =AH24/'Inputs - forecast'!AH$32 -> 104.8209497 | AI25: =AI24/'Inputs - forecast'!AI$32 -> 101.3561673 | AJ25: =AJ24/'Inputs - forecast'!AJ$32 -> 97.37639408 | AK25: =AK24/'Inputs - forecast'!AK$32 -> 94.15345801 | AL25: =AL24/'Inputs - forecast'!AL$32 -> 91.03507489 | AM25: =AM24/'Inputs - forecast'!AM$32 -> 88.01796706 | AN25: =AN24/'Inputs - forecast'!AN$32 -> 2324.847596
B26: Sum of present values | AN26: =SUM(E25:AN25) -> -1.364242053e-11
A28: Regulatory Asset Base | F28: TP depreciation rate used 2021-2030.
B29: Useful lives - existing assets | E29: Existing assets yrs.: | F29: 19.3 | G29: 19.05 | H29: 19.2 | I29: 19.3 | J29: 19.3 | K29: 19.3 | L29: 19.3 | M29: 19.3 | N29: 19.3 | O29: 19.3
B30: Useful lives - new assets | K30: RAB indexed from 2026 | P30: 45 | Q30: 45 | R30: 45 | S30: 45 | T30: 45 | U30: 45 | V30: 45 | W30: 45 | X30: 45 | Y30: 45 | Z30: 45 | AA30: 45 | AB30: 45 | AC30: 45 | AD30: 45 | AE30: 45 | AF30: 45 | AG30: 45 | AH30: 45 | AI30: 45 | AJ30: 45 | AK30: 45 | AL30: 45 | AM30: 45 | AN30: 45
B31: Opening RAB | F31: =E34 -> 4834 | G31: =F34 -> 4920.733679 | H31: =G34 -> 5039.419449 | I31: =H34 -> 5199.872286 | J31: =I34 -> 5348.458683 | K31: =J36*(1+'Inputs - forecast'!K$14) -> 5639.23734 | L31: =K34*(1+'Inputs - forecast'!L$14) -> 6011.278926 | M31: =L34*(1+'Inputs - forecast'!M$14) -> 6481.791752 | N31: =M34*(1+'Inputs - forecast'!N$14) -> 6888.733576 | O31: =N34*(1+'Inputs - forecast'!O$14) -> 7463.255038 | P31: =O34*(1+'Inputs - forecast'!P$14) -> 8171.035612 | Q31: =P34*(1+'Inputs - forecast'!Q$14) -> 8693.071222 | R31: =Q34*(1+'Inputs - forecast'!R$14) -> 9176.364688 | S31: =R34*(1+'Inputs - forecast'!S$14) -> 9606.665457 | T31: =S34*(1+'Inputs - forecast'!T$14) -> 10106.94001 | U31: =T34*(1+'Inputs - forecast'!U$14) -> 10637.15322 | V31: =U34*(1+'Inputs - forecast'!V$14) -> 10832.1152 | W31: =V34*(1+'Inputs - forecast'!W$14) -> 11029.72056 | X31: =W34*(1+'Inputs - forecast'!X$14) -> 11229.99705 | Y31: =X34*(1+'Inputs - forecast'!Y$14) -> 11432.97249 | Z31: =Y34*(1+'Inputs - forecast'!Z$14) -> 11638.6747 | AA31: =Z34*(1+'Inputs - forecast'!AA$14) -> 11847.13159 | AB31: =AA34*(1+'Inputs - forecast'!AB$14) -> 12058.37104 | AC31: =AB34*(1+'Inputs - forecast'!AC$14) -> 12272.42098 | AD31: =AC34*(1+'Inputs - forecast'!AD$14) -> 12489.30934 | AE31: =AD34*(1+'Inputs - forecast'!AE$14) -> 12709.06402 | AF31: =AE34*(1+'Inputs - forecast'!AF$14) -> 12931.71294 | AG31: =AF34*(1+'Inputs - forecast'!AG$14) -> 13157.28395 | AH31: =AG34*(1+'Inputs - forecast'!AH$14) -> 13385.80488 | AI31: =AH34*(1+'Inputs - forecast'!AI$14) -> 13617.3035 | AJ31: =AI34*(1+'Inputs - forecast'!AJ$14) -> 13851.80751 | AK31: =AJ34*(1+'Inputs - forecast'!AK$14) -> 14089.34453 | AL31: =AK34*(1+'Inputs - forecast'!AL$14) -> 14329.94206 | AM31: =AL34*(1+'Inputs - forecast'!AM$14) -> 14573.62753 | AN31: =AM34*(1+'Inputs - forecast'!AN$14) -> 14820.4282
B32: Capex | F32: =-F21 -> 337.2 | G32: 376.992 | H32: 422.9226 | I32: 418.0098312 | J32: 457.3275876 | K32: 546.3618351 | L32: 654.8840996 | M32: 607.7127487 | N32: 785.1123291 | O32: 934.2613411 | P32: 755.0594849 | Q32: 722.9055671 | R32: 676.5091365 | S32: 753.4161966 | T32: 790.5257513 | U32: 461.7120088 | V32: 470.9462489 | W32: 480.3651739 | X32: 489.9724774 | Y32: 499.771927 | Z32: 509.7673655 | AA32: 519.9627128 | AB32: 530.3619671 | AC32: 540.9692064 | AD32: 551.7885905 | AE32: 562.8243623 | AF32: 574.0808496 | AG32: 585.5624666 | AH32: 597.2737159 | AI32: 609.2191902 | AJ32: 621.403574 | AK32: 633.8316455 | AL32: 646.5082784 | AM32: 659.438444 | AN32: 672.6272129
B33: Depreciation | F33: =-F31/F29 -> -250.4663212 | G33: -258.3062299 | H33: -262.469763 | I33: -269.4234345 | J33: -277.1222115 | K33: -292.1884632 | L33: -311.4652293 | M33: -335.8441322 | N33: -356.9292008 | O33: -386.6971522 | P33: =O33-(P32/P$30) -> -403.4762519 | Q33: =P33-(Q32/Q30) -> -419.5408201 | R33: -434.5743564 | S33: -451.3169386 | T33: -468.8841775 | U33: -479.1444444 | V33: -489.6099166 | W33: -500.2846982 | X33: -511.1729755 | Y33: -522.2790183 | Z33: -533.607182 | AA33: -545.1619089 | AB33: -556.9477304 | AC33: -568.9692683 | AD33: -581.231237 | AE33: -593.7384451 | AF33: -606.4957973 | AG33: -619.5082965 | AH33: -632.7810458 | AI33: -646.31925 | AJ33: -660.1282183 | AK33: -674.213366 | AL33: -688.5802166 | AM33: -703.2344043 | AN33: -718.1816757
B34: Closing RAB | E34: =-E22 -> 4834 | F34: =SUM(F31:F33) -> 4920.733679 | G34: 5039.419449 | H34: 5199.872286 | I34: 5348.458683 | J34: 5528.664059 | K34: 5893.410712 | L34: 6354.697796 | M34: 6753.660369 | N34: 7316.916704 | O34: 8010.819227 | P34: 8522.618845 | Q34: 8996.435969 | R34: 9418.299468 | S34: 9908.764716 | T34: 10428.58158 | U34: 10619.72078 | V34: 10813.45153 | W34: 11009.80103 | X34: 11208.79656 | Y34: 11410.4654 | Z34: 11614.83489 | AA34: 11821.93239 | AB34: 12031.78527 | AC34: 12244.42092 | AD34: 12459.86669 | AE34: 12678.14994 | AF34: 12899.29799 | AG34: 13123.33812 | AH34: 13350.29755 | AI34: 13580.20345 | AJ34: 13813.08287 | AK34: 14048.96281 | AL34: 14287.87012 | AM34: 14529.83157 | AN34: 14774.87374
B36: RAB washed up for actual inflation | J36: =J34 -> 5528.664059 | O36: =O34/'Inputs - forecast'!O15*'Inputs - actual'!O15 -> 8010.819227 | T36: =T34/'Inputs - forecast'!T15*'Inputs - actual'!T15 -> 10428.58158 | Y36: =Y34/'Inputs - forecast'!Y15*'Inputs - actual'!Y15 -> 11410.4654 | AD36: =AD34/'Inputs - forecast'!AD15*'Inputs - actual'!AD15 -> 12459.86669 | AI36: =AI34/'Inputs - forecast'!AI15*'Inputs - actual'!AI15 -> 13580.20345 | AN36: =AN34/'Inputs - forecast'!AN15*'Inputs - actual'!AN15 -> 14774.87374
A38: Tax asset base | F38: =F29 -> 19.3 | G38: 19.05 | H38: 19.2 | I38: 19.3 | J38: 19.3 | K38: 19.3 | L38: 19.3 | M38: 19.3 | N38: 19.3 | O38: 19.3 | P38: 0 | Q38: 0 | R38: 0 | S38: 0 | T38: 0 | U38: 0 | V38: 0 | W38: 0 | X38: 0 | Y38: 0 | Z38: 0 | AA38: 0 | AB38: 0 | AC38: 0 | AD38: 0
B39: Opening balance | F39: =E42 -> 4834 | G39: 4920.733679 | H39: 5039.419449 | I39: 5199.872286 | J39: 5348.458683 | K39: 5528.664059 | L39: 5788.566616 | M39: 6143.524984 | N39: 6432.920376 | O39: 6884.720769 | P39: 7462.260827 | Q39: 7843.819928 | R39: 8177.160544 | S39: 8449.071193 | T39: 8781.14632 | U39: 9132.763763 | V39: 9145.307196 | W39: 9156.619397 | X39: 9166.675742 | Y39: 9175.451113 | Z39: 9182.91989 | AA39: 9189.055943 | AB39: 9193.832616 | AC39: 9197.222721 | AD39: 9199.198528 | AE39: 9199.73175 | AF39: 9198.793537 | AG39: 9196.354458 | AH39: 9192.384497 | AI39: 9186.853036 | AJ39: 9179.728845 | AK39: 9170.980069 | AL39: 9160.574218 | AM39: 9148.478149 | AN39: 9134.658057
B40: Additional borrowing for capex | F40: =-F21 -> 337.2 | G40: 376.992 | H40: 422.9226 | I40: 418.0098312 | J40: 457.3275876 | K40: 546.3618351 | L40: 654.8840996 | M40: 607.7127487 | N40: 785.1123291 | O40: 934.2613411 | P40: 755.0594849 | Q40: 722.9055671 | R40: 676.5091365 | S40: 753.4161966 | T40: 790.5257513 | U40: 461.7120088 | V40: 470.9462489 | W40: 480.3651739 | X40: 489.9724774 | Y40: 499.771927 | Z40: 509.7673655 | AA40: 519.9627128 | AB40: 530.3619671 | AC40: 540.9692064 | AD40: 551.7885905 | AE40: 562.8243623 | AF40: 574.0808496 | AG40: 585.5624666 | AH40: 597.2737159 | AI40: 609.2191902 | AJ40: 621.403574 | AK40: 633.8316455 | AL40: 646.5082784 | AM40: 659.438444 | AN40: 672.6272129
B41: Depreciation | F41: =-F39/F38 -> -250.4663212 | G41: -258.3062299 | H41: -262.469763 | I41: -269.4234345 | J41: -277.1222115 | K41: -286.4592777 | L41: -299.9257314 | M41: -318.3173567 | N41: -333.3119366 | O41: -356.7212834 | P41: =O41-(P40/P$30) -> -373.500383 | Q41: -389.5649512 | R41: -404.5984875 | S41: -421.3410697 | T41: -438.9083086 | U41: -449.1685755 | V41: -459.6340477 | W41: -470.3088293 | X41: -481.1971066 | Y41: -492.3031494 | Z41: -503.6313131 | AA41: -515.18604 | AB41: -526.9718615 | AC41: -538.9933994 | AD41: -551.2553681 | AE41: -563.7625762 | AF41: -576.5199284 | AG41: -589.5324277 | AH41: -602.8051769 | AI41: -616.3433811 | AJ41: -630.1523494 | AK41: -644.2374971 | AL41: -658.6043477 | AM41: -673.2585354 | AN41: -688.2058068
B42: Closing balance | E42: =E34 -> 4834 | F42: =SUM(F39:F41) -> 4920.733679 | G42: 5039.419449 | H42: 5199.872286 | I42: 5348.458683 | J42: 5528.664059 | K42: 5788.566616 | L42: 6143.524984 | M42: 6432.920376 | N42: 6884.720769 | O42: 7462.260827 | P42: 7843.819928 | Q42: 8177.160544 | R42: 8449.071193 | S42: 8781.14632 | T42: 9132.763763 | U42: 9145.307196 | V42: 9156.619397 | W42: 9166.675742 | X42: 9175.451113 | Y42: 9182.91989 | Z42: 9189.055943 | AA42: 9193.832616 | AB42: 9197.222721 | AC42: 9199.198528 | AD42: 9199.73175 | AE42: 9198.793537 | AF42: 9196.354458 | AG42: 9192.384497 | AH42: 9186.853036 | AI42: 9179.728845 | AJ42: 9170.980069 | AK42: 9160.574218 | AL42: 9148.478149 | AM42: 9134.658057 | AN42: 9119.079463
A44: Regulatory tax
B45: Revenue | F45: =F6 -> 866.9501691 | G45: 884.2891725 | H45: 901.9749559 | I45: 920.014455 | J45: 938.4147441 | K45: 936.2558456 | L45: 954.9809625 | M45: 974.0805818 | N45: 993.5621934 | O45: 1013.433437 | P45: 1180.917248 | Q45: 1204.535593 | R45: 1228.626305 | S45: 1253.198831 | T45: 1278.262808 | U45: 1361.088413 | V45: 1388.310181 | W45: 1416.076385 | X45: 1444.397913 | Y45: 1473.285871 | Z45: 1501.22968 | AA45: 1531.254273 | AB45: 1561.879359 | AC45: 1593.116946 | AD45: 1624.979285 | AE45: 1654.479041 | AF45: 1687.568622 | AG45: 1721.319994 | AH45: 1755.746394 | AI45: 1790.861322 | AJ45: 1822.046975 | AK45: 1858.487914 | AL45: 1895.657672 | AM45: 1933.570826 | AN45: 1972.242242
B46: Depreciation | F46: =F41 -> -250.4663212 | G46: -258.3062299 | H46: -262.469763 | I46: -269.4234345 | J46: -277.1222115 | K46: -286.4592777 | L46: -299.9257314 | M46: -318.3173567 | N46: -333.3119366 | O46: -356.7212834 | P46: -373.500383 | Q46: -389.5649512 | R46: -404.5984875 | S46: -421.3410697 | T46: -438.9083086 | U46: -449.1685755 | V46: -459.6340477 | W46: -470.3088293 | X46: -481.1971066 | Y46: -492.3031494 | Z46: -503.6313131 | AA46: -515.18604 | AB46: -526.9718615 | AC46: -538.9933994 | AD46: -551.2553681 | AE46: -563.7625762 | AF46: -576.5199284 | AG46: -589.5324277 | AH46: -602.8051769 | AI46: -616.3433811 | AJ46: -630.1523494 | AK46: -644.2374971 | AL46: -658.6043477 | AM46: -673.2585354 | AN46: -688.2058068
B47: Opex | F47: =F11 -> -265.3 | G47: -271.014 | H47: -282.88476 | I47: -293.2117704 | J47: -297.668844 | K47: -350.1716429 | L47: -354.5237231 | M47: -362.7732174 | N47: -370.0286818 | O47: -377.4292554 | P47: -385.934477 | Q47: -393.6531665 | R47: -401.5262298 | S47: -409.5567544 | T47: -417.7478895 | U47: -426.1028473 | V47: -434.6249043 | W47: -443.3174023 | X47: -452.1837504 | Y47: -461.2274254 | Z47: -470.4519739 | AA47: -479.8610134 | AB47: -489.4582336 | AC47: -499.2473983 | AD47: -509.2323463 | AE47: -519.4169932 | AF47: -529.8053331 | AG47: -540.4014397 | AH47: -551.2094685 | AI47: -562.2336579 | AJ47: -573.4783311 | AK47: -584.9478977 | AL47: -596.6468556 | AM47: -608.5797928 | AN47: -620.7513886
B48: Notional interest | F48: =-'Inputs - forecast'!F$21*'Inputs - forecast'!F24*F31 -> -79.475794 | G48: =-'Inputs - forecast'!G$21*'Inputs - forecast'!G24*G31 -> -80.90178241 | H48: =-'Inputs - forecast'!H$21*'Inputs - forecast'!H24*H31 -> -82.85309516 | I48: =-'Inputs - forecast'!I$21*'Inputs - forecast'!I24*I31 -> -85.49110025 | J48: =-'Inputs - forecast'!J$21*'Inputs - forecast'!J24*J31 -> -87.9340092 | K48: =-'Inputs - forecast'!K$21*'Inputs - forecast'!K24*K31 -> -92.7147011 | L48: =-'Inputs - forecast'!L$21*'Inputs - forecast'!L24*L31 -> -98.83143682 | M48: =-'Inputs - forecast'!M$21*'Inputs - forecast'!M24*M31 -> -106.5671382 | N48: =-'Inputs - forecast'!N$21*'Inputs - forecast'!N24*N31 -> -113.2576687 | O48: =-'Inputs - forecast'!O$21*'Inputs - forecast'!O24*O31 -> -122.7033761 | P48: =-'Inputs - forecast'!P$21*'Inputs - forecast'!P24*P31 -> -134.3399965 | Q48: =-'Inputs - forecast'!Q$21*'Inputs - forecast'!Q24*Q31 -> -142.922784 | R48: =-'Inputs - forecast'!R$21*'Inputs - forecast'!R24*R31 -> -150.8686118 | S48: =-'Inputs - forecast'!S$21*'Inputs - forecast'!S24*S31 -> -157.9431868 | T48: =-'Inputs - forecast'!T$21*'Inputs - forecast'!T24*T31 -> -166.1682007 | U48: =-'Inputs - forecast'!U$21*'Inputs - forecast'!U24*U31 -> -174.885436 | V48: =-'Inputs - forecast'!V$21*'Inputs - forecast'!V24*V31 -> -178.0908059 | W48: =-'Inputs - forecast'!W$21*'Inputs - forecast'!W24*W31 -> -181.3396357 | X48: =-'Inputs - forecast'!X$21*'Inputs - forecast'!X24*X31 -> -184.6323816 | Y48: =-'Inputs - forecast'!Y$21*'Inputs - forecast'!Y24*Y31 -> -187.9695007 | Z48: =-'Inputs - forecast'!Z$21*'Inputs - forecast'!Z24*Z31 -> -191.3514508 | AA48: =-'Inputs - forecast'!AA$21*'Inputs - forecast'!AA24*AA31 -> -194.7786904 | AB48: =-'Inputs - forecast'!AB$21*'Inputs - forecast'!AB24*AB31 -> -198.2516782 | AC48: =-'Inputs - forecast'!AC$21*'Inputs - forecast'!AC24*AC31 -> -201.7708733 | AD48: =-'Inputs - forecast'!AD$21*'Inputs - forecast'!AD24*AD31 -> -205.3367348 | AE48: =-'Inputs - forecast'!AE$21*'Inputs - forecast'!AE24*AE31 -> -208.9497216 | AF48: =-'Inputs - forecast'!AF$21*'Inputs - forecast'!AF24*AF31 -> -212.6102924 | AG48: =-'Inputs - forecast'!AG$21*'Inputs - forecast'!AG24*AG31 -> -216.3189054 | AH48: =-'Inputs - forecast'!AH$21*'Inputs - forecast'!AH24*AH31 -> -220.0760181 | AI48: =-'Inputs - forecast'!AI$21*'Inputs - forecast'!AI24*AI31 -> -223.8820869 | AJ48: =-'Inputs - forecast'!AJ$21*'Inputs - forecast'!AJ24*AJ31 -> -227.7375673 | AK48: =-'Inputs - forecast'!AK$21*'Inputs - forecast'!AK24*AK31 -> -231.6429134 | AL48: =-'Inputs - forecast'!AL$21*'Inputs - forecast'!AL24*AL31 -> -235.5985775 | AM48: =-'Inputs - forecast'!AM$21*'Inputs - forecast'!AM24*AM31 -> -239.6050102 | AN48: =-'Inputs - forecast'!AN$21*'Inputs - forecast'!AN24*AN31 -> -243.66266
B49: EBT | F49: =SUM(F45:F48) -> 271.7080538 | G49: 274.0671602 | H49: 273.7673378 | I49: 271.8881499 | J49: 275.6896794 | K49: 206.910224 | L49: 201.7000712 | M49: 186.4228695 | N49: 176.9639063 | O49: 156.5795224 | P49: 287.142392 | Q49: 278.3946918 | R49: 271.6329761 | S49: 264.3578205 | T49: 255.4384092 | U49: 310.9315541 | V49: 315.9604233 | W49: 321.1105175 | X49: 326.384674 | Y49: 331.7857953 | Z49: 335.7949419 | AA49: 341.4285294 | AB49: 347.1975853 | AC49: 353.1052748 | AD49: 359.1548356 | AE49: 362.3497499 | AF49: 368.6330678 | AG49: 375.0672213 | AH49: 381.6557305 | AI49: 388.402196 | AJ49: 390.6787267 | AK49: 397.6596058 | AL49: 404.8078915 | AM49: 412.1274874 | AN49: 419.6223869
B50: Calculated tax | F50: =-F49*'Inputs - forecast'!F25 -> -76.07825508 | G50: =-G49*'Inputs - forecast'!G25 -> -76.73880486 | H50: =-H49*'Inputs - forecast'!H25 -> -76.65485458 | I50: =-I49*'Inputs - forecast'!I25 -> -76.12868197 | J50: =-J49*'Inputs - forecast'!J25 -> -77.19311023 | K50: =-K49*'Inputs - forecast'!K25 -> -57.93486272 | L50: =-L49*'Inputs - forecast'!L25 -> -56.47601994 | M50: =-M49*'Inputs - forecast'!M25 -> -52.19840345 | N50: =-N49*'Inputs - forecast'!N25 -> -49.54989377 | O50: =-O49*'Inputs - forecast'!O25 -> -43.84226629 | P50: =-P49*'Inputs - forecast'!P25 -> -80.39986976 | Q50: =-Q49*'Inputs - forecast'!Q25 -> -77.95051371 | R50: =-R49*'Inputs - forecast'!R25 -> -76.05723331 | S50: =-S49*'Inputs - forecast'!S25 -> -74.02018974 | T50: =-T49*'Inputs - forecast'!T25 -> -71.52275458 | U50: =-U49*'Inputs - forecast'!U25 -> -87.06083516 | V50: =-V49*'Inputs - forecast'!V25 -> -88.46891853 | W50: =-W49*'Inputs - forecast'!W25 -> -89.91094489 | X50: =-X49*'Inputs - forecast'!X25 -> -91.38770871 | Y50: =-Y49*'Inputs - forecast'!Y25 -> -92.90002268 | Z50: =-Z49*'Inputs - forecast'!Z25 -> -94.02258372 | AA50: =-AA49*'Inputs - forecast'!AA25 -> -95.59998824 | AB50: =-AB49*'Inputs - forecast'!AB25 -> -97.21532389 | AC50: =-AC49*'Inputs - forecast'!AC25 -> -98.86947694 | AD50: =-AD49*'Inputs - forecast'!AD25 -> -100.563354 | AE50: =-AE49*'Inputs - forecast'!AE25 -> -101.45793 | AF50: =-AF49*'Inputs - forecast'!AF25 -> -103.217259 | AG50: =-AG49*'Inputs - forecast'!AG25 -> -105.018822 | AH50: =-AH49*'Inputs - forecast'!AH25 -> -106.8636045 | AI50: =-AI49*'Inputs - forecast'!AI25 -> -108.7526149 | AJ50: =-AJ49*'Inputs - forecast'!AJ25 -> -109.3900435 | AK50: =-AK49*'Inputs - forecast'!AK25 -> -111.3446896 | AL50: =-AL49*'Inputs - forecast'!AL25 -> -113.3462096 | AM50: =-AM49*'Inputs - forecast'!AM25 -> -115.3956965 | AN50: =-AN49*'Inputs - forecast'!AN25 -> -117.4942683
B51: Deferred tax | F51: =IF(F50>0,F50+E51,0) -> 0 | G51: =IF(G50>0,G50+F51,0) -> 0 | H51: =IF(H50>0,H50+G51,0) -> 0 | I51: =IF(I50>0,I50+H51,0) -> 0 | J51: =IF(J50>0,J50+I51,0) -> 0 | K51: 0 | L51: 0 | M51: 0 | N51: 0 | O51: 0 | P51: 0 | Q51: 0 | R51: 0 | S51: 0 | T51: 0 | U51: 0 | V51: 0 | W51: 0 | X51: 0 | Y51: 0 | Z51: 0 | AA51: 0 | AB51: 0 | AC51: 0 | AD51: 0 | AE51: 0 | AF51: 0 | AG51: 0 | AH51: 0 | AI51: 0 | AJ51: 0 | AK51: 0 | AL51: 0 | AM51: 0 | AN51: 0
B52: Tax | F52: =IF(F51>0,0,F50+E51) -> -76.07825508 | G52: -76.73880486 | H52: -76.65485458 | I52: -76.12868197 | J52: -77.19311023 | K52: -57.93486272 | L52: -56.47601994 | M52: -52.19840345 | N52: -49.54989377 | O52: -43.84226629 | P52: -80.39986976 | Q52: -77.95051371 | R52: -76.05723331 | S52: -74.02018974 | T52: -71.52275458 | U52: -87.06083516 | V52: -88.46891853 | W52: -89.91094489 | X52: -91.38770871 | Y52: -92.90002268 | Z52: -94.02258372 | AA52: -95.59998824 | AB52: -97.21532389 | AC52: -98.86947694 | AD52: -100.563354 | AE52: -101.45793 | AF52: -103.217259 | AG52: -105.018822 | AH52: -106.8636045 | AI52: -108.7526149 | AJ52: -109.3900435 | AK52: -111.3446896 | AL52: -113.3462096 | AM52: -115.3956965 | AN52: -117.4942683
A54: Goal seek to get PV of revenue = PV of expenditure for each regulatory period:
A55: Reg Period 1
A56: Calculation of revenue | K56: Sum
B57: Present value of revenue | F57: =F6/'Inputs - forecast'!F$32 -> 821.4570559 | G57: =G6/'Inputs - forecast'!G$32 -> 793.9182125 | H57: =H6/'Inputs - forecast'!H$32 -> 767.3025919 | I57: =I6/'Inputs - forecast'!I$32 -> 741.5792436 | J57: =J6/'Inputs - forecast'!J$32 -> 716.7182548 | K57: =SUM(F57:J57) -> 3840.975359
B58: Present value of cost | F58: =SUM(F7:F12)/'Inputs - forecast'!F$32 -> -814.451208 | G58: =SUM(G7:G12)/'Inputs - forecast'!G$32 -> -788.7872762 | H58: =SUM(H7:H12)/'Inputs - forecast'!H$32 -> -766.5561185 | I58: =SUM(I7:I12)/'Inputs - forecast'!I$32 -> -746.9987799 | J58: =SUM(J7:J12)/'Inputs - forecast'!J$32 -> -724.181976 | K58: =SUM(F58:J58) -> -3840.975359
B59: Difference | K59: =SUM(K57:K58) -> 0
B60: Revenue | K60: 866.9501691
A62: Reg Period 2
A63: Calculation of revenue | P63: Sum
B64: Present value of revenue | K64: =K6/'Inputs - forecast'!K$32 -> 677.5462008 | L64: =L6/'Inputs - forecast'!L$32 -> 654.8318804 | M64: =M6/'Inputs - forecast'!M$32 -> 632.8790437 | N64: =N6/'Inputs - forecast'!N$32 -> 611.6621624 | O64: =O6/'Inputs - forecast'!O$32 -> 591.1565639 | P64: =SUM(K64:O64) -> 3168.075851
B65: Present value of cost | K65: =SUM(K7:K12)/'Inputs - forecast'!K$32 -> -648.3449822 | L65: =SUM(L7:L12)/'Inputs - forecast'!L$32 -> -638.3742038 | M65: =SUM(M7:M12)/'Inputs - forecast'!M$32 -> -633.8995801 | N65: =SUM(N7:N12)/'Inputs - forecast'!N$32 -> -625.1424144 | O65: =SUM(O7:O12)/'Inputs - forecast'!O$32 -> -622.3146707 | P65: =SUM(K65:O65) -> -3168.075851
B66: Difference | P66: =SUM(P64:P65) -> 0
B67: Revenue | P67: 936.2558456
A69: Reg Period 3
A70: Calculation of revenue | U70: Sum
B71: Present value of revenue | P71: =P6/'Inputs - forecast'!P$32 -> 652.7058144 | Q71: =Q6/'Inputs - forecast'!Q$32 -> 630.8242527 | R71: =R6/'Inputs - forecast'!R$32 -> 609.676257 | S71: =S6/'Inputs - forecast'!S$32 -> 589.2372348 | T71: =T6/'Inputs - forecast'!T$32 -> 569.4834183 | U71: =SUM(P71:T71) -> 3051.926977
B72: Present value of cost | P72: =SUM(P7:P12)/'Inputs - forecast'!P$32 -> -637.4090683 | Q72: =SUM(Q7:Q12)/'Inputs - forecast'!Q$32 -> -624.6171067 | R72: =SUM(R7:R12)/'Inputs - forecast'!R$32 -> -610.5865415 | S72: =SUM(S7:S12)/'Inputs - forecast'!S$32 -> -596.2542541 | T72: =SUM(T7:T12)/'Inputs - forecast'!T$32 -> -583.0600067 | U72: =SUM(P72:T72) -> -3051.926977
B73: Difference | U73: =SUM(U71:U72) -> 0
B74: Revenue | U74: 1180.917248
U75: 0
A76: Reg Period 4
A77: Calculation of revenue | Z77: Sum
B78: Present value of revenue | U78: =U6/'Inputs - forecast'!U$32 -> 574.5634503 | V78: =V6/'Inputs - forecast'!V$32 -> 555.3015634 | W78: =W6/'Inputs - forecast'!W$32 -> 536.6854194 | X78: =X6/'Inputs - forecast'!X$32 -> 518.6933703 | Y78: =Y6/'Inputs - forecast'!Y$32 -> 501.3044935 | Z78: =SUM(U78:Y78) -> 2686.548297
B79: Present value of cost | U79: =SUM(U7:U12)/'Inputs - forecast'!U$32 -> -574.6450739 | V79: =SUM(V7:V12)/'Inputs - forecast'!V$32 -> -555.3535209 | W79: =SUM(W7:W12)/'Inputs - forecast'!W$32 -> -536.6957998 | X79: =SUM(X7:X12)/'Inputs - forecast'!X$32 -> -518.6518189 | Y79: =SUM(Y7:Y12)/'Inputs - forecast'!Y$32 -> -501.2020834 | Z79: =SUM(U79:Y79) -> -2686.548297
B80: Difference | Z80: =SUM(Z78:Z79) -> 0
B81: Revenue | Z81: 1361.088413
A83: Reg Period 5
A84: Calculation of revenue | AE84: Sum
B85: Present value of revenue | Z85: =Z6/'Inputs - forecast'!Z$32 -> 484.0078933 | AA85: =AA6/'Inputs - forecast'!AA$32 -> 467.7818259 | AB85: =AB6/'Inputs - forecast'!AB$32 -> 452.0997274 | AC85: =AC6/'Inputs - forecast'!AC$32 -> 436.9433616 | AD85: =AD6/'Inputs - forecast'!AD$32 -> 422.2951037 | AE85: =SUM(Z85:AD85) -> 2263.127912
B86: Present value of cost | Z86: =SUM(Z7:Z12)/'Inputs - forecast'!Z$32 -> -484.1902909 | AA86: =SUM(AA7:AA12)/'Inputs - forecast'!AA$32 -> -467.8774778 | AB86: =SUM(AB7:AB12)/'Inputs - forecast'!AB$32 -> -452.1036985 | AC86: =SUM(AC7:AC12)/'Inputs - forecast'!AC$32 -> -436.8516987 | AD86: =SUM(AD7:AD12)/'Inputs - forecast'!AD$32 -> -422.104746 | AE86: =SUM(Z86:AD86) -> -2263.127912
B87: Difference | AE87: =SUM(AE85:AE86) -> 0
B88: Revenue | AE88: 1501.22968
A90: Reg Period 6
A91: Calculation of revenue | AJ91: Sum
B92: Present value of revenue | AE92: =AE6/'Inputs - forecast'!AE$32 -> 407.399241 | AF92: =AF6/'Inputs - forecast'!AF$32 -> 393.7414316 | AG92: =AG6/'Inputs - forecast'!AG$32 -> 380.5414919 | AH92: =AH6/'Inputs - forecast'!AH$32 -> 367.784072 | AI92: =AI6/'Inputs - forecast'!AI$32 -> 355.4543368 | AJ92: =SUM(AE92:AI92) -> 1904.920573
B93: Present value of cost | AE93: =SUM(AE7:AE12)/'Inputs - forecast'!AE$32 -> -407.6397859 | AF93: =SUM(AF7:AF12)/'Inputs - forecast'!AF$32 -> -393.8616819 | AG93: =SUM(AG7:AG12)/'Inputs - forecast'!AG$32 -> -380.5411882 | AH93: =SUM(AH7:AH12)/'Inputs - forecast'!AH$32 -> -367.6635301 | AI93: =SUM(AI7:AI12)/'Inputs - forecast'!AI$32 -> -355.2143873 | AJ93: =SUM(AE93:AI93) -> -1904.920573
B94: Difference | AJ94: =SUM(AJ92:AJ93) -> 0
B95: Revenue | AJ95: 1654.479041
A97: Reg Period 7
A98: Calculation of revenue | AO98: Sum
B99: Present value of revenue | AJ99: =AJ6/'Inputs - forecast'!AJ$32 -> 342.6669023 | AK99: =AK6/'Inputs - forecast'!AK$32 -> 331.1792048 | AL99: =AL6/'Inputs - forecast'!AL$32 -> 320.0766253 | AM99: =AM6/'Inputs - forecast'!AM$32 -> 309.346253 | AN99: =AN6/'Inputs - forecast'!AN$32 -> 298.9756098 | AO99: =SUM(AJ99:AN99) -> 1602.244595
B100: Present value of cost | AJ100: =SUM(AJ7:AJ12)/'Inputs - forecast'!AJ$32 -> -342.9359879 | AK100: =SUM(AK7:AK12)/'Inputs - forecast'!AK$32 -> -331.3108441 | AL100: =SUM(AL7:AL12)/'Inputs - forecast'!AL$32 -> -320.0735797 | AM100: =SUM(AM7:AM12)/'Inputs - forecast'!AM$32 -> -309.211576 | AN100: =SUM(AN7:AN12)/'Inputs - forecast'!AN$32 -> -298.7126074 | AO100: =SUM(AJ100:AN100) -> -1602.244595
B101: Difference | AO101: =SUM(AO99:AO100) -> 0
B102: Revenue | AO102: 1822.046975
A104: Actual
A105: Actual return (cashflows)
B106: Revenue | F106: =F$6 -> 866.9501691 | G106: =G$6 -> 884.2891725 | H106: =H$6 -> 901.9749559 | I106: =I$6 -> 920.014455 | J106: =J$6 -> 938.4147441 | K106: =K$6/'Inputs - forecast'!K$15*'Inputs - actual'!K$15 -> 936.2558456 | L106: =L$6/'Inputs - forecast'!L$15*'Inputs - actual'!L$15 -> 954.9809625 | M106: =M$6/'Inputs - forecast'!M$15*'Inputs - actual'!M$15 -> 974.0805818 | N106: =N$6/'Inputs - forecast'!N$15*'Inputs - actual'!N$15 -> 993.5621934 | O106: =O$6/'Inputs - forecast'!O$15*'Inputs - actual'!O$15 -> 1013.433437 | P106: =P$6/'Inputs - forecast'!P$15*'Inputs - actual'!P$15 -> 1180.917248 | Q106: =Q$6/'Inputs - forecast'!Q$15*'Inputs - actual'!Q$15 -> 1204.535593 | R106: =R$6/'Inputs - forecast'!R$15*'Inputs - actual'!R$15 -> 1228.626305 | S106: =S$6/'Inputs - forecast'!S$15*'Inputs - actual'!S$15 -> 1253.198831 | T106: =T$6/'Inputs - forecast'!T$15*'Inputs - actual'!T$15 -> 1278.262808 | U106: =U$6/'Inputs - forecast'!U$15*'Inputs - actual'!U$15 -> 1361.088413 | V106: =V$6/'Inputs - forecast'!V$15*'Inputs - actual'!V$15 -> 1388.310181 | W106: =W$6/'Inputs - forecast'!W$15*'Inputs - actual'!W$15 -> 1416.076385 | X106: =X$6/'Inputs - forecast'!X$15*'Inputs - actual'!X$15 -> 1444.397913 | Y106: =Y$6/'Inputs - forecast'!Y$15*'Inputs - actual'!Y$15 -> 1473.285871 | Z106: =Z$6/'Inputs - forecast'!Z$15*'Inputs - actual'!Z$15 -> 1501.22968 | AA106: =AA$6/'Inputs - forecast'!AA$15*'Inputs - actual'!AA$15 -> 1531.254273 | AB106: =AB$6/'Inputs - forecast'!AB$15*'Inputs - actual'!AB$15 -> 1561.879359 | AC106: =AC$6/'Inputs - forecast'!AC$15*'Inputs - actual'!AC$15 -> 1593.116946 | AD106: =AD$6/'Inputs - forecast'!AD$15*'Inputs - actual'!AD$15 -> 1624.979285 | AE106: =AE$6/'Inputs - forecast'!AE$15*'Inputs - actual'!AE$15 -> 1654.479041 | AF106: =AF$6/'Inputs - forecast'!AF$15*'Inputs - actual'!AF$15 -> 1687.568622 | AG106: =AG$6/'Inputs - forecast'!AG$15*'Inputs - actual'!AG$15 -> 1721.319994 | AH106: =AH$6/'Inputs - forecast'!AH$15*'Inputs - actual'!AH$15 -> 1755.746394 | AI106: =AI$6/'Inputs - forecast'!AI$15*'Inputs - actual'!AI$15 -> 1790.861322 | AJ106: =AJ$6/'Inputs - forecast'!AJ$15*'Inputs - actual'!AJ$15 -> 1822.046975 | AK106: =AK$6/'Inputs - forecast'!AK$15*'Inputs - actual'!AK$15 -> 1858.487914 | AL106: =AL$6/'Inputs - forecast'!AL$15*'Inputs - actual'!AL$15 -> 1895.657672 | AM106: =AM$6/'Inputs - forecast'!AM$15*'Inputs - actual'!AM$15 -> 1933.570826 | AN106: =AN$6/'Inputs - forecast'!AN$15*'Inputs - actual'!AN$15 -> 1972.242242 | AP106: Revenue wash-up from Y6 with adjustment for the over compensation for inflation on fixed cost of debt.
B107: Opex | F107: =F$11/'Inputs - forecast'!F$15*'Inputs - actual'!F$15 -> -265.3 | G107: =G$11/'Inputs - forecast'!G$15*'Inputs - actual'!G$15 -> -286.956 | H107: =H$11/'Inputs - forecast'!H$15*'Inputs - actual'!H$15 -> -317.14416 | I107: =I$11/'Inputs - forecast'!I$15*'Inputs - actual'!I$15 -> -328.7218464 | J107: =J$11/'Inputs - forecast'!J$15*'Inputs - actual'!J$15 -> -333.718704 | K107: =K$11/'Inputs - forecast'!K$15*'Inputs - actual'!K$15 -> -350.1716429 | L107: =L$11/'Inputs - forecast'!L$15*'Inputs - actual'!L$15 -> -354.5237231 | M107: =M$11/'Inputs - forecast'!M$15*'Inputs - actual'!M$15 -> -362.7732174 | N107: =N$11/'Inputs - forecast'!N$15*'Inputs - actual'!N$15 -> -370.0286818 | O107: =O$11/'Inputs - forecast'!O$15*'Inputs - actual'!O$15 -> -377.4292554 | P107: =P$11/'Inputs - forecast'!P$15*'Inputs - actual'!P$15 -> -385.934477 | Q107: =Q$11/'Inputs - forecast'!Q$15*'Inputs - actual'!Q$15 -> -393.6531665 | R107: =R$11/'Inputs - forecast'!R$15*'Inputs - actual'!R$15 -> -401.5262298 | S107: =S$11/'Inputs - forecast'!S$15*'Inputs - actual'!S$15 -> -409.5567544 | T107: =T$11/'Inputs - forecast'!T$15*'Inputs - actual'!T$15 -> -417.7478895 | U107: =U$11/'Inputs - forecast'!U$15*'Inputs - actual'!U$15 -> -426.1028473 | V107: =V$11/'Inputs - forecast'!V$15*'Inputs - actual'!V$15 -> -434.6249043 | W107: =W$11/'Inputs - forecast'!W$15*'Inputs - actual'!W$15 -> -443.3174023 | X107: =X$11/'Inputs - forecast'!X$15*'Inputs - actual'!X$15 -> -452.1837504 | Y107: =Y$11/'Inputs - forecast'!Y$15*'Inputs - actual'!Y$15 -> -461.2274254 | Z107: =Z$11/'Inputs - forecast'!Z$15*'Inputs - actual'!Z$15 -> -470.4519739 | AA107: =AA$11/'Inputs - forecast'!AA$15*'Inputs - actual'!AA$15 -> -479.8610134 | AB107: =AB$11/'Inputs - forecast'!AB$15*'Inputs - actual'!AB$15 -> -489.4582336 | AC107: =AC$11/'Inputs - forecast'!AC$15*'Inputs - actual'!AC$15 -> -499.2473983 | AD107: =AD$11/'Inputs - forecast'!AD$15*'Inputs - actual'!AD$15 -> -509.2323463 | AE107: =AE$11/'Inputs - forecast'!AE$15*'Inputs - actual'!AE$15 -> -519.4169932 | AF107: =AF$11/'Inputs - forecast'!AF$15*'Inputs - actual'!AF$15 -> -529.8053331 | AG107: =AG$11/'Inputs - forecast'!AG$15*'Inputs - actual'!AG$15 -> -540.4014397 | AH107: =AH$11/'Inputs - forecast'!AH$15*'Inputs - actual'!AH$15 -> -551.2094685 | AI107: =AI$11/'Inputs - forecast'!AI$15*'Inputs - actual'!AI$15 -> -562.2336579 | AJ107: =AJ$11/'Inputs - forecast'!AJ$15*'Inputs - actual'!AJ$15 -> -573.4783311 | AK107: =AK$11/'Inputs - forecast'!AK$15*'Inputs - actual'!AK$15 -> -584.9478977 | AL107: =AL$11/'Inputs - forecast'!AL$15*'Inputs - actual'!AL$15 -> -596.6468556 | AM107: =AM$11/'Inputs - forecast'!AM$15*'Inputs - actual'!AM$15 -> -608.5797928 | AN107: =AN$11/'Inputs - forecast'!AN$15*'Inputs - actual'!AN$15 -> -620.7513886
B108: Capex | F108: =-F133-F129 -> -337.2 | G108: =-G133-G129 -> -275.7325535 | H108: -347.1726691 | I108: -468.6338592 | J108: -512.7132816 | K108: -546.3618351 | L108: -654.8840996 | M108: -607.7127487 | N108: -785.1123291 | O108: -934.2613411 | P108: -755.0594849 | Q108: -722.9055671 | R108: -676.5091365 | S108: -753.4161966 | T108: -790.5257513 | U108: -461.7120088 | V108: -470.9462489 | W108: -480.3651739 | X108: -489.9724774 | Y108: -499.771927 | Z108: -509.7673655 | AA108: -519.9627128 | AB108: -530.3619671 | AC108: -540.9692064 | AD108: -551.7885905 | AE108: -562.8243623 | AF108: -574.0808496 | AG108: -585.5624666 | AH108: -597.2737159 | AI108: -609.2191902 | AJ108: -621.403574 | AK108: -633.8316455 | AL108: -646.5082784 | AM108: -659.438444 | AN108: -672.6272129
B109: Tax | E109: =E155 -> 5.748848325 | F109: =F145 -> -76.07825508 | G109: -72.27504486 | H109: -66.63673581 | I109: -64.80526384 | J109: -64.82259754 | K109: -55.22679882 | L109: -54.4508742 | M109: -50.86326203 | N109: -48.90573747 | O109: -43.90515155 | P109: -81.09476933 | Q109: -79.32454877 | R109: -78.15402802 | S109: -76.87858491 | T109: -75.18790713 | U109: -91.58060443 | V109: -93.86090263 | W109: -96.19298053 | X109: -98.57787371 | Y109: -101.0166385 | Z109: -103.0842179 | AA109: -105.625457 | AB109: -108.2236946 | AC109: -110.8800707 | AD109: -113.5957481 | AE109: -115.5319604 | AF109: -118.353023 | AG109: -121.2366806 | AH109: -124.184185 | AI109: -127.1968133 | AJ109: -128.9790272 | AK109: -132.0998997 | AL109: -135.2893635 | AM109: -138.5487902 | AN109: -141.8795792
B110: Opening and closing RAB | E110: =E22 -> -4834 | AN110: =AN36 -> 14774.87374
B111: Nominal IRR | D111: =IRR(E111:AN111,0.05) -> 0.0549470382 | E111: =SUM(E106:E110) -> -4828.251152 | F111: =SUM(F106:F110) -> 188.371914 | G111: =SUM(G106:G110) -> 249.3255741 | H111: 171.021391 | I111: 57.85348559 | J111: 27.16016099 | K111: -15.5044312 | L111: -108.8777344 | M111: -47.26864633 | N111: -210.4845549 | O111: -342.1623108 | P111: -41.17148267 | Q111: 8.652311075 | R111: 72.43691094 | S111: 13.34729547 | T111: -5.19873987 | U111: 381.6929524 | V111: 388.8781254 | W111: 396.200828 | X111: 403.663811 | Y111: 411.2698799 | Z111: 417.9261224 | AA111: 425.8050901 | AB111: 433.8354634 | AC111: 442.0202704 | AD111: 450.3625999 | AE111: 456.705725 | AF111: 465.3294161 | AG111: 474.1194073 | AH111: 483.0790246 | AI111: 492.2116605 | AJ111: 498.1860422 | AK111: 507.6084711 | AL111: 517.2131747 | AM111: 527.0037988 | AN111: 15311.8578
B113: Real IRR | D113: =IRR(E113:AN113,0.05) -> 0.03029925854 | E113: =E111/'Inputs - actual'!E$15 -> -4828.251152 | F113: =F111/'Inputs - actual'!F$15 -> 184.6783471 | G113: =G111/'Inputs - actual'!G$15 -> 226.330405 | H113: =H111/'Inputs - actual'!H$15 -> 143.7483114 | I113: =I111/'Inputs - actual'!I$15 -> 47.67400912 | J113: =J111/'Inputs - actual'!J$15 -> 21.94240939 | K113: =K111/'Inputs - actual'!K$15 -> -12.28026222 | L113: =L111/'Inputs - actual'!L$15 -> -84.54554056 | M113: =M111/'Inputs - actual'!M$15 -> -35.98525824 | N113: =N111/'Inputs - actual'!N$15 -> -157.0983125 | O113: =O111/'Inputs - actual'!O$15 -> -250.3705741 | P113: =P111/'Inputs - actual'!P$15 -> -29.53571239 | Q113: =Q111/'Inputs - actual'!Q$15 -> 6.085312654 | R113: =R111/'Inputs - actual'!R$15 -> 49.94712803 | S113: =S111/'Inputs - actual'!S$15 -> 9.022849268 | T113: =T111/'Inputs - actual'!T$15 -> -3.445468972 | U113: =U111/'Inputs - actual'!U$15 -> 248.0071637 | V113: =V111/'Inputs - actual'!V$15 -> 247.7213437 | W113: =W111/'Inputs - actual'!W$15 -> 247.4372724 | X113: =X111/'Inputs - actual'!X$15 -> 247.1549911 | Y113: =Y111/'Inputs - actual'!Y$15 -> 246.8745388 | Z113: =Z111/'Inputs - actual'!Z$15 -> 245.9510851 | AA113: =AA111/'Inputs - actual'!AA$15 -> 245.6743991 | AB113: =AB111/'Inputs - actual'!AB$15 -> 245.3996461 | AC113: =AC111/'Inputs - actual'!AC$15 -> 245.1268567 | AD113: =AD111/'Inputs - actual'!AD$15 -> 244.8560595 | AE113: =AE111/'Inputs - actual'!AE$15 -> 243.4360107 | AF113: =AF111/'Inputs - actual'!AF$15 -> 243.1692765 | AG113: =AG111/'Inputs - actual'!AG$15 -> 242.9046093 | AH113: =AH111/'Inputs - actual'!AH$15 -> 242.6420308 | AI113: =AI111/'Inputs - actual'!AI$15 -> 242.3815607 | AJ113: =AJ111/'Inputs - actual'!AJ$15 -> 240.5132814 | AK113: =AK111/'Inputs - actual'!AK$15 -> 240.2570815 | AL113: =AL111/'Inputs - actual'!AL$15 -> 240.0030403 | AM113: =AM111/'Inputs - actual'!AM$15 -> 239.7511717 | AN113: =AN111/'Inputs - actual'!AN$15 -> 6829.27668
B114: check to inputs | D114: =D113-'Inputs - forecast'!AO28 -> -0.004387996357
A116: Actual return (building blocks)
B117: Revenue | F117: =F106 -> 866.9501691 | G117: 884.2891725 | H117: 901.9749559 | I117: =I106 -> 920.014455 | J117: 938.4147441 | K117: 936.2558456 | L117: 954.9809625 | M117: 974.0805818 | N117: 993.5621934 | O117: 1013.433437 | P117: 1180.917248 | Q117: 1204.535593 | R117: 1228.626305 | S117: 1253.198831 | T117: 1278.262808 | U117: 1361.088413 | V117: 1388.310181 | W117: 1416.076385 | X117: 1444.397913 | Y117: 1473.285871 | Z117: 1501.22968 | AA117: 1531.254273 | AB117: 1561.879359 | AC117: 1593.116946 | AD117: 1624.979285 | AE117: 1654.479041 | AF117: 1687.568622 | AG117: 1721.319994 | AH117: 1755.746394 | AI117: 1790.861322 | AJ117: 1822.046975 | AK117: 1858.487914 | AL117: 1895.657672 | AM117: 1933.570826 | AN117: 1972.242242
B118: Opex | F118: =F107 -> -265.3 | G118: -286.956 | H118: -317.14416 | I118: =I107 -> -328.7218464 | J118: -333.718704 | K118: -350.1716429 | L118: -354.5237231 | M118: -362.7732174 | N118: -370.0286818 | O118: -377.4292554 | P118: -385.934477 | Q118: -393.6531665 | R118: -401.5262298 | S118: -409.5567544 | T118: -417.7478895 | U118: -426.1028473 | V118: -434.6249043 | W118: -443.3174023 | X118: -452.1837504 | Y118: -461.2274254 | Z118: -470.4519739 | AA118: -479.8610134 | AB118: -489.4582336 | AC118: -499.2473983 | AD118: -509.2323463 | AE118: -519.4169932 | AF118: -529.8053331 | AG118: -540.4014397 | AH118: -551.2094685 | AI118: -562.2336579 | AJ118: -573.4783311 | AK118: -584.9478977 | AL118: -596.6468556 | AM118: -608.5797928 | AN118: -620.7513886
B119: Return on debt | F119: =-F132*'Inputs - forecast'!F21*('Inputs - forecast'!F24) -> -79.475794 | G119: =-G132*'Inputs - forecast'!G21*('Inputs - forecast'!G24) -> -80.90178241 | H119: =-H132*'Inputs - forecast'!H21*('Inputs - forecast'!H24) -> -83.21769078 | I119: =-I132*'Inputs - forecast'!I21*('Inputs - forecast'!I24) -> -86.67879809 | J119: =-J132*'Inputs - forecast'!J21*('Inputs - forecast'!J24) -> -89.89247794 | K119: =-K132*'Inputs - forecast'!K21*('Inputs - forecast'!K24) -> -93.66435566 | L119: =-L132*'Inputs - forecast'!L21*('Inputs - forecast'!L24) -> -97.79401517 | M119: =-M132*'Inputs - forecast'!M21*('Inputs - forecast'!M24) -> -103.4939172 | N119: =-N132*'Inputs - forecast'!N21*('Inputs - forecast'!N24) -> -108.1229434 | O119: =-O132*'Inputs - forecast'!O21*('Inputs - forecast'!O24) -> -115.4287502 | P119: =-P132*'Inputs - forecast'!P21*('Inputs - forecast'!P24) -> -124.8081766 | Q119: =-Q132*'Inputs - forecast'!Q21*('Inputs - forecast'!Q24) -> -130.9654802 | R119: =-R132*'Inputs - forecast'!R21*('Inputs - forecast'!R24) -> -136.3300236 | S119: =-S132*'Inputs - forecast'!S21*('Inputs - forecast'!S24) -> -140.6845969 | T119: =-T132*'Inputs - forecast'!T21*('Inputs - forecast'!T24) -> -146.0283345 | U119: =-U132*'Inputs - forecast'!U21*('Inputs - forecast'!U24) -> -151.6933672 | V119: =-V132*'Inputs - forecast'!V21*('Inputs - forecast'!V24) -> -151.7836841 | W119: =-W132*'Inputs - forecast'!W21*('Inputs - forecast'!W24) -> -151.8537584 | X119: =-X132*'Inputs - forecast'!X21*('Inputs - forecast'!X24) -> -151.9031851 | Y119: =-Y132*'Inputs - forecast'!Y21*('Inputs - forecast'!Y24) -> -151.9315514 | Z119: =-Z132*'Inputs - forecast'!Z21*('Inputs - forecast'!Z24) -> -151.9384359 | AA119: =-AA132*'Inputs - forecast'!AA21*('Inputs - forecast'!AA24) -> -151.9234091 | AB119: =-AB132*'Inputs - forecast'!AB21*('Inputs - forecast'!AB24) -> -151.8860327 | AC119: =-AC132*'Inputs - forecast'!AC21*('Inputs - forecast'!AC24) -> -151.8258598 | AD119: =-AD132*'Inputs - forecast'!AD21*('Inputs - forecast'!AD24) -> -151.7424344 | AE119: =-AE132*'Inputs - forecast'!AE21*('Inputs - forecast'!AE24) -> -151.6352915 | AF119: =-AF132*'Inputs - forecast'!AF21*('Inputs - forecast'!AF24) -> -151.5039567 | AG119: =-AG132*'Inputs - forecast'!AG21*('Inputs - forecast'!AG24) -> -151.3479462 | AH119: =-AH132*'Inputs - forecast'!AH21*('Inputs - forecast'!AH24) -> -151.1667664 | AI119: =-AI132*'Inputs - forecast'!AI21*('Inputs - forecast'!AI24) -> -150.959914 | AJ119: =-AJ132*'Inputs - forecast'!AJ21*('Inputs - forecast'!AJ24) -> -150.7268756 | AK119: =-AK132*'Inputs - forecast'!AK21*('Inputs - forecast'!AK24) -> -150.4671273 | AL119: =-AL132*'Inputs - forecast'!AL21*('Inputs - forecast'!AL24) -> -150.1801351 | AM119: =-AM132*'Inputs - forecast'!AM21*('Inputs - forecast'!AM24) -> -149.8653539 | AN119: =-AN132*'Inputs - forecast'!AN21*('Inputs - forecast'!AN24) -> -149.5222282 | AP119: Fixed cost of debt
B120: Return on equity | F120: =-F132*'Inputs - actual'!F$18*(1-'Inputs - actual'!F$24) -> -188.23596 | G120: =-G132*'Inputs - actual'!G$18*(1-'Inputs - actual'!G$24) -> -373.6631483 | H120: =-H132*'Inputs - actual'!H$18*(1-'Inputs - actual'!H$24) -> -384.3596939 | I120: =-I132*'Inputs - actual'!I$18*(1-'Inputs - actual'!I$24) -> -205.2960524 | J120: =-J132*'Inputs - actual'!J$18*(1-'Inputs - actual'!J$24) -> -212.9075537 | K120: =-K132*'Inputs - actual'!K$18*(1-'Inputs - actual'!K$24) -> -221.8411294 | L120: =-L132*'Inputs - actual'!L$18*(1-'Inputs - actual'!L$24) -> -231.6221003 | M120: =-M132*'Inputs - actual'!M$18*(1-'Inputs - actual'!M$24) -> -245.122142 | N120: =-N132*'Inputs - actual'!N$18*(1-'Inputs - actual'!N$24) -> -256.0858473 | O120: =-O132*'Inputs - actual'!O$18*(1-'Inputs - actual'!O$24) -> -273.3894247 | P120: =-P132*'Inputs - actual'!P$18*(1-'Inputs - actual'!P$24) -> -295.6043061 | Q120: =-Q132*'Inputs - actual'!Q$18*(1-'Inputs - actual'!Q$24) -> -310.1876892 | R120: =-R132*'Inputs - actual'!R$18*(1-'Inputs - actual'!R$24) -> -322.8934444 | S120: =-S132*'Inputs - actual'!S$18*(1-'Inputs - actual'!S$24) -> -333.2071166 | T120: =-T132*'Inputs - actual'!T$18*(1-'Inputs - actual'!T$24) -> -345.8635937 | U120: =-U132*'Inputs - actual'!U$18*(1-'Inputs - actual'!U$24) -> -359.2810485 | V120: =-V132*'Inputs - actual'!V$18*(1-'Inputs - actual'!V$24) -> -359.4949614 | W120: =-W132*'Inputs - actual'!W$18*(1-'Inputs - actual'!W$24) -> -359.6609301 | X120: =-X132*'Inputs - actual'!X$18*(1-'Inputs - actual'!X$24) -> -359.7779958 | Y120: =-Y132*'Inputs - actual'!Y$18*(1-'Inputs - actual'!Y$24) -> -359.8451804 | Z120: =-Z132*'Inputs - actual'!Z$18*(1-'Inputs - actual'!Z$24) -> -359.8614862 | AA120: =-AA132*'Inputs - actual'!AA$18*(1-'Inputs - actual'!AA$24) -> -359.8258957 | AB120: =-AB132*'Inputs - actual'!AB$18*(1-'Inputs - actual'!AB$24) -> -359.7373709 | AC120: =-AC132*'Inputs - actual'!AC$18*(1-'Inputs - actual'!AC$24) -> -359.5948532 | AD120: =-AD132*'Inputs - actual'!AD$18*(1-'Inputs - actual'!AD$24) -> -359.3972628 | AE120: =-AE132*'Inputs - actual'!AE$18*(1-'Inputs - actual'!AE$24) -> -359.1434981 | AF120: =-AF132*'Inputs - actual'!AF$18*(1-'Inputs - actual'!AF$24) -> -358.8324356 | AG120: =-AG132*'Inputs - actual'!AG$18*(1-'Inputs - actual'!AG$24) -> -358.4629295 | AH120: =-AH132*'Inputs - actual'!AH$18*(1-'Inputs - actual'!AH$24) -> -358.0338108 | AI120: =-AI132*'Inputs - actual'!AI$18*(1-'Inputs - actual'!AI$24) -> -357.5438873 | AJ120: =-AJ132*'Inputs - actual'!AJ$18*(1-'Inputs - actual'!AJ$24) -> -356.991943 | AK120: =-AK132*'Inputs - actual'!AK$18*(1-'Inputs - actual'!AK$24) -> -356.3767373 | AL120: =-AL132*'Inputs - actual'!AL$18*(1-'Inputs - actual'!AL$24) -> -355.697005 | AM120: =-AM132*'Inputs - actual'!AM$18*(1-'Inputs - actual'!AM$24) -> -354.9514557 | AN120: =-AN132*'Inputs - actual'!AN$18*(1-'Inputs - actual'!AN$24) -> -354.1387729
B121: Depreciation | F121: =F134 -> -250.4663212 | G121: =G134 -> -258.3062299 | H121: -263.624763 | I121: =I134 -> -273.1664397 | J121: -283.2942853 | K121: -295.1812799 | L121: -308.1958164 | M121: -326.1589399 | N121: -340.7472202 | O121: -363.7713191 | P121: -380.5504187 | Q121: -396.6149869 | R121: -411.6485233 | S121: -428.3911054 | T121: -445.9583443 | U121: -456.2186112 | V121: -466.6840834 | W121: -477.358865 | X121: -488.2471423 | Y121: -499.3531851 | Z121: -510.6813488 | AA121: -522.2360757 | AB121: -534.0218972 | AC121: -546.0434352 | AD121: -558.3054038 | AE121: -570.8126119 | AF121: -583.5699641 | AG121: -596.5824634 | AH121: -609.8552126 | AI121: -623.3934168 | AJ121: -637.2023851 | AK121: -651.2875328 | AL121: -665.6543834 | AM121: -680.3085711 | AN121: -695.2558425
B122: Tax | E122: =E109 -> 5.748848325 | F122: =F145 -> -76.07825508 | G122: =G145 -> -72.27504486 | H122: -66.63673581 | I122: =I145 -> -64.80526384 | J122: -64.82259754 | K122: -55.22679882 | L122: -54.4508742 | M122: -50.86326203 | N122: -48.90573747 | O122: -43.90515155 | P122: -81.09476933 | Q122: -79.32454877 | R122: -78.15402802 | S122: -76.87858491 | T122: -75.18790713 | U122: -91.58060443 | V122: -93.86090263 | W122: -96.19298053 | X122: -98.57787371 | Y122: -101.0166385 | Z122: -103.0842179 | AA122: -105.625457 | AB122: -108.2236946 | AC122: -110.8800707 | AD122: -113.5957481 | AE122: -115.5319604 | AF122: -118.353023 | AG122: -121.2366806 | AH122: -124.184185 | AI122: -127.1968133 | AJ122: -128.9790272 | AK122: -132.0998997 | AL122: -135.2893635 | AM122: -138.5487902 | AN122: -141.8795792
B123: Nominal return | E123: =SUM(E117:E122) -> 5.748848325 | F123: 7.393838765 | G123: -187.8130329 | H123: -213.0080876 | I123: =SUM(I117:I122) -> -38.6539454 | J123: -46.22087433 | K123: -79.82936105 | L123: -91.60556662 | M123: -114.3308968 | N123: -130.3282367 | O123: -160.4904635 | P123: -87.07489928 | Q123: -106.210278 | R123: -121.9259437 | S123: -135.5193269 | T123: -152.5232611 | U123: -123.7880657 | V123: -118.1383546 | W123: -112.3075516 | X123: -106.2920348 | Y123: -100.08811 | Z123: -94.78778301 | AA123: -88.21757765 | AB123: -81.44787045 | AC123: -74.47467137 | AD123: -67.29391059 | AE123: -62.06131415 | AF123: -54.49609076 | AG123: -46.71146516 | AH123: -38.70304933 | AI123: -30.46636744 | AJ123: -25.33158737 | AK123: -16.69128078 | AL123: -7.810070337 | AM123: 1.31686205 | AN123: 10.69443082
B124: Present value | D124: =SUM(E124:AN124) -> -1310.798653 | E124: =E123/'Inputs - actual'!E$32 -> 5.748848325 | F124: =F123/'Inputs - actual'!F$32 -> 7.005847902 | G124: =G123/'Inputs - actual'!G$32 -> -159.2515249 | H124: =H123/'Inputs - actual'!H$32 -> -161.6296795 | I124: =I123/'Inputs - actual'!I$32 -> -27.79134568 | J124: =J123/'Inputs - actual'!J$32 -> -31.48796779 | K124: =K123/'Inputs - actual'!K$32 -> -51.52996623 | L124: =L123/'Inputs - actual'!L$32 -> -56.0286036 | M124: =M123/'Inputs - actual'!M$32 -> -66.25860257 | N124: =N123/'Inputs - actual'!N$32 -> -71.56619214 | O124: =O123/'Inputs - actual'!O$32 -> -83.50439826 | P124: =P123/'Inputs - actual'!P$32 -> -42.92831369 | Q124: =Q123/'Inputs - actual'!Q$32 -> -49.61444327 | R124: =R123/'Inputs - actual'!R$32 -> -53.96701923 | S124: =S123/'Inputs - actual'!S$32 -> -56.83610004 | T124: =T123/'Inputs - actual'!T$32 -> -60.6107761 | U124: =U123/'Inputs - actual'!U$32 -> -46.61044704 | V124: =V123/'Inputs - actual'!V$32 -> -42.14888964 | W124: =W123/'Inputs - actual'!W$32 -> -37.96600568 | X124: =X123/'Inputs - actual'!X$32 -> -34.04688617 | Y124: =Y123/'Inputs - actual'!Y$32 -> -30.37735066 | Z124: =Z123/'Inputs - actual'!Z$32 -> -27.25903646 | AA124: =AA123/'Inputs - actual'!AA$32 -> -24.03831334 | AB124: =AB123/'Inputs - actual'!AB$32 -> -21.02903413 | AC124: =AC123/'Inputs - actual'!AC$32 -> -18.21960329 | AD124: =AD123/'Inputs - actual'!AD$32 -> -15.59900209 | AE124: =AE123/'Inputs - actual'!AE$32 -> -13.63115781 | AF124: =AF123/'Inputs - actual'!AF$32 -> -11.34143104 | AG124: =AG123/'Inputs - actual'!AG$32 -> -9.211210885 | AH124: =AH123/'Inputs - actual'!AH$32 -> -7.231512609 | AI124: =AI123/'Inputs - actual'!AI$32 -> -5.393806579 | AJ124: =AJ123/'Inputs - actual'!AJ$32 -> -4.249402086 | AK124: =AK123/'Inputs - actual'!AK$32 -> -2.653052312 | AL124: =AL123/'Inputs - actual'!AL$32 -> -1.176255925 | AM124: =AM123/'Inputs - actual'!AM$32 -> 0.1879221142 | AN124: =AN123/'Inputs - actual'!AN$32 -> 1.446058996
B126: Real return | E126: =E123/'Inputs - actual'!E$15 -> 5.748848325 | F126: =F123/'Inputs - actual'!F$15 -> 7.248861534 | G126: =G123/'Inputs - actual'!G$15 -> -170.4911337 | H126: =H123/'Inputs - actual'!H$15 -> -179.0393162 | I126: =I123/'Inputs - actual'!I$15 -> -31.85267969 | J126: =J123/'Inputs - actual'!J$15 -> -37.34135992 | K126: =K123/'Inputs - actual'!K$15 -> -63.22872948 | L126: =L123/'Inputs - actual'!L$15 -> -71.13338823 | M126: =M123/'Inputs - actual'!M$15 -> -87.03923565 | N126: =N123/'Inputs - actual'!N$15 -> -97.27243914 | O126: =O123/'Inputs - actual'!O$15 -> -117.4357556 | P126: =P123/'Inputs - actual'!P$15 -> -62.46603266 | Q126: =Q123/'Inputs - actual'!Q$15 -> -74.69943503 | R126: =R123/'Inputs - actual'!R$15 -> -84.07109915 | S126: =S123/'Inputs - actual'!S$15 -> -91.6118522 | T126: =T123/'Inputs - actual'!T$15 -> -101.0849122 | U126: =U123/'Inputs - actual'!U$15 -> -80.43199875 | V126: =V123/'Inputs - actual'!V$15 -> -75.25594794 | W126: =W123/'Inputs - actual'!W$15 -> -70.1388596 | X126: =X123/'Inputs - actual'!X$15 -> -65.0804115 | Y126: =Y123/'Inputs - actual'!Y$15 -> -60.08027137 | Z126: =Z123/'Inputs - actual'!Z$15 -> -55.7829646 | AA126: =AA123/'Inputs - actual'!AA$15 -> -50.89840607 | AB126: =AB123/'Inputs - actual'!AB$15 -> -46.07110361 | AC126: =AC123/'Inputs - actual'!AC$15 -> -41.30068985 | AD126: =AD123/'Inputs - actual'!AD$15 -> -36.5867898 | AE126: =AE123/'Inputs - actual'!AE$15 -> -33.08029199 | AF126: =AF123/'Inputs - actual'!AF$15 -> -28.47826615 | AG126: =AG123/'Inputs - actual'!AG$15 -> -23.93158774 | AH126: =AH123/'Inputs - actual'!AH$15 -> -19.43985561 | AI126: =AI123/'Inputs - actual'!AI$15 -> -15.00266305 | AJ126: =AJ123/'Inputs - actual'!AJ$15 -> -12.22953412 | AK126: =AK123/'Inputs - actual'!AK$15 -> -7.90018023 | AL126: =AL123/'Inputs - actual'!AL$15 -> -3.624116163 | AM126: =AM123/'Inputs - actual'!AM$15 -> 0.5990833846 | AN126: =AN123/'Inputs - actual'!AN$15 -> 4.769847522
B127: Present value | D127: =SUM(E127:AN127) -> -1310.798653 | E127: =E126/'Inputs - actual'!E$37 -> 5.748848325 | F127: =F126/'Inputs - actual'!F$37 -> 7.005847902 | G127: =G126/'Inputs - actual'!G$37 -> -159.2515249 | H127: =H126/'Inputs - actual'!H$37 -> -161.6296795 | I127: =I126/'Inputs - actual'!I$37 -> -27.79134568 | J127: =J126/'Inputs - actual'!J$37 -> -31.48796779 | K127: =K126/'Inputs - actual'!K$37 -> -51.52996623 | L127: =L126/'Inputs - actual'!L$37 -> -56.0286036 | M127: =M126/'Inputs - actual'!M$37 -> -66.25860257 | N127: =N126/'Inputs - actual'!N$37 -> -71.56619214 | O127: =O126/'Inputs - actual'!O$37 -> -83.50439826 | P127: =P126/'Inputs - actual'!P$37 -> -42.92831369 | Q127: =Q126/'Inputs - actual'!Q$37 -> -49.61444327 | R127: =R126/'Inputs - actual'!R$37 -> -53.96701923 | S127: =S126/'Inputs - actual'!S$37 -> -56.83610004 | T127: =T126/'Inputs - actual'!T$37 -> -60.6107761 | U127: =U126/'Inputs - actual'!U$37 -> -46.61044704 | V127: =V126/'Inputs - actual'!V$37 -> -42.14888964 | W127: =W126/'Inputs - actual'!W$37 -> -37.96600568 | X127: =X126/'Inputs - actual'!X$37 -> -34.04688617 | Y127: =Y126/'Inputs - actual'!Y$37 -> -30.37735066 | Z127: =Z126/'Inputs - actual'!Z$37 -> -27.25903646 | AA127: =AA126/'Inputs - actual'!AA$37 -> -24.03831334 | AB127: =AB126/'Inputs - actual'!AB$37 -> -21.02903413 | AC127: =AC126/'Inputs - actual'!AC$37 -> -18.21960329 | AD127: =AD126/'Inputs - actual'!AD$37 -> -15.59900209 | AE127: =AE126/'Inputs - actual'!AE$37 -> -13.63115781 | AF127: =AF126/'Inputs - actual'!AF$37 -> -11.34143104 | AG127: =AG126/'Inputs - actual'!AG$37 -> -9.211210885 | AH127: =AH126/'Inputs - actual'!AH$37 -> -7.231512609 | AI127: =AI126/'Inputs - actual'!AI$37 -> -5.393806579 | AJ127: =AJ126/'Inputs - actual'!AJ$37 -> -4.249402086 | AK127: =AK126/'Inputs - actual'!AK$37 -> -2.653052312 | AL127: =AL126/'Inputs - actual'!AL$37 -> -1.176255925 | AM127: =AM126/'Inputs - actual'!AM$37 -> 0.1879221142 | AN127: =AN126/'Inputs - actual'!AN$37 -> 1.446058996
A129: Adjustment to wash-up for fixed cost of debt | F129: =-(F132*'Inputs - actual'!F21*'Inputs - actual'!F24+F119) -> -5.684341886e-14 | G129: =-(G132*'Inputs - actual'!G21*'Inputs - actual'!G24+G119) -> -123.4354465 | H129: =-(H132*'Inputs - actual'!H21*'Inputs - actual'!H24+H119) -> -126.9689309 | I129: =-(I132*'Inputs - actual'!I21*'Inputs - actual'!I24+I119) -> -5.684341886e-14 | J129: =-(J132*'Inputs - actual'!J21*'Inputs - actual'!J24+J119) -> -7.105427358e-14 | K129: =-(K132*'Inputs - actual'!K21*'Inputs - actual'!K24+K119) -> -7.105427358e-14 | L129: =-(L132*'Inputs - actual'!L21*'Inputs - actual'!L24+L119) -> -5.684341886e-14 | M129: =-(M132*'Inputs - actual'!M21*'Inputs - actual'!M24+M119) -> -5.684341886e-14 | N129: =-(N132*'Inputs - actual'!N21*'Inputs - actual'!N24+N119) -> -7.105427358e-14 | O129: =-(O132*'Inputs - actual'!O21*'Inputs - actual'!O24+O119) -> -7.105427358e-14 | P129: =-(P132*'Inputs - actual'!P21*'Inputs - actual'!P24+P119) -> -9.947598301e-14 | Q129: =-(Q132*'Inputs - actual'!Q21*'Inputs - actual'!Q24+Q119) -> -8.526512829e-14 | R129: =-(R132*'Inputs - actual'!R21*'Inputs - actual'!R24+R119) -> -1.136868377e-13 | S129: =-(S132*'Inputs - actual'!S21*'Inputs - actual'!S24+S119) -> -1.136868377e-13 | T129: =-(T132*'Inputs - actual'!T21*'Inputs - actual'!T24+T119) -> -8.526512829e-14 | U129: =-(U132*'Inputs - actual'!U21*'Inputs - actual'!U24+U119) -> -1.136868377e-13 | V129: =-(V132*'Inputs - actual'!V21*'Inputs - actual'!V24+V119) -> -8.526512829e-14 | W129: =-(W132*'Inputs - actual'!W21*'Inputs - actual'!W24+W119) -> -1.136868377e-13 | X129: =-(X132*'Inputs - actual'!X21*'Inputs - actual'!X24+X119) -> -8.526512829e-14 | Y129: =-(Y132*'Inputs - actual'!Y21*'Inputs - actual'!Y24+Y119) -> -1.136868377e-13 | Z129: =-(Z132*'Inputs - actual'!Z21*'Inputs - actual'!Z24+Z119) -> -1.136868377e-13 | AA129: =-(AA132*'Inputs - actual'!AA21*'Inputs - actual'!AA24+AA119) -> -1.136868377e-13 | AB129: =-(AB132*'Inputs - actual'!AB21*'Inputs - actual'!AB24+AB119) -> -1.136868377e-13 | AC129: =-(AC132*'Inputs - actual'!AC21*'Inputs - actual'!AC24+AC119) -> -1.136868377e-13 | AD129: =-(AD132*'Inputs - actual'!AD21*'Inputs - actual'!AD24+AD119) -> -8.526512829e-14 | AE129: =-(AE132*'Inputs - actual'!AE21*'Inputs - actual'!AE24+AE119) -> -1.136868377e-13 | AF129: =-(AF132*'Inputs - actual'!AF21*'Inputs - actual'!AF24+AF119) -> -8.526512829e-14 | AG129: =-(AG132*'Inputs - actual'!AG21*'Inputs - actual'!AG24+AG119) -> -1.421085472e-13 | AH129: =-(AH132*'Inputs - actual'!AH21*'Inputs - actual'!AH24+AH119) -> -8.526512829e-14 | AI129: =-(AI132*'Inputs - actual'!AI21*'Inputs - actual'!AI24+AI119) -> -1.136868377e-13 | AJ129: =-(AJ132*'Inputs - actual'!AJ21*'Inputs - actual'!AJ24+AJ119) -> -8.526512829e-14 | AK129: =-(AK132*'Inputs - actual'!AK21*'Inputs - actual'!AK24+AK119) -> -8.526512829e-14 | AL129: =-(AL132*'Inputs - actual'!AL21*'Inputs - actual'!AL24+AL119) -> -1.136868377e-13 | AM129: =-(AM132*'Inputs - actual'!AM21*'Inputs - actual'!AM24+AM119) -> -1.136868377e-13 | AN129: =-(AN132*'Inputs - actual'!AN21*'Inputs - actual'!AN24+AN119) -> -8.526512829e-14
A131: Actual Asset Base
B132: Opening Asset Base | F132: =E34 -> 4834 | G132: =F135 -> 4920.733679 | H132: 5061.595449 | I132: 5272.112286 | J132: 5467.579705 | K132: 5696.998702 | L132: 5948.179257 | M132: 6294.86754 | N132: 6576.421349 | O132: 7020.786458 | P132: 7591.27648 | Q132: 7965.785546 | R132: 8292.076126 | S132: 8556.93674 | T132: 8881.961831 | U132: 9226.529238 | V132: 9232.022635 | W132: 9236.284801 | X132: 9239.29111 | Y132: 9241.016445 | Z132: 9241.435187 | AA132: 9240.521203 | AB132: 9238.247841 | AC132: 9234.58791 | AD132: 9229.513682 | AE132: 9222.996868 | AF132: 9215.008619 | AG132: 9205.519504 | AH132: 9194.499507 | AI132: 9181.918011 | AJ132: 9167.743784 | AK132: 9151.944973 | AL132: 9134.489086 | AM132: 9115.342981 | AN132: 9094.472854
B133: Capex | F133: =F$32/'Inputs - forecast'!F$15*'Inputs - actual'!F$15 -> 337.2 | G133: =G$32/'Inputs - forecast'!G$15*'Inputs - actual'!G$15 -> 399.168 | H133: =H$32/'Inputs - forecast'!H$15*'Inputs - actual'!H$15 -> 474.1416 | I133: =I$32/'Inputs - forecast'!I$15*'Inputs - actual'!I$15 -> 468.6338592 | J133: =J$32/'Inputs - forecast'!J$15*'Inputs - actual'!J$15 -> 512.7132816 | K133: =K$32/'Inputs - forecast'!K$15*'Inputs - actual'!K$15 -> 546.3618351 | L133: =L$32/'Inputs - forecast'!L$15*'Inputs - actual'!L$15 -> 654.8840996 | M133: =M$32/'Inputs - forecast'!M$15*'Inputs - actual'!M$15 -> 607.7127487 | N133: =N$32/'Inputs - forecast'!N$15*'Inputs - actual'!N$15 -> 785.1123291 | O133: =O$32/'Inputs - forecast'!O$15*'Inputs - actual'!O$15 -> 934.2613411 | P133: =P$32/'Inputs - forecast'!P$15*'Inputs - actual'!P$15 -> 755.0594849 | Q133: =Q$32/'Inputs - forecast'!Q$15*'Inputs - actual'!Q$15 -> 722.9055671 | R133: =R$32/'Inputs - forecast'!R$15*'Inputs - actual'!R$15 -> 676.5091365 | S133: =S$32/'Inputs - forecast'!S$15*'Inputs - actual'!S$15 -> 753.4161966 | T133: =T$32/'Inputs - forecast'!T$15*'Inputs - actual'!T$15 -> 790.5257513 | U133: =U$32/'Inputs - forecast'!U$15*'Inputs - actual'!U$15 -> 461.7120088 | V133: =V$32/'Inputs - forecast'!V$15*'Inputs - actual'!V$15 -> 470.9462489 | W133: =W$32/'Inputs - forecast'!W$15*'Inputs - actual'!W$15 -> 480.3651739 | X133: =X$32/'Inputs - forecast'!X$15*'Inputs - actual'!X$15 -> 489.9724774 | Y133: =Y$32/'Inputs - forecast'!Y$15*'Inputs - actual'!Y$15 -> 499.771927 | Z133: =Z$32/'Inputs - forecast'!Z$15*'Inputs - actual'!Z$15 -> 509.7673655 | AA133: =AA$32/'Inputs - forecast'!AA$15*'Inputs - actual'!AA$15 -> 519.9627128 | AB133: =AB$32/'Inputs - forecast'!AB$15*'Inputs - actual'!AB$15 -> 530.3619671 | AC133: =AC$32/'Inputs - forecast'!AC$15*'Inputs - actual'!AC$15 -> 540.9692064 | AD133: =AD$32/'Inputs - forecast'!AD$15*'Inputs - actual'!AD$15 -> 551.7885905 | AE133: =AE$32/'Inputs - forecast'!AE$15*'Inputs - actual'!AE$15 -> 562.8243623 | AF133: =AF$32/'Inputs - forecast'!AF$15*'Inputs - actual'!AF$15 -> 574.0808496 | AG133: =AG$32/'Inputs - forecast'!AG$15*'Inputs - actual'!AG$15 -> 585.5624666 | AH133: =AH$32/'Inputs - forecast'!AH$15*'Inputs - actual'!AH$15 -> 597.2737159 | AI133: =AI$32/'Inputs - forecast'!AI$15*'Inputs - actual'!AI$15 -> 609.2191902 | AJ133: =AJ$32/'Inputs - forecast'!AJ$15*'Inputs - actual'!AJ$15 -> 621.403574 | AK133: =AK$32/'Inputs - forecast'!AK$15*'Inputs - actual'!AK$15 -> 633.8316455 | AL133: =AL$32/'Inputs - forecast'!AL$15*'Inputs - actual'!AL$15 -> 646.5082784 | AM133: =AM$32/'Inputs - forecast'!AM$15*'Inputs - actual'!AM$15 -> 659.438444 | AN133: =AN$32/'Inputs - forecast'!AN$15*'Inputs - actual'!AN$15 -> 672.6272129
B134: Depreciation | F134: =-F132/F29 -> -250.4663212 | G134: -258.3062299 | H134: -263.624763 | I134: -273.1664397 | J134: -283.2942853 | K134: -295.1812799 | L134: -308.1958164 | M134: -326.1589399 | N134: -340.7472202 | O134: -363.7713191 | P134: =O134-(P133/P$30) -> -380.5504187 | Q134: -396.6149869 | R134: -411.6485233 | S134: -428.3911054 | T134: -445.9583443 | U134: -456.2186112 | V134: -466.6840834 | W134: -477.358865 | X134: -488.2471423 | Y134: -499.3531851 | Z134: -510.6813488 | AA134: -522.2360757 | AB134: -534.0218972 | AC134: -546.0434352 | AD134: -558.3054038 | AE134: -570.8126119 | AF134: -583.5699641 | AG134: -596.5824634 | AH134: -609.8552126 | AI134: -623.3934168 | AJ134: -637.2023851 | AK134: -651.2875328 | AL134: -665.6543834 | AM134: -680.3085711 | AN134: -695.2558425
B135: Closing Asset Base | F135: =SUM(F132:F134) -> 4920.733679 | G135: 5061.595449 | H135: 5272.112286 | I135: 5467.579705 | J135: 5696.998702 | K135: 5948.179257 | L135: 6294.86754 | M135: 6576.421349 | N135: 7020.786458 | O135: 7591.27648 | P135: 7965.785546 | Q135: 8292.076126 | R135: 8556.93674 | S135: 8881.961831 | T135: 9226.529238 | U135: 9232.022635 | V135: 9236.284801 | W135: 9239.29111 | X135: 9241.016445 | Y135: 9241.435187 | Z135: 9240.521203 | AA135: 9238.247841 | AB135: 9234.58791 | AC135: 9229.513682 | AD135: 9222.996868 | AE135: 9215.008619 | AF135: 9205.519504 | AG135: 9194.499507 | AH135: 9181.918011 | AI135: 9167.743784 | AJ135: 9151.944973 | AK135: 9134.489086 | AL135: 9115.342981 | AM135: 9094.472854 | AN135: 9071.844224
A137: Profit and loss
B138: Revenue | F138: =F106 -> 866.9501691 | G138: 884.2891725 | H138: 901.9749559 | I138: 920.014455 | J138: 938.4147441 | K138: 936.2558456 | L138: 954.9809625 | M138: 974.0805818 | N138: 993.5621934 | O138: 1013.433437 | P138: 1180.917248 | Q138: 1204.535593 | R138: 1228.626305 | S138: 1253.198831 | T138: 1278.262808 | U138: 1361.088413 | V138: 1388.310181 | W138: 1416.076385 | X138: 1444.397913 | Y138: 1473.285871 | Z138: 1501.22968 | AA138: 1531.254273 | AB138: 1561.879359 | AC138: 1593.116946 | AD138: 1624.979285 | AE138: 1654.479041 | AF138: 1687.568622 | AG138: 1721.319994 | AH138: 1755.746394 | AI138: 1790.861322 | AJ138: 1822.046975 | AK138: 1858.487914 | AL138: 1895.657672 | AM138: 1933.570826 | AN138: 1972.242242
B139: Depreciation | F139: =F134 -> -250.4663212 | G139: -258.3062299 | H139: -263.624763 | I139: -273.1664397 | J139: -283.2942853 | K139: -295.1812799 | L139: -308.1958164 | M139: -326.1589399 | N139: -340.7472202 | O139: -363.7713191 | P139: -380.5504187 | Q139: -396.6149869 | R139: -411.6485233 | S139: -428.3911054 | T139: -445.9583443 | U139: -456.2186112 | V139: -466.6840834 | W139: -477.358865 | X139: -488.2471423 | Y139: -499.3531851 | Z139: -510.6813488 | AA139: -522.2360757 | AB139: -534.0218972 | AC139: -546.0434352 | AD139: -558.3054038 | AE139: -570.8126119 | AF139: -583.5699641 | AG139: -596.5824634 | AH139: -609.8552126 | AI139: -623.3934168 | AJ139: -637.2023851 | AK139: -651.2875328 | AL139: -665.6543834 | AM139: -680.3085711 | AN139: -695.2558425
B140: Opex | F140: =F118 -> -265.3 | G140: -286.956 | H140: -317.14416 | I140: -328.7218464 | J140: -333.718704 | K140: -350.1716429 | L140: -354.5237231 | M140: -362.7732174 | N140: -370.0286818 | O140: -377.4292554 | P140: -385.934477 | Q140: -393.6531665 | R140: -401.5262298 | S140: -409.5567544 | T140: -417.7478895 | U140: -426.1028473 | V140: -434.6249043 | W140: -443.3174023 | X140: -452.1837504 | Y140: -461.2274254 | Z140: -470.4519739 | AA140: -479.8610134 | AB140: -489.4582336 | AC140: -499.2473983 | AD140: -509.2323463 | AE140: -519.4169932 | AF140: -529.8053331 | AG140: -540.4014397 | AH140: -551.2094685 | AI140: -562.2336579 | AJ140: -573.4783311 | AK140: -584.9478977 | AL140: -596.6468556 | AM140: -608.5797928 | AN140: -620.7513886
B141: Interest | F141: =F119 -> -79.475794 | G141: -80.90178241 | H141: -83.21769078 | I141: -86.67879809 | J141: -89.89247794 | K141: -93.66435566 | L141: -97.79401517 | M141: -103.4939172 | N141: -108.1229434 | O141: -115.4287502 | P141: -124.8081766 | Q141: -130.9654802 | R141: -136.3300236 | S141: -140.6845969 | T141: -146.0283345 | U141: -151.6933672 | V141: -151.7836841 | W141: -151.8537584 | X141: -151.9031851 | Y141: -151.9315514 | Z141: -151.9384359 | AA141: -151.9234091 | AB141: -151.8860327 | AC141: -151.8258598 | AD141: -151.7424344 | AE141: -151.6352915 | AF141: -151.5039567 | AG141: -151.3479462 | AH141: -151.1667664 | AI141: -150.959914 | AJ141: -150.7268756 | AK141: -150.4671273 | AL141: -150.1801351 | AM141: -149.8653539 | AN141: -149.5222282
B142: EBT | F142: =SUM(F138:F141) -> 271.7080538 | G142: 258.1251602 | H142: 237.9883422 | I142: 231.4473709 | J142: 231.5092769 | K142: 197.2385672 | L142: 194.4674079 | M142: 181.6545072 | N142: 174.6633481 | O142: 156.8041127 | P142: 289.6241762 | Q142: 283.3019599 | R142: 279.1215286 | S142: 274.5663747 | T142: 268.5282398 | U142: 327.0735872 | V142: 335.2175094 | W142: 343.546359 | X142: 352.0638347 | Y142: 360.7737089 | Z142: 368.1579211 | AA142: 377.233775 | AB142: 386.5131951 | AC142: 396.0002526 | AD142: 405.6991002 | AE142: 412.6141443 | AF142: 422.6893679 | AG142: 432.9881449 | AH142: 443.5149465 | AI142: 454.2743332 | AJ142: 460.6393828 | AK142: 471.7853562 | AL142: 483.1762981 | AM142: 494.8171079 | AN142: 506.712783
B143: Calculated tax | F143: =-F142*'Inputs - forecast'!F$25 -> -76.07825508 | G143: =-G142*'Inputs - forecast'!G$25 -> -72.27504486 | H143: =-H142*'Inputs - forecast'!H$25 -> -66.63673581 | I143: =-I142*'Inputs - forecast'!I$25 -> -64.80526384 | J143: =-J142*'Inputs - forecast'!J$25 -> -64.82259754 | K143: =-K142*'Inputs - forecast'!K$25 -> -55.22679882 | L143: =-L142*'Inputs - forecast'!L$25 -> -54.4508742 | M143: =-M142*'Inputs - forecast'!M$25 -> -50.86326203 | N143: =-N142*'Inputs - forecast'!N$25 -> -48.90573747 | O143: =-O142*'Inputs - forecast'!O$25 -> -43.90515155 | P143: =-P142*'Inputs - forecast'!P$25 -> -81.09476933 | Q143: =-Q142*'Inputs - forecast'!Q$25 -> -79.32454877 | R143: =-R142*'Inputs - forecast'!R$25 -> -78.15402802 | S143: =-S142*'Inputs - forecast'!S$25 -> -76.87858491 | T143: =-T142*'Inputs - forecast'!T$25 -> -75.18790713 | U143: =-U142*'Inputs - forecast'!U$25 -> -91.58060443 | V143: =-V142*'Inputs - forecast'!V$25 -> -93.86090263 | W143: =-W142*'Inputs - forecast'!W$25 -> -96.19298053 | X143: =-X142*'Inputs - forecast'!X$25 -> -98.57787371 | Y143: =-Y142*'Inputs - forecast'!Y$25 -> -101.0166385 | Z143: =-Z142*'Inputs - forecast'!Z$25 -> -103.0842179 | AA143: =-AA142*'Inputs - forecast'!AA$25 -> -105.625457 | AB143: =-AB142*'Inputs - forecast'!AB$25 -> -108.2236946 | AC143: =-AC142*'Inputs - forecast'!AC$25 -> -110.8800707 | AD143: =-AD142*'Inputs - forecast'!AD$25 -> -113.5957481 | AE143: =-AE142*'Inputs - forecast'!AE$25 -> -115.5319604 | AF143: =-AF142*'Inputs - forecast'!AF$25 -> -118.353023 | AG143: =-AG142*'Inputs - forecast'!AG$25 -> -121.2366806 | AH143: =-AH142*'Inputs - forecast'!AH$25 -> -124.184185 | AI143: =-AI142*'Inputs - forecast'!AI$25 -> -127.1968133 | AJ143: =-AJ142*'Inputs - forecast'!AJ$25 -> -128.9790272 | AK143: =-AK142*'Inputs - forecast'!AK$25 -> -132.0998997 | AL143: =-AL142*'Inputs - forecast'!AL$25 -> -135.2893635 | AM143: =-AM142*'Inputs - forecast'!AM$25 -> -138.5487902 | AN143: =-AN142*'Inputs - forecast'!AN$25 -> -141.8795792
B144: Deferred tax | F144: =IF(F143>0,F143+E144,0) -> 0 | G144: =IF(G143>0,G143+F144,0) -> 0 | H144: =IF(H143>0,H143+G144,0) -> 0 | I144: =IF(I143>0,I143+H144,0) -> 0 | J144: =IF(J143>0,J143+I144,0) -> 0 | K144: 0 | L144: 0 | M144: 0 | N144: 0 | O144: 0 | P144: 0 | Q144: 0 | R144: 0 | S144: 0 | T144: 0 | U144: 0 | V144: 0 | W144: 0 | X144: 0 | Y144: 0 | Z144: 0 | AA144: 0 | AB144: 0 | AC144: 0 | AD144: 0 | AE144: 0 | AF144: 0 | AG144: 0 | AH144: 0 | AI144: 0 | AJ144: 0 | AK144: 0 | AL144: 0 | AM144: 0 | AN144: 0
B145: Tax | E145: =NPV('Inputs - actual'!$E$27,F145:O145) -> -461.4757317 | F145: =IF(F144>0,0,F143+E144) -> -76.07825508 | G145: -72.27504486 | H145: -66.63673581 | I145: -64.80526384 | J145: -64.82259754 | K145: -55.22679882 | L145: -54.4508742 | M145: -50.86326203 | N145: -48.90573747 | O145: -43.90515155 | P145: -81.09476933 | Q145: -79.32454877 | R145: -78.15402802 | S145: -76.87858491 | T145: -75.18790713 | U145: -91.58060443 | V145: -93.86090263 | W145: -96.19298053 | X145: -98.57787371 | Y145: -101.0166385 | Z145: -103.0842179 | AA145: -105.625457 | AB145: -108.2236946 | AC145: -110.8800707 | AD145: -113.5957481 | AE145: -115.5319604 | AF145: -118.353023 | AG145: -121.2366806 | AH145: -124.184185 | AI145: -127.1968133 | AJ145: -128.9790272 | AK145: -132.0998997 | AL145: -135.2893635 | AM145: -138.5487902 | AN145: -141.8795792
B146: Net profit | F146: =F142+F145 -> 195.6297988 | G146: 185.8501153 | H146: 171.3516064 | I146: 166.642107 | J146: 166.6866794 | K146: 142.0117684 | L146: 140.0165337 | M146: 130.7912452 | N146: 125.7576106 | O146: 112.8989611 | P146: 208.5294069 | Q146: 203.9774111 | R146: 200.9675006 | S146: 197.6877898 | T146: 193.3403326 | U146: 235.4929828 | V146: 241.3566068 | W146: 247.3533785 | X146: 253.485961 | Y146: 259.7570704 | Z146: 265.0737032 | AA146: 271.608318 | AB146: 278.2895005 | AC146: 285.1201819 | AD146: 292.1033522 | AE146: 297.0821839 | AF146: 304.3363449 | AG146: 311.7514643 | AH146: 319.3307615 | AI146: 327.0775199 | AJ146: 331.6603556 | AK146: 339.6854565 | AL146: 347.8869347 | AM146: 356.2683177 | AN146: 364.8332037
B147: Dividends | F147: =-F150*F146 -> -136.9408591 | G147: -102.2175634 | H147: -68.54064255 | I147: -74.98894816 | J147: -58.34033779 | K147: 0 | L147: 0 | M147: 0 | N147: 0 | O147: 0 | P147: 0 | Q147: -20.39774111 | R147: -50.24187516 | S147: -9.884389488 | T147: 0 | U147: -82.42254399 | V147: -84.47481237 | W147: -86.57368248 | X147: -88.72008634 | Y147: -90.91497464 | Z147: -119.2831664 | AA147: -122.2237431 | AB147: -125.2302752 | AC147: -142.5600909 | AD147: -146.0516761 | AE147: -178.2493103 | AF147: -182.6018069 | AG147: -187.0508786 | AH147: -191.5984569 | AI147: -196.2465119 | AJ147: -215.5792311 | AK147: -237.7798195 | AL147: -243.5208543 | AM147: -249.3878224 | AN147: -255.3832426
B148: Retained earnings | F148: =SUM(F146:F147) -> 58.68893963 | G148: 83.6325519 | H148: 102.8109638 | I148: 91.65315886 | J148: 108.3463416 | K148: 142.0117684 | L148: 140.0165337 | M148: 130.7912452 | N148: 125.7576106 | O148: 112.8989611 | P148: 208.5294069 | Q148: 183.57967 | R148: 150.7256255 | S148: 187.8034003 | T148: 193.3403326 | U148: 153.0704388 | V148: 156.8817944 | W148: 160.779696 | X148: 164.7658746 | Y148: 168.8420958 | Z148: 145.7905367 | AA148: 149.3845749 | AB148: 153.0592253 | AC148: 142.5600909 | AD148: 146.0516761 | AE148: 118.8328736 | AF148: 121.7345379 | AG148: 124.7005857 | AH148: 127.7323046 | AI148: 130.831008 | AJ148: 116.0811245 | AK148: 101.9056369 | AL148: 104.3660804 | AM148: 106.8804953 | AN148: 109.4499611
B150: Dividend pay-out ratio (input) | F150: 0.7 | G150: 0.55 | H150: 0.4 | I150: 0.45 | J150: 0.35 | K150: 0 | L150: 0 | M150: 0 | N150: 0 | O150: 0 | P150: 0 | Q150: 0.1 | R150: 0.25 | S150: 0.05 | T150: 0 | U150: 0.35 | V150: 0.35 | W150: 0.35 | X150: 0.35 | Y150: 0.35 | Z150: 0.45 | AA150: 0.45 | AB150: 0.45 | AC150: 0.5 | AD150: 0.5 | AE150: 0.6 | AF150: 0.6 | AG150: 0.6 | AH150: 0.6 | AI150: 0.6 | AJ150: 0.65 | AK150: 0.7 | AL150: 0.7 | AM150: 0.7 | AN150: 0.7
A152: Tax adjustment | E152: NPV
B153: NPV of tax | E153: =SUM(F153:AN153) -> -1120.717608 | F153: =F143/'Inputs - actual'!F$32 -> -72.08605714 | G153: =G143/'Inputs - actual'!G$32 -> -61.28387859 | H153: =H143/'Inputs - actual'!H$32 -> -50.56368693 | I153: =I143/'Inputs - actual'!I$32 -> -46.59357461 | J153: =J143/'Inputs - actual'!J$32 -> -44.16039058 | K153: =K143/'Inputs - actual'!K$32 -> -35.64897728 | L153: =L143/'Inputs - actual'!L$32 -> -33.30372333 | M153: =M143/'Inputs - actual'!M$32 -> -29.47697217 | N153: =N143/'Inputs - actual'!N$32 -> -26.8552502 | O153: =O143/'Inputs - actual'!O$32 -> -22.84418139 | P153: =P143/'Inputs - actual'!P$32 -> -39.98008295 | Q153: =Q143/'Inputs - actual'!Q$32 -> -37.05520217 | R153: =R143/'Inputs - actual'!R$32 -> -34.59263717 | S153: =S143/'Inputs - actual'!S$32 -> -32.2424782 | T153: =T143/'Inputs - actual'!T$32 -> -29.87870422 | U153: =U143/'Inputs - actual'!U$32 -> -34.48323462 | V153: =V143/'Inputs - actual'!V$32 -> -33.48728563 | W153: =W143/'Inputs - actual'!W$32 -> -32.51841209 | X153: =X143/'Inputs - actual'!X$32 -> -31.57592806 | Y153: =Y143/'Inputs - actual'!Y$32 -> -30.65916471 | Z153: =Z143/'Inputs - actual'!Z$32 -> -29.64492221 | AA153: =AA143/'Inputs - actual'!AA$32 -> -28.78176776 | AB153: =AB143/'Inputs - actual'!AB$32 -> -27.94228696 | AC153: =AC143/'Inputs - actual'!AC$32 -> -27.12587869 | AD153: =AD143/'Inputs - actual'!AD$32 -> -26.33195629 | AE153: =AE143/'Inputs - actual'!AE$32 -> -25.37545984 | AF153: =AF143/'Inputs - actual'!AF$32 -> -24.63098968 | AG153: =AG143/'Inputs - actual'!AG$32 -> -23.90712062 | AH153: =AH143/'Inputs - actual'!AH$32 -> -23.20332675 | AI153: =AI143/'Inputs - actual'!AI$32 -> -22.51909453 | AJ153: =AJ143/'Inputs - actual'!AJ$32 -> -21.63637593 | AK153: =AK143/'Inputs - actual'!AK$32 -> -20.99706721 | AL153: =AL143/'Inputs - actual'!AL$32 -> -20.37560592 | AM153: =AM143/'Inputs - actual'!AM$32 -> -19.77153308 | AN153: =AN143/'Inputs - actual'!AN$32 -> -19.18440032
B154: NPV of forecast tax adjusted for inflation | E154: =SUM(F154:AN154) -> -1114.96876 | F154: =(F$10/'Inputs - forecast'!F$15*'Inputs - actual'!F$15)/'Inputs - actual'!F$32 -> -72.08605714 | G154: =(G$10/'Inputs - forecast'!G$15*'Inputs - actual'!G$15)/'Inputs - actual'!G$32 -> -68.89639348 | H154: =(H$10/'Inputs - forecast'!H$15*'Inputs - actual'!H$15)/'Inputs - actual'!H$32 -> -65.20964714 | I154: =(I$10/'Inputs - forecast'!I$15*'Inputs - actual'!I$15)/'Inputs - actual'!I$32 -> -61.36365584 | J154: =(J$10/'Inputs - forecast'!J$15*'Inputs - actual'!J$15)/'Inputs - actual'!J$32 -> -58.95656648 | K154: =(K$10/'Inputs - forecast'!K$15*'Inputs - actual'!K$15)/'Inputs - actual'!K$32 -> -37.39703638 | L154: =(L$10/'Inputs - forecast'!L$15*'Inputs - actual'!L$15)/'Inputs - actual'!L$32 -> -34.54236081 | M154: =(M$10/'Inputs - forecast'!M$15*'Inputs - actual'!M$15)/'Inputs - actual'!M$32 -> -30.25073156 | N154: =(N$10/'Inputs - forecast'!N$15*'Inputs - actual'!N$15)/'Inputs - actual'!N$32 -> -27.20897104 | O154: =(O$10/'Inputs - forecast'!O$15*'Inputs - actual'!O$15)/'Inputs - actual'!O$32 -> -22.81146171 | P154: =(P$10/'Inputs - forecast'!P$15*'Inputs - actual'!P$15)/'Inputs - actual'!P$32 -> -39.63749436 | Q154: =(Q$10/'Inputs - forecast'!Q$15*'Inputs - actual'!Q$15)/'Inputs - actual'!Q$32 -> -36.41334353 | R154: =(R$10/'Inputs - forecast'!R$15*'Inputs - actual'!R$15)/'Inputs - actual'!R$32 -> -33.66455117 | S154: =(S$10/'Inputs - forecast'!S$15*'Inputs - actual'!S$15)/'Inputs - actual'!S$32 -> -31.04368215 | T154: =(T$10/'Inputs - forecast'!T$15*'Inputs - actual'!T$15)/'Inputs - actual'!T$32 -> -28.42221989 | U154: =(U$10/'Inputs - forecast'!U$15*'Inputs - actual'!U$15)/'Inputs - actual'!U$32 -> -32.78138666 | V154: =(V$10/'Inputs - forecast'!V$15*'Inputs - actual'!V$15)/'Inputs - actual'!V$32 -> -31.56355694 | W154: =(W$10/'Inputs - forecast'!W$15*'Inputs - actual'!W$15)/'Inputs - actual'!W$32 -> -30.39474545 | X154: =(X$10/'Inputs - forecast'!X$15*'Inputs - actual'!X$15)/'Inputs - actual'!X$32 -> -29.27281353 | Y154: =(Y$10/'Inputs - forecast'!Y$15*'Inputs - actual'!Y$15)/'Inputs - actual'!Y$32 -> -28.19572241 | Z154: =(Z$10/'Inputs - forecast'!Z$15*'Inputs - actual'!Z$15)/'Inputs - actual'!Z$32 -> -27.03898073 | AA154: =(AA$10/'Inputs - forecast'!AA$15*'Inputs - actual'!AA$15)/'Inputs - actual'!AA$32 -> -26.0499385 | AB154: =(AB$10/'Inputs - forecast'!AB$15*'Inputs - actual'!AB$15)/'Inputs - actual'!AB$32 -> -25.10003457 | AC154: =(AC$10/'Inputs - forecast'!AC$15*'Inputs - actual'!AC$15)/'Inputs - actual'!AC$32 -> -24.18758773 | AD154: =(AD$10/'Inputs - forecast'!AD$15*'Inputs - actual'!AD$15)/'Inputs - actual'!AD$32 -> -23.31099435 | AE154: =(AE$10/'Inputs - forecast'!AE$15*'Inputs - actual'!AE$15)/'Inputs - actual'!AE$32 -> -22.28423735 | AF154: =(AF$10/'Inputs - forecast'!AF$15*'Inputs - actual'!AF$15)/'Inputs - actual'!AF$32 -> -21.48101651 | AG154: =(AG$10/'Inputs - forecast'!AG$15*'Inputs - actual'!AG$15)/'Inputs - actual'!AG$32 -> -20.7090596 | AH154: =(AH$10/'Inputs - forecast'!AH$15*'Inputs - actual'!AH$15)/'Inputs - actual'!AH$32 -> -19.96704439 | AI154: =(AI$10/'Inputs - forecast'!AI$15*'Inputs - actual'!AI$15)/'Inputs - actual'!AI$32 -> -19.25370889 | AJ154: =(AJ$10/'Inputs - forecast'!AJ$15*'Inputs - actual'!AJ$15)/'Inputs - actual'!AJ$32 -> -18.35030202 | AK154: =(AK$10/'Inputs - forecast'!AK$15*'Inputs - actual'!AK$15)/'Inputs - actual'!AK$32 -> -17.69805985 | AL154: =(AL$10/'Inputs - forecast'!AL$15*'Inputs - actual'!AL$15)/'Inputs - actual'!AL$32 -> -17.07080025 | AM154: =(AM$10/'Inputs - forecast'!AM$15*'Inputs - actual'!AM$15)/'Inputs - actual'!AM$32 -> -16.46748287 | AN154: =(AN$10/'Inputs - forecast'!AN$15*'Inputs - actual'!AN$15)/'Inputs - actual'!AN$32 -> -15.88711421
B155: Difference | E155: =SUM(F155:AN155) -> 5.748848325 | F155: =F154-F153 -> 0 | G155: -7.612514892 | H155: -14.64596021 | I155: =I154-I153 -> -14.77008123 | J155: -14.7961759 | K155: -1.748059103 | L155: -1.238637477 | M155: -0.7737593911 | N155: -0.353720844 | O155: 0.03271967686 | P155: 0.3425885877 | Q155: 0.6418586414 | R155: 0.9280859924 | S155: 1.198796047 | T155: 1.456484336 | U155: 1.701847953 | V155: 1.923728695 | W155: 2.12366664 | X155: 2.303114526 | Y155: 2.463442307 | Z155: 2.605941489 | AA155: 2.731829256 | AB155: 2.842252384 | AC155: 2.938290964 | AD155: 3.020961943 | AE155: 3.091222486 | AF155: 3.14997317 | AG155: 3.198061014 | AH155: 3.236282368 | AI155: 3.26538564 | AJ155: 3.286073905 | AK155: 3.29900736 | AL155: 3.304805674 | AM155: 3.304050206 | AN155: 3.297286114
A157: Cash
B158: Net cash from operating activities | F158: =F138+F140+F145+F141 -> 446.09612 | G158: =G138+G140+G145+G141 -> 444.1563452 | H158: 434.9763693 | I158: 439.8085467 | J158: 449.9809647 | K158: 437.1930483 | L158: 448.2123501 | M158: 456.9501851 | N158: 466.5048308 | O158: 476.6702802 | P158: 589.0798256 | Q158: 600.592398 | R158: 612.6160239 | S158: 626.0788952 | T158: 639.2986769 | U158: 691.711594 | V158: 708.0406901 | W158: 724.7122435 | X158: 741.7331033 | Y158: 759.1102555 | Z158: 775.755052 | AA158: 793.8443938 | AB158: 812.3113977 | AC158: 831.163617 | AD158: 850.408756 | AE158: 867.8947958 | AF158: 887.906309 | AG158: 908.3339277 | AH158: 929.1859741 | AI158: 950.4709367 | AJ158: 968.8627407 | AK158: 990.9729893 | AL158: 1013.541318 | AM158: 1036.576889 | AN158: 1060.089046
B159: Net cash from investing activities | F159: =-F133 -> -337.2 | G159: -399.168 | H159: -474.1416 | I159: -468.6338592 | J159: -512.7132816 | K159: -546.3618351 | L159: -654.8840996 | M159: -607.7127487 | N159: -785.1123291 | O159: -934.2613411 | P159: -755.0594849 | Q159: -722.9055671 | R159: -676.5091365 | S159: -753.4161966 | T159: -790.5257513 | U159: -461.7120088 | V159: -470.9462489 | W159: -480.3651739 | X159: -489.9724774 | Y159: -499.771927 | Z159: -509.7673655 | AA159: -519.9627128 | AB159: -530.3619671 | AC159: -540.9692064 | AD159: -551.7885905 | AE159: -562.8243623 | AF159: -574.0808496 | AG159: -585.5624666 | AH159: -597.2737159 | AI159: -609.2191902 | AJ159: -621.403574 | AK159: -633.8316455 | AL159: -646.5082784 | AM159: -659.438444 | AN159: -672.6272129
B160: Net cash from financing activities | F160: =F147+F166+F165 -> -101.3800508 | G160: -44.46423768 | H160: 17.77126064 | I160: 5.152693844 | J160: 35.72145071 | K160: 102.9840277 | L160: 142.1421961 | M160: 115.4370616 | N160: 182.1896946 | O160: 233.900909 | P160: 153.5487171 | Q160: 113.3813968 | R160: 58.35097629 | S160: 123.3758979 | T160: 141.2726369 | U160: -80.17025097 | V160: -82.72732449 | W160: -85.34109583 | X160: -88.01269895 | Y160: -90.74329048 | Z160: -119.6578996 | AA160: -123.1558219 | AB160: -126.7308466 | AC160: -144.6405247 | AD160: -148.7235695 | AE160: -181.5244927 | AF160: -186.4923439 | AG160: -191.5690773 | AH160: -196.7568705 | AI160: -202.0579448 | AJ160: -222.0567437 | AK160: -244.9367333 | AL160: -251.3707573 | AM160: -257.9445745 | AN160: -264.6609808
B161: Net cash surplus | F161: =SUM(F158:F160) -> 7.516069163 | G161: 0.5241075188 | H161: -21.39397003 | I161: -23.67261866 | J161: -27.01086623 | K161: -6.184759204 | L161: -64.52955342 | M161: -35.32550196 | N161: -136.4178036 | O161: -223.6901519 | P161: -12.43094216 | Q161: -8.931772312 | R161: -5.542136366 | S161: -3.961403555 | T161: -9.954437477 | U161: 149.8293343 | V161: 154.3671167 | W161: 159.0059738 | X161: 163.7479269 | Y161: 168.5950381 | Z161: 146.3297869 | AA161: 150.725859 | AB161: 155.2185841 | AC161: 145.5538859 | AD161: 149.8965959 | AE161: 123.5459408 | AF161: 127.3331155 | AG161: 131.2023838 | AH161: 135.1553876 | AI161: 139.1938017 | AJ161: 125.402423 | AK161: 112.2046104 | AL161: 115.6622824 | AM161: 119.1938703 | AN161: 122.8008526
A163: Debt
B164: Opening balance | F164: =F132*'Inputs - actual'!F$24 -> 1981.94 | G164: =F167 -> 2017.500808 | H164: 2075.254134 | I164: 2161.566037 | J164: 2241.707679 | K164: 2335.769468 | L164: 2438.753495 | M164: 2580.895691 | N164: 2696.332753 | O164: 2878.522448 | P164: 3112.423357 | Q164: 3265.972074 | R164: 3399.751212 | S164: 3508.344063 | T164: 3641.604351 | U164: 3782.876987 | V164: 3785.12928 | W164: 3786.876768 | X164: 3788.109355 | Y164: 3788.816742 | Z164: 3788.988427 | AA164: 3788.613693 | AB164: 3787.681615 | AC164: 3786.181043 | AD164: 3784.100609 | AE164: 3781.428716 | AF164: 3778.153534 | AG164: 3774.262997 | AH164: 3769.744798 | AI164: 3764.586384 | AJ164: 3758.774952 | AK164: 3752.297439 | AL164: 3745.140525 | AM164: 3737.290622 | AN164: 3728.73387
B165: New debt financing | F165: ='Inputs - actual'!F$24*F133 -> 138.252 | G165: ='Inputs - actual'!G$24*G133 -> 163.65888 | H165: ='Inputs - actual'!H$24*H133 -> 194.398056 | I165: ='Inputs - actual'!I$24*I133 -> 192.1398823 | J165: ='Inputs - actual'!J$24*J133 -> 210.2124455 | K165: ='Inputs - actual'!K$24*K133 -> 224.0083524 | L165: ='Inputs - actual'!L$24*L133 -> 268.5024808 | M165: ='Inputs - actual'!M$24*M133 -> 249.162227 | N165: ='Inputs - actual'!N$24*N133 -> 321.8960549 | O165: ='Inputs - actual'!O$24*O133 -> 383.0471499 | P165: ='Inputs - actual'!P$24*P133 -> 309.5743888 | Q165: ='Inputs - actual'!Q$24*Q133 -> 296.3912825 | R165: ='Inputs - actual'!R$24*R133 -> 277.368746 | S165: ='Inputs - actual'!S$24*S133 -> 308.9006406 | T165: ='Inputs - actual'!T$24*T133 -> 324.115558 | U165: ='Inputs - actual'!U$24*U133 -> 189.3019236 | V165: ='Inputs - actual'!V$24*V133 -> 193.0879621 | W165: ='Inputs - actual'!W$24*W133 -> 196.9497213 | X165: ='Inputs - actual'!X$24*X133 -> 200.8887157 | Y165: ='Inputs - actual'!Y$24*Y133 -> 204.9064901 | Z165: ='Inputs - actual'!Z$24*Z133 -> 209.0046199 | AA165: ='Inputs - actual'!AA$24*AA133 -> 213.1847122 | AB165: ='Inputs - actual'!AB$24*AB133 -> 217.4484065 | AC165: ='Inputs - actual'!AC$24*AC133 -> 221.7973746 | AD165: ='Inputs - actual'!AD$24*AD133 -> 226.2333221 | AE165: ='Inputs - actual'!AE$24*AE133 -> 230.7579886 | AF165: ='Inputs - actual'!AF$24*AF133 -> 235.3731483 | AG165: ='Inputs - actual'!AG$24*AG133 -> 240.0806113 | AH165: ='Inputs - actual'!AH$24*AH133 -> 244.8822235 | AI165: ='Inputs - actual'!AI$24*AI133 -> 249.779868 | AJ165: ='Inputs - actual'!AJ$24*AJ133 -> 254.7754654 | AK165: ='Inputs - actual'!AK$24*AK133 -> 259.8709747 | AL165: ='Inputs - actual'!AL$24*AL133 -> 265.0683942 | AM165: ='Inputs - actual'!AM$24*AM133 -> 270.369762 | AN165: ='Inputs - actual'!AN$24*AN133 -> 275.7771573
B166: Repayments | F166: =F134*'Inputs - forecast'!F24 -> -102.6911917 | G166: =G134*'Inputs - forecast'!G24 -> -105.9055542 | H166: =H134*'Inputs - forecast'!H24 -> -108.0861528 | I166: =I134*'Inputs - forecast'!I24 -> -111.9982403 | J166: =J134*'Inputs - forecast'!J24 -> -116.150657 | K166: =K134*'Inputs - forecast'!K24 -> -121.0243248 | L166: =L134*'Inputs - forecast'!L24 -> -126.3602847 | M166: =M134*'Inputs - forecast'!M24 -> -133.7251654 | N166: =N134*'Inputs - forecast'!N24 -> -139.7063603 | O166: =O134*'Inputs - forecast'!O24 -> -149.1462408 | P166: =P134*'Inputs - forecast'!P24 -> -156.0256717 | Q166: =Q134*'Inputs - forecast'!Q24 -> -162.6121446 | R166: =R134*'Inputs - forecast'!R24 -> -168.7758945 | S166: =S134*'Inputs - forecast'!S24 -> -175.6403532 | T166: =T134*'Inputs - forecast'!T24 -> -182.8429212 | U166: =U134*'Inputs - forecast'!U24 -> -187.0496306 | V166: =V134*'Inputs - forecast'!V24 -> -191.3404742 | W166: =W134*'Inputs - forecast'!W24 -> -195.7171347 | X166: =X134*'Inputs - forecast'!X24 -> -200.1813283 | Y166: =Y134*'Inputs - forecast'!Y24 -> -204.7348059 | Z166: =Z134*'Inputs - forecast'!Z24 -> -209.379353 | AA166: =AA134*'Inputs - forecast'!AA24 -> -214.1167911 | AB166: =AB134*'Inputs - forecast'!AB24 -> -218.9489779 | AC166: =AC134*'Inputs - forecast'!AC24 -> -223.8778084 | AD166: =AD134*'Inputs - forecast'!AD24 -> -228.9052156 | AE166: =AE134*'Inputs - forecast'!AE24 -> -234.0331709 | AF166: =AF134*'Inputs - forecast'!AF24 -> -239.2636853 | AG166: =AG134*'Inputs - forecast'!AG24 -> -244.59881 | AH166: =AH134*'Inputs - forecast'!AH24 -> -250.0406372 | AI166: =AI134*'Inputs - forecast'!AI24 -> -255.5913009 | AJ166: =AJ134*'Inputs - forecast'!AJ24 -> -261.2529779 | AK166: =AK134*'Inputs - forecast'!AK24 -> -267.0278885 | AL166: =AL134*'Inputs - forecast'!AL24 -> -272.9182972 | AM166: =AM134*'Inputs - forecast'!AM24 -> -278.9265141 | AN166: =AN134*'Inputs - forecast'!AN24 -> -285.0548954
B167: Closing balance | F167: =SUM(F164:F166) -> 2017.500808 | G167: 2075.254134 | H167: 2161.566037 | I167: 2241.707679 | J167: 2335.769468 | K167: 2438.753495 | L167: 2580.895691 | M167: 2696.332753 | N167: 2878.522448 | O167: 3112.423357 | P167: 3265.972074 | Q167: 3399.751212 | R167: 3508.344063 | S167: 3641.604351 | T167: 3782.876987 | U167: 3785.12928 | V167: 3786.876768 | W167: 3788.109355 | X167: 3788.816742 | Y167: 3788.988427 | Z167: 3788.613693 | AA167: 3787.681615 | AB167: 3786.181043 | AC167: 3784.100609 | AD167: 3781.428716 | AE167: 3778.153534 | AF167: 3774.262997 | AG167: 3769.744798 | AH167: 3764.586384 | AI167: 3758.774952 | AJ167: 3752.297439 | AK167: 3745.140525 | AL167: 3737.290622 | AM167: 3728.73387 | AN167: 3719.456132
A169: Equity
B170: Opening balance | F170: =F132*(1-'Inputs - actual'!F$24) -> 2852.06 | G170: =F173 -> 2903.23287 | H170: 2986.341315 | I170: 3110.546249 | J170: 3225.872026 | K170: 3361.229234 | L170: 3509.425762 | M170: 3713.971849 | N170: 3880.088596 | O170: 4142.26401 | P170: 4478.853123 | Q170: 4699.813472 | R170: 4892.324915 | S170: 5048.592676 | T170: 5240.35748 | U170: 5443.65225 | V170: 5446.893355 | W170: 5449.408033 | X170: 5451.181755 | Y170: 5452.199703 | Z170: 5452.44676 | AA170: 5451.90751 | AB170: 5450.566226 | AC170: 5448.406867 | AD170: 5445.413072 | AE170: 5441.568152 | AF170: 5436.855085 | AG170: 5431.256508 | AH170: 5424.754709 | AI170: 5417.331626 | AJ170: 5408.968833 | AK170: 5399.647534 | AL170: 5389.348561 | AM170: 5378.052359 | AN170: 5365.738984
B171: Retained earnings | F171: =F148 -> 58.68893963 | G171: 83.6325519 | H171: 102.8109638 | I171: 91.65315886 | J171: 108.3463416 | K171: 142.0117684 | L171: 140.0165337 | M171: 130.7912452 | N171: 125.7576106 | O171: 112.8989611 | P171: 208.5294069 | Q171: 183.57967 | R171: 150.7256255 | S171: 187.8034003 | T171: 193.3403326 | U171: 153.0704388 | V171: 156.8817944 | W171: 160.779696 | X171: 164.7658746 | Y171: 168.8420958 | Z171: 145.7905367 | AA171: 149.3845749 | AB171: 153.0592253 | AC171: 142.5600909 | AD171: 146.0516761 | AE171: 118.8328736 | AF171: 121.7345379 | AG171: 124.7005857 | AH171: 127.7323046 | AI171: 130.831008 | AJ171: 116.0811245 | AK171: 101.9056369 | AL171: 104.3660804 | AM171: 106.8804953 | AN171: 109.4499611
B172: Distribution of excess cashflows | F172: =-F161 -> -7.516069163 | G172: -0.5241075188 | H172: 21.39397003 | I172: 23.67261866 | J172: 27.01086623 | K172: 6.184759204 | L172: 64.52955342 | M172: 35.32550196 | N172: 136.4178036 | O172: 223.6901519 | P172: 12.43094216 | Q172: 8.931772312 | R172: 5.542136366 | S172: 3.961403555 | T172: 9.954437477 | U172: -149.8293343 | V172: -154.3671167 | W172: -159.0059738 | X172: -163.7479269 | Y172: -168.5950381 | Z172: -146.3297869 | AA172: -150.725859 | AB172: -155.2185841 | AC172: -145.5538859 | AD172: -149.8965959 | AE172: -123.5459408 | AF172: -127.3331155 | AG172: -131.2023838 | AH172: -135.1553876 | AI172: -139.1938017 | AJ172: -125.402423 | AK172: -112.2046104 | AL172: -115.6622824 | AM172: -119.1938703 | AN172: -122.8008526
B173: Closing balance | F173: =SUM(F170:F172) -> 2903.23287 | G173: 2986.341315 | H173: 3110.546249 | I173: 3225.872026 | J173: 3361.229234 | K173: 3509.425762 | L173: 3713.971849 | M173: 3880.088596 | N173: 4142.26401 | O173: 4478.853123 | P173: 4699.813472 | Q173: 4892.324915 | R173: 5048.592676 | S173: 5240.35748 | T173: 5443.65225 | U173: 5446.893355 | V173: 5449.408033 | W173: 5451.181755 | X173: 5452.199703 | Y173: 5452.44676 | Z173: 5451.90751 | AA173: 5450.566226 | AB173: 5448.406867 | AC173: 5445.413072 | AD173: 5441.568152 | AE173: 5436.855085 | AF173: 5431.256508 | AG173: 5424.754709 | AH173: 5417.331626 | AI173: 5408.968833 | AJ173: 5399.647534 | AK173: 5389.348561 | AL173: 5378.052359 | AM173: 5365.738984 | AN173: 5352.388092
A176: Financial indicators
B177: Funds from operations (FFO) (net profit + depn) | F177: =F146-F139 -> 446.09612 | G177: 444.1563452 | H177: 434.9763693 | I177: 439.8085467 | J177: 449.9809647 | K177: 437.1930483 | L177: 448.2123501 | M177: 456.9501851 | N177: 466.5048308 | O177: 476.6702802 | P177: 589.0798256 | Q177: 600.592398 | R177: 612.6160239 | S177: 626.0788952 | T177: 639.2986769 | U177: 691.711594 | V177: 708.0406901 | W177: 724.7122435 | X177: 741.7331033 | Y177: 759.1102555 | Z177: 775.755052 | AA177: 793.8443938 | AB177: 812.3113977 | AC177: 831.163617 | AD177: 850.408756 | AE177: 867.8947958 | AF177: 887.906309 | AG177: 908.3339277 | AH177: 929.1859741 | AI177: 950.4709367 | AJ177: 968.8627407 | AK177: 990.9729893 | AL177: 1013.541318 | AM177: 1036.576889 | AN177: 1060.089046
B178: Interest coverage ratio ((FFO - interest) / interest) | F178: =-(F177+F141)/F141 -> 4.612980979 | G178: 4.490068722 | H178: 4.226969954 | I178: 4.074003752 | J178: 4.005768836 | K178: 3.667656604 | L178: 3.583228834 | M178: 3.415237121 | N178: 3.314577611 | O178: 3.129562865 | P178: 3.719881674 | Q178: 3.585883221 | R178: 3.493625158 | S178: 3.450230578 | T178: 3.377908433 | U178: 3.55993302 | V178: 3.664801056 | W178: 3.772435342 | X178: 3.882933183 | Y178: 3.996396395 | Z178: 4.105719612 | AA178: 4.225293445 | AB178: 4.348163903 | AC178: 4.474453548 | AD178: 4.604290976 | AE178: 4.723567298 | AF178: 4.860614655 | AG178: 5.00162705 | AH178: 5.146760933 | AI178: 5.296180962 | AJ178: 5.427936207 | AK178: 5.585976665 | AL178: 5.748837439 | AM178: 5.91672132 | AN178: 6.089842487

Sheet Output
C3: Net cash flows projections | D3: $m | F3: RCP3 | K3: RCP4 | P3: RCP5 | U3: RCP6 | Z3: RCP7 | AE3: RCP8 | AJ3: RCP9
C4: Year ending 30 June | F4: 2021 | G4: =F4+1 -> 2022 | H4: 2023 | I4: 2024 | J4: 2025 | K4: 2026 | L4: 2027 | M4: 2028 | N4: 2029 | O4: 2030 | P4: 2031 | Q4: 2032 | R4: 2033 | S4: 2034 | T4: 2035 | U4: 2036 | V4: 2037 | W4: 2038 | X4: 2039 | Y4: 2040 | Z4: 2041 | AA4: 2042 | AB4: 2043 | AC4: 2044 | AD4: 2045 | AE4: 2046 | AF4: 2047 | AG4: 2048 | AH4: 2049 | AI4: 2050 | AJ4: 2051 | AK4: 2052 | AL4: 2053 | AM4: 2054 | AN4: 2055
C5: Current treatment (unindexed)
C6: Revenue - nominal | F6: ='Transpower current (35 years)'!F106 -> 866.9501691 | G6: ='Transpower current (35 years)'!G106 -> 884.2891725 | H6: ='Transpower current (35 years)'!H106 -> 901.9749559 | I6: ='Transpower current (35 years)'!I106 -> 920.014455 | J6: ='Transpower current (35 years)'!J106 -> 938.4147441 | K6: ='Transpower current (35 years)'!K106 -> 1069.618643 | L6: ='Transpower current (35 years)'!L106 -> 1091.011016 | M6: ='Transpower current (35 years)'!M106 -> 1112.831237 | N6: ='Transpower current (35 years)'!N106 -> 1135.087861 | O6: ='Transpower current (35 years)'!O106 -> 1157.789619 | P6: ='Transpower current (35 years)'!P106 -> 1325.309367 | Q6: ='Transpower current (35 years)'!Q106 -> 1351.815554 | R6: ='Transpower current (35 years)'!R106 -> 1378.851865 | S6: ='Transpower current (35 years)'!S106 -> 1406.428903 | T6: ='Transpower current (35 years)'!T106 -> 1434.557481 | U6: ='Transpower current (35 years)'!U106 -> 1499.63168 | V6: ='Transpower current (35 years)'!V106 -> 1529.624314 | W6: ='Transpower current (35 years)'!W106 -> 1560.2168 | X6: ='Transpower current (35 years)'!X106 -> 1591.421136 | Y6: ='Transpower current (35 years)'!Y106 -> 1623.249559 | Z6: ='Transpower current (35 years)'!Z106 -> 1601.00984 | AA6: ='Transpower current (35 years)'!AA106 -> 1633.030037 | AB6: ='Transpower current (35 years)'!AB106 -> 1665.690638 | AC6: ='Transpower current (35 years)'!AC106 -> 1699.004451 | AD6: ='Transpower current (35 years)'!AD106 -> 1732.98454 | AE6: ='Transpower current (35 years)'!AE106 -> 1710.320836 | AF6: ='Transpower current (35 years)'!AF106 -> 1744.527253 | AG6: ='Transpower current (35 years)'!AG106 -> 1779.417798 | AH6: ='Transpower current (35 years)'!AH106 -> 1815.006154 | AI6: ='Transpower current (35 years)'!AI106 -> 1851.306277 | AJ6: ='Transpower current (35 years)'!AJ106 -> 1828.390324 | AK6: ='Transpower current (35 years)'!AK106 -> 1864.958131 | AL6: ='Transpower current (35 years)'!AL106 -> 1902.257293 | AM6: ='Transpower current (35 years)'!AM106 -> 1940.302439 | AN6: ='Transpower current (35 years)'!AN106 -> 1979.108488
C7: Opex | F7: ='Transpower current (35 years)'!F107 -> -265.3 | G7: ='Transpower current (35 years)'!G107 -> -286.956 | H7: ='Transpower current (35 years)'!H107 -> -317.14416 | I7: ='Transpower current (35 years)'!I107 -> -328.7218464 | J7: ='Transpower current (35 years)'!J107 -> -333.718704 | K7: ='Transpower current (35 years)'!K107 -> -350.1716429 | L7: ='Transpower current (35 years)'!L107 -> -354.5237231 | M7: ='Transpower current (35 years)'!M107 -> -362.7732174 | N7: ='Transpower current (35 years)'!N107 -> -370.0286818 | O7: ='Transpower current (35 years)'!O107 -> -377.4292554 | P7: ='Transpower current (35 years)'!P107 -> -385.934477 | Q7: ='Transpower current (35 years)'!Q107 -> -393.6531665 | R7: ='Transpower current (35 years)'!R107 -> -401.5262298 | S7: ='Transpower current (35 years)'!S107 -> -409.5567544 | T7: ='Transpower current (35 years)'!T107 -> -417.7478895 | U7: ='Transpower current (35 years)'!U107 -> -426.1028473 | V7: ='Transpower current (35 years)'!V107 -> -434.6249043 | W7: ='Transpower current (35 years)'!W107 -> -443.3174023 | X7: ='Transpower current (35 years)'!X107 -> -452.1837504 | Y7: ='Transpower current (35 years)'!Y107 -> -461.2274254 | Z7: ='Transpower current (35 years)'!Z107 -> -470.4519739 | AA7: ='Transpower current (35 years)'!AA107 -> -479.8610134 | AB7: ='Transpower current (35 years)'!AB107 -> -489.4582336 | AC7: ='Transpower current (35 years)'!AC107 -> -499.2473983 | AD7: ='Transpower current (35 years)'!AD107 -> -509.2323463 | AE7: ='Transpower current (35 years)'!AE107 -> -519.4169932 | AF7: ='Transpower current (35 years)'!AF107 -> -529.8053331 | AG7: ='Transpower current (35 years)'!AG107 -> -540.4014397 | AH7: ='Transpower current (35 years)'!AH107 -> -551.2094685 | AI7: ='Transpower current (35 years)'!AI107 -> -562.2336579 | AJ7: ='Transpower current (35 years)'!AJ107 -> -573.4783311 | AK7: ='Transpower current (35 years)'!AK107 -> -584.9478977 | AL7: ='Transpower current (35 years)'!AL107 -> -596.6468556 | AM7: ='Transpower current (35 years)'!AM107 -> -608.5797928 | AN7: ='Transpower current (35 years)'!AN107 -> -620.7513886
C8: Capex | F8: =-'Transpower current (35 years)'!F133 -> -337.2 | G8: =-'Transpower current (35 years)'!G133 -> -399.168 | H8: =-'Transpower current (35 years)'!H133 -> -474.1416 | I8: =-'Transpower current (35 years)'!I133 -> -468.6338592 | J8: =-'Transpower current (35 years)'!J133 -> -512.7132816 | K8: =-'Transpower current (35 years)'!K133 -> -546.3618351 | L8: =-'Transpower current (35 years)'!L133 -> -654.8840996 | M8: =-'Transpower current (35 years)'!M133 -> -607.7127487 | N8: =-'Transpower current (35 years)'!N133 -> -785.1123291 | O8: =-'Transpower current (35 years)'!O133 -> -934.2613411 | P8: =-'Transpower current (35 years)'!P133 -> -755.0594849 | Q8: =-'Transpower current (35 years)'!Q133 -> -722.9055671 | R8: =-'Transpower current (35 years)'!R133 -> -676.5091365 | S8: =-'Transpower current (35 years)'!S133 -> -753.4161966 | T8: =-'Transpower current (35 years)'!T133 -> -790.5257513 | U8: =-'Transpower current (35 years)'!U133 -> -461.7120088 | V8: =-'Transpower current (35 years)'!V133 -> -470.9462489 | W8: =-'Transpower current (35 years)'!W133 -> -480.3651739 | X8: =-'Transpower current (35 years)'!X133 -> -489.9724774 | Y8: =-'Transpower current (35 years)'!Y133 -> -499.771927 | Z8: =-'Transpower current (35 years)'!Z133 -> -509.7673655 | AA8: =-'Transpower current (35 years)'!AA133 -> -519.9627128 | AB8: =-'Transpower current (35 years)'!AB133 -> -530.3619671 | AC8: =-'Transpower current (35 years)'!AC133 -> -540.9692064 | AD8: =-'Transpower current (35 years)'!AD133 -> -551.7885905 | AE8: =-'Transpower current (35 years)'!AE133 -> -562.8243623 | AF8: =-'Transpower current (35 years)'!AF133 -> -574.0808496 | AG8: =-'Transpower current (35 years)'!AG133 -> -585.5624666 | AH8: =-'Transpower current (35 years)'!AH133 -> -597.2737159 | AI8: =-'Transpower current (35 years)'!AI133 -> -609.2191902 | AJ8: =-'Transpower current (35 years)'!AJ133 -> -621.403574 | AK8: =-'Transpower current (35 years)'!AK133 -> -633.8316455 | AL8: =-'Transpower current (35 years)'!AL133 -> -646.5082784 | AM8: =-'Transpower current (35 years)'!AM133 -> -659.438444 | AN8: =-'Transpower current (35 years)'!AN133 -> -672.6272129
C9: Notional tax | F9: ='Transpower current (35 years)'!F109 -> -76.07825508 | G9: ='Transpower current (35 years)'!G109 -> -72.27504486 | H9: ='Transpower current (35 years)'!H109 -> -66.63673581 | I9: ='Transpower current (35 years)'!I109 -> -64.80526384 | J9: ='Transpower current (35 years)'!J109 -> -64.82259754 | K9: ='Transpower current (35 years)'!K109 -> -92.56838221 | L9: ='Transpower current (35 years)'!L109 -> -92.53928926 | M9: ='Transpower current (35 years)'!M109 -> -89.71344538 | N9: ='Transpower current (35 years)'!N109 -> -88.5329245 | O9: ='Transpower current (35 years)'!O109 -> -84.32488232 | P9: ='Transpower current (35 years)'!P109 -> -121.5245625 | Q9: ='Transpower current (35 years)'!Q109 -> -120.5629378 | R9: ='Transpower current (35 years)'!R109 -> -120.2171848 | S9: ='Transpower current (35 years)'!S109 -> -119.7830048 | T9: ='Transpower current (35 years)'!T109 -> -118.9504155 | U9: ='Transpower current (35 years)'!U109 -> -130.3727193 | V9: ='Transpower current (35 years)'!V109 -> -133.4288598 | W9: ='Transpower current (35 years)'!W109 -> -136.5522968 | X9: ='Transpower current (35 years)'!X109 -> -139.7443763 | Y9: ='Transpower current (35 years)'!Y109 -> -143.0064711 | Z9: ='Transpower current (35 years)'!Z109 -> -131.0226629 | AA9: ='Transpower current (35 years)'!AA109 -> -134.1226709 | AB9: ='Transpower current (35 years)'!AB109 -> -137.2908528 | AC9: ='Transpower current (35 years)'!AC109 -> -140.528572 | AD9: ='Transpower current (35 years)'!AD109 -> -143.8372194 | AE9: ='Transpower current (35 years)'!AE109 -> -131.1676631 | AF9: ='Transpower current (35 years)'!AF109 -> -134.3014398 | AG9: ='Transpower current (35 years)'!AG109 -> -137.5040657 | AH9: ='Transpower current (35 years)'!AH109 -> -140.7769178 | AI9: ='Transpower current (35 years)'!AI109 -> -144.1214008 | AJ9: ='Transpower current (35 years)'!AJ109 -> -130.7551651 | AK9: ='Transpower current (35 years)'!AK109 -> -133.9115604 | AL9: ='Transpower current (35 years)'!AL109 -> -137.1372574 | AM9: ='Transpower current (35 years)'!AM109 -> -140.433642 | AN9: ='Transpower current (35 years)'!AN109 -> -143.8021281
C10: Notional Interest | F10: ='Transpower current (35 years)'!F141 -> -79.475794 | G10: ='Transpower current (35 years)'!G141 -> -80.90178241 | H10: ='Transpower current (35 years)'!H141 -> -83.21769078 | I10: ='Transpower current (35 years)'!I141 -> -86.67879809 | J10: ='Transpower current (35 years)'!J141 -> -89.89247794 | K10: ='Transpower current (35 years)'!K141 -> -93.66435566 | L10: ='Transpower current (35 years)'!L141 -> -97.79401517 | M10: ='Transpower current (35 years)'!M141 -> -103.4939172 | N10: ='Transpower current (35 years)'!N141 -> -108.1229434 | O10: ='Transpower current (35 years)'!O141 -> -115.4287502 | P10: ='Transpower current (35 years)'!P141 -> -124.8081766 | Q10: ='Transpower current (35 years)'!Q141 -> -130.9654802 | R10: ='Transpower current (35 years)'!R141 -> -136.3300236 | S10: ='Transpower current (35 years)'!S141 -> -140.6845969 | T10: ='Transpower current (35 years)'!T141 -> -146.0283345 | U10: ='Transpower current (35 years)'!U141 -> -151.6933672 | V10: ='Transpower current (35 years)'!V141 -> -151.7836841 | W10: ='Transpower current (35 years)'!W141 -> -151.8537584 | X10: ='Transpower current (35 years)'!X141 -> -151.9031851 | Y10: ='Transpower current (35 years)'!Y141 -> -151.9315514 | Z10: ='Transpower current (35 years)'!Z141 -> -151.9384359 | AA10: ='Transpower current (35 years)'!AA141 -> -151.9234091 | AB10: ='Transpower current (35 years)'!AB141 -> -151.8860327 | AC10: ='Transpower current (35 years)'!AC141 -> -151.8258598 | AD10: ='Transpower current (35 years)'!AD141 -> -151.7424344 | AE10: ='Transpower current (35 years)'!AE141 -> -151.6352915 | AF10: ='Transpower current (35 years)'!AF141 -> -151.5039567 | AG10: ='Transpower current (35 years)'!AG141 -> -151.3479462 | AH10: ='Transpower current (35 years)'!AH141 -> -151.1667664 | AI10: ='Transpower current (35 years)'!AI141 -> -150.959914 | AJ10: ='Transpower current (35 years)'!AJ141 -> -150.7268756 | AK10: ='Transpower current (35 years)'!AK141 -> -150.4671273 | AL10: ='Transpower current (35 years)'!AL141 -> -150.1801351 | AM10: ='Transpower current (35 years)'!AM141 -> -149.8653539 | AN10: ='Transpower current (35 years)'!AN141 -> -149.5222282
C11: Net movement in debt (maintaining 41% leverage) | F11: ='Transpower current (35 years)'!F165+'Transpower current (35 years)'!F166 -> 35.56080829 | G11: ='Transpower current (35 years)'!G165+'Transpower current (35 years)'!G166 -> 57.75332576 | H11: ='Transpower current (35 years)'!H165+'Transpower current (35 years)'!H166 -> 86.31190318 | I11: ='Transpower current (35 years)'!I165+'Transpower current (35 years)'!I166 -> 80.141642 | J11: ='Transpower current (35 years)'!J165+'Transpower current (35 years)'!J166 -> 94.0617885 | K11: ='Transpower current (35 years)'!K165+'Transpower current (35 years)'!K166 -> 102.9840277 | L11: ='Transpower current (35 years)'!L165+'Transpower current (35 years)'!L166 -> 142.1421961 | M11: ='Transpower current (35 years)'!M165+'Transpower current (35 years)'!M166 -> 115.4370616 | N11: ='Transpower current (35 years)'!N165+'Transpower current (35 years)'!N166 -> 182.1896946 | O11: ='Transpower current (35 years)'!O165+'Transpower current (35 years)'!O166 -> 233.900909 | P11: ='Transpower current (35 years)'!P165+'Transpower current (35 years)'!P166 -> 153.5487171 | Q11: ='Transpower current (35 years)'!Q165+'Transpower current (35 years)'!Q166 -> 133.7791379 | R11: ='Transpower current (35 years)'!R165+'Transpower current (35 years)'!R166 -> 108.5928514 | S11: ='Transpower current (35 years)'!S165+'Transpower current (35 years)'!S166 -> 133.2602874 | T11: ='Transpower current (35 years)'!T165+'Transpower current (35 years)'!T166 -> 141.2726369 | U11: ='Transpower current (35 years)'!U165+'Transpower current (35 years)'!U166 -> 2.252293014 | V11: ='Transpower current (35 years)'!V165+'Transpower current (35 years)'!V166 -> 1.747487884 | W11: ='Transpower current (35 years)'!W165+'Transpower current (35 years)'!W166 -> 1.232586652 | X11: ='Transpower current (35 years)'!X165+'Transpower current (35 years)'!X166 -> 0.7073873952 | Y11: ='Transpower current (35 years)'!Y165+'Transpower current (35 years)'!Y166 -> 0.1716841532 | Z11: ='Transpower current (35 years)'!Z165+'Transpower current (35 years)'!Z166 -> -0.3747331536 | AA11: ='Transpower current (35 years)'!AA165+'Transpower current (35 years)'!AA166 -> -0.9320788065 | AB11: ='Transpower current (35 years)'!AB165+'Transpower current (35 years)'!AB166 -> -1.500571373 | AC11: ='Transpower current (35 years)'!AC165+'Transpower current (35 years)'!AC166 -> -2.08043379 | AD11: ='Transpower current (35 years)'!AD165+'Transpower current (35 years)'!AD166 -> -2.671893455 | AE11: ='Transpower current (35 years)'!AE165+'Transpower current (35 years)'!AE166 -> -3.275182314 | AF11: ='Transpower current (35 years)'!AF165+'Transpower current (35 years)'!AF166 -> -3.890536951 | AG11: ='Transpower current (35 years)'!AG165+'Transpower current (35 years)'!AG166 -> -4.518198679 | AH11: ='Transpower current (35 years)'!AH165+'Transpower current (35 years)'!AH166 -> -5.158413643 | AI11: ='Transpower current (35 years)'!AI165+'Transpower current (35 years)'!AI166 -> -5.811432906 | AJ11: ='Transpower current (35 years)'!AJ165+'Transpower current (35 years)'!AJ166 -> -6.477512554 | AK11: ='Transpower current (35 years)'!AK165+'Transpower current (35 years)'!AK166 -> -7.156913795 | AL11: ='Transpower current (35 years)'!AL165+'Transpower current (35 years)'!AL166 -> -7.84990306 | AM11: ='Transpower current (35 years)'!AM165+'Transpower current (35 years)'!AM166 -> -8.556752111 | AN11: ='Transpower current (35 years)'!AN165+'Transpower current (35 years)'!AN166 -> -9.277738144
C12: Dividends | F12: ='Transpower current (35 years)'!F147 -> -136.9408591 | G12: ='Transpower current (35 years)'!G147 -> -102.2175634 | H12: ='Transpower current (35 years)'!H147 -> -68.54064255 | I12: ='Transpower current (35 years)'!I147 -> -74.98894816 | J12: ='Transpower current (35 years)'!J147 -> -58.34033779 | K12: ='Transpower current (35 years)'!K147 -> -95.21319313 | L12: ='Transpower current (35 years)'!L147 -> -35.69372586 | M12: ='Transpower current (35 years)'!M147 -> -69.20751501 | N12: ='Transpower current (35 years)'!N147 -> 0 | O12: ='Transpower current (35 years)'!O147 -> 0 | P12: ='Transpower current (35 years)'!P147 -> -93.74751964 | Q12: ='Transpower current (35 years)'!Q147 -> -124.0075932 | R12: ='Transpower current (35 years)'!R147 -> -154.5649519 | S12: ='Transpower current (35 years)'!S147 -> -123.2053764 | T12: ='Transpower current (35 years)'!T147 -> -107.0553739 | U12: ='Transpower current (35 years)'!U147 -> -167.6220676 | V12: ='Transpower current (35 years)'!V147 -> -171.5513911 | W12: ='Transpower current (35 years)'!W147 -> -175.5672388 | X12: ='Transpower current (35 years)'!X147 -> -179.671341 | Y12: ='Transpower current (35 years)'!Y147 -> -183.8654629 | Z12: ='Transpower current (35 years)'!Z147 -> -202.1492513 | AA12: ='Transpower current (35 years)'!AA147 -> -206.9321208 | AB12: ='Transpower current (35 years)'!AB147 -> -211.8201729 | AC12: ='Transpower current (35 years)'!AC147 -> -216.8155112 | AD12: ='Transpower current (35 years)'!AD147 -> -221.9202814 | AE12: ='Transpower current (35 years)'!AE147 -> -219.2373798 | AF12: ='Transpower current (35 years)'!AF147 -> -224.4752636 | AG12: ='Transpower current (35 years)'!AG147 -> -229.8282241 | AH12: ='Transpower current (35 years)'!AH147 -> -235.2985627 | AI12: ='Transpower current (35 years)'!AI147 -> -240.888627 | AJ12: ='Transpower current (35 years)'!AJ147 -> -235.3592972 | AK12: ='Transpower current (35 years)'!AK147 -> -241.0408088 | AL12: ='Transpower current (35 years)'!AL147 -> -246.8470633 | AM12: ='Transpower current (35 years)'!AM147 -> -252.7805556 | AN12: ='Transpower current (35 years)'!AN147 -> -258.8438305
C13: Equity injection required/ (cash surplus available) while dividends suspended | F13: =-IF(F12=0,SUM(F6:F11),0) -> 0 | G13: 0 | H13: 0 | I13: 0 | J13: 0 | K13: 0 | L13: 0 | M13: 0 | N13: 34.51932269 | O13: 119.7537013 | P13: 0 | Q13: 0 | R13: 0 | S13: 0 | T13: 0 | U13: 0 | V13: 0 | W13: 0 | X13: 0 | Y13: 0 | Z13: 0 | AA13: 0 | AB13: 0 | AC13: 0 | AD13: 0 | AE13: 0 | AF13: 0 | AG13: 0 | AH13: 0 | AI13: 0 | AJ13: 0 | AK13: 0 | AL13: 0 | AM13: 0 | AN13: 0
C14: Net cash surplus | F14: =SUM(F6:F13) -> 7.516069163 | G14: 0.5241075188 | H14: -21.39397003 | I14: -23.67261866 | J14: -27.01086623 | K14: -5.376737905 | L14: -2.281640558 | M14: -4.63254548 | N14: 0 | O14: 0 | P14: -2.216136534 | Q14: -6.500052588 | R14: -1.702809918 | S14: -6.956739207 | T14: -4.477647104 | U14: 164.380963 | V14: 169.0367134 | W14: 173.7935165 | X14: 178.6533933 | Y14: 183.6184052 | Z14: 135.3054177 | AA14: 139.2960313 | AB14: 143.3728074 | AC14: 147.5374691 | AD14: 151.7917741 | AE14: 122.7639641 | AF14: 126.4698734 | AG14: 130.2554572 | AH14: 134.1223091 | AI14: 138.0720544 | AJ14: 110.1895688 | AK14: 113.6021773 | AL14: 117.0878005 | AM14: 120.6478988 | AN14: 124.2839617
C15: check | F15: =ROUND('Transpower current (35 years)'!F161-F14+F13,0) -> 0 | G15: =ROUND('Transpower current (35 years)'!G161-G14+G13,0) -> 0 | H15: =ROUND('Transpower current (35 years)'!H161-H14+H13,0) -> 0 | I15: =ROUND('Transpower current (35 years)'!I161-I14+I13,0) -> 0 | J15: =ROUND('Transpower current (35 years)'!J161-J14+J13,0) -> 0 | K15: =ROUND('Transpower current (35 years)'!K161-K14+K13,0) -> 0 | L15: =ROUND('Transpower current (35 years)'!L161-L14+L13,0) -> 0 | M15: =ROUND('Transpower current (35 years)'!M161-M14+M13,0) -> 0 | N15: =ROUND('Transpower current (35 years)'!N161-N14+N13,0) -> 0 | O15: =ROUND('Transpower current (35 years)'!O161-O14+O13,0) -> 0 | P15: =ROUND('Transpower current (35 years)'!P161-P14+P13,0) -> 0 | Q15: =ROUND('Transpower current (35 years)'!Q161-Q14+Q13,0) -> 0 | R15: =ROUND('Transpower current (35 years)'!R161-R14+R13,0) -> 0 | S15: =ROUND('Transpower current (35 years)'!S161-S14+S13,0) -> 0 | T15: =ROUND('Transpower current (35 years)'!T161-T14+T13,0) -> 0 | U15: =ROUND('Transpower current (35 years)'!U161-U14+U13,0) -> 0 | V15: =ROUND('Transpower current (35 years)'!V161-V14+V13,0) -> 0 | W15: =ROUND('Transpower current (35 years)'!W161-W14+W13,0) -> 0 | X15: =ROUND('Transpower current (35 years)'!X161-X14+X13,0) -> 0 | Y15: =ROUND('Transpower current (35 years)'!Y161-Y14+Y13,0) -> 0 | Z15: =ROUND('Transpower current (35 years)'!Z161-Z14+Z13,0) -> 0 | AA15: =ROUND('Transpower current (35 years)'!AA161-AA14+AA13,0) -> 0 | AB15: =ROUND('Transpower current (35 years)'!AB161-AB14+AB13,0) -> 0 | AC15: =ROUND('Transpower current (35 years)'!AC161-AC14+AC13,0) -> 0 | AD15: =ROUND('Transpower current (35 years)'!AD161-AD14+AD13,0) -> 0 | AE15: =ROUND('Transpower current (35 years)'!AE161-AE14+AE13,0) -> 0 | AF15: =ROUND('Transpower current (35 years)'!AF161-AF14+AF13,0) -> 0 | AG15: =ROUND('Transpower current (35 years)'!AG161-AG14+AG13,0) -> 0 | AH15: =ROUND('Transpower current (35 years)'!AH161-AH14+AH13,0) -> 0 | AI15: =ROUND('Transpower current (35 years)'!AI161-AI14+AI13,0) -> 0 | AJ15: =ROUND('Transpower current (35 years)'!AJ161-AJ14+AJ13,0) -> 0 | AK15: =ROUND('Transpower current (35 years)'!AK161-AK14+AK13,0) -> 0 | AL15: =ROUND('Transpower current (35 years)'!AL161-AL14+AL13,0) -> 0 | AM15: =ROUND('Transpower current (35 years)'!AM161-AM14+AM13,0) -> 0 | AN15: =ROUND('Transpower current (35 years)'!AN161-AN14+AN13,0) -> 0
C16: CPI | F16: ='Inputs - actual'!F14 -> 0.02 | G16: ='Inputs - actual'!G14 -> 0.08 | H16: ='Inputs - actual'!H14 -> 0.08 | I16: ='Inputs - actual'!I14 -> 0.02 | J16: ='Inputs - actual'!J14 -> 0.02 | K16: ='Inputs - actual'!K14 -> 0.02 | L16: ='Inputs - actual'!L14 -> 0.02 | M16: ='Inputs - actual'!M14 -> 0.02 | N16: ='Inputs - actual'!N14 -> 0.02 | O16: ='Inputs - actual'!O14 -> 0.02 | P16: ='Inputs - actual'!P14 -> 0.02 | Q16: ='Inputs - actual'!Q14 -> 0.02 | R16: ='Inputs - actual'!R14 -> 0.02 | S16: ='Inputs - actual'!S14 -> 0.02 | T16: ='Inputs - actual'!T14 -> 0.02 | U16: ='Inputs - actual'!U14 -> 0.02 | V16: ='Inputs - actual'!V14 -> 0.02 | W16: ='Inputs - actual'!W14 -> 0.02 | X16: ='Inputs - actual'!X14 -> 0.02 | Y16: ='Inputs - actual'!Y14 -> 0.02 | Z16: ='Inputs - actual'!Z14 -> 0.02 | AA16: ='Inputs - actual'!AA14 -> 0.02 | AB16: ='Inputs - actual'!AB14 -> 0.02 | AC16: ='Inputs - actual'!AC14 -> 0.02 | AD16: ='Inputs - actual'!AD14 -> 0.02 | AE16: ='Inputs - actual'!AE14 -> 0.02 | AF16: ='Inputs - actual'!AF14 -> 0.02 | AG16: ='Inputs - actual'!AG14 -> 0.02 | AH16: ='Inputs - actual'!AH14 -> 0.02 | AI16: ='Inputs - actual'!AI14 -> 0.02 | AJ16: ='Inputs - actual'!AJ14 -> 0.02 | AK16: ='Inputs - actual'!AK14 -> 0.02 | AL16: ='Inputs - actual'!AL14 -> 0.02 | AM16: ='Inputs - actual'!AM14 -> 0.02 | AN16: ='Inputs - actual'!AN14 -> 0.02
C17: Revenue - real | F17: =Output!F55 -> 849.9511462 | G17: =Output!G55 -> 849.9511462 | H17: =Output!H55 -> 849.9511462 | I17: =Output!I55 -> 849.9511462 | J17: =Output!J55 -> 849.9511462 | K17: =Output!K55 -> 847.1898931 | L17: =Output!L55 -> 847.1898931 | M17: =Output!M55 -> 847.1898931 | N17: =Output!N55 -> 847.1898931 | O17: =Output!O55 -> 847.1898931 | P17: =Output!P55 -> 950.7541081 | Q17: =Output!Q55 -> 950.7541081 | R17: =Output!R55 -> 950.7541081 | S17: =Output!S55 -> 950.7541081 | T17: =Output!T55 -> 950.7541081 | U17: =Output!U55 -> 974.3942014 | V17: =Output!V55 -> 974.3942014 | W17: =Output!W55 -> 974.3942014 | X17: =Output!X55 -> 974.3942014 | Y17: =Output!Y55 -> 974.3942014 | Z17: =Output!Z55 -> 942.2002753 | AA17: =Output!AA55 -> 942.2002753 | AB17: =Output!AB55 -> 942.2002753 | AC17: =Output!AC55 -> 942.2002753 | AD17: =Output!AD55 -> 942.2002753 | AE17: =Output!AE55 -> 911.6454177 | AF17: =Output!AF55 -> 911.6454177 | AG17: =Output!AG55 -> 911.6454177 | AH17: =Output!AH55 -> 911.6454177 | AI17: =Output!AI55 -> 911.6454177 | AJ17: =Output!AJ55 -> 882.7066986 | AK17: =Output!AK55 -> 882.7066986 | AL17: =Output!AL55 -> 882.7066986 | AM17: =Output!AM55 -> 882.7066986 | AN17: =Output!AN55 -> 882.7066986
C18: Dividend pay-out ratio | F18: ='Transpower current (35 years)'!F150 -> 0.7 | G18: ='Transpower current (35 years)'!G150 -> 0.55 | H18: ='Transpower current (35 years)'!H150 -> 0.4 | I18: ='Transpower current (35 years)'!I150 -> 0.45 | J18: ='Transpower current (35 years)'!J150 -> 0.35 | K18: ='Transpower current (35 years)'!K150 -> 0.4 | L18: ='Transpower current (35 years)'!L150 -> 0.15 | M18: ='Transpower current (35 years)'!M150 -> 0.3 | N18: ='Transpower current (35 years)'!N150 -> 0 | O18: ='Transpower current (35 years)'!O150 -> 0 | P18: ='Transpower current (35 years)'!P150 -> 0.3 | Q18: ='Transpower current (35 years)'!Q150 -> 0.4 | R18: ='Transpower current (35 years)'!R150 -> 0.5 | S18: ='Transpower current (35 years)'!S150 -> 0.4 | T18: ='Transpower current (35 years)'!T150 -> 0.35 | U18: ='Transpower current (35 years)'!U150 -> 0.5 | V18: ='Transpower current (35 years)'!V150 -> 0.5 | W18: ='Transpower current (35 years)'!W150 -> 0.5 | X18: ='Transpower current (35 years)'!X150 -> 0.5 | Y18: ='Transpower current (35 years)'!Y150 -> 0.5 | Z18: ='Transpower current (35 years)'!Z150 -> 0.6 | AA18: ='Transpower current (35 years)'!AA150 -> 0.6 | AB18: ='Transpower current (35 years)'!AB150 -> 0.6 | AC18: ='Transpower current (35 years)'!AC150 -> 0.6 | AD18: ='Transpower current (35 years)'!AD150 -> 0.6 | AE18: ='Transpower current (35 years)'!AE150 -> 0.65 | AF18: ='Transpower current (35 years)'!AF150 -> 0.65 | AG18: ='Transpower current (35 years)'!AG150 -> 0.65 | AH18: ='Transpower current (35 years)'!AH150 -> 0.65 | AI18: ='Transpower current (35 years)'!AI150 -> 0.65 | AJ18: ='Transpower current (35 years)'!AJ150 -> 0.7 | AK18: ='Transpower current (35 years)'!AK150 -> 0.7 | AL18: ='Transpower current (35 years)'!AL150 -> 0.7 | AM18: ='Transpower current (35 years)'!AM150 -> 0.7 | AN18: ='Transpower current (35 years)'!AN150 -> 0.7
C19: Interest coverage ratio ((FFO - interest) / interest) | F19: ='Transpower current (35 years)'!F178 -> 4.612980979 | G19: ='Transpower current (35 years)'!G178 -> 4.490068722 | H19: ='Transpower current (35 years)'!H178 -> 4.226969954 | I19: ='Transpower current (35 years)'!I178 -> 4.074003752 | J19: ='Transpower current (35 years)'!J178 -> 4.005768836 | K19: ='Transpower current (35 years)'!K178 -> 4.692819419 | L19: ='Transpower current (35 years)'!L178 -> 4.58473837 | M19: ='Transpower current (35 years)'!M178 -> 4.380515798 | N19: ='Transpower current (35 years)'!N178 -> 4.257009233 | O19: ='Transpower current (35 years)'!O178 -> 4.030001018 | P19: ='Transpower current (35 years)'!P178 -> 4.552858552 | Q19: ='Transpower current (35 years)'!Q178 -> 4.39557423 | R19: ='Transpower current (35 years)'!R178 -> 4.28701168 | S19: ='Transpower current (35 years)'!S178 -> 4.234436196 | T19: ='Transpower current (35 years)'!T178 -> 4.148527127 | U19: ='Transpower current (35 years)'!U178 -> 4.21751716 | V19: ='Transpower current (35 years)'!V178 -> 4.335137766 | W19: ='Transpower current (35 years)'!W178 -> 4.455863267 | X19: ='Transpower current (35 years)'!X178 -> 4.579802843 | Y19: ='Transpower current (35 years)'!Y178 -> 4.707070737 | Z19: ='Transpower current (35 years)'!Z178 -> 4.578553988 | AA19: ='Transpower current (35 years)'!AA178 -> 4.707632213 | AB19: ='Transpower current (35 years)'!AB178 -> 4.840270515 | AC19: ='Transpower current (35 years)'!AC178 -> 4.976601229 | AD19: ='Transpower current (35 years)'!AD178 -> 5.116763204 | AE19: ='Transpower current (35 years)'!AE178 -> 4.988717267 | AF19: ='Transpower current (35 years)'!AF178 -> 5.131302071 | AG19: ='Transpower current (35 years)'!AG178 -> 5.278012822 | AH19: ='Transpower current (35 years)'!AH178 -> 5.429012305 | AI19: ='Transpower current (35 years)'!AI178 -> 5.584471851 | AJ19: ='Transpower current (35 years)'!AJ178 -> 5.458237451 | AK19: ='Transpower current (35 years)'!AK178 -> 5.616937289 | AL19: ='Transpower current (35 years)'!AL178 -> 5.780477624 | AM19: ='Transpower current (35 years)'!AM178 -> 5.949062096 | AN19: ='Transpower current (35 years)'!AN178 -> 6.122905779
C21: Indexing from RCP4
